Workbook

Sheet Intro
A1: GTM_Nor model
A2: Last update | B2: ug+pes | C2: on | D2: 12/6 &13/7/21 | E2: , PES 3 jul 21 - mainly update of figures formatting and legends, adjustment of BAU brown- vs greenfield investment, same output
A3: Green Transition Model (GTM) for Norway
A4: Done by Jorgen Randers, Per Espen Stokness and Ulrich Goluke (UG)
A5: See [link to published paper] for a conceptual description of the model.
A6: For questions contact UG at post@blue-way.net
A8: Historical data with sources and visualizations are on tab hist
A9: The four scenarios are on tabs SC-1 (BAU), SC2_Harvest, SC3_Rebuilding and SC4_Faster_Rebuild
A10: You can create your own scenario on SC_mp, either directly or through making changes on the dashboard tab dbPES
A11: Results with many visualizations on each scenario tab and for comparing the sceanrios on tab Comparisons
A12: Note that the sheet is completely unprotected, thus can change any and every cell on any tab. It is up to you to make physically and logically possible changes only.
A13: For safety's sake, work only on a copy!
A14: The dashboard to change policies and sensitivities is on tab dbPES
A15: Sensitivty results are on tab paraplot
A16: Tabs upside, downside, UIC and Stranding are helper tabs.
A18: The spreadsheet was created on a Win 10 machine with EXCEL 2019.
A19: Make sure you set you spreadsheet to automatic recalculation.
A21: Export data for post processing and production quality graphs
A23: Conceptualization of energy employment
A24: for GTM | D24: A Employment (1000 p) | G24: B Money spent (GNOK/yr) | J24: C Intensities**
B25: Activity (for O&G: Mtoe/yr - for wind: TWh/yr) | D25: Aa: direct | E25: Ab: indirect ("ringvirkninger") | F25: Total | G25: Ba: direct | H25: Bb: indirect ("ringvirkninger") | I25: Total
A26: 1 | B26: Exploration | D26: Aa1 | E26: Ab2 | F26: A1 | G26: Ba1 | H26: Bb2 | I26: B1
A27: 2 | B27: Construction | D27: Aa2 | E27: Ab3 | F27: A2 | G27: Ba2 | H27: Bb3 | I27: B2
A28: 3 | B28: Production | D28: Aa3 | E28: Ab4 | F28: A3 | G28: Ba3 | H28: Bb4 | I28: B3
A29: 4 | B29: Taking out of service* | D29: Aa4 | E29: Ab5 | F29: A4 | G29: Ba4 | H29: Bb5 | I29: B4
A30: 5 | B30: Breaking up | D30: Aa5 | E30: Ab6 | F30: A5 | G30: Ba5 | H30: Bb6 | I30: B5
A31: 6 | B31: All activities | D31: Aa6 | E31: Ab7 | F31: A6 | G31: Ba6 | H31: Bb7 | I31: B6
A32: 7 | B32: All investment (1,2,4,5) | D32: Aa7 | E32: Ab8 | F32: A7 | G32: Ba7 | H32: Bb8 | I32: B7
B34: * Taking out of service can happen because equipment has reached the end of its life, for political reasons, or economic reasons (revenue < opex), but the activity is the same
B35: 1,2, 4, 5 are investments | D35: CAPEX = B7 | E35: CAPEX + OPEX = B6
B36: 3 is operations | D36: OPEX = B3
B37: ** Intensities can be calculated per activity (eg Aa1/1; or Bb2/2; ...) or related to activity 3 (eg Bb4/3; or B6/3; …) or any other activity

Sheet hist
A1: Historical Inputs to GTM_Nor model | B1: if variable has a yellow background, data is an educated guess - so far!
A2: Last update | B2: =Intro!B2 -> ug+pes | C2: =Intro!D2 -> 12/6 &13/7/21
A3: Time | F3: 1980 | G3: =F3+1 -> 1981 | H3: 1982 | I3: 1983 | J3: 1984 | K3: 1985 | L3: 1986 | M3: 1987 | N3: 1988 | O3: 1989 | P3: 1990 | Q3: 1991 | R3: 1992 | S3: 1993 | T3: 1994 | U3: 1995 | V3: 1996 | W3: 1997 | X3: 1998 | Y3: 1999 | Z3: 2000 | AA3: 2001 | AB3: 2002 | AC3: 2003 | AD3: 2004 | AE3: 2005 | AF3: 2006 | AG3: 2007 | AH3: 2008 | AI3: 2009 | AJ3: 2010 | AK3: 2011 | AL3: 2012 | AM3: 2013 | AN3: 2014 | AO3: 2015 | AP3: 2016 | AQ3: 2017 | AR3: 2018 | AS3: 2019 | AT3: 2020 | AU3: 2021
A4: Population
A5: =CONCATENATE("Birth rate (",B5,")") -> Birth rate (percent/yr) | B5: percent/yr | C5: SSB 06913: Befolkning og endringer, etter år, region og statistikkvariabel | F5: =[1]Folkemengde!P$60 -> 1.251293241 | G5: =[1]Folkemengde!Q$60 -> 1.239095481 | H5: =[1]Folkemengde!R$60 -> 1.247728608 | I5: =[1]Folkemengde!S$60 -> 1.211324845 | J5: =[1]Folkemengde!T$60 -> 1.216006471 | K5: =[1]Folkemengde!U$60 -> 1.233379444 | L5: =[1]Folkemengde!V$60 -> 1.262602523 | M5: =[1]Folkemengde!W$60 -> 1.293898414 | N5: =[1]Folkemengde!X$60 -> 1.37022487 | O5: =[1]Folkemengde!Y$60 -> 1.405055955 | P5: =[1]Folkemengde!Z$60 -> 1.439577843 | Q5: =[1]Folkemengde!AA$60 -> 1.430833704 | R5: =[1]Folkemengde!AB$60 -> 1.406507904 | S5: =[1]Folkemengde!AC$60 -> 1.388129375 | T5: =[1]Folkemengde!AD$60 -> 1.389469839 | U5: =[1]Folkemengde!AE$60 -> 1.386529789 | V5: =[1]Folkemengde!AF$60 -> 1.394224245 | W5: =[1]Folkemengde!AG$60 -> 1.361367938 | X5: =[1]Folkemengde!AH$60 -> 1.320898524 | Y5: =[1]Folkemengde!AI$60 -> 1.333939513 | Z5: =[1]Folkemengde!AJ$60 -> 1.322631231 | AA5: =[1]Folkemengde!AK$60 -> 1.258949833 | AB5: =[1]Folkemengde!AL$60 -> 1.225313689 | AC5: =[1]Folkemengde!AM$60 -> 1.240221323 | AD5: =[1]Folkemengde!AN$60 -> 1.244162425 | AE5: =[1]Folkemengde!AO$60 -> 1.232121741 | AF5: =[1]Folkemengde!AP$60 -> 1.26168614 | AG5: =[1]Folkemengde!AQ$60 -> 1.248821333 | AH5: =[1]Folkemengde!AR$60 -> 1.277070218 | AI5: =[1]Folkemengde!AS$60 -> 1.287846523 | AJ5: =[1]Folkemengde!AT$60 -> 1.264707353 | AK5: =[1]Folkemengde!AU$60 -> 1.223907868 | AL5: =[1]Folkemengde!AV$60 -> 1.208515264 | AM5: =[1]Folkemengde!AW$60 -> 1.16792295 | AN5: =[1]Folkemengde!AX$60 -> 1.1564563 | AO5: =[1]Folkemengde!AY$60 -> 1.143249393 | AP5: =[1]Folkemengde!AZ$60 -> 1.129462398 | AQ5: =[1]Folkemengde!BA$60 -> 1.077017608 | AR5: =[1]Folkemengde!BB$60 -> 1.040860379 | AS5: =[1]Folkemengde!BC$60 -> 1.022763359
A6: =CONCATENATE("Death rate (",B6,")") -> Death rate (percent/yr) | B6: percent/yr | C6: SSB 06913: Befolkning og endringer, etter år, region og statistikkvariabel | F6: =[1]Folkemengde!P$61 -> 1.013508544 | G6: =[1]Folkemengde!Q$61 -> 1.023693046 | H6: =[1]Folkemengde!R$61 -> 1.009334408 | I6: =[1]Folkemengde!S$61 -> 1.024230135 | J6: =[1]Folkemengde!T$61 -> 1.029931406 | K6: =[1]Folkemengde!U$61 -> 1.070276385 | L6: =[1]Folkemengde!V$61 -> 1.047320065 | M6: =[1]Folkemengde!W$61 -> 1.07672791 | N6: =[1]Folkemengde!X$61 -> 1.080297235 | O6: =[1]Folkemengde!Y$61 -> 1.070276254 | P6: =[1]Folkemengde!Z$61 -> 1.08716605 | Q6: =[1]Folkemengde!AA$61 -> 1.057054047 | R6: =[1]Folkemengde!AB$61 -> 1.046673627 | S6: =[1]Folkemengde!AC$61 -> 1.083861129 | T6: =[1]Folkemengde!AD$61 -> 1.019026247 | U6: =[1]Folkemengde!AE$61 -> 1.039230431 | V6: =[1]Folkemengde!AF$61 -> 1.003671203 | W6: =[1]Folkemengde!AG$61 -> 1.015203812 | X6: =[1]Folkemengde!AH$61 -> 0.9985514756 | Y6: =[1]Folkemengde!AI$61 -> 1.016122766 | Z6: =[1]Folkemengde!AJ$61 -> 0.9825171257 | AA6: =[1]Folkemengde!AK$61 -> 0.9766098597 | AB6: =[1]Folkemengde!AL$61 -> 0.9828548036 | AC6: =[1]Folkemengde!AM$61 -> 0.9331205742 | AD6: =[1]Folkemengde!AN$61 -> 0.90006307 | AE6: =[1]Folkemengde!AO$61 -> 0.8951096559 | AF6: =[1]Folkemengde!AP$61 -> 0.8890313151 | AG6: =[1]Folkemengde!AQ$61 -> 0.8962358266 | AH6: =[1]Folkemengde!AR$61 -> 0.8805255288 | AI6: =[1]Folkemengde!AS$61 -> 0.8636554196 | AJ6: =[1]Folkemengde!AT$61 -> 0.854205437 | AK6: =[1]Folkemengde!AU$61 -> 0.8412689864 | AL6: =[1]Folkemengde!AV$61 -> 0.842220114 | AM6: =[1]Folkemengde!AW$61 -> 0.8172590089 | AN6: =[1]Folkemengde!AX$61 -> 0.7906352954 | AO6: =[1]Folkemengde!AY$61 -> 0.7883964581 | AP6: =[1]Folkemengde!AZ$61 -> 0.7810916219 | AQ6: =[1]Folkemengde!BA$61 -> 0.7754192073 | AR6: =[1]Folkemengde!BB$61 -> 0.7712035175 | AS6: =[1]Folkemengde!BC$61 -> 0.7635582068
A7: =CONCATENATE("Population (",B7,")") -> Population (Mp) | B7: Mp | C7: SSB 06913: Befolkning og endringer, etter år, region og statistikkvariabel | F7: =[1]Folkemengde!P$59 -> 4.0789 | G7: =[1]Folkemengde!Q$59 -> 4.09234 | H7: =[1]Folkemengde!R$59 -> 4.107063 | I7: =[1]Folkemengde!S$59 -> 4.122511 | J7: =[1]Folkemengde!T$59 -> 4.134353 | K7: =[1]Folkemengde!U$59 -> 4.145845 | L7: =[1]Folkemengde!V$59 -> 4.159187 | M7: =[1]Folkemengde!W$59 -> 4.175521 | N7: =[1]Folkemengde!X$59 -> 4.198289 | O7: =[1]Folkemengde!Y$59 -> 4.220686 | P7: =[1]Folkemengde!Z$59 -> 4.233116 | Q7: =[1]Folkemengde!AA$59 -> 4.24983 | R7: =[1]Folkemengde!AB$59 -> 4.273634 | S7: =[1]Folkemengde!AC$59 -> 4.299167 | T7: =[1]Folkemengde!AD$59 -> 4.324815 | U7: =[1]Folkemengde!AE$59 -> 4.34841 | V7: =[1]Folkemengde!AF$59 -> 4.369957 | W7: =[1]Folkemengde!AG$59 -> 4.392714 | X7: =[1]Folkemengde!AH$59 -> 4.417599 | Y7: =[1]Folkemengde!AI$59 -> 4.445329 | Z7: =[1]Folkemengde!AJ$59 -> 4.478497 | AA7: =[1]Folkemengde!AK$59 -> 4.503436 | AB7: =[1]Folkemengde!AL$59 -> 4.524066 | AC7: =[1]Folkemengde!AM$59 -> 4.552252 | AD7: =[1]Folkemengde!AN$59 -> 4.577457 | AE7: =[1]Folkemengde!AO$59 -> 4.606363 | AF7: =[1]Folkemengde!AP$59 -> 4.640219 | AG7: =[1]Folkemengde!AQ$59 -> 4.681134 | AH7: =[1]Folkemengde!AR$59 -> 4.737171 | AI7: =[1]Folkemengde!AS$59 -> 4.799252 | AJ7: =[1]Folkemengde!AT$59 -> 4.858199 | AK7: =[1]Folkemengde!AU$59 -> 4.920305 | AL7: =[1]Folkemengde!AV$59 -> 4.98587 | AM7: =[1]Folkemengde!AW$59 -> 5.051275 | AN7: =[1]Folkemengde!AX$59 -> 5.109056 | AO7: =[1]Folkemengde!AY$59 -> 5.165802 | AP7: =[1]Folkemengde!AZ$59 -> 5.213985 | AQ7: =[1]Folkemengde!BA$59 -> 5.258317 | AR7: =[1]Folkemengde!BB$59 -> 5.295619 | AS7: =[1]Folkemengde!BC$59 -> 5.328212 | AT7: 5.37 | AV7: 2020 from update of SSB table 06913
A8: =CONCATENATE("Net migration (",B8,")") -> Net migration (percent/yr) | B8: percent/yr | C8: SSB 06913: Befolkning og endringer, etter år, region og statistikkvariabel | F8: =[1]Folkemengde!P$62 -> 0.09980632033 | G8: =[1]Folkemengde!Q$62 -> 0.1264802045 | H8: =[1]Folkemengde!R$62 -> 0.1397592391 | I8: =[1]Folkemengde!S$62 -> 0.1039415056 | J8: =[1]Folkemengde!T$62 -> 0.0909694939 | K8: =[1]Folkemengde!U$62 -> 0.1502226928 | L8: =[1]Folkemengde!V$62 -> 0.1791455878 | M8: =[1]Folkemengde!W$62 -> 0.3297552569 | N8: =[1]Folkemengde!X$62 -> 0.2415984226 | O8: =[1]Folkemengde!Y$62 -> -0.03442568341 | P8: =[1]Folkemengde!Z$62 -> 0.04039577465 | Q8: =[1]Folkemengde!AA$62 -> 0.1893016897 | R8: =[1]Folkemengde!AB$62 -> 0.2326357381 | S8: =[1]Folkemengde!AC$62 -> 0.2979181781 | T8: =[1]Folkemengde!AD$62 -> 0.1719379904 | U8: =[1]Folkemengde!AE$62 -> 0.1463983387 | V8: =[1]Folkemengde!AF$62 -> 0.133113438 | W8: =[1]Folkemengde!AG$62 -> 0.2435851731 | X8: =[1]Folkemengde!AH$62 -> 0.3129075319 | Y8: =[1]Folkemengde!AI$62 -> 0.4273924382 | Z8: =[1]Folkemengde!AJ$62 -> 0.2163225743 | AA8: =[1]Folkemengde!AK$62 -> 0.1766429011 | AB8: =[1]Folkemengde!AL$62 -> 0.3796142673 | AC8: =[1]Folkemengde!AM$62 -> 0.2478992815 | AD8: =[1]Folkemengde!AN$62 -> 0.2886100295 | AE8: =[1]Folkemengde!AO$62 -> 0.4002941149 | AF8: =[1]Folkemengde!AP$62 -> 0.5112474217 | AG8: =[1]Folkemengde!AQ$62 -> 0.8470597082 | AH8: =[1]Folkemengde!AR$62 -> 0.9150186894 | AI8: =[1]Folkemengde!AS$62 -> 0.8050629556 | AJ8: =[1]Folkemengde!AT$62 -> 0.8716398814 | AK8: =[1]Folkemengde!AU$62 -> 0.9558757028 | AL8: =[1]Folkemengde!AV$62 -> 0.9495434097 | AM8: =[1]Folkemengde!AW$62 -> 0.7933244577 | AN8: =[1]Folkemengde!AX$62 -> 0.7468111526 | AO8: =[1]Folkemengde!AY$62 -> 0.5769094518 | AP8: =[1]Folkemengde!AZ$62 -> 0.5001165136 | AQ8: =[1]Folkemengde!BA$62 -> 0.4060044307 | AR8: =[1]Folkemengde!BB$62 -> 0.3418486111 | AS8: =[1]Folkemengde!BC$62 -> 0.475337693
A9: =CONCATENATE("Net migration (",B9,")") -> Net migration (p/yr) | B9: p/yr | C9: calculated | F9: =F7*F8*1000000/100 -> 4071 | G9: =G7*G8*1000000/100 -> 5176 | H9: 5740 | I9: 4285 | J9: 3761 | K9: 6228 | L9: 7451 | M9: 13769 | N9: 10143 | O9: -1453 | P9: 1710 | Q9: =Q7*Q8*1000000/100 -> 8045 | R9: 9942 | S9: 12808 | T9: 7436 | U9: 6366 | V9: 5817 | W9: 10700 | X9: 13823 | Y9: 18999 | Z9: 9688 | AA9: 7955 | AB9: 17174 | AC9: 11285 | AD9: 13211 | AE9: 18439 | AF9: 23723 | AG9: 39652 | AH9: 43346 | AI9: 38637 | AJ9: 42346 | AK9: 47032 | AL9: 47343 | AM9: 40073 | AN9: 38155 | AO9: 29802 | AP9: 26076 | AQ9: 21349 | AR9: 18103 | AS9: 25327
A10: =CONCATENATE("Births (",B10,")") -> Births (p/yr) | B10: p/yr | F10: =(F7*1000000)*(F5/100) -> 51039 | G10: =(G7*1000000)*(G5/100) -> 50708 | H10: 51245 | I10: 49937 | J10: 50274 | K10: 51134 | L10: 52514 | M10: 54027 | N10: 57526 | O10: 59303 | P10: 60939 | Q10: 60808 | R10: 60109 | S10: 59678 | T10: 60092 | U10: 60292 | V10: 60927 | W10: 59801 | X10: 58352 | Y10: 59298 | Z10: 59234 | AA10: 56696 | AB10: 55434 | AC10: 56458 | AD10: 56951 | AE10: 56756 | AF10: 58545 | AG10: 58459 | AH10: 60497 | AI10: 61807 | AJ10: 61442 | AK10: 60220 | AL10: 60255 | AM10: 58995 | AN10: 59084 | AO10: 59058 | AP10: 58890 | AQ10: 56633 | AR10: 55120 | AS10: 54495
A11: =CONCATENATE("Deaths (",B11,")") -> Deaths (p/yr) | B11: p/yr | F11: =(F7*1000000)*(F6/100) -> 41340 | G11: =(G7*1000000)*(G6/100) -> 41893 | H11: 41454 | I11: 42224 | J11: 42581 | K11: 44372 | L11: 43560 | M11: 44959 | N11: 45354 | O11: 45173 | P11: 46021 | Q11: 44923 | R11: 44731 | S11: 46597 | T11: 44071 | U11: 45190 | V11: 43860 | W11: 44595 | X11: 44112 | Y11: 45170 | Z11: 44002 | AA11: 43981 | AB11: 44465 | AC11: 42478 | AD11: 41200 | AE11: 41232 | AF11: 41253 | AG11: 41954 | AH11: 41712 | AI11: 41449 | AJ11: 41499 | AK11: 41393 | AL11: 41992 | AM11: 41282 | AN11: 40394 | AO11: 40727 | AP11: 40726 | AQ11: 40774 | AR11: 40840 | AS11: 40684
A13: Offshore
A14: Oil production (Mtoe/yr)
A15: =CONCATENATE("Oil production (",B15,")") -> Oil production (Mtoe/yr) | B15: Mtoe/yr | C15: bp Statistical Review of World Energy June 2020 | F15: ='[2]Oil Production - Tonnes'!Q$22 -> 25.04963036 | G15: ='[2]Oil Production - Tonnes'!R$22 -> 24.29234071 | H15: ='[2]Oil Production - Tonnes'!S$22 -> 25.23151629 | I15: ='[2]Oil Production - Tonnes'!T$22 -> 31.39764151 | J15: ='[2]Oil Production - Tonnes'!U$22 -> 35.95476672 | K15: ='[2]Oil Production - Tonnes'!V$22 -> 39.2108211 | L15: ='[2]Oil Production - Tonnes'!W$22 -> 43.03404971 | M15: ='[2]Oil Production - Tonnes'!X$22 -> 50.11527743 | N15: ='[2]Oil Production - Tonnes'!Y$22 -> 56.97954213 | O15: ='[2]Oil Production - Tonnes'!Z$22 -> 74.90908982 | P15: ='[2]Oil Production - Tonnes'!AA$22 -> 82.14305149 | Q15: ='[2]Oil Production - Tonnes'!AB$22 -> 93.8422449 | R15: ='[2]Oil Production - Tonnes'!AC$22 -> 106.9007026 | S15: ='[2]Oil Production - Tonnes'!AD$22 -> 114.1283425 | T15: ='[2]Oil Production - Tonnes'!AE$22 -> 128.5829612 | U15: ='[2]Oil Production - Tonnes'!AF$22 -> 138.3996873 | V15: ='[2]Oil Production - Tonnes'!AG$22 -> 154.6642684 | W15: ='[2]Oil Production - Tonnes'!AH$22 -> 156.2279303 | X15: ='[2]Oil Production - Tonnes'!AI$22 -> 149.6002107 | Y15: ='[2]Oil Production - Tonnes'!AJ$22 -> 149.6737013 | Z15: ='[2]Oil Production - Tonnes'!AK$22 -> 159.9140723 | AA15: ='[2]Oil Production - Tonnes'!AL$22 -> 161.5449175 | AB15: ='[2]Oil Production - Tonnes'!AM$22 -> 157.1370942 | AC15: ='[2]Oil Production - Tonnes'!AN$22 -> 153.1503028 | AD15: ='[2]Oil Production - Tonnes'!AO$22 -> 149.9928679 | AE15: ='[2]Oil Production - Tonnes'!AP$22 -> 138.1985061 | AF15: ='[2]Oil Production - Tonnes'!AQ$22 -> 128.6149206 | AG15: ='[2]Oil Production - Tonnes'!AR$22 -> 118.1927265 | AH15: ='[2]Oil Production - Tonnes'!AS$22 -> 114.2222564 | AI15: ='[2]Oil Production - Tonnes'!AT$22 -> 108.1656314 | AJ15: ='[2]Oil Production - Tonnes'!AU$22 -> 98.40465092 | AK15: ='[2]Oil Production - Tonnes'!AV$22 -> 93.1775152 | AL15: ='[2]Oil Production - Tonnes'!AW$22 -> 86.86363264 | AM15: ='[2]Oil Production - Tonnes'!AX$22 -> 82.77059215 | AN15: ='[2]Oil Production - Tonnes'!AY$22 -> 84.80047755 | AO15: ='[2]Oil Production - Tonnes'!AZ$22 -> 87.46647064 | AP15: ='[2]Oil Production - Tonnes'!BA$22 -> 90.14599393 | AQ15: ='[2]Oil Production - Tonnes'!BB$22 -> 88.68442258 | AR15: ='[2]Oil Production - Tonnes'!BC$22 -> 83.14667473 | AS15: ='[2]Oil Production - Tonnes'!BD$22 -> 78.36871623
A16: =CONCATENATE("Oil production (",B16,")") -> Oil production (MSm^3 o.e.) | B16: MSm^3 o.e. | C16: https://www.norskpetroleum.no/en/facts/historical-production/ | F16: =[3]Worksheet!$B$13+[3]Worksheet!$C$13 -> 28.269457 | G16: =[3]Worksheet!$B$14+[3]Worksheet!$C$14 -> 27.532967 | H16: =[3]Worksheet!$B$15+[3]Worksheet!$C$15 -> 28.571457 | I16: =[3]Worksheet!$B$16+[3]Worksheet!$C$16 -> 35.686811 | J16: =[3]Worksheet!$B$17+[3]Worksheet!$C$17 -> 41.156807 | K16: =[3]Worksheet!$B$18+[3]Worksheet!$C$18 -> 44.83338 | L16: =[3]Worksheet!$B$19+[3]Worksheet!$C$19 -> 48.832237 | M16: =[3]Worksheet!$B$20+[3]Worksheet!$C$20 -> 57.013666 | N16: =[3]Worksheet!$B$21+[3]Worksheet!$C$21 -> 64.770358 | O16: =[3]Worksheet!$B$22+[3]Worksheet!$C$22 -> 86.036004 | P16: =[3]Worksheet!$B$23+[3]Worksheet!$C$23 -> 94.590525 | Q16: =[3]Worksheet!$B$24+[3]Worksheet!$C$24 -> 108.567146 | R16: =[3]Worksheet!$B$25+[3]Worksheet!$C$25 -> 124.052814 | S16: =[3]Worksheet!$B$26+[3]Worksheet!$C$26 -> 132.317683 | T16: =[3]Worksheet!$B$27+[3]Worksheet!$C$27 -> 148.685197 | U16: =[3]Worksheet!$B$28+[3]Worksheet!$C$28 -> 159.953959 | V16: =[3]Worksheet!$B$29+[3]Worksheet!$C$29 -> 179.285448 | W16: =[3]Worksheet!$B$30+[3]Worksheet!$C$30 -> 181.289499 | X16: =[3]Worksheet!$B$31+[3]Worksheet!$C$31 -> 173.791128 | Y16: =[3]Worksheet!$B$32+[3]Worksheet!$C$32 -> 174.202206 | Z16: =[3]Worksheet!$B$33+[3]Worksheet!$C$33 -> 186.591254 | AA16: =[3]Worksheet!$B$34+[3]Worksheet!$C$34 -> 186.549997 | AB16: =[3]Worksheet!$B$35+[3]Worksheet!$C$35 -> 180.972302 | AC16: =[3]Worksheet!$B$36+[3]Worksheet!$C$36 -> 175.813786 | AD16: =[3]Worksheet!$B$37+[3]Worksheet!$C$37 -> 171.452243 | AE16: =[3]Worksheet!$B$38+[3]Worksheet!$C$38 -> 156.088397 | AF16: =[3]Worksheet!$B$39+[3]Worksheet!$C$39 -> 144.202474 | AG16: =[3]Worksheet!$B$40+[3]Worksheet!$C$40 -> 131.402021 | AH16: =[3]Worksheet!$B$41+[3]Worksheet!$C$41 -> 126.5623 | AI16: =[3]Worksheet!$B$42+[3]Worksheet!$C$42 -> 119.398763 | AJ16: =[3]Worksheet!$B$43+[3]Worksheet!$C$43 -> 108.565231 | AK16: =[3]Worksheet!$B$44+[3]Worksheet!$C$44 -> 102.018854 | AL16: =[3]Worksheet!$B$45+[3]Worksheet!$C$45 -> 93.757337 | AM16: =[3]Worksheet!$B$46+[3]Worksheet!$C$46 -> 88.918312 | AN16: =[3]Worksheet!$B$47+[3]Worksheet!$C$47 -> 90.661395 | AO16: =[3]Worksheet!$B$48+[3]Worksheet!$C$48 -> 93.322006 | AP16: =[3]Worksheet!$B$49+[3]Worksheet!$C$49 -> 95.866168 | AQ16: =[3]Worksheet!$B$50+[3]Worksheet!$C$50 -> 93.985654 | AR16: =[3]Worksheet!$B$51+[3]Worksheet!$C$51 -> 87.877463 | AS16: =[3]Worksheet!$B$52+[3]Worksheet!$C$52 -> 83.153737 | AT16: 99.197497 | AV16: 2020 data from https://www.norskpetroleum.no/en/facts/historical-production/
A17: Conversion Sm^3 o.e. to Mtoe | B17: Mtoe/MSm3 o.e. | C17: calculated line 15 div line 16 | F17: =F15/F16 -> 0.8861022821 | G17: =G15/G16 -> 0.8823001426 | H17: =H15/H16 -> 0.8831021914 | I17: 0.8798107937 | J17: 0.8736043767 | K17: 0.8745898949 | L17: 0.8812631236 | M17: 0.8790046483 | N17: 0.8797163376 | O17: 0.8706714205 | P17: 0.8684067616 | Q17: 0.864370561 | R17: 0.8617354102 | S17: 0.8625328065 | T17: 0.8648000193 | U17: 0.8652470258 | V17: 0.8626705075 | W17: 0.8617594023 | X17: 0.8608046475 | Y17: 0.8591952119 | Z17: 0.8570287665 | AA17: 0.8659604401 | AB17: 0.8682936143 | AC17: 0.8710938218 | AD17: =AD15/AD16 -> 0.8748375949 | AE17: 0.8853861576 | AF17: 0.8919050901 | AG17: 0.8994741909 | AH17: 0.902498267 | AI17: 0.9059191959 | AJ17: 0.9064103674 | AK17: 0.913336227 | AL17: 0.9264729078 | AM17: 0.9308610374 | AN17: 0.9353537694 | AO17: 0.9372545061 | AP17: 0.9403316709 | AQ17: 0.9435953127 | AR17: 0.9461660805 | AS17: 0.9424557338 | AV17: accessed May 21, 2101
A18: =CONCATENATE("Oil consumption (",B18,")") -> Oil consumption (Mtoe/yr) | B18: Mtoe/yr | C18: bp Statistical Review of World Energy June 2020 | F18: ='[2]Oil Consumption - Tonnes'!Q$44 -> 9.391 | G18: ='[2]Oil Consumption - Tonnes'!R$44 -> 8.727 | H18: ='[2]Oil Consumption - Tonnes'!S$44 -> 8.374 | I18: ='[2]Oil Consumption - Tonnes'!T$44 -> 8.272 | J18: ='[2]Oil Consumption - Tonnes'!U$44 -> 8.565 | K18: ='[2]Oil Consumption - Tonnes'!V$44 -> 8.992 | L18: ='[2]Oil Consumption - Tonnes'!W$44 -> 9.698 | M18: ='[2]Oil Consumption - Tonnes'!X$44 -> 9.586 | N18: ='[2]Oil Consumption - Tonnes'!Y$44 -> 8.976 | O18: ='[2]Oil Consumption - Tonnes'!Z$44 -> 9.113 | P18: ='[2]Oil Consumption - Tonnes'!AA$44 -> 8.745310944 | Q18: ='[2]Oil Consumption - Tonnes'!AB$44 -> 8.062997437 | R18: ='[2]Oil Consumption - Tonnes'!AC$44 -> 8.328235901 | S18: ='[2]Oil Consumption - Tonnes'!AD$44 -> 8.77983313 | T18: ='[2]Oil Consumption - Tonnes'!AE$44 -> 8.988137329 | U18: ='[2]Oil Consumption - Tonnes'!AF$44 -> 8.878047913 | V18: ='[2]Oil Consumption - Tonnes'!AG$44 -> 9.545798706 | W18: ='[2]Oil Consumption - Tonnes'!AH$44 -> 9.670705444 | X18: ='[2]Oil Consumption - Tonnes'!AI$44 -> 9.676332931 | Y18: ='[2]Oil Consumption - Tonnes'!AJ$44 -> 9.589739551 | Z18: ='[2]Oil Consumption - Tonnes'!AK$44 -> 8.873528809 | AA18: ='[2]Oil Consumption - Tonnes'!AL$44 -> 10.07300457 | AB18: ='[2]Oil Consumption - Tonnes'!AM$44 -> 9.72706723 | AC18: ='[2]Oil Consumption - Tonnes'!AN$44 -> 10.03239254 | AD18: ='[2]Oil Consumption - Tonnes'!AO$44 -> 9.822920534 | AE18: ='[2]Oil Consumption - Tonnes'!AP$44 -> 9.81461183 | AF18: ='[2]Oil Consumption - Tonnes'!AQ$44 -> 10.04567697 | AG18: ='[2]Oil Consumption - Tonnes'!AR$44 -> 9.975594646 | AH18: ='[2]Oil Consumption - Tonnes'!AS$44 -> 9.890568806 | AI18: ='[2]Oil Consumption - Tonnes'!AT$44 -> 9.963614032 | AJ18: ='[2]Oil Consumption - Tonnes'!AU$44 -> 10.42768199 | AK18: ='[2]Oil Consumption - Tonnes'!AV$44 -> 10.07133429 | AL18: ='[2]Oil Consumption - Tonnes'!AW$44 -> 9.977315489 | AM18: ='[2]Oil Consumption - Tonnes'!AX$44 -> 10.16608 | AN18: ='[2]Oil Consumption - Tonnes'!AY$44 -> 9.518453722 | AO18: ='[2]Oil Consumption - Tonnes'!AZ$44 -> 9.690370028 | AP18: ='[2]Oil Consumption - Tonnes'!BA$44 -> 9.25730893 | AQ18: ='[2]Oil Consumption - Tonnes'!BB$44 -> 9.167351895 | AR18: ='[2]Oil Consumption - Tonnes'!BC$44 -> 9.53963216 | AS18: ='[2]Oil Consumption - Tonnes'!BD$44 -> 8.94322423
A19: =CONCATENATE("Oil exports (",B19,")") -> Oil exports (Mtoe/yr) | B19: Mtoe/yr | C19: calculated | F19: =F15-F18 -> 15.65863036 | G19: 15.56534071 | H19: 16.85751629 | I19: 23.12564151 | J19: 27.38976672 | K19: 30.2188211 | L19: 33.33604971 | M19: 40.52927743 | N19: 48.00354213 | O19: 65.79608982 | P19: 73.39774055 | Q19: 85.77924746 | R19: 98.57246665 | S19: 105.3485093 | T19: 119.5948239 | U19: 129.5216394 | V19: 145.1184697 | W19: 146.5572249 | X19: 139.9238777 | Y19: 140.0839617 | Z19: 151.0405434 | AA19: 151.4719129 | AB19: 147.410027 | AC19: 143.1179102 | AD19: 140.1699474 | AE19: 128.3838942 | AF19: 118.5692436 | AG19: 108.2171319 | AH19: 104.3316876 | AI19: 98.20201734 | AJ19: 87.97696893 | AK19: 83.10618091 | AL19: 76.88631715 | AM19: 72.60451215 | AN19: 75.28202383 | AO19: 77.77610061 | AP19: 80.888685 | AQ19: 79.51707068 | AR19: 73.60704257 | AS19: 69.425492
A20: =CONCATENATE("Oil exports (",B20,")") -> Oil exports (GNOK/yr) | B20: GNOK/yr | C20: SSB 08800: External trade in goods, main figures (NOK million), by year, trade flow and contents | F20: =([4]Sheet1!W$19)/1000 -> 28.5 | G20: =([4]Sheet1!X$19)/1000 -> 31.047 | H20: =([4]Sheet1!Y$19)/1000 -> 31.879 | I20: =([4]Sheet1!Z$19)/1000 -> 40.653 | J20: =([4]Sheet1!AA$19)/1000 -> 51.712 | K20: =([4]Sheet1!AB$19)/1000 -> 56.077 | L20: =([4]Sheet1!AC$19)/1000 -> 28.526 | M20: =([4]Sheet1!AD$19)/1000 -> 37.097 | N20: =([4]Sheet1!AE$19)/1000 -> 33.682 | O20: =([4]Sheet1!AF$19)/1000 -> 59.368 | P20: =([4]Sheet1!AG$19)/1000 -> 74.563 | Q20: =([4]Sheet1!AH$19)/1000 -> 80.396 | R20: =([4]Sheet1!AI$19)/1000 -> 82.658 | S20: =([4]Sheet1!AJ$19)/1000 -> 89.429 | T20: =([4]Sheet1!AK$19)/1000 -> 92.119 | U20: =([4]Sheet1!AL$19)/1000 -> 98.009 | V20: =([4]Sheet1!AM$19)/1000 -> 135.73 | W20: =([4]Sheet1!AN$19)/1000 -> 136.112 | X20: =([4]Sheet1!AO$19)/1000 -> 91.083 | Y20: =([4]Sheet1!AP$19)/1000 -> 133.678 | Z20: =([4]Sheet1!AQ$19)/1000 -> 258.836 | AA20: =([4]Sheet1!AR$19)/1000 -> 234.698 | AB20: =([4]Sheet1!AS$19)/1000 -> 197.921 | AC20: =([4]Sheet1!AT$19)/1000 -> 195.699 | AD20: =([4]Sheet1!AU$19)/1000 -> 237.468 | AE20: =([4]Sheet1!AV$19)/1000 -> 289.453 | AF20: =([4]Sheet1!AW$19)/1000 -> 309.252 | AG20: =([4]Sheet1!AX$19)/1000 -> 309.675 | AH20: =([4]Sheet1!AY$19)/1000 -> 359.369 | AI20: =([4]Sheet1!AZ$19)/1000 -> 243.521 | AJ20: =([4]Sheet1!BA$19)/1000 -> 281.985 | AK20: =([4]Sheet1!BB$19)/1000 -> 321.248 | AL20: =([4]Sheet1!BC$19)/1000 -> 306.825 | AM20: =([4]Sheet1!BD$19)/1000 -> 288.126 | AN20: =([4]Sheet1!BE$19)/1000 -> 282.663 | AO20: =([4]Sheet1!BF$19)/1000 -> 197.116 | AP20: =([4]Sheet1!BG$19)/1000 -> 187.595 | AQ20: =([4]Sheet1!BH$19)/1000 -> 223.073 | AR20: =([4]Sheet1!BI$19)/1000 -> 261.334 | AS20: =([4]Sheet1!BJ$19)/1000 -> 251.912
A21: =CONCATENATE("Realized oil price (",B21,")") -> Realized oil price (GNOK/Mtoe) | B21: GNOK/Mtoe | C21: calculated | F21: =F20/F19 -> 1.820082558 | G21: =G20/G19 -> 1.994623862 | H21: 1.891085226 | I21: 1.757918801 | J21: 1.888004397 | K21: 1.855697805 | L21: 0.855710267 | M21: 0.9153136289 | N21: 0.7016565551 | O21: 0.9023028597 | P21: 1.015875958 | Q21: 0.937243009 | R21: 0.8385505893 | S21: 0.8488871894 | T21: 0.7702590881 | U21: 0.7566998107 | V21: 0.9353047911 | W21: 0.928729376 | X21: 0.6509467967 | Y21: 0.9542705555 | Z21: 1.713685571 | AA21: 1.549448973 | AB21: 1.342656291 | AC21: 1.367396992 | AD21: 1.694143463 | AE21: 2.254589657 | AF21: 2.60819746 | AG21: 2.861607905 | AH21: 3.444485642 | AI21: 2.479796308 | AJ21: 3.205213858 | AK21: 3.865512727 | AL21: 3.990632031 | AM21: 3.968431045 | AN21: 3.754721056 | AO21: 2.534403222 | AP21: 2.319174802 | AQ21: 2.805347306 | AR21: 3.550393969 | AS21: 3.628523079
A22: =CONCATENATE("Realized oil price (",B22,")") -> Realized oil price (NOK/toe) | B22: NOK/toe | C22: calculated | F22: =F21*1000 -> 1820.082558 | G22: =G21*1000 -> 1994.623862 | H22: 1891.085226 | I22: 1757.918801 | J22: 1888.004397 | K22: 1855.697805 | L22: 855.710267 | M22: 915.3136289 | N22: 701.6565551 | O22: 902.3028597 | P22: 1015.875958 | Q22: 937.243009 | R22: 838.5505893 | S22: 848.8871894 | T22: 770.2590881 | U22: 756.6998107 | V22: 935.3047911 | W22: 928.729376 | X22: 650.9467967 | Y22: 954.2705555 | Z22: 1713.685571 | AA22: 1549.448973 | AB22: 1342.656291 | AC22: 1367.396992 | AD22: 1694.143463 | AE22: 2254.589657 | AF22: 2608.19746 | AG22: 2861.607905 | AH22: 3444.485642 | AI22: 2479.796308 | AJ22: 3205.213858 | AK22: 3865.512727 | AL22: 3990.632031 | AM22: 3968.431045 | AN22: 3754.721056 | AO22: 2534.403222 | AP22: 2319.174802 | AQ22: 2805.347306 | AR22: 3550.393969 | AS22: 3628.523079
A23: =CONCATENATE("Realized oil price (",B23,")") -> Realized oil price (NOK/barrel) | B23: NOK/barrel | C23: 1 toe = 7.33 barrels | F23: =F22/7.33 -> 248.3059424 | G23: =G22/7.33 -> 272.1178529 | H23: 257.9925274 | I23: 239.8252116 | J23: 257.5722233 | K23: 253.1647756 | L23: 116.7408277 | M23: 124.872255 | N23: 95.72395022 | O23: 123.0972523 | P23: 138.5915359 | Q23: 127.8639849 | R23: 114.3998075 | S23: 115.8099849 | T23: 105.0830952 | U23: 103.233262 | V23: 127.5995622 | W23: 126.702507 | X23: 88.80583857 | Y23: 130.1869789 | Z23: 233.7906646 | AA23: 211.3845803 | AB23: 183.1727545 | AC23: 186.5480208 | AD23: 231.1246197 | AE23: 307.5838549 | AF23: 355.8250287 | AG23: 390.3967128 | AH23: 469.9161858 | AI23: 338.3078182 | AJ23: 437.2733776 | AK23: 527.3550787 | AL23: 544.4245609 | AM23: 541.3957769 | AN23: 512.2402532 | AO23: 345.7576019 | AP23: 316.3949252 | AQ23: 382.7213241 | AR23: 484.3647979 | AS23: 495.0236125
A24: =CONCATENATE("Realized oil price (",B24,")") -> Realized oil price (USD/barrel) | B24: USD/barrel | C24: calculated | F24: =F23/F27 -> 50.27930211 | G24: =G23/G27 -> 47.42810529 | H24: 52.24073215 | I24: 32.85888587 | J24: 31.56967647 | K24: 29.48073793 | L24: 15.78997076 | M24: 18.53492777 | N24: 14.68551335 | O24: 17.82660744 | P24: 22.14005412 | Q24: 19.70090637 | R24: 18.4055028 | S24: 16.31465939 | T24: 14.89430363 | U24: 16.28714419 | V24: 19.76189655 | W24: 17.89819799 | X24: 11.75925859 | Y24: 16.68521135 | Z24: 26.5462731 | AA24: 23.50909128 | AB24: 22.96285939 | AC24: 26.34540524 | AD24: 34.31048464 | AE24: 47.73389516 | AF24: 55.47748263 | AG24: 66.61016461 | AH24: 83.34422958 | AI24: 53.8604142 | AJ24: 72.30607549 | AK24: 94.08800435 | AL24: 93.52235097 | AM24: 92.11808714 | AN24: 81.27469278 | AO24: 42.83642667 | AP24: 37.68181262 | AQ24: 46.30232635 | AR24: 59.54418563 | AS24: 56.23793356
A25: =CONCATENATE("Oil price historical Brent (",B25,")") -> Oil price historical Brent (USD/barrel) | B25: USD/barrel | C25: bp Statistical Review of World Energy June 2020 | F25: ='[2]Oil - Spot crude prices'!$C$14 -> 36.83 | G25: ='[2]Oil - Spot crude prices'!$C$15 -> 35.93 | H25: ='[2]Oil - Spot crude prices'!$C$16 -> 32.97 | I25: ='[2]Oil - Spot crude prices'!$C$17 -> 29.55 | J25: ='[2]Oil - Spot crude prices'!$C$18 -> 28.78 | K25: ='[2]Oil - Spot crude prices'!$C$19 -> 27.56 | L25: ='[2]Oil - Spot crude prices'!$C$20 -> 14.43 | M25: ='[2]Oil - Spot crude prices'!$C$21 -> 18.43503937 | N25: ='[2]Oil - Spot crude prices'!$C$22 -> 14.9238417 | O25: ='[2]Oil - Spot crude prices'!$C$23 -> 18.22611328 | P25: ='[2]Oil - Spot crude prices'!$C$24 -> 23.72582031 | Q25: ='[2]Oil - Spot crude prices'!$C$25 -> 20.0009144 | R25: ='[2]Oil - Spot crude prices'!$C$26 -> 19.32083658 | S25: ='[2]Oil - Spot crude prices'!$C$27 -> 16.97163424 | T25: ='[2]Oil - Spot crude prices'!$C$28 -> 15.81762646 | U25: ='[2]Oil - Spot crude prices'!$C$29 -> 17.01667969 | V25: ='[2]Oil - Spot crude prices'!$C$30 -> 20.66848837 | W25: ='[2]Oil - Spot crude prices'!$C$31 -> 19.09258755 | X25: ='[2]Oil - Spot crude prices'!$C$32 -> 12.71566148 | Y25: ='[2]Oil - Spot crude prices'!$C$33 -> 17.97007782 | Z25: ='[2]Oil - Spot crude prices'!$C$34 -> 28.49544922 | AA25: ='[2]Oil - Spot crude prices'!$C$35 -> 24.44389105 | AB25: ='[2]Oil - Spot crude prices'!$C$36 -> 25.02325581 | AC25: ='[2]Oil - Spot crude prices'!$C$37 -> 28.83070312 | AD25: ='[2]Oil - Spot crude prices'!$C$38 -> 38.265 | AE25: ='[2]Oil - Spot crude prices'!$C$39 -> 54.52108949 | AF25: ='[2]Oil - Spot crude prices'!$C$40 -> 65.1440625 | AG25: ='[2]Oil - Spot crude prices'!$C$41 -> 72.38907843 | AH25: ='[2]Oil - Spot crude prices'!$C$42 -> 97.25597276 | AI25: ='[2]Oil - Spot crude prices'!$C$43 -> 61.67126482 | AJ25: ='[2]Oil - Spot crude prices'!$C$44 -> 79.4955336 | AK25: ='[2]Oil - Spot crude prices'!$C$45 -> 111.2555976 | AL25: ='[2]Oil - Spot crude prices'!$C$46 -> 111.6697024 | AM25: ='[2]Oil - Spot crude prices'!$C$47 -> 108.6585178 | AN25: ='[2]Oil - Spot crude prices'!$C$48 -> 98.94600791 | AO25: ='[2]Oil - Spot crude prices'!$C$49 -> 52.38675889 | AP25: ='[2]Oil - Spot crude prices'!$C$50 -> 43.73416996 | AQ25: ='[2]Oil - Spot crude prices'!$C$51 -> 54.19244048 | AR25: ='[2]Oil - Spot crude prices'!$C$52 -> 71.31005976 | AS25: ='[2]Oil - Spot crude prices'!$C$53 -> 64.21057312
A26: =CONCATENATE("Oil price historical Brent (",B26,")") -> Oil price historical Brent (constant USD/barrel) | B26: constant USD/barrel | C26: calculated | F26: =F25/F154 -> 165.4668522 | G26: =G25/G154 -> 143.0054166 | H26: 118.744331 | I26: 99.49939414 | J26: 91.24060748 | K26: 83.05566098 | L26: 43.72752535 | M26: 52.10164138 | N26: 40.22006807 | O26: 46.50960363 | P26: 58.3209454 | Q26: 48.10084907 | R26: 46.76445957 | S26: 40.15773272 | T26: 37.48560267 | U26: 39.1292694 | V26: 45.58391359 | W26: 40.96706824 | X26: 27.47442756 | Y26: 36.40103768 | Z26: 50.02328057 | AA26: 42.20448332 | AB26: 43.92175189 | AC26: 49.19526274 | AD26: 61.6924102 | AE26: 80.82684517 | AF26: 88.79394909 | AG26: 95.83554418 | AH26: 116.621235 | AI26: 78.01886852 | AJ26: 94.90386865 | AK26: 124.4602868 | AL26: 120.8824917 | AM26: 114.6922715 | AN26: 104.1378022 | AO26: 56.75584641 | AP26: 48.09060387 | AQ26: 57.32562628 | AR26: 71.31005976 | AS26: 64.59217635
A27: =CONCATENATE("Exchange rate (",B27,")") -> Exchange rate (NOK/USD) | B27: NOK/USD | C27: https://fxtop.com/de/historische-wechselkurse.php?A=1&C1=USD&C2=NOK&TR=1&YA=1&DD1=01&MM1=01&YYYY1=1980&B=1&P=&I=1&DD2=31&MM2=12&YYYY2=2019&btnOK=Gehen | F27: 4.938532 | G27: 5.737481 | H27: 4.938532 | I27: 7.298641 | J27: 8.158849 | K27: 8.587464 | L27: 7.393353 | M27: 6.737132 | N27: 6.518257 | O27: 6.905254 | P27: 6.259765 | Q27: 6.490259 | R27: 6.215522 | S27: 7.098523 | T27: 7.055254 | U27: 6.338328 | V27: 6.456848 | W27: 7.079065 | X27: 7.551993 | Y27: 7.802537 | Z27: 8.806911 | AA27: 8.99161 | AB27: 7.976914 | AC27: 7.080856 | AD27: 6.736268 | AE27: 6.44372 | AF27: 6.413864 | AG27: 5.860918 | AH27: 5.638257 | AI27: 6.281196 | AJ27: 6.047533 | AK27: 5.604913 | AL27: 5.821331 | AM27: 5.877193 | AN27: 6.30258 | AO27: 8.071579 | AP27: 8.396489 | AQ27: 8.265704 | AR27: 8.134544 | AS27: 8.802308 | AT27: =1/0.106718 -> 9.370490451
A28: =CONCATENATE("Oil exports (",B28,")") -> Oil exports (2018-GNOK/yr) | B28: 2018-GNOK/yr | C28: calculated | F28: =F20/F154 -> 128.0425003 | G28: =G20/G154 -> 123.5705308 | H28: 114.8149993 | I28: 136.8849025 | J28: 163.9414279 | K28: 168.9953665 | L28: 86.44292363 | M28: 104.8446142 | N28: 90.77370024 | O28: 151.4959391 | P28: 183.284902 | Q28: 193.3469533 | R28: 200.0667354 | S28: 211.6040111 | T28: 218.3093804 | U28: 225.368323 | V28: 299.3496419 | W28: 292.0562537 | X28: 196.8008735 | Y28: 270.7844654 | Z28: 454.3822331 | AA28: 405.2263122 | AB28: 347.398321 | AC28: 333.9309375 | AD28: 382.8556975 | AE28: 429.1105154 | AF28: 421.5227803 | AG28: 409.9772063 | AH28: 430.9252727 | AI28: 308.072697 | AJ28: 336.6411444 | AK28: 359.3762387 | AL28: 332.1381694 | AM28: 304.1254942 | AN28: 297.4946054 | AO28: 213.5555941 | AP28: 206.2816521 | AQ28: 235.9701707 | AR28: 261.334 | AS28: 253.4091122
A34: Gas production (Gcm/yr)
A35: =CONCATENATE("Gas production (",B35,")") -> Gas production (Gcm/yr) | B35: Gcm/yr | C35: bp Statistical Review of World Energy June 2020 | F35: ='[2]Gas Production - Bcm'!L$24 -> 24.90015462 | G35: ='[2]Gas Production - Bcm'!M$24 -> 24.76398859 | H35: ='[2]Gas Production - Bcm'!N$24 -> 23.78033672 | I35: ='[2]Gas Production - Bcm'!O$24 -> 23.43547771 | J35: ='[2]Gas Production - Bcm'!P$24 -> 25.76787554 | K35: ='[2]Gas Production - Bcm'!Q$24 -> 25.98926159 | L35: ='[2]Gas Production - Bcm'!R$24 -> 25.89403023 | M35: ='[2]Gas Production - Bcm'!S$24 -> 27.93975436 | N35: ='[2]Gas Production - Bcm'!T$24 -> 28.11709822 | O35: ='[2]Gas Production - Bcm'!U$24 -> 28.52219802 | P35: ='[2]Gas Production - Bcm'!V$24 -> 25.28835512 | Q35: ='[2]Gas Production - Bcm'!W$24 -> 24.83930941 | R35: ='[2]Gas Production - Bcm'!X$24 -> 25.63990656 | S35: ='[2]Gas Production - Bcm'!Y$24 -> 24.61781914 | T35: ='[2]Gas Production - Bcm'!Z$24 -> 26.64029594 | U35: ='[2]Gas Production - Bcm'!AA$24 -> 27.604998 | V35: ='[2]Gas Production - Bcm'!AB$24 -> 37.11745843 | W35: ='[2]Gas Production - Bcm'!AC$24 -> 42.62263758 | X35: ='[2]Gas Production - Bcm'!AD$24 -> 43.86310477 | Y35: ='[2]Gas Production - Bcm'!AE$24 -> 48.10726106 | Z35: ='[2]Gas Production - Bcm'!AF$24 -> 49.4224774 | AA35: ='[2]Gas Production - Bcm'!AG$24 -> 53.63121533 | AB35: ='[2]Gas Production - Bcm'!AH$24 -> 65.1019398 | AC35: ='[2]Gas Production - Bcm'!AI$24 -> 72.41274045 | AD35: ='[2]Gas Production - Bcm'!AJ$24 -> 78.58502947 | AE35: ='[2]Gas Production - Bcm'!AK$24 -> 85.19877852 | AF35: ='[2]Gas Production - Bcm'!AL$24 -> 88.00328378 | AG35: ='[2]Gas Production - Bcm'!AM$24 -> 89.6325698 | AH35: ='[2]Gas Production - Bcm'!AN$24 -> 99.35948069 | AI35: ='[2]Gas Production - Bcm'!AO$24 -> 103.600723 | AJ35: ='[2]Gas Production - Bcm'!AP$24 -> 106.4459039 | AK35: ='[2]Gas Production - Bcm'!AQ$24 -> 100.5068166 | AL35: ='[2]Gas Production - Bcm'!AR$24 -> 113.862244 | AM35: ='[2]Gas Production - Bcm'!AS$24 -> 107.9302442 | AN35: ='[2]Gas Production - Bcm'!AT$24 -> 108.0077714 | AO35: ='[2]Gas Production - Bcm'!AU$24 -> 116.2383625 | AP35: ='[2]Gas Production - Bcm'!AV$24 -> 115.8905547 | AQ35: ='[2]Gas Production - Bcm'!AW$24 -> 123.2192273 | AR35: ='[2]Gas Production - Bcm'!AX$24 -> 121.2868656 | AS35: ='[2]Gas Production - Bcm'!AY$24 -> 114.3853699
A36: =CONCATENATE("Gas consumption (",B36,")") -> Gas consumption (Gcm/yr) | B36: Gcm/yr | C36: bp Statistical Review of World Energy June 2020 | F36: ='[2]Gas Consumption - Bcm'!Q$44 -> 0.822241 | G36: ='[2]Gas Consumption - Bcm'!R$44 -> 1.010647 | H36: ='[2]Gas Consumption - Bcm'!S$44 -> 1.090894 | I36: ='[2]Gas Consumption - Bcm'!T$44 -> 1.228128 | J36: ='[2]Gas Consumption - Bcm'!U$44 -> 1.181608 | K36: ='[2]Gas Consumption - Bcm'!V$44 -> 1.245573 | L36: ='[2]Gas Consumption - Bcm'!W$44 -> 1.37234 | M36: ='[2]Gas Consumption - Bcm'!X$44 -> 1.510737 | N36: ='[2]Gas Consumption - Bcm'!Y$44 -> 1.902668 | O36: ='[2]Gas Consumption - Bcm'!Z$44 -> 2.107356 | P36: ='[2]Gas Consumption - Bcm'!AA$44 -> 2.231797 | Q36: ='[2]Gas Consumption - Bcm'!AB$44 -> 2.514406 | R36: ='[2]Gas Consumption - Bcm'!AC$44 -> 2.706301 | S36: ='[2]Gas Consumption - Bcm'!AD$44 -> 2.847024 | T36: ='[2]Gas Consumption - Bcm'!AE$44 -> 3.056364 | U36: ='[2]Gas Consumption - Bcm'!AF$44 -> 3.085439 | V36: ='[2]Gas Consumption - Bcm'!AG$44 -> 3.34944 | W36: ='[2]Gas Consumption - Bcm'!AH$44 -> 3.868138 | X36: ='[2]Gas Consumption - Bcm'!AI$44 -> 3.950711 | Y36: ='[2]Gas Consumption - Bcm'!AJ$44 -> 3.773935 | Z36: ='[2]Gas Consumption - Bcm'!AK$44 -> 4.236809 | AA36: ='[2]Gas Consumption - Bcm'!AL$44 -> 3.926288 | AB36: ='[2]Gas Consumption - Bcm'!AM$44 -> 4.190289 | AC36: ='[2]Gas Consumption - Bcm'!AN$44 -> 4.514766 | AD36: ='[2]Gas Consumption - Bcm'!AO$44 -> 4.774115 | AE36: ='[2]Gas Consumption - Bcm'!AP$44 -> 4.369921284 | AF36: ='[2]Gas Consumption - Bcm'!AQ$44 -> 4.305475487 | AG36: ='[2]Gas Consumption - Bcm'!AR$44 -> 4.1754855 | AH36: ='[2]Gas Consumption - Bcm'!AS$44 -> 4.2949275 | AI36: ='[2]Gas Consumption - Bcm'!AT$44 -> 4.103108 | AJ36: ='[2]Gas Consumption - Bcm'!AU$44 -> 4.081410085 | AK36: ='[2]Gas Consumption - Bcm'!AV$44 -> 4.019747636 | AL36: ='[2]Gas Consumption - Bcm'!AW$44 -> 4.001820342 | AM36: ='[2]Gas Consumption - Bcm'!AX$44 -> 3.974099107 | AN36: ='[2]Gas Consumption - Bcm'!AY$44 -> 4.301442928 | AO36: ='[2]Gas Consumption - Bcm'!AZ$44 -> 4.509636647 | AP36: ='[2]Gas Consumption - Bcm'!BA$44 -> 4.372412742 | AQ36: ='[2]Gas Consumption - Bcm'!BB$44 -> 4.58472798 | AR36: ='[2]Gas Consumption - Bcm'!BC$44 -> 4.482825153 | AS36: ='[2]Gas Consumption - Bcm'!BD$44 -> 4.493887289
A37: =CONCATENATE("Gas consumption (",B37,")") -> Gas consumption (pct of production) | B37: pct of production | F37: =F36/F35*100 -> 3.302152185 | G37: =G36/G35*100 -> 4.081115595 | H37: 4.587378273 | I37: 5.24046497 | J37: 4.585585639 | K37: 4.792644822 | L37: 5.299831613 | M37: 5.407123416 | N37: 6.766942964 | O37: 7.388476858 | P37: 8.825394098 | Q37: 10.12268883 | R37: 10.55503457 | S37: 11.5648912 | T37: 11.47271039 | U37: 11.17710278 | V37: 9.02389372 | W37: 9.075313542 | X37: 9.006911437 | Y37: 7.844834474 | Z37: 8.572635819 | AA37: 7.320900665 | AB37: 6.436504063 | AC37: 6.23476749 | AD37: 6.075094751 | AE37: 5.129089125 | AF37: 4.892403217 | AG37: 4.658446711 | AH37: 4.322614682 | AI37: 3.960501318 | AJ37: 3.834257529 | AK37: 3.999477618 | AL37: 3.514615733 | AM37: 3.682099615 | AN37: 3.982530954 | AO37: 3.879645714 | AP37: 3.772881019 | AQ37: 3.720789425 | AR37: 3.696051614 | AS37: 3.92872558
A38: =CONCATENATE("Gas exports (",B38,")") -> Gas exports (Gcm/yr) | B38: Gcm/yr | C38: calculated | F38: =F35-F36 -> 24.07791362 | G38: 23.75334159 | H38: 22.68944272 | I38: 22.20734971 | J38: 24.58626754 | K38: 24.74368859 | L38: 24.52169023 | M38: 26.42901736 | N38: 26.21443023 | O38: 26.41484202 | P38: 23.05655812 | Q38: 22.32490341 | R38: 22.93360556 | S38: 21.77079514 | T38: 23.58393194 | U38: 24.519559 | V38: 33.76801843 | W38: 38.75449958 | X38: 39.91239377 | Y38: 44.33332606 | Z38: 45.1856684 | AA38: 49.70492733 | AB38: 60.9116508 | AC38: 67.89797445 | AD38: 73.81091447 | AE38: 80.82885723 | AF38: 83.69780829 | AG38: 85.4570843 | AH38: 95.06455319 | AI38: 99.497615 | AJ38: 102.3644938 | AK38: 96.48706901 | AL38: 109.8604237 | AM38: 103.9561451 | AN38: 103.7063284 | AO38: 111.7287258 | AP38: 111.518142 | AQ38: 118.6344994 | AR38: 116.8040404 | AS38: 109.8914826
A39: =CONCATENATE("Gas production (",B39,")") -> Gas production (Mtoe/yr) | B39: Mtoe/yr | C39: bp Statistical Review of World Energy June 2019 | F39: ='[5]Gas Production - Mtoe'!L$24 -> 21.41027913 | G39: ='[5]Gas Production - Mtoe'!M$24 -> 21.29319741 | H39: ='[5]Gas Production - Mtoe'!N$24 -> 20.44740905 | I39: ='[5]Gas Production - Mtoe'!O$24 -> 20.15088367 | J39: ='[5]Gas Production - Mtoe'!P$24 -> 22.15638481 | K39: ='[5]Gas Production - Mtoe'!Q$24 -> 22.34674256 | L39: ='[5]Gas Production - Mtoe'!R$24 -> 22.26485832 | M39: ='[5]Gas Production - Mtoe'!S$24 -> 24.02386445 | N39: ='[5]Gas Production - Mtoe'!T$24 -> 24.17635273 | O39: ='[5]Gas Production - Mtoe'!U$24 -> 24.52467585 | P39: ='[5]Gas Production - Mtoe'!V$24 -> 21.74407147 | Q39: ='[5]Gas Production - Mtoe'!W$24 -> 21.35796166 | R39: ='[5]Gas Production - Mtoe'!X$24 -> 22.0463513 | S39: ='[5]Gas Production - Mtoe'!Y$24 -> 21.16751431 | T39: ='[5]Gas Production - Mtoe'!Z$24 -> 22.90653133 | U39: ='[5]Gas Production - Mtoe'!AA$24 -> 23.7360258 | V39: ='[5]Gas Production - Mtoe'!AB$24 -> 31.9152695 | W39: ='[5]Gas Production - Mtoe'!AC$24 -> 36.64887152 | X39: ='[5]Gas Production - Mtoe'!AD$24 -> 37.71548132 | Y39: ='[5]Gas Production - Mtoe'!AE$24 -> 41.36479885 | Z39: ='[5]Gas Production - Mtoe'!AF$24 -> 42.49568134 | AA39: ='[5]Gas Production - Mtoe'!AG$24 -> 46.11454457 | AB39: ='[5]Gas Production - Mtoe'!AH$24 -> 55.97759226 | AC39: ='[5]Gas Production - Mtoe'!AI$24 -> 62.26374931 | AD39: ='[5]Gas Production - Mtoe'!AJ$24 -> 67.57096257 | AE39: ='[5]Gas Production - Mtoe'!AK$24 -> 73.25776313 | AF39: ='[5]Gas Production - Mtoe'!AL$24 -> 75.66920359 | AG39: ='[5]Gas Production - Mtoe'!AM$24 -> 77.0701374 | AH39: ='[5]Gas Production - Mtoe'!AN$24 -> 85.43377531 | AI39: ='[5]Gas Production - Mtoe'!AO$24 -> 89.08058727 | AJ39: ='[5]Gas Production - Mtoe'!AP$24 -> 91.52700249 | AK39: ='[5]Gas Production - Mtoe'!AQ$24 -> 86.42030666 | AL39: ='[5]Gas Production - Mtoe'!AR$24 -> 97.90390715 | AM39: ='[5]Gas Production - Mtoe'!AS$24 -> 92.80330543 | AN39: ='[5]Gas Production - Mtoe'!AT$24 -> 92.86996678 | AO39: ='[5]Gas Production - Mtoe'!AU$24 -> 99.94700126 | AP39: ='[5]Gas Production - Mtoe'!AV$24 -> 99.64794044 | AQ39: ='[5]Gas Production - Mtoe'!AW$24 -> 105.9494646 | AR39: ='[5]Gas Production - Mtoe'!AX$24 -> 103.7400256 | AS39: =AS35*ConversionFactors!C4 -> 98.35426033
A40: =CONCATENATE("Gas exports (",B40,")") -> Gas exports (Mtoe/yr) | B40: Mtoe/yr | C40: calculated | F40: =F39*(1-F$37/100) -> 20.70327913 | G40: =G39*(1-G$37/100) -> 20.42419741 | H40: 19.50940905 | I40: 19.09488367 | J40: 21.14038481 | K40: 21.27574256 | L40: 21.08485832 | M40: 22.72486445 | N40: 22.54035273 | O40: 22.71267585 | P40: 19.82507147 | Q40: 19.19596166 | R40: 19.7193513 | S40: 18.71951431 | T40: 20.27853133 | U40: 21.0830258 | V40: 29.0352695 | W40: 33.32287152 | X40: 34.31848132 | Y40: 38.11979885 | Z40: 38.85268134 | AA40: 42.73854457 | AB40: 52.37459226 | AC40: 58.38174931 | AD40: 63.46596257 | AE40: 69.50030716 | AF40: 71.96716104 | AG40: 73.47986612 | AH40: 81.7408024 | AI40: 85.55254944 | AJ40: 88.0176215 | AK40: 82.96394584 | AL40: 94.46296103 | AM40: 89.38619528 | AN40: 89.17139161 | AO40: 96.06941171 | AP40: 95.88834221 | AQ40: 102.0073081 | AR40: 99.90574073 | AS40: =AS39*(1-AS$37/100) -> 94.49019135
A41: =CONCATENATE("Gas production (",B41,")") -> Gas production (MSm3 o.e./yr) | B41: MSm3 o.e./yr | C41: Source: https://www.norskpetroleum.no/en/facts/historical-production/ | F41: =[3]Worksheet!$D$13+[3]Worksheet!$E$13 -> 27.52828 | G41: =[3]Worksheet!$D$14+[3]Worksheet!$E$14 -> 27.119343 | H41: =[3]Worksheet!$D$15+[3]Worksheet!$E$15 -> 26.245933 | I41: =[3]Worksheet!$D$16+[3]Worksheet!$E$16 -> 26.292266 | J41: =[3]Worksheet!$D$17+[3]Worksheet!$E$17 -> 28.604877 | K41: =[3]Worksheet!$D$18+[3]Worksheet!$E$18 -> 29.153346 | L41: =[3]Worksheet!$D$19+[3]Worksheet!$E$19 -> 29.935061 | M41: =[3]Worksheet!$D$20+[3]Worksheet!$E$20 -> 32.267444 | N41: =[3]Worksheet!$D$21+[3]Worksheet!$E$21 -> 33.175245 | O41: =[3]Worksheet!$D$22+[3]Worksheet!$E$22 -> 33.635643 | P41: =[3]Worksheet!$D$23+[3]Worksheet!$E$23 -> 30.490893 | Q41: =[3]Worksheet!$D$24+[3]Worksheet!$E$24 -> 29.924454 | R41: =[3]Worksheet!$D$25+[3]Worksheet!$E$25 -> 30.792891 | S41: =[3]Worksheet!$D$26+[3]Worksheet!$E$26 -> 30.321788 | T41: =[3]Worksheet!$D$27+[3]Worksheet!$E$27 -> 33.963672 | U41: =[3]Worksheet!$D$28+[3]Worksheet!$E$28 -> 35.755258 | V41: =[3]Worksheet!$D$29+[3]Worksheet!$E$29 -> 45.630035 | W41: =[3]Worksheet!$D$30+[3]Worksheet!$E$30 -> 51.018317 | X41: =[3]Worksheet!$D$31+[3]Worksheet!$E$31 -> 51.584254 | Y41: =[3]Worksheet!$D$32+[3]Worksheet!$E$32 -> 55.46285 | Z41: =[3]Worksheet!$D$33+[3]Worksheet!$E$33 -> 57.021318 | AA41: =[3]Worksheet!$D$34+[3]Worksheet!$E$34 -> 64.960437 | AB41: =[3]Worksheet!$D$35+[3]Worksheet!$E$35 -> 77.392073 | AC41: =[3]Worksheet!$D$36+[3]Worksheet!$E$36 -> 85.891412 | AD41: =[3]Worksheet!$D$37+[3]Worksheet!$E$37 -> 92.953645 | AE41: =[3]Worksheet!$D$38+[3]Worksheet!$E$38 -> 101.648469 | AF41: =[3]Worksheet!$D$39+[3]Worksheet!$E$39 -> 105.363915 | AG41: =[3]Worksheet!$D$40+[3]Worksheet!$E$40 -> 106.938686 | AH41: =[3]Worksheet!$D$41+[3]Worksheet!$E$41 -> 117.021285 | AI41: =[3]Worksheet!$D$42+[3]Worksheet!$E$42 -> 121.207549 | AJ41: =[3]Worksheet!$D$43+[3]Worksheet!$E$43 -> 122.548249 | AK41: =[3]Worksheet!$D$44+[3]Worksheet!$E$44 -> 117.580426 | AL41: =[3]Worksheet!$D$45+[3]Worksheet!$E$45 -> 132.521811 | AM41: =[3]Worksheet!$D$46+[3]Worksheet!$E$46 -> 126.464265 | AN41: =[3]Worksheet!$D$47+[3]Worksheet!$E$47 -> 127.105657 | AO41: =[3]Worksheet!$D$48+[3]Worksheet!$E$48 -> 136.61465 | AP41: =[3]Worksheet!$D$49+[3]Worksheet!$E$49 -> 137.076127 | AQ41: =[3]Worksheet!$D$50+[3]Worksheet!$E$50 -> 145.058976 | AR41: =[3]Worksheet!$D$51+[3]Worksheet!$E$51 -> 141.659951 | AS41: =[3]Worksheet!$D$52+[3]Worksheet!$E$52 -> 132.485642 | AT41: 129.035424 | AV41: 2020 data from https://www.norskpetroleum.no/en/facts/historical-production/
A42: =CONCATENATE("Gas exports (",B41,")") -> Gas exports (MSm3 o.e./yr) | B42: MSm3 o.e./yr | C42: calculated | F42: =F41*(1-F$37/100) -> 26.6192543 | G42: 26.01257126 | H42: 25.04193277 | I42: 24.91442901 | J42: 27.29317587 | K42: 27.75612967 | L42: 28.34855317 | M42: 30.52270348 | N42: 30.93029509 | O42: 31.1504813 | P42: 27.79995153 | Q42: 26.89529464 | R42: 27.54269071 | S42: 26.81510621 | T42: 30.06711827 | U42: 31.75885606 | V42: 41.51242914 | W42: 46.38824477 | X42: 46.93810593 | Y42: 51.11188122 | Z42: 52.13308807 | AA42: 60.20474794 | AB42: 72.41072908 | AC42: 80.53628217 | AD42: 87.30662299 | AE42: 96.43482843 | AF42: 100.2090874 | AG42: 101.9570043 | AH42: 111.9629058 | AI42: 116.4071224 | AJ42: 117.8494335 | AK42: 112.8778232 | AL42: 127.8641786 | AM42: 121.8077248 | AN42: 122.0436349 | AO42: 131.3144856 | AP42: 131.9044078 | AQ42: 139.661637 | AR42: 136.4241261 | AS42: 127.2806447 | AV42: accessed May 21, 2101
A43: =CONCATENATE("Gas conversion factor (",B43,")") -> Gas conversion factor (Sm3 o.e./toe) | B43: Sm3 o.e./toe | C43: calculated line 40 / line 42 | F43: =F40/F42 -> 0.7777557888 | G43: 0.7851664182 | H43: 0.77906962 | I43: 0.766418675 | J43: 0.7745666871 | K43: 0.7665241087 | L43: 0.7437719376 | M43: 0.7445233174 | N43: 0.7287467728 | O43: 0.7291276059 | P43: 0.7131333106 | Q43: 0.7137293686 | R43: 0.7159558775 | S43: 0.698095848 | T43: 0.6744421314 | U43: 0.6638471409 | V43: 0.6994355691 | W43: 0.7183473245 | X43: 0.7311432926 | Y43: 0.7458109139 | Z43: 0.745259542 | AA43: 0.7098866125 | AB43: 0.7232987835 | AC43: 0.7249123965 | AD43: 0.7269318225 | AE43: 0.720697162 | AF43: 0.7181700072 | AG43: 0.7206946362 | AH43: 0.7300703912 | AI43: 0.7349425676 | AJ43: 0.7468650367 | AK43: 0.7349888889 | AL43: 0.7387758016 | AM43: 0.7338302676 | AN43: 0.730651719 | AO43: 0.7315979747 | AP43: 0.7269532823 | AQ43: 0.730388891 | AR43: 0.7323172491 | AS43: 0.74237675
A44: =CONCATENATE("Gas exports (",B44,")") -> Gas exports (Mtoe/yr) | B44: Mtoe/yr | C44: calculated from Sm3 oe and conversion factor above | F44: =F42*F43 -> 20.70327913 | G44: =G42*0.84 -> 21.85055986 | H44: 21.03522353 | I44: 20.92812037 | J44: 22.92626773 | K44: 23.31514892 | L44: 23.81278467 | M44: 25.63907092 | N44: 25.98144788 | O44: 26.16640429 | P44: 23.35195928 | Q44: 22.59204749 | R44: 23.1358602 | S44: 22.52468921 | T44: 25.25637935 | U44: 26.67743909 | V44: 34.87044048 | W44: 38.96612561 | X44: 39.42800898 | Y44: 42.93398023 | Z44: 43.79179398 | AA44: 50.57198827 | AB44: 60.82501242 | AC44: 67.65047702 | AD44: 73.33756331 | AE44: 81.00525588 | AF44: 84.17563344 | AG44: 85.64388361 | AH44: 94.04884083 | AI44: 97.78198284 | AJ44: 98.99352417 | AK44: 94.81737147 | AL44: 107.40591 | AM44: 102.3184888 | AN44: 102.5166533 | AO44: 110.3041679 | AP44: 110.7997026 | AQ44: 117.315775 | AR44: 114.5962659 | AS44: 106.9157415
A45: =CONCATENATE("Average Gas price (",B45,")") -> Average Gas price (current NOK/toe-gass) | B45: current NOK/toe-gass | C45: calculated line 52 div line 39 | F45: =F52/F39*1000 -> 602.4676243 | G45: =G52/G39*1000 -> 800.2555781 | H45: 1056.026216 | I45: 1150.867643 | J45: 1201.324143 | K45: 1311.287313 | L45: 1102.679372 | M45: 687.7744434 | N45: 613.4506791 | O45: 577.8669649 | P45: 642.7959005 | Q45: 763.6028316 | R45: 657.6598461 | S45: 691.6258464 | T45: 625.1928671 | U45: 641.2615208 | V45: 656.7389318 | W45: 752.0558985 | X45: 721.7195446 | Y45: 617.6507734 | Z45: 1124.561332 | AA45: 1323.183403 | AB45: 1061.299667 | AC45: 999.5864478 | AD45: 1095.396561 | AE45: 1407.891746 | AF45: 1941.080295 | AG45: 1748.926427 | AH45: 2500.896153 | AI45: 1863.279139 | AJ45: 1741.354963 | AK45: 2315.266026 | AL45: 2576.536599 | AM45: 2680.70193 | AN45: 2407.936686 | AO45: 2207.930175 | AP45: 1616.982742 | AQ45: 1916.998833 | AR45: 2558.655624 | AS45: 2150
A46: Average Gas price (2018-NOK/toe-gass) | B46: 2018-NOK/toe-gass | C46: calculated | F46: =F45/F154 -> 2706.717929 | G46: =G45/G154 -> 3185.106662 | H46: 3803.370535 | I46: 3875.148333 | J46: 3808.531779 | K46: 3951.73565 | L46: 3341.471948 | M46: 1943.808021 | N46: 1653.262516 | O46: 1474.607508 | P46: 1580.070325 | Q46: 1836.413267 | R46: 1591.810332 | S46: 1636.502737 | T46: 1481.621245 | U46: 1474.558801 | V46: 1448.423812 | W46: 1613.690404 | X46: 1559.402268 | Y46: 1251.142555 | Z46: 1974.148454 | AA46: 2284.590115 | AB46: 1862.832758 | AC46: 1705.644074 | AD46: 1766.043485 | AE46: 2087.182211 | AF46: 2645.769672 | AG46: 2315.395077 | AH46: 2998.865669 | AI46: 2357.190673 | AJ46: 2078.875569 | AK46: 2590.060004 | AL46: 2789.101766 | AM46: 2829.559982 | AN46: 2534.283489 | AO46: 2392.072893 | AP46: =AP45/AP154 -> 1778.053101 | AQ46: 2027.831884 | AR46: 2558.655624 | AS46: 2162.777443
A47: Average Gas price (current NOK/Sm3 o.e) | B47: current NOK/Sm3 o.e | C47: calculated | F47: =(F45/ConversionFactors!$C$5)/1000 -> 0.7172233623 | G47: =(G45/ConversionFactors!$C$5)/1000 -> 0.952685212 | H47: =(H45/ConversionFactors!$C$5)/1000 -> 1.257174066 | I47: =(I45/ConversionFactors!$C$5)/1000 -> 1.370080528 | J47: =(J45/ConversionFactors!$C$5)/1000 -> 1.430147789 | K47: =(K45/ConversionFactors!$C$5)/1000 -> 1.561056325 | L47: =(L45/ConversionFactors!$C$5)/1000 -> 1.312713539 | M47: =(M45/ConversionFactors!$C$5)/1000 -> 0.8187790993 | N47: =(N45/ConversionFactors!$C$5)/1000 -> 0.7302984275 | O47: =(O45/ConversionFactors!$C$5)/1000 -> 0.6879368629 | P47: =(P45/ConversionFactors!$C$5)/1000 -> 0.7652332149 | Q47: =(Q45/ConversionFactors!$C$5)/1000 -> 0.90905099 | R47: =(R45/ConversionFactors!$C$5)/1000 -> 0.7829283882 | S47: =(S45/ConversionFactors!$C$5)/1000 -> 0.8233641029 | T47: =(T45/ConversionFactors!$C$5)/1000 -> 0.7442772228 | U47: =(U45/ConversionFactors!$C$5)/1000 -> 0.7634065724 | V47: =(V45/ConversionFactors!$C$5)/1000 -> 0.7818320617 | W47: =(W45/ConversionFactors!$C$5)/1000 -> 0.8953046411 | X47: =(X45/ConversionFactors!$C$5)/1000 -> 0.8591899341 | Y47: =(Y45/ConversionFactors!$C$5)/1000 -> 0.7352985398 | Z47: =(Z45/ConversionFactors!$C$5)/1000 -> 1.33876349 | AA47: =(AA45/ConversionFactors!$C$5)/1000 -> 1.575218337 | AB47: =(AB45/ConversionFactors!$C$5)/1000 -> 1.263451984 | AC47: =(AC45/ConversionFactors!$C$5)/1000 -> 1.189983866 | AD47: =(AD45/ConversionFactors!$C$5)/1000 -> 1.304043525 | AE47: =(AE45/ConversionFactors!$C$5)/1000 -> 1.676061602 | AF47: =(AF45/ConversionFactors!$C$5)/1000 -> 2.310809874 | AG47: =(AG45/ConversionFactors!$C$5)/1000 -> 2.08205527 | AH47: =(AH45/ConversionFactors!$C$5)/1000 -> 2.977257325 | AI47: =(AI45/ConversionFactors!$C$5)/1000 -> 2.218189452 | AJ47: =(AJ45/ConversionFactors!$C$5)/1000 -> 2.073041622 | AK47: =(AK45/ConversionFactors!$C$5)/1000 -> 2.756269079 | AL47: =(AL45/ConversionFactors!$C$5)/1000 -> 3.067305475 | AM47: =(AM45/ConversionFactors!$C$5)/1000 -> 3.191311822 | AN47: =(AN45/ConversionFactors!$C$5)/1000 -> 2.866591292 | AO47: =(AO45/ConversionFactors!$C$5)/1000 -> 2.628488304 | AP47: =(AP45/ConversionFactors!$C$5)/1000 -> 1.924979455 | AQ47: =(AQ45/ConversionFactors!$C$5)/1000 -> 2.282141468 | AR47: =(AR45/ConversionFactors!$C$5)/1000 -> 3.0460186 | AS47: =(AS45/ConversionFactors!$C$5)/1000 -> 2.55952381 | AT47: 1.08
A48: Average Gas price (2018-NOK/Sm3 o.e.) | B48: 2018-NOK/Sm3 o.e. | C48: calculated | F48: =(F46/ConversionFactors!$C$5)/1000 -> 3.222283249 | G48: =(G46/ConversionFactors!$C$5)/1000 -> 3.791793645 | H48: =(H46/ConversionFactors!$C$5)/1000 -> 4.527822065 | I48: =(I46/ConversionFactors!$C$5)/1000 -> 4.613271825 | J48: =(J46/ConversionFactors!$C$5)/1000 -> 4.533966403 | K48: =(K46/ConversionFactors!$C$5)/1000 -> 4.704447202 | L48: =(L46/ConversionFactors!$C$5)/1000 -> 3.977942795 | M48: =(M46/ConversionFactors!$C$5)/1000 -> 2.314057168 | N48: =(N46/ConversionFactors!$C$5)/1000 -> 1.968169662 | O48: =(O46/ConversionFactors!$C$5)/1000 -> 1.755485128 | P48: =(P46/ConversionFactors!$C$5)/1000 -> 1.881036101 | Q48: =(Q46/ConversionFactors!$C$5)/1000 -> 2.18620627 | R48: =(R46/ConversionFactors!$C$5)/1000 -> 1.8950123 | S48: =(S46/ConversionFactors!$C$5)/1000 -> 1.948217544 | T48: =(T46/ConversionFactors!$C$5)/1000 -> 1.763834816 | U48: =(U46/ConversionFactors!$C$5)/1000 -> 1.755427144 | V48: =(V46/ConversionFactors!$C$5)/1000 -> 1.724314062 | W48: =(W46/ConversionFactors!$C$5)/1000 -> 1.921060005 | X48: =(X46/ConversionFactors!$C$5)/1000 -> 1.856431272 | Y48: =(Y46/ConversionFactors!$C$5)/1000 -> 1.489455423 | Z48: =(Z46/ConversionFactors!$C$5)/1000 -> 2.350176731 | AA48: =(AA46/ConversionFactors!$C$5)/1000 -> 2.719750136 | AB48: =(AB46/ConversionFactors!$C$5)/1000 -> 2.217658045 | AC48: =(AC46/ConversionFactors!$C$5)/1000 -> 2.030528659 | AD48: =(AD46/ConversionFactors!$C$5)/1000 -> 2.10243272 | AE48: =(AE46/ConversionFactors!$C$5)/1000 -> 2.484740728 | AF48: =(AF46/ConversionFactors!$C$5)/1000 -> 3.1497258 | AG48: =(AG46/ConversionFactors!$C$5)/1000 -> 2.756422711 | AH48: =(AH46/ConversionFactors!$C$5)/1000 -> 3.570078177 | AI48: =(AI46/ConversionFactors!$C$5)/1000 -> 2.806179372 | AJ48: =(AJ46/ConversionFactors!$C$5)/1000 -> 2.474851868 | AK48: =(AK46/ConversionFactors!$C$5)/1000 -> 3.083404767 | AL48: =(AL46/ConversionFactors!$C$5)/1000 -> 3.320359246 | AM48: =(AM46/ConversionFactors!$C$5)/1000 -> 3.368523788 | AN48: =(AN46/ConversionFactors!$C$5)/1000 -> 3.017004154 | AO48: =(AO46/ConversionFactors!$C$5)/1000 -> 2.847705825 | AP48: =(AP46/ConversionFactors!$C$5)/1000 -> 2.116729882 | AQ48: =(AQ46/ConversionFactors!$C$5)/1000 -> 2.414085576 | AR48: =(AR46/ConversionFactors!$C$5)/1000 -> 3.0460186 | AS48: =(AS46/ConversionFactors!$C$5)/1000 -> 2.574735051
A49: Average Gas price (current NOK/Sm3 o.e) | B49: current NOK/Sm3 o.e | C49: Source: https://enerwe.no/gass-gasspris/gassprisen-tok-seg-opp-i-desember-men-snittprisen-ble-lav-i-2020/392679 | AP49: 1.36 | AQ49: 1.66 | AR49: 2.21 | AS49: 1.49 | AT49: 1.08
A50: Average Gas price (2018-NOK/Sm3 o.e.) | B50: 2018-NOK/Sm3 o.e. | AP50: =AP49/AP154 -> 1.495471878 | AQ50: =AQ49/AQ154 -> 1.755974427 | AR50: =AR49/AR154 -> 2.21 | AS50: =AS49/AS154 -> 1.498855065 | AT50: 1.08
A51: =CONCATENATE("Gas exports (",B51,")") -> Gas exports (GBtu/yr) | B51: GBtu/yr | C51: 1 m^3 = | D51: =ConversionFactors!C2 -> 35310.73446 | E51: Btu | F51: =F38*$D$51 -> 850208.8143 | G51: 838747.9372 | H51: 801180.887 | I51: 784157.8287 | J51: 868159.1644 | K51: 873717.8175 | L51: 865878.8921 | M51: 933228.0139 | N51: 925650.7847 | O51: 932727.4723 | P51: 814144.0012 | Q51: 788308.7362 | R51: 809802.4561 | S51: 768742.7662 | T51: 832765.9583 | U51: 865803.6369 | V51: 1192373.532 | W51: 1368449.844 | X51: 1409335.938 | Y51: 1565442.304 | Z51: 1595539.138 | AA51: 1755117.49 | AB51: 2150835.127 | AC51: 2397527.346 | AD51: 2606317.601 | AE51: 2854126.314 | AF51: 2955431.084 | AG51: 3017552.411 | AH51: 3356799.194 | AI51: 3513333.863 | AJ51: 3614565.459 | AK51: 3407029.273 | AL51: 3879252.248 | AM51: 3670767.835 | AN51: 3661946.625 | AO51: 3945223.369 | AP51: 3937787.499 | AQ51: 4189071.305 | AR51: 4124436.455 | AS51: 3880348.963
A52: =CONCATENATE("Gas exports (",B52,")") -> Gas exports (GNOK/yr) | B52: GNOK/yr | C52: SSB 08800: External trade in goods, main figures (NOK million) | F52: =([4]Sheet1!W$20)/1000 -> 12.899 | G52: =([4]Sheet1!X$20)/1000 -> 17.04 | H52: =([4]Sheet1!Y$20)/1000 -> 21.593 | I52: =([4]Sheet1!Z$20)/1000 -> 23.191 | J52: =([4]Sheet1!AA$20)/1000 -> 26.617 | K52: =([4]Sheet1!AB$20)/1000 -> 29.303 | L52: =([4]Sheet1!AC$20)/1000 -> 24.551 | M52: =([4]Sheet1!AD$20)/1000 -> 16.523 | N52: =([4]Sheet1!AE$20)/1000 -> 14.831 | O52: =([4]Sheet1!AF$20)/1000 -> 14.172 | P52: =([4]Sheet1!AG$20)/1000 -> 13.977 | Q52: =([4]Sheet1!AH$20)/1000 -> 16.309 | R52: =([4]Sheet1!AI$20)/1000 -> 14.499 | S52: =([4]Sheet1!AJ$20)/1000 -> 14.64 | T52: =([4]Sheet1!AK$20)/1000 -> 14.321 | U52: =([4]Sheet1!AL$20)/1000 -> 15.221 | V52: =([4]Sheet1!AM$20)/1000 -> 20.96 | W52: =([4]Sheet1!AN$20)/1000 -> 27.562 | X52: =([4]Sheet1!AO$20)/1000 -> 27.22 | Y52: =([4]Sheet1!AP$20)/1000 -> 25.549 | Z52: =([4]Sheet1!AQ$20)/1000 -> 47.789 | AA52: =([4]Sheet1!AR$20)/1000 -> 61.018 | AB52: =([4]Sheet1!AS$20)/1000 -> 59.409 | AC52: =([4]Sheet1!AT$20)/1000 -> 62.238 | AD52: =([4]Sheet1!AU$20)/1000 -> 74.017 | AE52: =([4]Sheet1!AV$20)/1000 -> 103.139 | AF52: =([4]Sheet1!AW$20)/1000 -> 146.88 | AG52: =([4]Sheet1!AX$20)/1000 -> 134.79 | AH52: =([4]Sheet1!AY$20)/1000 -> 213.661 | AI52: =([4]Sheet1!AZ$20)/1000 -> 165.982 | AJ52: =([4]Sheet1!BA$20)/1000 -> 159.381 | AK52: =([4]Sheet1!BB$20)/1000 -> 200.086 | AL52: =([4]Sheet1!BC$20)/1000 -> 252.253 | AM52: =([4]Sheet1!BD$20)/1000 -> 248.778 | AN52: =([4]Sheet1!BE$20)/1000 -> 223.625 | AO52: =([4]Sheet1!BF$20)/1000 -> 220.676 | AP52: =([4]Sheet1!BG$20)/1000 -> 161.129 | AQ52: =([4]Sheet1!BH$20)/1000 -> 203.105 | AR52: =([4]Sheet1!BI$20)/1000 -> 265.435 | AS52: =([4]Sheet1!BJ$20)/1000 -> 176.534
A53: =CONCATENATE("Realized gas price (",B53,")") -> Realized gas price (NOK/Gcm) | B53: NOK/Gcm | C53: calculated | F53: =F52/F38 -> 0.5357191741 | G53: 0.7173727511 | H53: 0.9516760841 | I53: 1.044293907 | J53: 1.082596208 | K53: 1.18426159 | L53: 1.001195259 | M53: 0.6251840459 | N53: 0.5657570992 | O53: 0.5365165535 | P53: 0.6062049647 | Q53: 0.7305294765 | R53: 0.6322163326 | S53: 0.6724605099 | T53: 0.6072354702 | U53: 0.6207697292 | V53: 0.6207056551 | W53: 0.7111948367 | X53: 0.6819936724 | Y53: 0.5762933276 | Z53: 1.0576141 | AA53: 1.227604652 | AB53: 0.9753306506 | AC53: 0.9166400103 | AD53: 1.002792074 | AE53: 1.276017051 | AF53: 1.754884662 | AG53: 1.577282926 | AH53: 2.247535941 | AI53: 1.668200791 | AJ53: 1.556994951 | AK53: 2.073707928 | AL53: 2.296122585 | AM53: 2.393105282 | AN53: 2.156329352 | AO53: 1.975105313 | AP53: 1.444868047 | AQ53: 1.712023072 | AR53: 2.27248132 | AS53: 1.606439332
A54: Realized gas price (NOK/toe) | B54: NOK/toe | C54: calculated | F54: =F52/F40*1000 -> 623.0413995 | G54: 834.3045095 | H54: 1106.799286 | I54: 1214.513814 | J54: 1259.05939 | K54: 1377.296229 | L54: 1164.390086 | M54: 727.0890454 | N54: 657.9755063 | O54: 623.9687517 | P54: 705.016374 | Q54: 849.6057811 | R54: 735.2675949 | S54: 782.071573 | T54: 706.2148518 | U54: 721.955195 | V54: 721.8806769 | W54: 827.1195951 | X54: 793.158641 | Y54: 670.22914 | Z54: 1230.005198 | AA54: 1427.70421 | AB54: 1134.309547 | AC54: 1066.052332 | AD54: 1166.247182 | AE54: 1484.00783 | AF54: 2040.930862 | AG54: 1834.380043 | AH54: 2613.884299 | AI54: 1940.117519 | AJ54: 1810.785128 | AK54: 2411.722321 | AL54: 2670.390566 | AM54: 2783.181443 | AN54: 2507.811036 | AO54: 2297.047479 | AP54: 1680.381538 | AQ54: 1991.082832 | AR54: 2656.854331 | AS54: 1868.278575
A55: Realized gas price (NOK/Sm3 o.e.) | B55: NOK/Sm3 o.e. | C55: calculated | F55: =F52/F42*1000 -> 484.5740551 | G55: 655.0678834 | H55: 862.2736989 | I55: 930.8260683 | J55: 975.2254603 | K55: 1055.730765 | L55: 866.0406706 | M55: 541.3347481 | N55: 479.4975268 | O55: 454.9528421 | P55: 502.7706608 | Q55: 606.3885977 | R55: 526.4191561 | S55: 545.960918 | T55: 476.3010499 | U55: 479.2678921 | V55: 504.9090221 | W55: 594.1591482 | X55: 579.9126203 | Y55: 499.8642075 | Z55: 916.6731105 | AA55: 1013.508105 | AB55: 820.4447153 | AC55: 772.7945508 | AD55: 847.7821895 | AE55: 1069.520231 | AF55: 1465.735332 | AG55: 1322.027858 | AH55: 1908.319533 | AI55: 1425.874951 | AJ55: 1352.412101 | AK55: 1772.589109 | AL55: 1972.819931 | AM55: 2042.382784 | AN55: 1832.336445 | AO55: 1680.515284 | AP55: 1221.558875 | AQ55: 1454.264782 | AR55: 1945.660255 | AS55: 1386.966576
A56: Realized gas price (NOK/Btu) | B56: NOK/Btu | C56: calculated | F56: =F52/F51 -> 1.517156701e-05 | G56: 2.031599631e-05 | H56: 2.69514667e-05 | I56: 2.957440346e-05 | J56: 3.065912461e-05 | K56: 3.353828823e-05 | L56: 2.835384974e-05 | M56: 1.770521218e-05 | N56: 1.602224105e-05 | O56: 1.51941488e-05 | P56: 1.71677246e-05 | Q56: 2.068859478e-05 | R56: 1.790436654e-05 | S56: 1.904408164e-05 | T56: 1.719690852e-05 | U56: 1.758019873e-05 | V56: 1.757838415e-05 | W56: 2.014103778e-05 | X56: 1.93140608e-05 | Y56: 1.632062704e-05 | Z56: 2.995163131e-05 | AA56: 3.476576374e-05 | AB56: 2.762136403e-05 | AC56: 2.595924509e-05 | AD56: 2.839907154e-05 | AE56: 3.613680287e-05 | AF56: 4.969833363e-05 | AG56: 4.466865248e-05 | AH56: 6.365021785e-05 | AI56: 4.724344639e-05 | AJ56: 4.409409701e-05 | AK56: 5.872740854e-05 | AL56: 6.502619161e-05 | AM56: 6.77727416e-05 | AN56: 6.106724725e-05 | AO56: 5.593498248e-05 | AP56: 4.091866309e-05 | AQ56: 4.84844934e-05 | AR56: 6.4356671e-05 | AS56: 4.54943619e-05
A57: Realized gas price (NOK/MBtu) | B57: NOK/MBtu | C57: calculated | F57: =F56*1000000 -> 15.17156701 | G57: 20.31599631 | H57: 26.9514667 | I57: 29.57440346 | J57: 30.65912461 | K57: 33.53828823 | L57: =L56*1000000 -> 28.35384974 | M57: 17.70521218 | N57: 16.02224105 | O57: 15.1941488 | P57: 17.1677246 | Q57: 20.68859478 | R57: 17.90436654 | S57: 19.04408164 | T57: 17.19690852 | U57: 17.58019873 | V57: 17.57838415 | W57: 20.14103778 | X57: 19.3140608 | Y57: 16.32062704 | Z57: 29.95163131 | AA57: 34.76576374 | AB57: 27.62136403 | AC57: 25.95924509 | AD57: 28.39907154 | AE57: 36.13680287 | AF57: 49.69833363 | AG57: 44.66865248 | AH57: 63.65021785 | AI57: 47.24344639 | AJ57: 44.09409701 | AK57: 58.72740854 | AL57: 65.02619161 | AM57: 67.7727416 | AN57: 61.06724725 | AO57: 55.93498248 | AP57: 40.91866309 | AQ57: 48.4844934 | AR57: 64.356671 | AS57: 45.4943619
A58: Realized gas price (USD/MBtu) | B58: USD/MBtu | C58: calculated | F58: =F57/F27 -> 3.072080329 | G58: 3.540926116 | H58: 5.45738424 | I58: 4.052042491 | J58: 3.757775712 | K58: 3.905493896 | L58: 3.83504612 | M58: 2.628004347 | N58: 2.458056049 | O58: 2.200375076 | P58: 2.742550975 | Q58: 3.187637778 | R58: 2.88058936 | S58: 2.682823123 | T58: 2.43746129 | U58: 2.773633477 | V58: 2.722440447 | W58: 2.845155085 | X58: 2.557478642 | Y58: 2.091707741 | Z58: 3.400923582 | AA58: 3.866467044 | AB58: 3.462662883 | AC58: 3.666116794 | AD58: 4.21584645 | AE58: 5.608065353 | AF58: 7.748579269 | AG58: 7.621443003 | AH58: 11.2889884 | AI58: 7.521409361 | AJ58: 7.291253642 | AK58: 10.4778448 | AL58: 11.17033057 | AM58: 11.53148137 | AN58: 9.689245873 | AO58: 6.929868676 | AP58: 4.873306341 | AQ58: 5.86574276 | AR58: 7.911527801 | AS58: 5.168458306
A59: =CONCATENATE("Gas price historical: German average import (",B59,")") -> Gas price historical: German average import (USD/MBtu) | B59: USD/MBtu | C59: bp Statistical Review of World Energy June 2020 | J59: ='[2]Gas - Prices '!$D$6 -> 3.995634678 | K59: ='[2]Gas - Prices '!$D$7 -> 4.253586803 | L59: ='[2]Gas - Prices '!$D$8 -> 3.928618809 | M59: ='[2]Gas - Prices '!$D$9 -> 2.547503271 | N59: ='[2]Gas - Prices '!$D$10 -> 2.220359089 | O59: ='[2]Gas - Prices '!$D$11 -> 2.000513775 | P59: ='[2]Gas - Prices '!$D$12 -> 2.775893134 | Q59: ='[2]Gas - Prices '!$D$13 -> 3.233289 | R59: ='[2]Gas - Prices '!$D$14 -> 2.698698 | S59: ='[2]Gas - Prices '!$D$15 -> 2.511376 | T59: ='[2]Gas - Prices '!$D$16 -> 2.350464 | U59: ='[2]Gas - Prices '!$D$17 -> 2.430162 | V59: ='[2]Gas - Prices '!$D$18 -> 2.496835 | W59: ='[2]Gas - Prices '!$D$19 -> 2.664762 | X59: ='[2]Gas - Prices '!$D$20 -> 2.330556 | Y59: ='[2]Gas - Prices '!$D$21 -> 1.862812 | Z59: ='[2]Gas - Prices '!$D$22 -> 2.91031 | AA59: ='[2]Gas - Prices '!$D$23 -> 3.667058 | AB59: ='[2]Gas - Prices '!$D$24 -> 3.212179 | AC59: ='[2]Gas - Prices '!$D$25 -> 4.063158 | AD59: ='[2]Gas - Prices '!$D$26 -> 4.301853 | AE59: ='[2]Gas - Prices '!$D$27 -> 5.830318 | AF59: ='[2]Gas - Prices '!$D$28 -> 7.874267 | AG59: ='[2]Gas - Prices '!$D$29 -> 7.994001 | AH59: ='[2]Gas - Prices '!$D$30 -> 11.60052 | AI59: ='[2]Gas - Prices '!$D$31 -> 8.531361 | AJ59: ='[2]Gas - Prices '!$D$32 -> 8.031026 | AK59: ='[2]Gas - Prices '!$D$33 -> 10.49128 | AL59: ='[2]Gas - Prices '!$D$34 -> 10.92553 | AM59: ='[2]Gas - Prices '!$D$35 -> 10.72630774 | AN59: ='[2]Gas - Prices '!$D$36 -> 9.114795571 | AO59: ='[2]Gas - Prices '!$D$37 -> 6.71908538 | AP59: ='[2]Gas - Prices '!$D$38 -> 4.931313261 | AQ59: ='[2]Gas - Prices '!$D$39 -> 5.618241211 | AR59: ='[2]Gas - Prices '!$D$40 -> 6.622709852 | AS59: ='[2]Gas - Prices '!$D$41 -> 5.25296122
A61: =CONCATENATE("Average Gas price (",B61,")") -> Average Gas price (USD/kgoe-gass) | B61: USD/kgoe-gass | F61: =F46/F362/1000 -> 0.4057096551 | G61: =G46/G362/1000 -> 0.5192953181 | H61: 0.6260178028 | I61: 0.6155791533 | J61: 0.6125861114 | K61: 0.6272947754 | L61: 0.4649653298 | M61: 0.2514604999 | N61: 0.2171589138 | O61: 0.1957273502 | P61: 0.1990496088 | Q61: 0.2297111928 | R61: 0.1972161863 | S61: 0.1948108775 | T61: 0.1750453846 | U61: 0.1747250843 | V61: 0.1738611868 | W61: 0.201797897 | X61: 0.1852640416 | Y61: 0.1505285833 | Z61: 0.2433339287 | AA61: 0.2838688127 | AB61: 0.2480938816 | AC61: 0.2131166929 | AD61: 0.2110128913 | AE61: 0.2605919392 | AF61: 0.3287885488 | AG61: 0.2888284593 | AH61: 0.3646613209 | AI61: 0.2700761884 | AJ61: 0.2597290622 | AK61: 0.3323406975 | AL61: 0.3731212368 | AM61: 0.3624522054 | AN61: 0.3033479559 | AO61: 0.2672819133 | AP61: =AP46/AP362/1000 -> 0.1913819453 | AQ61: 0.2174153735 | AR61: 0.266596248 | AS61: 0.2195471081
A62: =CONCATENATE("Average Gas price (",B62,")") -> Average Gas price (USD/kgoe-gass) | B62: USD/kgoe-gass | AP62: =(AP49*ConversionFactors!$C$6*1000)/AP362/1000 -> 0.1071286602 | AQ62: =(AQ49*ConversionFactors!$C$6*1000)/AQ362/1000 -> 0.1302497559 | AR62: =(AR49*ConversionFactors!$C$6*1000)/AR362/1000 -> 0.1685174959 | AS62: =(AS49*ConversionFactors!$C$6*1000)/AS362/1000 -> 0.1106910954
A63: =CONCATENATE("Gas exports (",B63,")") -> Gas exports (2018-GNOK/yr) | B63: 2018-GNOK/yr | F63: =F52/F154 -> 57.95158638 | G63: =G52/G154 -> 67.82110491 | H63: 77.76907309 | I63: 78.08766327 | J63: 84.38329567 | K63: 88.30841922 | L63: 74.3973995 | M63: 46.69778042 | N63: 39.96985774 | O63: 36.16427114 | P63: 34.35716208 | Q63: 39.22204415 | R63: 35.09360977 | S63: 34.6406951 | T63: 33.93880347 | U63: 35.00016575 | V63: 46.22683632 | W63: 59.13993229 | X63: 58.81360711 | Y63: 51.75326012 | Z63: 83.8927836 | AA63: 105.3528327 | AB63: 104.2768926 | AC63: 106.199795 | AD63: 119.3332582 | AE63: 152.9023 | AF63: 200.203284 | AG63: 178.4478167 | AH63: 256.2044158 | AI63: 209.9799294 | AJ63: 190.2732494 | AK63: 223.8337798 | AL63: 273.0639604 | AM63: 262.5925192 | AN63: 235.3588235 | AO63: 239.0805125 | AP63: 177.1793295 | AQ63: 214.8477024 | AR63: 265.435 | AS63: 177.583141
A82: Oil and gas O&G | B82: 1 Gcm = | C82: =ConversionFactors!C4 -> 0.85985 | D82: Mtoe
A83: =CONCATENATE("Oil and gas production (",B83,")") -> Oil and gas production (Mtoe/yr) | B83: Mtoe/yr | C83: calculated | F83: =F15+F35*ConversionFactors!$C$4 -> 46.46002831 | G83: =G15+G35*ConversionFactors!$C$4 -> 45.58565629 | H83: =H15+H35*ConversionFactors!$C$4 -> 45.67903882 | I83: =I15+I35*ConversionFactors!$C$4 -> 51.54863702 | J83: =J15+J35*ConversionFactors!$C$4 -> 58.11127451 | K83: =K15+K35*ConversionFactors!$C$4 -> 61.55768768 | L83: =L15+L35*ConversionFactors!$C$4 -> 65.2990316 | M83: =M15+M35*ConversionFactors!$C$4 -> 74.13927521 | N83: =N15+N35*ConversionFactors!$C$4 -> 81.15602903 | O83: =O15+O35*ConversionFactors!$C$4 -> 99.43390178 | P83: =P15+P35*ConversionFactors!$C$4 -> 103.8872436 | Q83: =Q15+Q35*ConversionFactors!$C$4 -> 115.2003251 | R83: =R15+R35*ConversionFactors!$C$4 -> 128.9471762 | S83: =S15+S35*ConversionFactors!$C$4 -> 135.2959743 | T83: =T15+T35*ConversionFactors!$C$4 -> 151.4896197 | U83: =U15+U35*ConversionFactors!$C$4 -> 162.1358448 | V83: =V15+V35*ConversionFactors!$C$4 -> 186.579715 | W83: =W15+W35*ConversionFactors!$C$4 -> 192.8770052 | X83: =X15+X35*ConversionFactors!$C$4 -> 187.3159013 | Y83: =Y15+Y35*ConversionFactors!$C$4 -> 191.0387297 | Z83: =Z15+Z35*ConversionFactors!$C$4 -> 202.4099894 | AA83: =AA15+AA35*ConversionFactors!$C$4 -> 207.659718 | AB83: =AB15+AB35*ConversionFactors!$C$4 -> 213.1149971 | AC83: =AC15+AC35*ConversionFactors!$C$4 -> 215.4143976 | AD83: =AD15+AD35*ConversionFactors!$C$4 -> 217.5642055 | AE83: =AE15+AE35*ConversionFactors!$C$4 -> 211.4566758 | AF83: =AF15+AF35*ConversionFactors!$C$4 -> 204.2845441 | AG83: =AG15+AG35*ConversionFactors!$C$4 -> 195.2632917 | AH83: =AH15+AH35*ConversionFactors!$C$4 -> 199.6565059 | AI83: =AI15+AI35*ConversionFactors!$C$4 -> 197.246713 | AJ83: =AJ15+AJ35*ConversionFactors!$C$4 -> 189.9321614 | AK83: =AK15+AK35*ConversionFactors!$C$4 -> 179.5983015 | AL83: =AL15+AL35*ConversionFactors!$C$4 -> 184.7680832 | AM83: =AM15+AM35*ConversionFactors!$C$4 -> 175.5744126 | AN83: =AN15+AN35*ConversionFactors!$C$4 -> 177.6709598 | AO83: =AO15+AO35*ConversionFactors!$C$4 -> 187.4140266 | AP83: =AP15+AP35*ConversionFactors!$C$4 -> 189.7944874 | AQ83: =AQ15+AQ35*ConversionFactors!$C$4 -> 194.6344752 | AR83: =AR15+AR35*ConversionFactors!$C$4 -> 187.4351861 | AS83: =AS15+AS35*ConversionFactors!$C$4 -> 176.7229766 | AT83: =AT88*ConversionFactors!C5 -> 191.7156536 | AV83: 2020 data from https://www.norskpetroleum.no/en/facts/historical-production/
A84: =CONCATENATE("Oil and gas consumption (",B84,")") -> Oil and gas consumption (Mtoe/yr) | B84: Mtoe/yr | C84: calculated | F84: =F18+F36*ConversionFactors!$C$4 -> 10.09800392 | G84: =G18+G36*ConversionFactors!$C$4 -> 9.596004823 | H84: =H18+H36*ConversionFactors!$C$4 -> 9.312005206 | I84: =I18+I36*ConversionFactors!$C$4 -> 9.328005861 | J84: =J18+J36*ConversionFactors!$C$4 -> 9.581005639 | K84: =K18+K36*ConversionFactors!$C$4 -> 10.06300594 | L84: =L18+L36*ConversionFactors!$C$4 -> 10.87800655 | M84: =M18+M36*ConversionFactors!$C$4 -> 10.88500721 | N84: =N18+N36*ConversionFactors!$C$4 -> 10.61200908 | O84: =O18+O36*ConversionFactors!$C$4 -> 10.92501006 | P84: =P18+P36*ConversionFactors!$C$4 -> 10.66432159 | Q84: =Q18+Q36*ConversionFactors!$C$4 -> 10.22500944 | R84: =R18+R36*ConversionFactors!$C$4 -> 10.65524882 | S84: =S18+S36*ConversionFactors!$C$4 -> 11.22784672 | T84: =T18+T36*ConversionFactors!$C$4 -> 11.61615191 | U84: =U18+U36*ConversionFactors!$C$4 -> 11.53106264 | V84: =V18+V36*ConversionFactors!$C$4 -> 12.42581469 | W84: =W18+W36*ConversionFactors!$C$4 -> 12.9967239 | X84: =X18+X36*ConversionFactors!$C$4 -> 13.07335178 | Y84: =Y18+Y36*ConversionFactors!$C$4 -> 12.83475756 | Z84: =Z18+Z36*ConversionFactors!$C$4 -> 12.51654903 | AA84: =AA18+AA36*ConversionFactors!$C$4 -> 13.4490233 | AB84: =AB18+AB36*ConversionFactors!$C$4 -> 13.33008723 | AC84: =AC18+AC36*ConversionFactors!$C$4 -> 13.91441409 | AD84: =AD18+AD36*ConversionFactors!$C$4 -> 13.92794332 | AE84: =AE18+AE36*ConversionFactors!$C$4 -> 13.57208865 | AF84: =AF18+AF36*ConversionFactors!$C$4 -> 13.74774007 | AG84: =AG18+AG36*ConversionFactors!$C$4 -> 13.56588585 | AH84: =AH18+AH36*ConversionFactors!$C$4 -> 13.58356222 | AI84: =AI18+AI36*ConversionFactors!$C$4 -> 13.49167145 | AJ84: =AJ18+AJ36*ConversionFactors!$C$4 -> 13.93708245 | AK84: =AK18+AK36*ConversionFactors!$C$4 -> 13.52771429 | AL84: =AL18+AL36*ConversionFactors!$C$4 -> 13.41828071 | AM84: =AM18+AM36*ConversionFactors!$C$4 -> 13.58320912 | AN84: =AN18+AN36*ConversionFactors!$C$4 -> 13.21704942 | AO84: =AO18+AO36*ConversionFactors!$C$4 -> 13.5679811 | AP84: =AP18+AP36*ConversionFactors!$C$4 -> 13.01692803 | AQ84: =AQ18+AQ36*ConversionFactors!$C$4 -> 13.10953025 | AR84: =AR18+AR36*ConversionFactors!$C$4 -> 13.39418937 | AS84: =AS18+AS36*ConversionFactors!$C$4 -> 12.80729321
A85: =CONCATENATE("Oil and gas exports (",B85,")") -> Oil and gas exports (Mtoe/yr) | B85: Mtoe/yr | C85: calculated | F85: =F19+F44 -> 36.36190949 | G85: 37.41590057 | H85: 37.89273982 | I85: 44.05376188 | J85: 50.31603445 | K85: 53.53397003 | L85: 57.14883438 | M85: 66.16834835 | N85: 73.98499 | O85: 91.96249411 | P85: 96.74969983 | Q85: 108.371295 | R85: 121.7083269 | S85: 127.8731986 | T85: 144.8512033 | U85: 156.1990785 | V85: 179.9889102 | W85: 185.5233505 | X85: 179.3518867 | Y85: 183.017942 | Z85: 194.8323374 | AA85: 202.0439012 | AB85: 208.2350394 | AC85: =AC19+AC44 -> 210.7683872 | AD85: =AD19+AD44 -> 213.5075107 | AE85: 209.3891501 | AF85: 202.744877 | AG85: 193.8610155 | AH85: 198.3805284 | AI85: 195.9840002 | AJ85: 186.9704931 | AK85: 177.9235524 | AL85: 184.2922272 | AM85: 174.923001 | AN85: 177.7986771 | AO85: 188.0802685 | AP85: 191.6883876 | AQ85: 196.8328457 | AR85: 188.2033085 | AS85: 176.3412335
A86: =CONCATENATE("Fraction of O&G exports as oil (",B86,")") -> Fraction of O&G exports as oil (pct) | B86: pct | C86: calculated | F86: =F19/F85*100 -> 43.06327853 | G86: =G15/G83*100 -> 53.28943945 | H86: 55.23653067 | I86: 60.90877146 | J86: 61.87227355 | K86: 63.69768355 | L86: 65.90304428 | M86: 67.59612538 | N86: 70.20986956 | O86: 75.3355631 | P86: 79.0694301 | Q86: 81.46005215 | R86: 82.90270923 | S86: 84.35457381 | T86: 84.87905738 | U86: 85.36032698 | V86: 82.89447134 | W86: 80.99873291 | X86: 79.86519544 | Y86: 78.34730765 | Z86: 79.00502969 | AA86: 77.79309298 | AB86: 73.7334755 | AC86: 71.09566698 | AD86: 68.94188663 | AE86: 65.35547084 | AF86: 62.95871336 | AG86: 60.5299263 | AH86: 57.20938364 | AI86: 54.8377358 | AJ86: 51.81042021 | AK86: 51.88106704 | AL86: 47.01224971 | AM86: 47.14274188 | AN86: 47.72894662 | AO86: 46.67018378 | AP86: 47.49663447 | AQ86: 45.56460128 | AR86: 44.36022737 | AS86: 44.34551622
A87: =CONCATENATE("Fraction of O&G exported (",B87,")") -> Fraction of O&G exported (pct) | B87: pct | C87: calculated | F87: =F85/F83*100 -> 78.26493183 | G87: =G85/G83*100 -> 82.07823165 | H87: 82.95432828 | I87: 85.46057554 | J87: 86.58566669 | K87: 86.9655311 | L87: 87.51865529 | M87: 89.24871219 | N87: 91.16388626 | O87: 92.48605602 | P87: 93.12952817 | Q87: 94.07203918 | R87: 94.38619009 | S87: 94.51367585 | T87: 95.61790672 | U87: 96.33839984 | V87: 96.46756623 | W87: 96.18738649 | X87: 95.74835103 | Y87: 95.80148603 | Z87: 96.25628555 | AA87: 97.29566386 | AB87: 97.71017629 | AC87: 97.84322197 | AD87: 98.13540339 | AE87: 99.02224621 | AF87: 99.2463125 | AG87: 99.28185366 | AH87: 99.36091367 | AI87: 99.35983072 | AJ87: 98.44067047 | AK87: 99.06750281 | AL87: 99.74245768 | AM87: 99.62898257 | AN87: 100.0718842 | AO87: 100.355492 | AP87: 100.9978689 | AQ87: 101.1294867 | AR87: 100.4098069 | AS87: 99.7839879
A88: =CONCATENATE("Oil and gas production (",B88,")") -> Oil and gas production (MSm3 o.e./yr) | B88: MSm3 o.e./yr | C88: calculated | F88: =F41+F16 -> 55.797737 | G88: =G41+G16 -> 54.65231 | H88: 54.81739 | I88: 61.979077 | J88: 69.761684 | K88: 73.986726 | L88: 78.767298 | M88: 89.28111 | N88: 97.945603 | O88: 119.671647 | P88: 125.081418 | Q88: 138.4916 | R88: 154.845705 | S88: 162.639471 | T88: 182.648869 | U88: 195.709217 | V88: 224.915483 | W88: 232.307816 | X88: 225.375382 | Y88: 229.665056 | Z88: 243.612572 | AA88: 251.510434 | AB88: 258.364375 | AC88: 261.705198 | AD88: 264.405888 | AE88: 257.736866 | AF88: 249.566389 | AG88: 238.340707 | AH88: 243.583585 | AI88: 240.606312 | AJ88: 231.11348 | AK88: 219.59928 | AL88: 226.279148 | AM88: 215.382577 | AN88: 217.767052 | AO88: 229.936656 | AP88: 232.942295 | AQ88: 239.04463 | AR88: 229.537414 | AS88: 215.639379 | AT88: 228.232921
A104: Reserves
A105: =CONCATENATE("Contingent reserves oil (",B105,")") -> Contingent reserves oil (MScm o.e.) | B105: MScm o.e. | C105: Norwegian Petroleum Directorate, Resource Report 2019, Discoveries and Fields, Figure 2.4 | Z105: =[6]Sheet1!E$10 -> 1141.57974 | AA105: =[6]Sheet1!F$10 -> 997.782171 | AB105: =[6]Sheet1!G$10 -> 997.6881703 | AC105: =[6]Sheet1!H$10 -> 952.8145866 | AD105: =[6]Sheet1!I$10 -> 782.0270663 | AE105: =[6]Sheet1!J$10 -> 710.1165315 | AF105: =[6]Sheet1!K$10 -> 791.0393834 | AG105: =[6]Sheet1!L$10 -> 764.0259324 | AH105: =[6]Sheet1!M$10 -> 605.2705017 | AI105: =[6]Sheet1!N$10 -> 862.9734184 | AJ105: =[6]Sheet1!O$10 -> 916.835819 | AK105: =[6]Sheet1!P$10 -> 1150.521557 | AL105: =[6]Sheet1!Q$10 -> 1114.66029 | AM105: =[6]Sheet1!R$10 -> 1249.445543 | AN105: =[6]Sheet1!S$10 -> 1294.342627 | AO105: =[6]Sheet1!T$10 -> 961.6859025 | AP105: =[6]Sheet1!U$10 -> 970.7452199 | AQ105: =[6]Sheet1!V$10 -> 853.914101 | AR105: =[6]Sheet1!W$10 -> 773.0617496
A106: =CONCATENATE("Remaining reserves oil (",B106,")") -> Remaining reserves oil (MScm o.e.) | B106: MScm o.e. | C106: Norwegian Petroleum Directorate, Resource Report 2019, Discoveries and Fields, Figure 2.4 | Z106: =[6]Sheet1!E$11 -> 1896.593356 | AA106: =[6]Sheet1!F$11 -> 1851.672772 | AB106: =[6]Sheet1!G$11 -> 1680.908752 | AC106: =[6]Sheet1!H$11 -> 1617.987034 | AD106: =[6]Sheet1!I$11 -> 1555.088816 | AE106: =[6]Sheet1!J$11 -> 1573.06645 | AF106: =[6]Sheet1!K$11 -> 1375.288979 | AG106: =[6]Sheet1!L$11 -> 1312.367261 | AH106: =[6]Sheet1!M$11 -> 1204.477958 | AI106: =[6]Sheet1!N$11 -> 1141.55624 | AJ106: =[6]Sheet1!O$11 -> 1087.646839 | AK106: =[6]Sheet1!P$11 -> 1105.600973 | AL106: =[6]Sheet1!Q$11 -> 1231.373908 | AM106: =[6]Sheet1!R$11 -> 1123.602107 | AN106: =[6]Sheet1!S$11 -> 1051.691572 | AO106: =[6]Sheet1!T$11 -> 1258.48136 | AP106: =[6]Sheet1!U$11 -> 1222.455592 | AQ106: =[6]Sheet1!V$11 -> 1357.264345 | AR106: =[6]Sheet1!W$11 -> 1384.324796
A107: =CONCATENATE("Contingent reserves gas (",B107,")") -> Contingent reserves gas (MScm o.e.) | B107: MScm o.e. | C107: Norwegian Petroleum Directorate, Resource Report 2019, Discoveries and Fields, Figure 2.5 | Z107: =[6]Sheet1!E$5 -> 1863.822756 | AA107: =[6]Sheet1!F$5 -> 1675.615504 | AB107: =[6]Sheet1!G$5 -> 1541.206902 | AC107: =[6]Sheet1!H$5 -> 743.7041262 | AD107: =[6]Sheet1!I$5 -> 743.7393347 | AE107: =[6]Sheet1!J$5 -> 743.7628071 | AF107: =[6]Sheet1!K$5 -> 743.7275986 | AG107: =[6]Sheet1!L$5 -> 654.0983914 | AH107: =[6]Sheet1!M$5 -> 615.2751078 | AI107: =[6]Sheet1!N$5 -> 779.5698925 | AJ107: =[6]Sheet1!O$5 -> 743.7275986 | AK107: =[6]Sheet1!P$5 -> 627.2284072 | AL107: =[6]Sheet1!Q$5 -> 618.2678337 | AM107: =[6]Sheet1!R$5 -> 591.3743771 | AN107: =[6]Sheet1!S$5 -> 645.1495541 | AO107: =[6]Sheet1!T$5 -> 600.3114782 | AP107: =[6]Sheet1!U$5 -> 627.2636157 | AQ107: =[6]Sheet1!V$5 -> 609.3424688 | AR107: =[6]Sheet1!W$5 -> 618.3147784
A108: =CONCATENATE("Remaining reserves gas (",B108,")") -> Remaining reserves gas (MScm o.e.) | B108: MScm o.e. | C108: Norwegian Petroleum Directorate, Resource Report 2019, Discoveries and Fields, Figure 2.5 | Z108: =[6]Sheet1!E$6 -> 2042.999017 | AA108: =[6]Sheet1!F$6 -> 2177.419355 | AB108: =[6]Sheet1!G$6 -> 2123.644178 | AC108: =[6]Sheet1!H$6 -> 2437.275986 | AD108: =[6]Sheet1!I$6 -> 2401.445428 | AE108: =[6]Sheet1!J$6 -> 2374.516763 | AF108: =[6]Sheet1!K$6 -> 2284.946237 | AG108: =[6]Sheet1!L$6 -> 2311.863166 | AH108: =[6]Sheet1!M$6 -> 2213.261649 | AI108: =[6]Sheet1!N$6 -> 2025.089606 | AJ108: =[6]Sheet1!O$6 -> 2025.089606 | AK108: =[6]Sheet1!P$6 -> 2060.9319 | AL108: =[6]Sheet1!Q$6 -> 2087.825356 | AM108: =[6]Sheet1!R$6 -> 2043.022489 | AN108: =[6]Sheet1!S$6 -> 1908.578678 | AO108: =[6]Sheet1!T$6 -> 1836.941035 | AP108: =[6]Sheet1!U$6 -> 1765.221239 | AQ108: =[6]Sheet1!V$6 -> 1738.327782 | AR108: =[6]Sheet1!W$6 -> 1603.907444
A109: =CONCATENATE("Remaining reserves oil&gas (",B109,")") -> Remaining reserves oil&gas (MScm o.e.) | B109: MScm o.e. | C109: calculated | Z109: =Z106+Z108 -> 3939.592372 | AA109: 4029.092127 | AB109: 3804.55293 | AC109: 4055.263019 | AD109: 3956.534244 | AE109: 3947.583212 | AF109: 3660.235215 | AG109: 3624.230426 | AH109: 3417.739607 | AI109: 3166.645846 | AJ109: 3112.736445 | AK109: 3166.532873 | AL109: 3319.199265 | AM109: 3166.624596 | AN109: 2960.27025 | AO109: 3095.422395 | AP109: 2987.676831 | AQ109: 3095.592127 | AR109: 2988.23224
A110: =CONCATENATE("Remaining reserves oil&gas (",B110,")") -> Remaining reserves oil&gas (Mtoe) | B110: Mtoe | C110: calculated | Z110: =Z109/ConversionFactors!$C$5 -> 4689.99092 | AA110: =AA109/ConversionFactors!$C$5 -> 4796.538246 | AB110: =AB109/ConversionFactors!$C$5 -> 4529.229678 | AC110: =AC109/ConversionFactors!$C$5 -> 4827.694071 | AD110: =AD109/ConversionFactors!$C$5 -> 4710.159814 | AE110: =AE109/ConversionFactors!$C$5 -> 4699.503824 | AF110: =AF109/ConversionFactors!$C$5 -> 4357.422875 | AG110: =AG109/ConversionFactors!$C$5 -> 4314.560031 | AH110: =AH109/ConversionFactors!$C$5 -> 4068.737627 | AI110: =AI109/ConversionFactors!$C$5 -> 3769.816483 | AJ110: =AJ109/ConversionFactors!$C$5 -> 3705.638625 | AK110: =AK109/ConversionFactors!$C$5 -> 3769.681991 | AL110: =AL109/ConversionFactors!$C$5 -> 3951.427696 | AM110: =AM109/ConversionFactors!$C$5 -> 3769.791185 | AN110: =AN109/ConversionFactors!$C$5 -> 3524.13125 | AO110: =AO109/ConversionFactors!$C$5 -> 3685.026661 | AP110: =AP109/ConversionFactors!$C$5 -> 3556.758132 | AQ110: =AQ109/ConversionFactors!$C$5 -> 3685.228722 | AR110: =AR109/ConversionFactors!$C$5 -> 3557.419333
A111: =CONCATENATE("Contingent reserves oil&gas (",B111,")") -> Contingent reserves oil&gas (MScm o.e.) | B111: MScm o.e. | C111: calculated | Z111: =Z105+Z107 -> 3005.402496 | AA111: 2673.397675 | AB111: 2538.895072 | AC111: 1696.518713 | AD111: 1525.766401 | AE111: 1453.879339 | AF111: 1534.766982 | AG111: 1418.124324 | AH111: 1220.545609 | AI111: 1642.543311 | AJ111: 1660.563418 | AK111: 1777.749964 | AL111: 1732.928124 | AM111: 1840.81992 | AN111: 1939.492181 | AO111: 1561.997381 | AP111: 1598.008836 | AQ111: 1463.25657 | AR111: 1391.376528
A112: =CONCATENATE("Contingent reserves oil&gas (",B112,")") -> Contingent reserves oil&gas (Mtoe) | B112: Mtoe | C112: calculated | Z112: =Z111/ConversionFactors!$C$5 -> 3577.860114 | AA112: =AA111/ConversionFactors!$C$5 -> 3182.61628 | AB112: =AB111/ConversionFactors!$C$5 -> 3022.494133 | AC112: =AC111/ConversionFactors!$C$5 -> 2019.665134 | AD112: =AD111/ConversionFactors!$C$5 -> 1816.388573 | AE112: =AE111/ConversionFactors!$C$5 -> 1730.808736 | AF112: =AF111/ConversionFactors!$C$5 -> 1827.10355 | AG112: =AG111/ConversionFactors!$C$5 -> 1688.243243 | AH112: =AH111/ConversionFactors!$C$5 -> 1453.030487 | AI112: =AI111/ConversionFactors!$C$5 -> 1955.408703 | AJ112: =AJ111/ConversionFactors!$C$5 -> 1976.861211 | AK112: =AK111/ConversionFactors!$C$5 -> 2116.369005 | AL112: =AL111/ConversionFactors!$C$5 -> 2063.009671 | AM112: =AM111/ConversionFactors!$C$5 -> 2191.452286 | AN112: =AN111/ConversionFactors!$C$5 -> 2308.919263 | AO112: =AO111/ConversionFactors!$C$5 -> 1859.520691 | AP112: =AP111/ConversionFactors!$C$5 -> 1902.391471 | AQ112: =AQ111/ConversionFactors!$C$5 -> 1741.972107 | AR112: =AR111/ConversionFactors!$C$5 -> 1656.400629
A113: =CONCATENATE("All reserves oil&gas (",B113,")") -> All reserves oil&gas (Mtoe) | B113: Mtoe | C113: calculated | Z113: =Z112+Z110 -> 8267.851034 | AA113: =AA112+AA110 -> 7979.154526 | AB113: 7551.723812 | AC113: 6847.359205 | AD113: 6526.548387 | AE113: 6430.312561 | AF113: 6184.526425 | AG113: 6002.803274 | AH113: 5521.768115 | AI113: 5725.225187 | AJ113: 5682.499836 | AK113: 5886.050996 | AL113: 6014.437367 | AM113: 5961.243471 | AN113: 5833.050513 | AO113: 5544.547352 | AP113: 5459.149603 | AQ113: 5427.200829 | AR113: 5213.819962
A114: =CONCATENATE("Sold and delivered oil&gas (",B114,")") -> Sold and delivered oil&gas (Mtoe) | B114: Mtoe | C114: calculated | F114: =UIC!R14 -> 157.410851 | G114: =UIC!S14 -> 202.9963891 | H114: =UIC!T14 -> 248.6753145 | I114: =UIC!U14 -> 300.2238396 | J114: =UIC!V14 -> 358.3349912 | K114: =UIC!W14 -> 419.8925548 | L114: =UIC!X14 -> 485.1914629 | M114: =UIC!Y14 -> 559.3306047 | N114: =UIC!Z14 -> 640.4864996 | O114: =UIC!AA14 -> 739.9202653 | P114: =UIC!AB14 -> 843.8073882 | Q114: =UIC!AC14 -> 959.0075948 | R114: =UIC!AD14 -> 1087.954649 | S114: =UIC!AE14 -> 1223.250505 | T114: =UIC!AF14 -> 1374.739998 | U114: =UIC!AG14 -> 1536.875711 | V114: =UIC!AH14 -> 1723.455249 | W114: =UIC!AI14 -> 1916.332051 | X114: =UIC!AJ14 -> 2103.647743 | Y114: =UIC!AK14 -> 2294.686243 | Z114: =UIC!AL14 -> 2497.095997 | AA114: =UIC!AM14 -> 2704.755459 | AB114: =UIC!AN14 -> 2917.870145 | AC114: =UIC!AO14 -> 3133.284197 | AD114: =UIC!AP14 -> 3350.848028 | AE114: =UIC!AQ14 -> 3562.304297 | AF114: =UIC!AR14 -> 3766.588421 | AG114: =UIC!AS14 -> 3961.846484 | AH114: =UIC!AT14 -> 4161.521914 | AI114: =UIC!AU14 -> 4358.741208 | AJ114: =UIC!AV14 -> 4548.649783 | AK114: =UIC!AW14 -> 4728.244447 | AL114: =UIC!AX14 -> 4913.009378 | AM114: =UIC!AY14 -> 5088.584838 | AN114: =UIC!AZ14 -> 5266.255932 | AO114: =UIC!BA14 -> 5453.669541 | AP114: =UIC!BB14 -> 5643.489174 | AQ114: =UIC!BC14 -> 5838.017103 | AR114: =UIC!BD14 -> 6024.846418 | AS114: =UIC!BE14 -> 6201.569395
A115: =CONCATENATE("Fields (reserves) to be shut down, oil&gas (",B115,")") -> Fields (reserves) to be shut down, oil&gas (Mtoe) | B115: Mtoe | C115: calculated | F115: =F114-F271 -> 157.410851 | G115: 202.9963891 | H115: 248.6753145 | I115: 300.2238396 | J115: 358.3349912 | K115: 419.8925548 | L115: 485.1914629 | M115: 559.3306047 | N115: 640.4864996 | O115: 739.9202653 | P115: 843.8073882 | Q115: 959.0075948 | R115: 1087.954649 | S115: 1223.250505 | T115: 1374.739998 | U115: 1536.875711 | V115: 1723.455249 | W115: 1916.332051 | X115: 2103.647743 | Y115: 2294.686243 | Z115: 2497.095997 | AA115: 2704.755459 | AB115: 2917.870145 | AC115: 3133.284197 | AD115: 3350.848028 | AE115: 3562.304297 | AF115: 3764.127161 | AG115: 3959.081435 | AH115: 4159.142524 | AI115: 4356.48395 | AJ115: 4545.462267 | AK115: 4726.023052 | AL115: 4911.43666 | AM115: 5084.356688 | AN115: 5254.009681 | AO115: 5436.598242 | AP115: 5629.183226 | AQ115: 5830.133352 | AR115: 6018.686418 | AS115: 6195.921743
A116: =CONCATENATE("Sold and delivered oil&gas (",B116,")") -> Sold and delivered oil&gas (MSm3 o.e.) | B116: MSm3 o.e. | F116: =F114/ConversionFactors!$C$5 -> 187.3938702 | G116: =G114/ConversionFactors!$C$5 -> 241.662368 | H116: =H114/ConversionFactors!$C$5 -> 296.042041 | I116: =I114/ConversionFactors!$C$5 -> 357.4093329 | J116: =J114/ConversionFactors!$C$5 -> 426.5892752 | K116: =K114/ConversionFactors!$C$5 -> 499.8720891 | L116: =L114/ConversionFactors!$C$5 -> 577.6088844 | M116: =M114/ConversionFactors!$C$5 -> 665.8697675 | N116: =N114/ConversionFactors!$C$5 -> 762.4839281 | O116: =O114/ConversionFactors!$C$5 -> 880.8574587 | P116: =P114/ConversionFactors!$C$5 -> 1004.532605 | Q116: =Q114/ConversionFactors!$C$5 -> 1141.675708 | R116: =R114/ConversionFactors!$C$5 -> 1295.184106 | S116: =S114/ConversionFactors!$C$5 -> 1456.250602 | T116: =T114/ConversionFactors!$C$5 -> 1636.595236 | U116: =U114/ConversionFactors!$C$5 -> 1829.613942 | V116: =V114/ConversionFactors!$C$5 -> 2051.732439 | W116: =W114/ConversionFactors!$C$5 -> 2281.34768 | X116: =X114/ConversionFactors!$C$5 -> 2504.342551 | Y116: =Y114/ConversionFactors!$C$5 -> 2731.769337 | Z116: =Z114/ConversionFactors!$C$5 -> 2972.733329 | AA116: =AA114/ConversionFactors!$C$5 -> 3219.946975 | AB116: =AB114/ConversionFactors!$C$5 -> 3473.654935 | AC116: =AC114/ConversionFactors!$C$5 -> 3730.100235 | AD116: =AD114/ConversionFactors!$C$5 -> 3989.104795 | AE116: =AE114/ConversionFactors!$C$5 -> 4240.838449 | AF116: =AF114/ConversionFactors!$C$5 -> 4484.033834 | AG116: =AG114/ConversionFactors!$C$5 -> 4716.48391 | AH116: =AH114/ConversionFactors!$C$5 -> 4954.192754 | AI116: =AI114/ConversionFactors!$C$5 -> 5188.977628 | AJ116: =AJ114/ConversionFactors!$C$5 -> 5415.059266 | AK116: =AK114/ConversionFactors!$C$5 -> 5628.862437 | AL116: =AL114/ConversionFactors!$C$5 -> 5848.820688 | AM116: =AM114/ConversionFactors!$C$5 -> 6057.839093 | AN116: =AN114/ConversionFactors!$C$5 -> 6269.3523 | AO116: =AO114/ConversionFactors!$C$5 -> 6492.463739 | AP116: =AP114/ConversionFactors!$C$5 -> 6718.439493 | AQ116: =AQ114/ConversionFactors!$C$5 -> 6950.020361 | AR116: =AR114/ConversionFactors!$C$5 -> 7172.436212 | AS116: =AS114/ConversionFactors!$C$5 -> 7382.820708
A117: Pct change from prev. year in contingent reserves O&G (pct/yr) | AA117: =(AA112-Z112)/Z112*100 -> -11.0469337 | AB117: =(AB112-AA112)/AA112*100 -> -5.031148344 | AC117: -33.17885676 | AD117: -10.06486462 | AE117: -4.711537915 | AF117: 5.563573343 | AG117: -7.600023939 | AH117: -13.93239726 | AI117: 34.57451308 | AJ117: 1.097085634 | AK117: 7.057035306 | AL117: -2.521267957 | AM117: 6.225982161 | AN117: 5.360234312 | AO117: -19.46358969 | AP117: 2.30547473 | AQ117: -8.432510689 | AR117: -4.912333433
A118: Pct change from prev. year in remaining reserves O&G (pct/yr) | AA118: =(AA110-Z110)/Z110*100 -> 2.271802404 | AB118: =(AB110-AA110)/AA110*100 -> -5.572947702 | AC118: 6.589738519 | AD118: -2.434583776 | AE118: -0.2262341456 | AF118: -7.279086513 | AG118: -0.9836741874 | AH118: -5.69750802 | AI118: -7.346778569 | AJ118: -1.702413329 | AK118: 1.728267985 | AL118: 4.821247661 | AM118: -4.596731223 | AN118: -6.516539593 | AO118: 4.565534005 | AP118: -3.480803281 | AQ118: 3.612013686 | AR118: -3.468153512
A119: =CONCATENATE("annual delta ",A112) -> annual delta Contingent reserves oil&gas (Mtoe) | AA119: =AA111-Z111 -> -332.004821 | AB119: =AB111-AA111 -> -134.5026028 | AC119: -842.3763594 | AD119: -170.7523117 | AE119: -71.88706247 | AF119: 80.88764332 | AG119: -116.642658 | AH119: -197.5787144 | AI119: 421.9977013 | AJ119: 18.02010669 | AK119: 117.1865467 | AL119: -44.82184019 | AM119: 107.8917959 | AN119: 98.67226096 | AO119: -377.4948001 | AP119: 36.01145489 | AQ119: -134.7522659 | AR119: -71.88004168
A120: =CONCATENATE("annual delta ",A110) -> annual delta Remaining reserves oil&gas (Mtoe) | AA120: =AA110-Z110 -> 106.5473265 | AB120: =AB110-AA110 -> -267.308568 | AC120: 298.4643927 | AD120: -117.5342566 | AE120: -10.65598981 | AF120: -342.080949 | AG120: -42.86284406 | AH120: -245.8224038 | AI120: -298.921144 | AJ120: -64.17785828 | AK120: 64.043366 | AL120: 181.7457048 | AM120: -181.6365106 | AN120: -245.6599351 | AO120: 160.8954106 | AP120: -128.2685289 | AQ120: 128.4705905 | AR120: -127.8093894
A122: =UIC!$A$23 -> Cumulative resources found (Mtoe) | C122: OD https://www.npd.no/fakta/publikasjoner/rapporter/ressursrapporter/ressursrapport-2020/ Figure 2.1 | F122: =UIC!R$23 -> 5685.93144 | G122: =UIC!S$23 -> 6170.46269 | H122: =UIC!T$23 -> 6419.192687 | I122: =UIC!U$23 -> 8366.605795 | J122: =UIC!V$23 -> 8846.817854 | K122: =UIC!W$23 -> 9546.09358 | L122: =UIC!X$23 -> 9900.847351 | M122: =UIC!Y$23 -> 10088.85491 | N122: =UIC!Z$23 -> 10175.59877 | O122: =UIC!AA$23 -> 10210.69497 | P122: =UIC!AB$23 -> 10294.35894 | Q122: =UIC!AC$23 -> 10549.56335 | R122: =UIC!AD$23 -> 10778.99604 | S122: =UIC!AE$23 -> 10799.74572 | T122: =UIC!AF$23 -> 11062.60639 | U122: =UIC!AG$23 -> 11161.46962 | V122: =UIC!AH$23 -> 11240.80673 | W122: =UIC!AI$23 -> 11868.49775 | X122: =UIC!AJ$23 -> 11984.16804 | Y122: =UIC!AK$23 -> 12005.01797 | Z122: =UIC!AL$23 -> 12172.15526 | AA122: =UIC!AM$23 -> 12217.80769 | AB122: =UIC!AN$23 -> 12232.45697 | AC122: =UIC!AO$23 -> 12426.84656 | AD122: =UIC!AP$23 -> 12440.03827 | AE122: =UIC!AQ$23 -> 12518.20494 | AF122: =UIC!AR$23 -> 12521.11723 | AG122: =UIC!AS$23 -> 12602.56728 | AH122: =UIC!AT$23 -> 12763.84847 | AI122: =UIC!AU$23 -> 12919.52596 | AJ122: =UIC!AV$23 -> 13493.15863 | AK122: =UIC!AW$23 -> 13632.50536 | AL122: =UIC!AX$23 -> 13775.01403 | AM122: =UIC!AY$23 -> 13929.91347 | AN122: =UIC!AZ$23 -> 14053.53408 | AO122: =UIC!BA$23 -> 14077.92739 | AP122: =UIC!BB$23 -> 14147.74079 | AQ122: =UIC!BC$23 -> 14179.89525 | AR122: =UIC!BD$23 -> 14271.60938 | AS122: =UIC!BE$23 -> 14357.84831
A123: =UIC!$A$24 -> Additions to cumulative resources found (Mtoe/yr) | C123: calculated | F123: =UIC!R$24 -> 131.8711127 | G123: =UIC!S$24 -> 484.5312501 | H123: =UIC!T$24 -> 248.7299973 | I123: =UIC!U$24 -> 1947.413108 | J123: =UIC!V$24 -> 480.2120586 | K123: =UIC!W$24 -> 699.2757262 | L123: =UIC!X$24 -> 354.7537709 | M123: =UIC!Y$24 -> 188.0075633 | N123: =UIC!Z$24 -> 86.74385167 | O123: =UIC!AA$24 -> 35.09620326 | P123: =UIC!AB$24 -> 83.66396608 | Q123: =UIC!AC$24 -> 255.2044189 | R123: =UIC!AD$24 -> 229.4326856 | S123: =UIC!AE$24 -> 20.74967833 | T123: =UIC!AF$24 -> 262.860672 | U123: =UIC!AG$24 -> 98.86322577 | V123: =UIC!AH$24 -> 79.33711165 | W123: =UIC!AI$24 -> 627.6910195 | X123: =UIC!AJ$24 -> 115.6702919 | Y123: =UIC!AK$24 -> 20.84993012 | Z123: =UIC!AL$24 -> 167.1372888 | AA123: =UIC!AM$24 -> 45.65243693 | AB123: =UIC!AN$24 -> 14.64927088 | AC123: =UIC!AO$24 -> 194.389599 | AD123: =UIC!AP$24 -> 13.19170962 | AE123: =UIC!AQ$24 -> 78.16666102 | AF123: =UIC!AR$24 -> 2.912299502 | AG123: =UIC!AS$24 -> 81.45004944 | AH123: =UIC!AT$24 -> 161.2811857 | AI123: =UIC!AU$24 -> 155.6774912 | AJ123: =UIC!AV$24 -> 573.6326734 | AK123: =UIC!AW$24 -> 139.346724 | AL123: =UIC!AX$24 -> 142.5086711 | AM123: =UIC!AY$24 -> 154.8994356 | AN123: =UIC!AZ$24 -> 123.6206114 | AO123: =UIC!BA$24 -> 24.39331542 | AP123: =UIC!BB$24 -> 69.81339482 | AQ123: =UIC!BC$24 -> 32.15446044 | AR123: =UIC!BD$24 -> 91.7141369 | AS123: =UIC!BE$24 -> 86.23892404
Z124: =AVERAGE(Z123:AI123) -> 91.45079921 | AJ124: =AVERAGE(AJ123:AS123) -> 143.8322347
A125: Oil & Gas Investments in nominal GNOK/yr | AB125: =[7]Investeringer!E5/1000 -> 54.94 | AC125: =[7]Investeringer!F5/1000 -> 65.218 | AD125: =[7]Investeringer!G5/1000 -> 72.665 | AE125: =[7]Investeringer!H5/1000 -> 90.543 | AF125: =[7]Investeringer!I5/1000 -> 97.014 | AG125: =[7]Investeringer!J5/1000 -> 113.852 | AH125: =[7]Investeringer!K5/1000 -> 129.354 | AI125: =[7]Investeringer!L5/1000 -> 140.519 | AJ125: =[7]Investeringer!M5/1000 -> 131.839 | AK125: =[7]Investeringer!N5/1000 -> 153.241 | AL125: =[7]Investeringer!O5/1000 -> 179.322 | AM125: =[7]Investeringer!P5/1000 -> 218.659 | AN125: =[7]Investeringer!Q5/1000 -> 224.402 | AO125: =[7]Investeringer!R5/1000 -> 201.192 | AP125: =[7]Investeringer!S5/1000 -> 164.492 | AQ125: =[7]Investeringer!T5/1000 -> 148.809 | AR125: =[7]Investeringer!U5/1000 -> 151.831 | AS125: =[7]Investeringer!V5/1000 -> 177.551
A126: =CONCATENATE([8]Sysselsatte!$B$3," (Sum investments)") -> Utvinning av råolje og naturgass (Sum investments) | B126: GNOK/yr | C126: =[8]Sysselsatte!$A$1 -> 07840: Oljevirksomhet, etter år, næring (SN2007) og statistikkvariabel | E126: 1980-2002 SSB 07840 | F126: =[8]Sysselsatte!$I$20/1000 -> 9.965 | G126: =[8]Sysselsatte!$I$21/1000 -> 14.154 | H126: =[8]Sysselsatte!$I$22/1000 -> 13.396 | I126: =[8]Sysselsatte!$I$23/1000 -> 22.015 | J126: =[8]Sysselsatte!$I$24/1000 -> 27.459 | K126: =[8]Sysselsatte!$I$25/1000 -> 31.279 | L126: =[8]Sysselsatte!$I$26/1000 -> 33.032 | M126: =[8]Sysselsatte!$I$27/1000 -> 33.94 | N126: =[8]Sysselsatte!$I$28/1000 -> 29.328 | O126: =[8]Sysselsatte!$I$29/1000 -> 31.501 | P126: =[8]Sysselsatte!$I$30/1000 -> 29.214 | Q126: =[8]Sysselsatte!$I$31/1000 -> 37.699 | R126: =[8]Sysselsatte!$I$32/1000 -> 44.539 | S126: =[8]Sysselsatte!$I$33/1000 -> 50.886 | T126: =[8]Sysselsatte!$I$34/1000 -> 46.035 | U126: =[8]Sysselsatte!$I$35/1000 -> 42.497 | V126: =[8]Sysselsatte!$I$36/1000 -> 41.886 | W126: =[8]Sysselsatte!$I$37/1000 -> 54.327 | X126: =[8]Sysselsatte!$I$38/1000 -> 70.829 | Y126: =[8]Sysselsatte!$I$39/1000 -> 64.403 | Z126: =[8]Sysselsatte!$I$40/1000 -> 52.898 | AA126: =[8]Sysselsatte!$I$41/1000 -> 54.967 | AB126: =SUM(AB128:AB132) -> 53.865 | AC126: =SUM(AC128:AC132) -> 62.322 | AD126: 66.519 | AE126: 80.528 | AF126: 91.718 | AG126: 110.228 | AH126: =SUM(AH128:AH132) -> 127.591 | AI126: 139.991 | AJ126: 131.287 | AK126: 152.772 | AL126: 178.984 | AM126: 215.414 | AN126: 219.864 | AO126: 196.809 | AP126: 163.275 | AQ126: 146.644 | AR126: =SUM(AR128:AR132) -> 149.643 | AS126: 176.836
A127: =CONCATENATE([8]Sysselsatte!$J$3," (Services related to investments)") -> Tjenester tilknyttet utvinning av råolje og naturgass (Services related to investments) | B127: GNOK/yr | C127: =[8]Sysselsatte!$A$1 -> 07840: Oljevirksomhet, etter år, næring (SN2007) og statistikkvariabel | F127: =[8]Sysselsatte!$Q$20/1000 -> 0.215 | G127: =[8]Sysselsatte!$Q$21/1000 -> 0.129 | H127: =[8]Sysselsatte!$Q$22/1000 -> 1.896 | I127: =[8]Sysselsatte!$Q$23/1000 -> 1.812 | J127: =[8]Sysselsatte!$Q$24/1000 -> 1.092 | K127: =[8]Sysselsatte!$Q$25/1000 -> 1.657 | L127: =[8]Sysselsatte!$Q$26/1000 -> 1.757 | M127: =[8]Sysselsatte!$Q$27/1000 -> 0.464 | N127: =[8]Sysselsatte!$Q$28/1000 -> 0.162 | O127: =[8]Sysselsatte!$Q$29/1000 -> 0.175 | P127: =[8]Sysselsatte!$Q$30/1000 -> 2.464 | Q127: =[8]Sysselsatte!$Q$31/1000 -> 1.667 | R127: =[8]Sysselsatte!$Q$32/1000 -> 0.159 | S127: =[8]Sysselsatte!$Q$33/1000 -> -0.044 | T127: =[8]Sysselsatte!$Q$34/1000 -> 0.354 | U127: =[8]Sysselsatte!$Q$35/1000 -> 0.586 | V127: =[8]Sysselsatte!$Q$36/1000 -> 1.198 | W127: =[8]Sysselsatte!$Q$37/1000 -> 0.703 | X127: =[8]Sysselsatte!$Q$38/1000 -> 1.802 | Y127: =[8]Sysselsatte!$Q$39/1000 -> 6.933 | Z127: =[8]Sysselsatte!$Q$40/1000 -> 4.483 | AA127: =[8]Sysselsatte!$Q$41/1000 -> 6.956 | AB127: =[8]Sysselsatte!$Q$42/1000 -> 4.645 | AC127: =[8]Sysselsatte!$Q$43/1000 -> -1.304 | AD127: =[8]Sysselsatte!$Q$44/1000 -> 3.255 | AE127: =[8]Sysselsatte!$Q$45/1000 -> 1.89 | AF127: =[8]Sysselsatte!$Q$46/1000 -> 3.04 | AG127: =[8]Sysselsatte!$Q$47/1000 -> 6.87 | AH127: =[8]Sysselsatte!$Q$48/1000 -> 8.745 | AI127: =[8]Sysselsatte!$Q$49/1000 -> 10.387 | AJ127: =[8]Sysselsatte!$Q$50/1000 -> 0.983 | AK127: =[8]Sysselsatte!$Q$51/1000 -> -1.133 | AL127: =[8]Sysselsatte!$Q$52/1000 -> 10.192 | AM127: =[8]Sysselsatte!$Q$53/1000 -> 4.737 | AN127: =[8]Sysselsatte!$Q$54/1000 -> 4.039 | AO127: =[8]Sysselsatte!$Q$55/1000 -> 4.058 | AP127: =[8]Sysselsatte!$Q$56/1000 -> 0.995 | AQ127: =[8]Sysselsatte!$Q$57/1000 -> 2.015 | AR127: =[8]Sysselsatte!$Q$58/1000 -> 1.306 | AS127: 3.2
A128: Exploration | B128: GNOK/yr | C128: 08050: Antatte og påløpte investeringer. Utvinning av råolje og naturgass, og rørtransport (mill. kr); Leting og konseptstudier | E128: 1985-2002 DN article 200824, pg 24 | K128: 7.406527863 | L128: 6.748285972 | M128: 5.086589662 | N128: 4.771359739 | O128: 5.465085627 | P128: 4.810694712 | Q128: 8.195794642 | R128: 7.213428905 | S128: 5.554758363 | T128: 4.903943354 | U128: 4.922648096 | V128: 5.614723566 | W128: 8.99643097 | X128: 6.327154197 | Y128: 5.0035186 | Z128: 6.36676424 | AA128: 6.386019122 | AB128: =[7]Investeringer!E7/1000 -> 4.476 | AC128: =[7]Investeringer!F7/1000 -> 4.134 | AD128: =[7]Investeringer!G7/1000 -> 4.01 | AE128: =[7]Investeringer!H7/1000 -> 7.537 | AF128: =[7]Investeringer!I7/1000 -> 11.729 | AG128: =[7]Investeringer!J7/1000 -> 20.424 | AH128: =[7]Investeringer!K7/1000 -> 28.134 | AI128: =[7]Investeringer!L7/1000 -> 31.333 | AJ128: =[7]Investeringer!M7/1000 -> 30.043 | AK128: =[7]Investeringer!N7/1000 -> 32.96 | AL128: =[7]Investeringer!O7/1000 -> 32.829 | AM128: =[7]Investeringer!P7/1000 -> 39.546 | AN128: =[7]Investeringer!Q7/1000 -> 40.716 | AO128: =[7]Investeringer!R7/1000 -> 34.451 | AP128: =[7]Investeringer!S7/1000 -> 23.023 | AQ128: =[7]Investeringer!T7/1000 -> 21.799 | AR128: =[7]Investeringer!U7/1000 -> 25.45 | AS128: =[7]Investeringer!V7/1000 -> 27.766
A129: New 'green'-field dev. spending | B129: GNOK/yr | C129: 08050: Antatte og påløpte investeringer. Utvinning av råolje og naturgass, og rørtransport (mill. kr), Feltutbygging | AB129: =[7]Investeringer!E9/1000 -> 17.885 | AC129: =[7]Investeringer!F9/1000 -> 16.773 | AD129: =[7]Investeringer!G9/1000 -> 13.717 | AE129: =[7]Investeringer!H9/1000 -> 19.518 | AF129: =[7]Investeringer!I9/1000 -> 21.316 | AG129: =[7]Investeringer!J9/1000 -> 30.762 | AH129: =[7]Investeringer!K9/1000 -> 35.184 | AI129: =[7]Investeringer!L9/1000 -> 36.581 | AJ129: =[7]Investeringer!M9/1000 -> 30.352 | AK129: =[7]Investeringer!N9/1000 -> 37.475 | AL129: =[7]Investeringer!O9/1000 -> 51.984 | AM129: =[7]Investeringer!P9/1000 -> 63.225 | AN129: =[7]Investeringer!Q9/1000 -> 72.726 | AO129: =[7]Investeringer!R9/1000 -> 59.451 | AP129: =[7]Investeringer!S9/1000 -> 55.214 | AQ129: =[7]Investeringer!T9/1000 -> 52.787 | AR129: =[7]Investeringer!U9/1000 -> 61.963 | AS129: =[7]Investeringer!V9/1000 -> 77.667
A130: Brownfield dev. spending | B130: GNOK/yr | C130: 08050: Antatte og påløpte investeringer. Utvinning av råolje og naturgass, og rørtransport (mill. kr) - Felt i Drift | AB130: =[7]Investeringer!E10/1000 -> 26.975 | AC130: =[7]Investeringer!F10/1000 -> 29.788 | AD130: =[7]Investeringer!G10/1000 -> 31.245 | AE130: =[7]Investeringer!H10/1000 -> 34.395 | AF130: =[7]Investeringer!I10/1000 -> 39.013 | AG130: =[7]Investeringer!J10/1000 -> 46.003 | AH130: =[7]Investeringer!K10/1000 -> 57.617 | AI130: =[7]Investeringer!L10/1000 -> 63.569 | AJ130: =[7]Investeringer!M10/1000 -> 62.235 | AK130: =[7]Investeringer!N10/1000 -> 75.513 | AL130: =[7]Investeringer!O10/1000 -> 89.024 | AM130: =[7]Investeringer!P10/1000 -> 105.096 | AN130: =[7]Investeringer!Q10/1000 -> 90.064 | AO130: =[7]Investeringer!R10/1000 -> 81.026 | AP130: =[7]Investeringer!S10/1000 -> 67.603 | AQ130: =[7]Investeringer!T10/1000 -> 61.921 | AR130: =[7]Investeringer!U10/1000 -> 55.948 | AS130: =[7]Investeringer!V10/1000 -> 65.42
A131: Onshore activities | B131: GNOK/yr | C131: 08050: Antatte og påløpte investeringer. Utvinning av råolje og naturgass, og rørtransport (mill. kr); Landvirksomhet | AB131: =[7]Investeringer!E11/1000 -> 3.589 | AC131: =[7]Investeringer!F11/1000 -> 10.771 | AD131: =[7]Investeringer!G11/1000 -> 16.355 | AE131: =[7]Investeringer!H11/1000 -> 17.014 | AF131: =[7]Investeringer!I11/1000 -> 18.396 | AG131: =[7]Investeringer!J11/1000 -> 11.577 | AH131: =[7]Investeringer!K11/1000 -> 5.267 | AI131: =[7]Investeringer!L11/1000 -> 7.259 | AJ131: =[7]Investeringer!M11/1000 -> 6.788 | AK131: =[7]Investeringer!N11/1000 -> 5.434 | AL131: =[7]Investeringer!O11/1000 -> 4.13 | AM131: =[7]Investeringer!P11/1000 -> 4.743 | AN131: =[7]Investeringer!Q11/1000 -> 8.213 | AO131: =[7]Investeringer!R11/1000 -> 10.851 | AP131: =[7]Investeringer!S11/1000 -> 8.328 | AQ131: =[7]Investeringer!T11/1000 -> 4.92 | AR131: =[7]Investeringer!U11/1000 -> 1.97 | AS131: =[7]Investeringer!V11/1000 -> 2.053
A132: Shutdown&Removal spending | B132: GNOK/yr | C132: 08050: Antatte og påløpte investeringer. Utvinning av råolje og naturgass, og rørtransport (mill. kr); Nedstengning og fjerning | AB132: =[7]Investeringer!E12/1000 -> 0.94 | AC132: =[7]Investeringer!F12/1000 -> 0.856 | AD132: =[7]Investeringer!G12/1000 -> 1.192 | AE132: =[7]Investeringer!H12/1000 -> 2.064 | AF132: =[7]Investeringer!I12/1000 -> 1.264 | AG132: =[7]Investeringer!J12/1000 -> 1.462 | AH132: =[7]Investeringer!K12/1000 -> 1.389 | AI132: =[7]Investeringer!L12/1000 -> 1.249 | AJ132: =[7]Investeringer!M12/1000 -> 1.869 | AK132: =[7]Investeringer!N12/1000 -> 1.39 | AL132: =[7]Investeringer!O12/1000 -> 1.017 | AM132: =[7]Investeringer!P12/1000 -> 2.804 | AN132: =[7]Investeringer!Q12/1000 -> 8.145 | AO132: =[7]Investeringer!R12/1000 -> 11.03 | AP132: =[7]Investeringer!S12/1000 -> 9.107 | AQ132: =[7]Investeringer!T12/1000 -> 5.217 | AR132: =[7]Investeringer!U12/1000 -> 4.312 | AS132: =[7]Investeringer!V12/1000 -> 3.93
A133: Pipelines | B133: GNOK/yr | C133: 08050: Antatte og påløpte investeringer. Utvinning av råolje og naturgass, og rørtransport (mill. kr); Rørtransport | E133: 1980-2002 SSB 07840 | F133: =[8]Sysselsatte!$Y$20/1000 -> 0.154 | G133: =[8]Sysselsatte!$Y$21/1000 -> 0.308 | H133: =[8]Sysselsatte!$Y$22/1000 -> 2.513 | I133: =[8]Sysselsatte!$Y$23/1000 -> 5.013 | J133: =[8]Sysselsatte!$Y$24/1000 -> 4.785 | K133: =[8]Sysselsatte!$Y$25/1000 -> 1.336 | L133: =[8]Sysselsatte!$Y$26/1000 -> 0.458 | M133: =[8]Sysselsatte!$Y$27/1000 -> 0.676 | N133: =[8]Sysselsatte!$Y$28/1000 -> 0.339 | O133: =[8]Sysselsatte!$Y$29/1000 -> 0.471 | P133: =[8]Sysselsatte!$Y$30/1000 -> 2.884 | Q133: =[8]Sysselsatte!$Y$31/1000 -> 5.373 | R133: =[8]Sysselsatte!$Y$32/1000 -> 4.727 | S133: =[8]Sysselsatte!$Y$33/1000 -> 6.693 | T133: =[8]Sysselsatte!$Y$34/1000 -> 8.611 | U133: =[8]Sysselsatte!$Y$35/1000 -> 6.086 | V133: =[8]Sysselsatte!$Y$36/1000 -> 5.992 | W133: =[8]Sysselsatte!$Y$37/1000 -> 8.167 | X133: =[8]Sysselsatte!$Y$38/1000 -> 8.387 | Y133: =[8]Sysselsatte!$Y$39/1000 -> 4.693 | Z133: =[8]Sysselsatte!$Y$40/1000 -> 0.691 | AA133: =[8]Sysselsatte!$Y$41/1000 -> 2.177 | AB133: =[7]Investeringer!E13/1000 -> 1.076 | AC133: =[7]Investeringer!F13/1000 -> 2.896 | AD133: =[7]Investeringer!G13/1000 -> 6.146 | AE133: =[7]Investeringer!H13/1000 -> 10.015 | AF133: =[7]Investeringer!I13/1000 -> 5.297 | AG133: =[7]Investeringer!J13/1000 -> 3.624 | AH133: =[7]Investeringer!K13/1000 -> 1.763 | AI133: =[7]Investeringer!L13/1000 -> 0.528 | AJ133: =[7]Investeringer!M13/1000 -> 0.552 | AK133: =[7]Investeringer!N13/1000 -> 0.47 | AL133: =[7]Investeringer!O13/1000 -> 0.337 | AM133: =[7]Investeringer!P13/1000 -> 3.245 | AN133: =[7]Investeringer!Q13/1000 -> 4.538 | AO133: =[7]Investeringer!R13/1000 -> 4.382 | AP133: =[7]Investeringer!S13/1000 -> 1.217 | AQ133: =[7]Investeringer!T13/1000 -> 2.164 | AR133: =[7]Investeringer!U13/1000 -> 2.188 | AS133: =[7]Investeringer!V13/1000 -> 0.715
A135: Oil and gas production | B135: Mtoe/yr | C135: calculated | F135: =F83 -> 46.46002831 | G135: 45.58565629 | H135: 45.67903882 | I135: 51.54863702 | J135: 58.11127451 | K135: 61.55768768 | L135: 65.2990316 | M135: 74.13927521 | N135: 81.15602903 | O135: 99.43390178 | P135: 103.8872436 | Q135: 115.2003251 | R135: 128.9471762 | S135: 135.2959743 | T135: 151.4896197 | U135: 162.1358448 | V135: 186.579715 | W135: 192.8770052 | X135: 187.3159013 | Y135: 191.0387297 | Z135: 202.4099894 | AA135: 207.659718 | AB135: 213.1149971 | AC135: 215.4143976 | AD135: 217.5642055 | AE135: 211.4566758 | AF135: 204.2845441 | AG135: 195.2632917 | AH135: 199.6565059 | AI135: 197.246713 | AJ135: 189.9321614 | AK135: 179.5983015 | AL135: 184.7680832 | AM135: 175.5744126 | AN135: 177.6709598 | AO135: 187.4140266 | AP135: 189.7944874 | AQ135: 194.6344752 | AR135: 187.4351861 | AS135: 176.7229766
A152: Annual Oil & Gas Investments in 2018-GNOK/yr
A153: =CONCATENATE([9]Data!$A$12," (",B153,")") -> GDP deflator (2015=100) | B153: 2015=100 | C153: https://data.worldbank.org/indicator/NY.GDP.DEFL.ZS?locations=NO | F153: =[9]Data!Y$12 -> 24.11458479 | G153: =[9]Data!Z$12 -> 27.22035622 | H153: =[9]Data!AA$12 -> 30.08119859 | I153: =[9]Data!AB$12 -> 32.17556069 | J153: =[9]Data!AC$12 -> 34.17367589 | K153: =[9]Data!AD$12 -> 35.95001278 | L153: =[9]Data!AE$12 -> 35.7520135 | M153: =[9]Data!AF$12 -> 38.3337882 | N153: =[9]Data!AG$12 -> 40.20007906 | O153: =[9]Data!AH$12 -> 42.45613951 | P153: =[9]Data!AI$12 -> 44.07433378 | Q153: =[9]Data!AJ$12 -> 45.04910667 | R153: =[9]Data!AK$12 -> 44.76092801 | S153: =[9]Data!AL$12 -> 45.78714384 | T153: =[9]Data!AM$12 -> 45.71575457 | U153: =[9]Data!AN$12 -> 47.11532159 | V153: =[9]Data!AO$12 -> 49.12314695 | W153: =[9]Data!AP$12 -> 50.49158223 | X153: =[9]Data!AQ$12 -> 50.14173758 | Y153: =[9]Data!AR$12 -> 53.48417096 | Z153: =[9]Data!AS$12 -> 61.71523867 | AA153: =[9]Data!AT$12 -> 62.74813557 | AB153: =[9]Data!AU$12 -> 61.72388255 | AC153: =[9]Data!AV$12 -> 63.49229486 | AD153: =[9]Data!AW$12 -> 67.19841891 | AE153: =[9]Data!AX$12 -> 73.07990477 | AF153: =[9]Data!AY$12 -> 79.48415135 | AG153: =[9]Data!AZ$12 -> 81.83432589 | AH153: =[9]Data!BA$12 -> 90.34990927 | AI153: =[9]Data!BB$12 -> 85.63913709 | AJ153: =[9]Data!BC$12 -> 90.75026194 | AK153: =[9]Data!BD$12 -> 96.84565669 | AL153: =[9]Data!BE$12 -> 100.0831648 | AM153: =[9]Data!BF$12 -> 102.6404854 | AN153: =[9]Data!BG$12 -> 102.9387627 | AO153: =[9]Data!BH$12 -> 100 | AP153: =[9]Data!BI$12 -> 98.52574617 | AQ153: =[9]Data!BJ$12 -> 102.4186332 | AR153: =[9]Data!BK$12 -> 108.3400607 | AS153: 107.7
A154: =CONCATENATE([9]Data!$A$12," (",B154,")") -> GDP deflator (2018=1) | B154: 2018=1 | C154: calculated | F154: =F153/$AR$153 -> 0.2225823451 | G154: =G153/$AR$153 -> 0.2512492243 | H154: =H153/$AR$153 -> 0.2776553602 | I154: 0.296986733 | J154: 0.315429728 | K154: 0.3318256657 | L154: 0.3299980935 | M154: 0.3538283801 | N154: 0.3710546106 | O154: 0.3918784909 | P154: 0.4068147413 | Q154: 0.4158120861 | R154: 0.4131521406 | S154: 0.4226243139 | T154: 0.4219653769 | U154: 0.4348836549 | V154: 0.4534162766 | W154: 0.4660472025 | X154: 0.4628180678 | Y154: 0.4936693832 | Z154: 0.5696437518 | AA154: 0.5791775927 | AB154: 0.5697235365 | AC154: 0.5860463288 | AD154: 0.6202545803 | AE154: 0.6745418478 | AF154: 0.7336542992 | AG154: 0.755346871 | AH154: 0.833947375 | AI154: 0.7904660243 | AJ154: 0.8376427086 | AK154: 0.8939043972 | AL154: 0.9237872316 | AM154: 0.9473918021 | AN154: 0.9501449603 | AO154: 0.9230196043 | AP154: 0.9094119525 | AQ154: 0.9453440633 | AR154: 1 | AS154: 0.9940921138
A155: =CONCATENATE("Annual investments in O&G extration (",B155,")") -> Annual investments in O&G extration (2018-GNOK/yr) | B155: 2018-GNOK/yr | C155: calculated | F155: =F126/F$154 -> 44.76994792 | G155: 56.33450228 | H155: 48.24686255 | I155: 74.12789042 | J155: 87.05266994 | K155: 94.26335341 | L155: =L126/L$154 -> 100.097548 | M155: 95.92220949 | N155: 79.03957843 | O155: 80.38461087 | P155: 71.81155705 | Q155: 90.66355033 | R155: 107.8029027 | S155: 120.4048095 | T155: 109.0966286 | U155: 97.72038918 | V155: 92.37868636 | W155: 116.5697374 | X155: 153.038537 | Y155: 130.4577561 | Z155: 92.86154695 | AA155: 94.90525997 | AB155: 94.54585698 | AC155: =UIC!AO19 -> 106.3431284 | AD155: =UIC!AP19 -> 107.2446736 | AE155: =UIC!AQ19 -> 119.3802879 | AF155: =UIC!AR19 -> 125.0125571 | AG155: =UIC!AS19 -> 145.930306 | AH155: =UIC!AT19 -> 152.9964645 | AI155: =UIC!AU19 -> 177.0993258 | AJ155: =UIC!AV19 -> 156.7338898 | AK155: =UIC!AW19 -> 170.9041822 | AL155: =UIC!AX19 -> 193.7502424 | AM155: =UIC!AY19 -> 227.3758328 | AN155: =UIC!AZ19 -> 231.4004801 | AO155: =UIC!BA19 -> 213.2240736 | AP155: =UIC!BB19 -> 179.5390962 | AQ155: =UIC!BC19 -> 155.1234156 | AR155: =UIC!BD19 -> 149.643 | AS155: =UIC!BE19 -> 181.8342561
A156: =CONCATENATE(A127," (",B156,")") -> Tjenester tilknyttet utvinning av råolje og naturgass (Services related to investments) (2018-GNOK/yr) | B156: 2018-GNOK/yr | C156: calculated | F156: =F127/F$154 -> 0.9659346516 | G156: =G127/G$154 -> 0.513434421 | H156: 6.828609391 | I156: 6.101282646 | J156: 3.461943828 | K156: 4.993586003 | L156: =L127/L$154 -> 5.324273183 | M156: 1.311370218 | N156: 0.436593416 | O156: 0.4465669948 | P156: 6.056811001 | Q156: 4.009022478 | R156: 0.3848461241 | S156: -0.1041113787 | T156: 0.8389313895 | U156: 1.347486836 | V156: 2.642163641 | W156: 1.508430898 | X156: 3.893538575 | Y156: 14.04381198 | Z156: 7.8698309 | AA156: 12.01013314 | AB156: 8.153077243 | AC156: =AC127/AC$154 -> -2.225080059 | AD156: 5.247845164 | AE156: 2.801901774 | AF156: 4.143640953 | AG156: 9.095159143 | AH156: 10.48627319 | AI156: 13.14034972 | AJ156: 1.173531375 | AK156: -1.267473349 | AL156: 11.03284355 | AM156: 5.000043266 | AN156: 4.250930299 | AO156: 4.396439665 | AP156: 1.094113616 | AQ156: 2.131499079 | AR156: 1.306 | AS156: 3.21901759
A157: =A128 -> Exploration | B157: 2018-GNOK/yr | C157: calculated | E157: avg. | K157: 22.32053945 | L157: =L128/L$154 -> 20.44946957 | M157: 14.3758668 | N157: 12.85891511 | O157: 13.9458678 | P157: 11.82527137 | Q157: 19.7103329 | R157: 17.45949783 | S157: 13.14348981 | T157: 11.62167235 | U157: 11.31945991 | V157: 12.38315397 | W157: 19.30369053 | X157: 13.67093171 | Y157: 10.1353634 | Z157: 11.17674726 | AA157: 11.02601206 | AB157: 7.85644214 | AC157: =AC128/AC$154 -> 7.05404982 | AD157: 6.465087284 | AE157: 11.17350988 | AF157: 15.98709367 | AG157: 27.03923294 | AH157: 33.73594167 | AI157: 39.63864232 | AJ157: 35.86612728 | AK157: 36.87195197 | AL157: 35.53740394 | AM157: 41.74196981 | AN157: 42.85240853 | AO157: 37.32423433 | AP157: 25.31635959 | AQ157: 23.05932924 | AR157: =AR128/AR$154 -> 25.45 | AS157: =AS128/AS$154 -> 27.93101325
A158: New 'green'-field dev. spending | B158: 2018-GNOK/yr | C158: calculated | E158: =AVERAGE(AB158:AR158) -> 46.46732731 | AB158: =AB129/AB$154 -> 31.39241905 | AC158: =AC129/AC$154 -> 28.62060417 | AD158: 22.11511279 | AE158: 28.93519515 | AF158: 29.05455611 | AG158: 40.7256602 | AH158: 42.18971251 | AI158: 46.27776384 | AJ158: 36.23501964 | AK158: 41.92282767 | AL158: 56.27269811 | AM158: 66.73585296 | AN158: 76.54200468 | AO158: 64.40924952 | AP158: 60.713959 | AQ158: 55.83892897 | AR158: 61.963 | AS158: 78.12857473
A159: Brownfield dev. spending | B159: 2018-GNOK/yr | C159: calculated | E159: =AVERAGE(AB159:AR159) -> 71.03309447 | AB159: =AB130/AB$154 -> 47.34752608 | AC159: =AC130/AC$154 -> 50.82874601 | AD159: 50.37447685 | AE159: 50.99016482 | AF159: 53.17627122 | AG159: 60.90314498 | AH159: 69.08949141 | AI159: 80.41964872 | AJ159: 74.29778754 | AK159: 84.47547662 | AL159: 96.36851101 | AM159: 110.9319289 | AN159: 94.78974658 | AO159: 87.78361762 | AP159: 74.33704804 | AQ159: 65.50101958 | AR159: 55.948 | AS159: 65.80879085
A160: Onshore activities | B160: 2018-GNOK/yr | C160: calculated | AB160: =AB158+AB159 -> 78.73994512 | AC160: =AC158+AC159 -> 79.44935018 | AD160: 72.48958964 | AE160: 79.92535997 | AF160: 82.23082733 | AG160: 101.6288052 | AH160: 111.2792039 | AI160: 126.6974126 | AJ160: 110.5328072 | AK160: 126.3983043 | AL160: 152.6412091 | AM160: 177.6677818 | AN160: 171.3317513 | AO160: 152.1928671 | AP160: 135.051007 | AQ160: 121.3399485 | AR160: 117.911 | AS160: 143.9373656
A161: Shutdown&Removal spending | B161: 2018-GNOK/yr | C161: calculated | AB161: =AB131/AB$154 -> 6.299546657 | AC161: =AC131/AC$154 -> 18.37909304 | AD161: 26.36820512 | AE161: 25.22304592 | AF161: 25.07447993 | AG161: 15.32673325 | AH161: 6.315746242 | AI161: 9.183190393 | AJ161: 8.103693771 | AK161: 6.078949849 | AL161: 4.470726439 | AM161: 5.006376443 | AN161: 8.64394418 | AO161: 11.75597999 | AP161: 9.157566027 | AQ161: 5.204454326 | AR161: 1.97 | AS161: 2.065200972
A162: Pipelines | B162: 2018-GNOK/yr | C162: calculated | E162: =AVERAGE(AB162:AR162) -> 3.718246712 | AB162: 1.649923059 | AC162: 1.460635376 | AD162: 1.921791532 | AE162: 3.059854636 | AF162: 1.722882291 | AG162: 1.935534595 | AH162: 1.665572723 | AI162: 1.580080562 | AJ162: 2.231261588 | AK162: 1.55497613 | AL162: 1.100902854 | AM162: 2.959704732 | AN162: 8.572376153 | AO162: 11.9499087 | AP162: 10.01416352 | AQ162: 5.518625655 | AR162: 4.312 | AS162: 3.953355977
A163: =CONCATENATE(A133," (",B163,")") -> Pipelines (2018-GNOK/yr) | B163: 2018-GNOK/yr | C163: calculated | F163: =F133/F$154 -> 0.6918787737 | G163: =G133/G$154 -> 1.225874431 | H163: 9.050788712 | I163: 16.87954189 | J163: 15.16978133 | K163: 4.026210562 | L163: 1.387886806 | M163: 1.910530749 | N163: 0.9136121484 | O163: 1.201903169 | P163: 7.089221967 | Q163: 12.92170232 | R163: 11.44130584 | S163: 15.8367604 | T163: 20.40688756 | U163: 13.99454758 | V163: 13.21522916 | W163: 17.52397602 | X163: 18.12159158 | Y163: 9.506362273 | Z163: 1.213038847 | AA163: 3.758778011 | AB163: 1.888635331 | AC163: 4.941588843 | AD163: 9.908834525 | AE163: 14.84711443 | AF163: 7.220021753 | AG163: 4.79779574 | AH163: 2.114042268 | AI163: 0.6679603977 | AJ163: 0.6589921864 | AK163: 0.5257832957 | AL163: 0.3648026174 | AM163: 3.425193244 | AN163: 4.776113319 | AO163: 4.747461462 | AP163: 1.338227408 | AQ163: 2.289113651 | AR163: 2.188 | AS163: 0.7192492427
A164: =CONCATENATE("Annual investments in O&G fields (green and brown) (",B164,")") -> Annual investments in O&G fields (green and brown) (2018-GNOK/yr) | B164: 2018-GNOK/yr | C164: calculated | AB164: =AB159+AB158 -> 78.73994512 | AC164: =AC159+AC158 -> 79.44935018 | AD164: 72.48958964 | AE164: 79.92535997 | AF164: 82.23082733 | AG164: 101.6288052 | AH164: 111.2792039 | AI164: 126.6974126 | AJ164: 110.5328072 | AK164: 126.3983043 | AL164: 152.6412091 | AM164: 177.6677818 | AN164: 171.3317513 | AO164: 152.1928671 | AP164: 135.051007 | AQ164: 121.3399485 | AR164: 117.911 | AS164: 143.9373656
A165: =A128 -> Exploration
A166: New 'green'-field dev. spending
A167: Brownfield dev. spending
A168: Onshore activities
A169: Shutdown&Removal spending
A170: Pipelines
A172: Total annual investments in O&G extraction, right axis
A178: Distribution of investment
A179: =CONCATENATE("Fraction of investment spent on exploration (",B179,")") -> Fraction of investment spent on exploration (pct) | B179: pct | C179: calculated | K179: =K128/K$126*100 -> 23.67891513 | L179: 20.42954097 | M179: 14.98700549 | N179: 16.2689571 | O179: 17.34892742 | P179: 16.46708671 | Q179: 21.74008499 | R179: 16.19575856 | S179: 10.91608372 | T179: 10.65264115 | U179: 11.58351906 | V179: 13.40477383 | W179: 16.55977869 | X179: 8.932999474 | Y179: 7.769076907 | Z179: 12.0359262 | AA179: 11.61791461 | AB179: 8.309663047 | AC179: 6.633291615 | AD179: 6.028352801 | AE179: 9.359477449 | AF179: 12.78811138 | AG179: 18.52886744 | AH179: 22.0501446 | AI179: 22.38215314 | AJ179: 22.88345381 | AK179: 21.5746341 | AL179: 18.34186296 | AM179: 18.35813828 | AN179: 18.51872066 | AO179: 17.50478891 | AP179: 14.10075027 | AQ179: 14.8652519 | AR179: 17.00714367 | AS179: 15.70155398
A180: =CONCATENATE("Fraction of investment spent on greenfield dev. (",B180,")") -> Fraction of investment spent on greenfield dev. (pct) | B180: pct | C180: calculated | AB180: =AB129/AB$126*100 -> 33.20337882 | AC180: 26.9134495 | AD180: 20.6211759 | AE180: 24.23753229 | AF180: 23.24080333 | AG180: 27.90760968 | AH180: 27.5756127 | AI180: 26.13096556 | AJ180: 23.11881603 | AK180: 24.53001859 | AL180: 29.04393689 | AM180: 29.35046004 | AN180: 33.07772077 | AO180: 30.20746002 | AP180: 33.81656714 | AQ180: 35.99669949 | AR180: 41.40721584 | AS180: 43.92035558
A181: =CONCATENATE("Fraction of investment spent on brownfield dev. (",B181,")") -> Fraction of investment spent on brownfield dev. (pct) | B181: pct | C181: calculated | AB181: =AB130/AB$126*100 -> 50.07890096 | AC181: 47.79692564 | AD181: 46.97154197 | AE181: 42.71185178 | AF181: 42.53581631 | AG181: 41.73440505 | AH181: 45.15757381 | AI181: 45.40934774 | AJ181: 47.40377951 | AK181: 49.42856021 | AL181: 49.73852411 | AM181: 48.78791536 | AN181: 40.96350471 | AO181: 41.1698652 | AP181: 41.40437911 | AQ181: 42.22538938 | AR181: 37.38764927 | AS181: 36.99472958
A182: =CONCATENATE("Fraction of investment spent on Shutdown&Removal (",B182,")") -> Fraction of investment spent on Shutdown&Removal (pct) | B182: pct | C182: calculated | AB182: =AB132/AB$126*100 -> 1.745103499 | AC182: 1.373511761 | AD182: 1.791969212 | AE182: 2.563083648 | AF182: 1.378137334 | AG182: 1.326341764 | AH182: 1.088634778 | AI182: 0.8922002129 | AJ182: 1.423598681 | AK182: 0.9098525908 | AL182: 0.5682072141 | AM182: 1.301679557 | AN182: 3.704562821 | AO182: 5.604418497 | AP182: 5.577706324 | AQ182: 3.557595265 | AR182: 2.881524695 | AS182: 2.222398154
A183: =CONCATENATE("Fraction of investment spent on onshore activities (",B183,")") -> Fraction of investment spent on onshore activities (pct) | B183: pct | C183: calculated | AB183: =AB131/AB$126*100 -> 6.66295368 | AC183: 17.28282148 | AD183: 24.58696012 | AE183: 21.12805484 | AF183: 20.05713164 | AG183: 10.50277606 | AH183: 4.128034109 | AI183: 5.185333343 | AJ183: 5.170351977 | AK183: 3.556934517 | AL183: 2.307468824 | AM183: 2.201806754 | AN183: 3.735491031 | AO183: 5.513467372 | AP183: 5.100597152 | AQ183: 3.355063964 | AR183: 1.316466524 | AS183: 1.1609627
A201: Cumulativ
A202: Cumulative O&G investments (2018-GNOK) | C202: calculated | E202: =UIC!Q20 -> 277.2176333 | F202: =F155+E202 -> 321.9875812 | G202: =G155+F202 -> 378.3220835 | H202: 426.568946 | I202: 500.6968364 | J202: 587.7495064 | K202: 682.0128598 | L202: 782.1104078 | M202: 878.0326172 | N202: 957.0721957 | O202: 1037.456807 | P202: 1109.268364 | Q202: 1199.931914 | R202: 1307.734817 | S202: 1428.139626 | T202: 1537.236255 | U202: 1634.956644 | V202: 1727.33533 | W202: 1843.905068 | X202: 1996.943605 | Y202: 2127.401361 | Z202: 2220.262908 | AA202: =AA155+Z202 -> 2315.168168 | AB202: 2409.714025 | AC202: 2516.057153 | AD202: 2623.301827 | AE202: 2742.682115 | AF202: 2867.694672 | AG202: 3013.624978 | AH202: 3166.621442 | AI202: 3343.720768 | AJ202: 3500.454658 | AK202: 3671.35884 | AL202: 3865.109082 | AM202: 4092.484915 | AN202: 4323.885395 | AO202: 4537.109469 | AP202: 4716.648565 | AQ202: 4871.771981 | AR202: 5021.414981 | AS202: 5203.249237
A203: Cumulative O&G exploration investments (2018-GNOK) | C203: calculated | J203: =UIC!V51 -> 89.86064104 | K203: =UIC!W51 -> 112.1811805 | L203: =UIC!X51 -> 132.6306501 | M203: =UIC!Y51 -> 147.0065169 | N203: =UIC!Z51 -> 159.865432 | O203: =UIC!AA51 -> 173.8112998 | P203: =UIC!AB51 -> 185.6365711 | Q203: =UIC!AC51 -> 205.346904 | R203: =UIC!AD51 -> 222.8064019 | S203: =UIC!AE51 -> 235.9498917 | T203: =UIC!AF51 -> 247.571564 | U203: =UIC!AG51 -> 258.8910239 | V203: =UIC!AH51 -> 271.2741779 | W203: =UIC!AI51 -> 290.5778684 | X203: =UIC!AJ51 -> 304.2488001 | Y203: =UIC!AK51 -> 314.3841636 | Z203: =UIC!AL51 -> 325.5609108 | AA203: =UIC!AM51 -> 336.5869229 | AB203: =UIC!AN51 -> 344.4432192 | AC203: =UIC!AO51 -> 351.497269 | AD203: =UIC!AP51 -> 357.9623563 | AE203: =UIC!AQ51 -> 369.1357274 | AF203: =UIC!AR51 -> 385.1224724 | AG203: =UIC!AS51 -> 412.1617054 | AH203: =UIC!AT51 -> 445.897647 | AI203: =UIC!AU51 -> 485.5362894 | AJ203: =UIC!AV51 -> 521.4024166 | AK203: =UIC!AW51 -> 558.2743686 | AL203: =UIC!AX51 -> 593.8117725 | AM203: =UIC!AY51 -> 635.5537424 | AN203: =UIC!AZ51 -> 678.4061509 | AO203: =UIC!BA51 -> 715.7305749 | AP203: =UIC!BB51 -> 741.0469344 | AQ203: =UIC!BC51 -> 764.1064209 | AR203: =UIC!BD51 -> 789.5564209 | AS203: =UIC!BE51 -> 818.1072248
A204: Cumulative O&G greenfield investments (2018-GNOK) | C204: calculated | AA204: =UIC!AM52 -> 667.8298996 | AB204: =UIC!AN52 -> 699.2217358 | AC204: =UIC!AO52 -> 727.84234 | AD204: =UIC!AP52 -> 749.9574528 | AE204: =UIC!AQ52 -> 778.8922886 | AF204: =UIC!AR52 -> 807.9462112 | AG204: =UIC!AS52 -> 848.6718713 | AH204: =UIC!AT52 -> 890.8615839 | AI204: =UIC!AU52 -> 937.1393477 | AJ204: =UIC!AV52 -> 973.3743673 | AK204: =UIC!AW52 -> 1015.297195 | AL204: =UIC!AX52 -> 1071.569893 | AM204: =UIC!AY52 -> 1138.305746 | AN204: =UIC!AZ52 -> 1214.847751 | AO204: =UIC!BA52 -> 1279.257328 | AP204: =UIC!BB52 -> 1339.971287 | AQ204: =UIC!BC52 -> 1395.810596 | AR204: =UIC!BD52 -> 1457.773596 | AS204: =UIC!BE52 -> 1537.635848
A205: Cumulative O&G brownfield investments (2018-GNOK) | C205: calculated | AA205: =UIC!AM53 -> 1036.250111 | AB205: =UIC!AN53 -> 1083.596758 | AC205: =UIC!AO53 -> 1134.425504 | AD205: =UIC!AP53 -> 1184.799981 | AE205: =UIC!AQ53 -> 1235.789512 | AF205: =UIC!AR53 -> 1288.964624 | AG205: =UIC!AS53 -> 1349.867769 | AH205: =UIC!AT53 -> 1418.95726 | AI205: =UIC!AU53 -> 1499.376909 | AJ205: =UIC!AV53 -> 1573.674696 | AK205: =UIC!AW53 -> 1658.150173 | AL205: =UIC!AX53 -> 1754.518684 | AM205: =UIC!AY53 -> 1865.450613 | AN205: =UIC!AZ53 -> 1960.24036 | AO205: =UIC!BA53 -> 2048.024423 | AP205: =UIC!BB53 -> 2122.361471 | AQ205: =UIC!BC53 -> 2187.862937 | AR205: =UIC!BD53 -> 2243.810937 | AS205: =UIC!BE53 -> 2311.080029
A206: Cumulative O&G shutdown and removal investments (2018-GNOK) | C206: calculated | AA206: =UIC!AM54 -> 51.32609053 | AB206: =UIC!AN54 -> 57.62552024 | AC206: =UIC!AO54 -> 59.08615562 | AD206: =UIC!AP54 -> 61.00794715 | AE206: =UIC!AQ54 -> 64.06776379 | AF206: =UIC!AR54 -> 65.79060851 | AG206: =UIC!AS54 -> 67.7261431 | AH206: =UIC!AT54 -> 69.39171583 | AI206: =UIC!AU54 -> 70.97179639 | AJ206: =UIC!AV54 -> 73.20305797 | AK206: =UIC!AW54 -> 74.7580341 | AL206: =UIC!AX54 -> 75.85893696 | AM206: =UIC!AY54 -> 78.81864169 | AN206: =UIC!AZ54 -> 87.39101784 | AO206: =UIC!BA54 -> 99.34098726 | AP206: =UIC!BB54 -> 109.3551508 | AQ206: =UIC!BC54 -> 114.8738141 | AR206: =UIC!BD54 -> 119.1858141 | AS206: =UIC!BE54 -> 123.2268952
A207: Cumulative O&G onshore activities investments (2018-GNOK) | C207: calculated | AA207: =UIC!AM55 -> 193.1009772 | AB207: =UIC!AN55 -> 194.7508696 | AC207: =UIC!AO55 -> 213.1299627 | AD207: =UIC!AP55 -> 239.4981678 | AE207: =UIC!AQ55 -> 264.7209005 | AF207: =UIC!AR55 -> 289.7948336 | AG207: =UIC!AS55 -> 305.1215669 | AH207: =UIC!AT55 -> 311.4373131 | AI207: =UIC!AU55 -> 320.6205035 | AJ207: =UIC!AV55 -> 328.7241973 | AK207: =UIC!AW55 -> 334.8031471 | AL207: =UIC!AX55 -> 339.2738736 | AM207: =UIC!AY55 -> 344.28025 | AN207: =UIC!AZ55 -> 352.9241942 | AO207: =UIC!BA55 -> 364.6802339 | AP207: =UIC!BB55 -> 373.8378 | AQ207: =UIC!BC55 -> 379.0422898 | AR207: =UIC!BD55 -> 381.0122898 | AS207: =UIC!BE55 -> 383.1233177
A209: Cumulative O&G production (Mtoe) | C209: calculated | E209: =UIC!Q14 -> 110.9509415 | F209: =UIC!R14 -> 157.410851 | G209: =UIC!S14 -> 202.9963891 | H209: =UIC!T14 -> 248.6753145 | I209: =UIC!U14 -> 300.2238396 | J209: =UIC!V14 -> 358.3349912 | K209: =UIC!W14 -> 419.8925548 | L209: =UIC!X14 -> 485.1914629 | M209: =UIC!Y14 -> 559.3306047 | N209: =UIC!Z14 -> 640.4864996 | O209: =UIC!AA14 -> 739.9202653 | P209: =UIC!AB14 -> 843.8073882 | Q209: =UIC!AC14 -> 959.0075948 | R209: =UIC!AD14 -> 1087.954649 | S209: =UIC!AE14 -> 1223.250505 | T209: =UIC!AF14 -> 1374.739998 | U209: =UIC!AG14 -> 1536.875711 | V209: =UIC!AH14 -> 1723.455249 | W209: =UIC!AI14 -> 1916.332051 | X209: =UIC!AJ14 -> 2103.647743 | Y209: =UIC!AK14 -> 2294.686243 | Z209: =UIC!AL14 -> 2497.095997 | AA209: =UIC!AM14 -> 2704.755459 | AB209: =UIC!AN14 -> 2917.870145 | AC209: =UIC!AO14 -> 3133.284197 | AD209: =UIC!AP14 -> 3350.848028 | AE209: =UIC!AQ14 -> 3562.304297 | AF209: =UIC!AR14 -> 3766.588421 | AG209: =UIC!AS14 -> 3961.846484 | AH209: =UIC!AT14 -> 4161.521914 | AI209: =UIC!AU14 -> 4358.741208 | AJ209: =UIC!AV14 -> 4548.649783 | AK209: =UIC!AW14 -> 4728.244447 | AL209: =UIC!AX14 -> 4913.009378 | AM209: =UIC!AY14 -> 5088.584838 | AN209: =UIC!AZ14 -> 5266.255932 | AO209: =UIC!BA14 -> 5453.669541 | AP209: =UIC!BB14 -> 5643.489174 | AQ209: =UIC!BC14 -> 5838.017103 | AR209: =UIC!BD14 -> 6024.846418 | AS209: =UIC!BE14 -> 6201.569395
A211: Ratio of cumulative investment to cumulative production (2018-GNOK/Mtoe) | F211: =F202/F209 -> 2.045523413 | G211: =G202/G209 -> 1.863688734 | H211: 1.715365061 | I211: 1.667745097 | J211: 1.640223592 | K211: 1.624255662 | L211: 1.611962426 | M211: 1.569791837 | N211: 1.494289413 | O211: 1.402119735 | P211: 1.314599018 | Q211: 1.251222535 | R211: 1.202012251 | S211: 1.167495635 | T211: 1.118201447 | U211: 1.06381839 | V211: 1.002251339 | W211: 0.9622054105 | X211: 0.9492766132 | Y211: 0.9270990172 | Z211: 0.889137987 | AA211: 0.855962102 | AB211: 0.8258469037 | AC211: 0.8030095563 | AD211: 0.7828769926 | AE211: 0.7699179761 | AF211: 0.7613506843 | AG211: 0.7606617242 | AH211: 0.7609286958 | AI211: 0.767129914 | AJ211: 0.7695590614 | AK211: 0.7764739919 | AL211: 0.7867090789 | AM211: 0.8042481447 | AN211: 0.8210549299 | AO211: 0.8319369986 | AP211: 0.8357681604 | AQ211: 0.8344908716 | AR211: 0.8334511176 | AS211: 0.8390213679
A227: =CONCATENATE("O&G Production (",B227,")") -> O&G Production (Mtoe/yr) | B227: Mtoe/yr | C227: line 83 | F227: =F83 -> 46.46002831 | G227: 45.58565629 | H227: 45.67903882 | I227: 51.54863702 | J227: 58.11127451 | K227: 61.55768768 | L227: 65.2990316 | M227: 74.13927521 | N227: 81.15602903 | O227: 99.43390178 | P227: 103.8872436 | Q227: 115.2003251 | R227: 128.9471762 | S227: 135.2959743 | T227: 151.4896197 | U227: 162.1358448 | V227: 186.579715 | W227: 192.8770052 | X227: 187.3159013 | Y227: 191.0387297 | Z227: 202.4099894 | AA227: 207.659718 | AB227: 213.1149971 | AC227: 215.4143976 | AD227: 217.5642055 | AE227: 211.4566758 | AF227: 204.2845441 | AG227: 195.2632917 | AH227: 199.6565059 | AI227: 197.246713 | AJ227: 189.9321614 | AK227: 179.5983015 | AL227: 184.7680832 | AM227: 175.5744126 | AN227: 177.6709598 | AO227: 187.4140266 | AP227: 189.7944874 | AQ227: 194.6344752 | AR227: 187.4351861 | AS227: 176.7229766 | AT227: 191.7156536
A228: =CONCATENATE("Net change in ",LEFT(A227,SEARCH(" (",A227))," (",B228,")") -> Net change in O&G Production ((Mtoe/yr)/yr) | B228: (Mtoe/yr)/yr | C228: calculated | G228: =G227-F227 -> -0.8743720196 | H228: =H227-G227 -> 0.09338252535 | I228: =I227-H227 -> 5.869598201 | J228: 6.562637486 | K228: 3.446413178 | L228: 3.741343918 | M228: 8.840243609 | N228: 7.016753823 | O228: 18.27787275 | P228: 4.453341858 | Q228: 11.31308145 | R228: 13.74685111 | S228: 6.348798054 | T228: 16.19364543 | U228: 10.64622512 | V228: 24.44387023 | W228: 6.297290184 | X228: -5.561103918 | Y228: 3.722828409 | Z228: 11.37125972 | AA228: 5.249728556 | AB228: 5.455279129 | AC228: 2.29940052 | AD228: 2.149807841 | AE228: -6.107529721 | AF228: -7.172131641 | AG228: -9.021252461 | AH228: 4.393214224 | AI228: -2.409792851 | AJ228: -7.314551658 | AK228: -10.33385989 | AL228: 5.169781671 | AM228: -9.19367052 | AN228: 2.096547118 | AO228: 9.743066849 | AP228: 2.380460815 | AQ228: 4.839987779 | AR228: -7.199289117 | AS228: -10.71220953 | AT228: 14.99267708
A229: =CONCATENATE("Pct change in ",LEFT(A227,SEARCH(" (",A227))," (",B229,")") -> Pct change in O&G Production (pct/yr) | B229: pct/yr | C229: calculated | G229: =G228/F227*100 -> -1.881987703 | H229: =H228/G227*100 -> 0.2048506766 | I229: 12.84965348 | J229: 12.73096218 | K229: 5.930713458 | L229: 6.077785016 | M229: 13.53809297 | N229: 9.464287051 | O229: 22.52189143 | P229: 4.478695674 | Q229: 10.88976958 | R229: 11.93299681 | S229: 4.923565014 | T229: 11.96905194 | U229: 7.027692816 | V229: 15.07616669 | W229: 3.375120485 | X229: -2.88323842 | Y229: 1.987459892 | Z229: 5.952332146 | AA229: 2.593611397 | AB229: 2.627028093 | AC229: 1.078948244 | AD229: 0.9979870728 | AE229: -2.807230954 | AF229: -3.39177357 | AG229: -4.416023003 | AH229: 2.249892536 | AI229: -1.20696936 | AJ229: -3.708326261 | AK229: -5.440816245 | AL229: 2.878524812 | AM229: -4.975789305 | AN229: 1.194107437 | AO229: 5.483770033 | AP229: 1.270161502 | AQ229: 2.550120314 | AR229: -3.69887663 | AS229: -5.715153996 | AT229: 8.48371693
A230: =CONCATENATE("Cumulative O&G production (sold and delivered) (",B230,")") -> Cumulative O&G production (sold and delivered) (Mtoe) | B230: Mtoe | C230: calculated | F230: =UIC!R14 -> 157.410851 | G230: =UIC!S14 -> 202.9963891 | H230: =UIC!T14 -> 248.6753145 | I230: =UIC!U14 -> 300.2238396 | J230: =UIC!V14 -> 358.3349912 | K230: =UIC!W14 -> 419.8925548 | L230: =UIC!X14 -> 485.1914629 | M230: =UIC!Y14 -> 559.3306047 | N230: =UIC!Z14 -> 640.4864996 | O230: =UIC!AA14 -> 739.9202653 | P230: =UIC!AB14 -> 843.8073882 | Q230: =UIC!AC14 -> 959.0075948 | R230: =UIC!AD14 -> 1087.954649 | S230: =UIC!AE14 -> 1223.250505 | T230: =UIC!AF14 -> 1374.739998 | U230: =UIC!AG14 -> 1536.875711 | V230: =UIC!AH14 -> 1723.455249 | W230: =UIC!AI14 -> 1916.332051 | X230: =UIC!AJ14 -> 2103.647743 | Y230: =UIC!AK14 -> 2294.686243 | Z230: =UIC!AL14 -> 2497.095997 | AA230: =UIC!AM14 -> 2704.755459 | AB230: =UIC!AN14 -> 2917.870145 | AC230: =UIC!AO14 -> 3133.284197 | AD230: =UIC!AP14 -> 3350.848028 | AE230: =UIC!AQ14 -> 3562.304297 | AF230: =UIC!AR14 -> 3766.588421 | AG230: =UIC!AS14 -> 3961.846484 | AH230: =UIC!AT14 -> 4161.521914 | AI230: =UIC!AU14 -> 4358.741208 | AJ230: =UIC!AV14 -> 4548.649783 | AK230: =UIC!AW14 -> 4728.244447 | AL230: =UIC!AX14 -> 4913.009378 | AM230: =UIC!AY14 -> 5088.584838 | AN230: =UIC!AZ14 -> 5266.255932 | AO230: =UIC!BA14 -> 5453.669541 | AP230: =UIC!BB14 -> 5643.489174 | AQ230: =UIC!BC14 -> 5838.017103 | AR230: =UIC!BD14 -> 6024.846418 | AS230: =UIC!BE14 -> 6201.569395 | AT230: =AS230+AT227 -> 6393.285048
A231: Note: the net change in OG production gives me the sum of natural decline rate, greenfield development rate and brownfield development rate. If I assume a linearly rising decline rate from 2% in 1980 to 15% in 2020
A232: I get an estimate of the natural decline rate in Mtoe/yr. The sum of the development rates (green and brown) must then be net change + decline
A233: I then split the invetment in field development into green and brown and averages for the years I have data
A234: Assumed natural decline rate from | B234: 2 | C234: %/yr in 1980 to | D234: 10 | E234: %/yr in 2020
A235: Number of years from 1980 | G235: 1 | H235: =G235+1 -> 2 | I235: =H235+1 -> 3 | J235: 4 | K235: 5 | L235: 6 | M235: 7 | N235: 8 | O235: 9 | P235: 10 | Q235: 11 | R235: 12 | S235: 13 | T235: 14 | U235: 15 | V235: 16 | W235: 17 | X235: 18 | Y235: 19 | Z235: 20 | AA235: 21 | AB235: 22 | AC235: 23 | AD235: 24 | AE235: 25 | AF235: 26 | AG235: 27 | AH235: 28 | AI235: 29 | AJ235: 30 | AK235: 31 | AL235: 32 | AM235: 33 | AN235: 34 | AO235: 35 | AP235: 36 | AQ235: 37 | AR235: 38 | AS235: 39
A236: =CONCATENATE("Natural decline rate (",B236,")") -> Natural decline rate (pct/yr) | B236: pct/yr | F236: =B234 -> 2 | G236: =$F236+(($D$234-$F236)/40*G235) -> 2.2 | H236: 2.4 | I236: 2.6 | J236: 2.8 | K236: 3 | L236: 3.2 | M236: 3.4 | N236: 3.6 | O236: 3.8 | P236: 4 | Q236: 4.2 | R236: 4.4 | S236: 4.6 | T236: 4.8 | U236: 5 | V236: 5.2 | W236: 5.4 | X236: 5.6 | Y236: 5.8 | Z236: 6 | AA236: 6.2 | AB236: 6.4 | AC236: 6.6 | AD236: 6.8 | AE236: 7 | AF236: 7.2 | AG236: 7.4 | AH236: 7.6 | AI236: 7.8 | AJ236: 8 | AK236: 8.2 | AL236: 8.4 | AM236: 8.6 | AN236: 8.8 | AO236: 9 | AP236: 9.2 | AQ236: 9.4 | AR236: 9.6 | AS236: 9.8
A237: =CONCATENATE("Natural decline rate (",B237,")") -> Natural decline rate ((Mtoe/yr)/yr) | B237: (Mtoe/yr)/yr | G237: =F227*F236/100 -> 0.9292005663 | H237: =G227*G236/100 -> 1.002884438 | I237: 1.096296932 | J237: 1.340264563 | K237: 1.627115686 | L237: 1.846730631 | M237: 2.089569011 | N237: 2.520735357 | O237: 2.921617045 | P237: 3.778488268 | Q237: 4.155489746 | R237: 4.838413654 | S237: 5.673675753 | T237: 6.223614816 | U237: 7.271501745 | V237: 8.106792241 | W237: 9.702145182 | X237: 10.41535828 | Y237: 10.48969047 | Z237: 11.08024632 | AA237: 12.14459937 | AB237: 12.87490252 | AC237: 13.63935982 | AD237: 14.21735024 | AE237: 14.79436597 | AF237: 14.8019673 | AG237: 14.70848718 | AH237: 14.44948358 | AI237: 15.17389445 | AJ237: 15.38524362 | AK237: 15.19457291 | AL237: 14.72706072 | AM237: 15.52051899 | AN237: 15.09939949 | AO237: 15.63504446 | AP237: 16.86726239 | AQ237: 17.46109284 | AR237: 18.29564067 | AS237: 17.99377786
A238: =CONCATENATE("Development (brown and green) must have been (",B238,")") -> Development (brown and green) must have been ((Mtoe/yr)/yr) | B238: (Mtoe/yr)/yr | E238: avg. | G238: =G228+G237 -> 0.0548285467 | H238: =H228+H237 -> 1.096266964 | I238: 6.965895133 | J238: 7.902902048 | K238: 5.073528864 | L238: 5.588074549 | M238: 10.92981262 | N238: 9.537489181 | O238: 21.19948979 | P238: 8.231830126 | Q238: 15.4685712 | R238: 18.58526477 | S238: 12.02247381 | T238: 22.41726025 | U238: 17.91772687 | V238: 32.55066247 | W238: 15.99943537 | X238: 4.854254365 | Y238: 14.21251888 | Z238: 22.45150604 | AA238: 17.39432792 | AB238: 18.33018164 | AC238: 15.93876034 | AD238: 16.36715809 | AE238: 8.686836252 | AF238: 7.629835663 | AG238: 5.687234716 | AH238: 18.84269781 | AI238: 12.7641016 | AJ238: 8.070691959 | AK238: 4.86071302 | AL238: 19.89684239 | AM238: 6.326848465 | AN238: 17.19594661 | AO238: 25.37811131 | AP238: 19.24772321 | AQ238: 22.30108062 | AR238: 11.09635155 | AS238: 7.281568337
A239: =CONCATENATE("Green dev as frac of green and brown dev. (",B239,")") -> Green dev as frac of green and brown dev. (fraction) | B239: fraction | E239: =AVERAGE(AB239:AR239) -> 0.3902041433 | AB239: =AB158/(AB158+AB159) -> 0.3986847971 | AC239: 0.3602371083 | AD239: 0.3050798452 | AE239: 0.3620277113 | AF239: 0.3533292446 | AG239: 0.4007294991 | AH239: 0.3791338455 | AI239: 0.3652621068 | AJ239: 0.3278214004 | AK239: 0.33167239 | AL239: 0.3686599342 | AM239: 0.3756215802 | AN239: 0.4467473432 | AO239: 0.4232080696 | AP239: 0.4495631712 | AQ239: 0.4601858632 | AR239: 0.5255065261 | AS239: 0.5427956418
A240: =CONCATENATE("Green dev. (",B240,")") -> Green dev. ((Mtoe/yr)/yr) | B240: (Mtoe/yr)/yr | E240: =AVERAGE(AB240:AR240) -> 5.594579765 | AB240: =AB238*AB239 -> 7.307964751 | AC240: =AC238*AC239 -> 5.741732933 | AD240: 4.993290055 | AE240: 3.144875447 | AF240: 2.695844072 | AG240: 2.279042719 | AH240: 7.14390448 | AI240: 4.662242641 | AJ240: 2.64574554 | AK240: 1.612164304 | AL240: 7.335168607 | AM240: 2.376500818 | AN240: 7.68224346 | AO240: 10.7402215 | AP240: 8.653067485 | AQ240: 10.26264204 | AR240: 5.831205156 | AS240: 3.952403559
A241: =CONCATENATE("Brown dev. (",B241,")") -> Brown dev. ((Mtoe/yr)/yr) | B241: (Mtoe/yr)/yr | E241: =AVERAGE(AB241:AR241) -> 8.441956425 | AB241: =AB238*(1-AB239) -> 11.02221689 | AC241: =AC238*(1-AC239) -> 10.1970274 | AD241: 11.37386803 | AE241: 5.541960805 | AF241: 4.933991591 | AG241: 3.408191997 | AH241: 11.69879333 | AI241: 8.101858956 | AJ241: 5.424946419 | AK241: 3.248548715 | AL241: 12.56167379 | AM241: 3.950347647 | AN241: 9.513703146 | AO241: 14.63788981 | AP241: 10.59465572 | AQ241: 12.03843859 | AR241: 5.265146395 | AS241: 3.329164778
A258: Average unit costs
A259: =CONCATENATE("Average cost per find, (",B259,")") -> Average cost per find, (USD/barrel) | B259: USD/barrel | C259: OD https://www.npd.no/fakta/publikasjoner/rapporter/ressursrapporter/ressursrapport-2020/ Figure 4.19 | Z259: 25 | AA259: 25 | AB259: 25 | AC259: 25 | AD259: 25 | AE259: 25 | AF259: 25 | AG259: 25 | AH259: 25 | AI259: 25 | AJ259: 21 | AK259: 21 | AL259: 21 | AM259: 21 | AN259: 21 | AO259: 21 | AP259: 21 | AQ259: 21 | AR259: 21 | AS259: 21
A260: =CONCATENATE("Average cost per find, (",B260,")") -> Average cost per find, (GNOK/Mtoe) | B260: GNOK/Mtoe | C260: calculated | Z260: =Z259*ConversionFactors!$C$7*Z27/1000 -> 1.613866441 | AA260: =AA259*ConversionFactors!$C$7*AA27/1000 -> 1.647712532 | AB260: =AB259*ConversionFactors!$C$7*AB27/1000 -> 1.461769491 | AC260: =AC259*ConversionFactors!$C$7*AC27/1000 -> 1.297566862 | AD260: =AD259*ConversionFactors!$C$7*AD27/1000 -> 1.234421111 | AE260: =AE259*ConversionFactors!$C$7*AE27/1000 -> 1.18081169 | AF260: =AF259*ConversionFactors!$C$7*AF27/1000 -> 1.175340578 | AG260: =AG259*ConversionFactors!$C$7*AG27/1000 -> 1.074013223 | AH260: =AH259*ConversionFactors!$C$7*AH27/1000 -> 1.033210595 | AI260: =AI259*ConversionFactors!$C$7*AI27/1000 -> 1.151029167 | AJ260: =AJ259*ConversionFactors!$C$7*AJ27/1000 -> 0.9308967547 | AK260: =AK259*ConversionFactors!$C$7*AK27/1000 -> 0.8627642581 | AL260: =AL259*ConversionFactors!$C$7*AL27/1000 -> 0.8960774808 | AM260: =AM259*ConversionFactors!$C$7*AM27/1000 -> 0.9046763185 | AN260: =AN259*ConversionFactors!$C$7*AN27/1000 -> 0.9701561394 | AO260: =AO259*ConversionFactors!$C$7*AO27/1000 -> 1.242458155 | AP260: =AP259*ConversionFactors!$C$7*AP27/1000 -> 1.292471552 | AQ260: =AQ259*ConversionFactors!$C$7*AQ27/1000 -> 1.272339817 | AR260: =AR259*ConversionFactors!$C$7*AR27/1000 -> 1.252150358 | AS260: =AS259*ConversionFactors!$C$7*AS27/1000 -> 1.35493927
A261: =CONCATENATE("Average cost per find, (",B261,")") -> Average cost per find, (2018-GNOK/Mtoe) | B261: 2018-GNOK/Mtoe | C261: calculated | E261: avg. | Z261: =Z260/Z399*$AR399 -> 2.833115321 | AA261: 2.84491761 | AB261: 2.565752329 | AC261: 2.214102876 | AD261: 1.990184595 | AE261: 1.75053882 | AF261: 1.602035971 | AG261: 1.421880814 | AH261: 1.238939801 | AI261: 1.456139963 | AJ261: 1.111329144 | AK261: 0.9651639044 | AL261: 0.9700041852 | AM261: 0.9549125467 | AN261: 1.021061185 | AO261: 1.34607992 | AP261: 1.421216807 | AQ261: 1.345901314 | AR261: 1.252150358 | AS261: 1.328371834
A262: Using average investment flows (per activity) and average development (per activity) I can estimate the average unit cost per activity
A263: =CONCATENATE("Average cost per unit greenfield dev., (",B263,")") -> Average cost per unit greenfield dev., (2018-GNOK/(Mtoe/yr)) | B263: 2018-GNOK/(Mtoe/yr) | C263: calculated | E263: =E158/E240 -> 8.305776174 | Z263: =$E263 -> 8.305776174 | AA263: =$E263 -> 8.305776174 | AB263: 8.305776174 | AC263: 8.305776174 | AD263: 8.305776174 | AE263: 8.305776174 | AF263: 8.305776174 | AG263: 8.305776174 | AH263: 8.305776174 | AI263: 8.305776174 | AJ263: 8.305776174 | AK263: 8.305776174 | AL263: 8.305776174 | AM263: 8.305776174 | AN263: 8.305776174 | AO263: 8.305776174 | AP263: 8.305776174 | AQ263: 8.305776174 | AR263: 8.305776174 | AS263: 8.305776174
A264: =CONCATENATE("Average cost per unit brownfield dev. (",B264,")") -> Average cost per unit brownfield dev. (2018-GNOK/(Mtoe/yr)) | B264: 2018-GNOK/(Mtoe/yr) | C264: calculated | E264: =E159/E241 -> 8.414292954 | Z264: =$E264 -> 8.414292954 | AA264: 8.414292954 | AB264: 8.414292954 | AC264: 8.414292954 | AD264: 8.414292954 | AE264: 8.414292954 | AF264: 8.414292954 | AG264: 8.414292954 | AH264: 8.414292954 | AI264: 8.414292954 | AJ264: 8.414292954 | AK264: 8.414292954 | AL264: 8.414292954 | AM264: 8.414292954 | AN264: 8.414292954 | AO264: 8.414292954 | AP264: 8.414292954 | AQ264: 8.414292954 | AR264: 8.414292954 | AS264: 8.414292954
A265: =CONCATENATE("Average cost per installation, (",B265,")") -> Average cost per installation, (2018-GNOK/(Mtoe/yr)) | B265: 2018-GNOK/(Mtoe/yr) | C265: calculated
A266: =CONCATENATE("Average cost per unit shutdown and removal, (",B266,")") -> Average cost per unit shutdown and removal, (2018-GNOK/(Mtoe/yr)) | B266: 2018-GNOK/(Mtoe/yr) | C266: exogenous | E266: ='SC-1'!$B$365 -> 0.7 | Z266: 0.7 | AA266: 0.7 | AB266: 0.7 | AC266: 0.7 | AD266: 0.7 | AE266: 0.7 | AF266: 0.7 | AG266: 0.7 | AH266: 0.7 | AI266: 0.7 | AJ266: 0.7 | AK266: 0.7 | AL266: 0.7 | AM266: 0.7 | AN266: 0.7 | AO266: 0.7 | AP266: 0.7 | AQ266: 0.7 | AR266: 0.7 | AS266: 0.7
A267: Back-calculated rates, deduced from money spent and cost per activity
A268: =CONCATENATE("Addition to reserves, calculated from OD data (",B268,")") -> Addition to reserves, calculated from OD data (Mtoe/yr) | B268: Mtoe/yr | C268: line 102 | F268: =F123 -> 131.8711127 | G268: 484.5312501 | H268: 248.7299973 | I268: 1947.413108 | J268: 480.2120586 | K268: 699.2757262 | L268: 354.7537709 | M268: 188.0075633 | N268: 86.74385167 | O268: 35.09620326 | P268: 83.66396608 | Q268: 255.2044189 | R268: 229.4326856 | S268: 20.74967833 | T268: 262.860672 | U268: 98.86322577 | V268: 79.33711165 | W268: 627.6910195 | X268: 115.6702919 | Y268: 20.84993012 | Z268: 167.1372888 | AA268: 45.65243693 | AB268: 14.64927088 | AC268: 194.389599 | AD268: 13.19170962 | AE268: 78.16666102 | AF268: 2.912299502 | AG268: 81.45004944 | AH268: 161.2811857 | AI268: 155.6774912 | AJ268: 573.6326734 | AK268: 139.346724 | AL268: 142.5086711 | AM268: 154.8994356 | AN268: 123.6206114 | AO268: 24.39331542 | AP268: 69.81339482 | AQ268: 32.15446044 | AR268: 91.7141369 | AS268: 86.23892404
A269: =CONCATENATE("Greenfield dev., back-calculated (",B269,")") -> Greenfield dev., back-calculated ((Mtoe/yr)/yr) | B269: (Mtoe/yr)/yr | C269: calculated | AF269: =AF158/$E263 -> 3.498114505 | AG269: =AG158/$E263 -> 4.903293725 | AH269: 5.0795629 | AI269: 5.571756676 | AJ269: 4.362628956 | AK269: 5.047430462 | AL269: 6.775128168 | AM269: 8.034872547 | AN269: 9.215514971 | AO269: 7.75475382 | AP269: 7.309847717 | AQ269: 6.72290317 | AR269: 7.460229929 | AS269: 9.406535054
A270: =CONCATENATE("Brownfield dev., IOR and EOR (",B270,")") -> Brownfield dev., IOR and EOR ((Mtoe/yr)/yr) | B270: (Mtoe/yr)/yr | C270: calculated | AF270: =AF159/$E264 -> 6.319755149 | AG270: =AG159/$E264 -> 7.238058541 | AH270: 8.210968145 | AI270: 9.557505207 | AJ270: 8.829950175 | AK270: 10.03952169 | AL270: 11.4529541 | AM270: 13.1837493 | AN270: 11.26532521 | AO270: 10.43267903 | AP270: 8.834616105 | AQ270: 7.78449478 | AR270: 6.649162361 | AS270: 7.821071979
A271: =CONCATENATE("Shutdown&Removal, back-calculated (",B271,")") -> Shutdown&Removal, back-calculated ((Mtoe/yr)/yr) | B271: (Mtoe/yr)/yr | C271: calculated | AF271: =AF162/$E266 -> 2.461260416 | AG271: =AG162/$E266 -> 2.765049421 | AH271: 2.379389604 | AI271: 2.257257946 | AJ271: 3.187516554 | AK271: 2.221394471 | AL271: 1.572718363 | AM271: 4.228149617 | AN271: 12.24625165 | AO271: 17.07129814 | AP271: 14.30594789 | AQ271: 7.883750935 | AR271: 6.16 | AS271: 5.647651396
A272: Reserves
A286: Operating Capacity
A302: Oil and Gas Direct Employment (in producing O&G, SSB table 07840)
A303: =[8]Sysselsatte!$B$3 -> Utvinning av råolje og naturgass | B303: 1000 p | C303: =[8]Sysselsatte!$A$1 -> 07840: Oljevirksomhet, etter år, næring (SN2007) og statistikkvariabel | F303: =[8]Sysselsatte!$B$20/1000 -> 5.034 | G303: =[8]Sysselsatte!$B$21/1000 -> 7.861 | H303: =[8]Sysselsatte!$B$22/1000 -> 8.304 | I303: =[8]Sysselsatte!$B$23/1000 -> 9.218 | J303: =[8]Sysselsatte!$B$24/1000 -> 11.215 | K303: =[8]Sysselsatte!$B$25/1000 -> 12.727 | L303: =[8]Sysselsatte!$B$26/1000 -> 13.421 | M303: =[8]Sysselsatte!$B$27/1000 -> 13.557 | N303: =[8]Sysselsatte!$B$28/1000 -> 14.062 | O303: =[8]Sysselsatte!$B$29/1000 -> 14.566 | P303: =[8]Sysselsatte!$B$30/1000 -> 14.648 | Q303: =[8]Sysselsatte!$B$31/1000 -> 15.725 | R303: =[8]Sysselsatte!$B$32/1000 -> 16.011 | S303: =[8]Sysselsatte!$B$33/1000 -> 17.065 | T303: =[8]Sysselsatte!$B$34/1000 -> 16.605 | U303: =[8]Sysselsatte!$B$35/1000 -> 16.177 | V303: =[8]Sysselsatte!$B$36/1000 -> 15.944 | W303: =[8]Sysselsatte!$B$37/1000 -> 15.695 | X303: =[8]Sysselsatte!$B$38/1000 -> 15.561 | Y303: =[8]Sysselsatte!$B$39/1000 -> 15.707 | Z303: =[8]Sysselsatte!$B$40/1000 -> 13.984 | AA303: =[8]Sysselsatte!$B$41/1000 -> 14.276 | AB303: =[8]Sysselsatte!$B$42/1000 -> 15.832 | AC303: =[8]Sysselsatte!$B$43/1000 -> 15.558 | AD303: =[8]Sysselsatte!$B$44/1000 -> 15.295 | AE303: =[8]Sysselsatte!$B$45/1000 -> 15.63 | AF303: =[8]Sysselsatte!$B$46/1000 -> 17.196 | AG303: =[8]Sysselsatte!$B$47/1000 -> 17.511 | AH303: =[8]Sysselsatte!$B$48/1000 -> 19.957 | AI303: =[8]Sysselsatte!$B$49/1000 -> 21.234 | AJ303: =[8]Sysselsatte!$B$50/1000 -> 21.725 | AK303: =[8]Sysselsatte!$B$51/1000 -> 23.654 | AL303: =[8]Sysselsatte!$B$52/1000 -> 25.228 | AM303: =[8]Sysselsatte!$B$53/1000 -> 26.684 | AN303: =[8]Sysselsatte!$B$54/1000 -> 26.899 | AO303: =[8]Sysselsatte!$B$55/1000 -> 26.075 | AP303: =[8]Sysselsatte!$B$56/1000 -> 24.92 | AQ303: =[8]Sysselsatte!$B$57/1000 -> 23.528 | AR303: =[8]Sysselsatte!$B$58/1000 -> 23.504 | AS303: 23.47 | AV303: 2019 data from SSB 07840 update
A304: =[8]Sysselsatte!$J$3 -> Tjenester tilknyttet utvinning av råolje og naturgass | B304: 1000 p | C304: =[8]Sysselsatte!$A$1 -> 07840: Oljevirksomhet, etter år, næring (SN2007) og statistikkvariabel | F304: =[8]Sysselsatte!$J$20/1000 -> 3.386 | G304: =[8]Sysselsatte!$J$21/1000 -> 4.171 | H304: =[8]Sysselsatte!$J$22/1000 -> 4.577 | I304: =[8]Sysselsatte!$J$23/1000 -> 3.932 | J304: =[8]Sysselsatte!$J$24/1000 -> 4.093 | K304: =[8]Sysselsatte!$J$25/1000 -> 4.833 | L304: =[8]Sysselsatte!$J$26/1000 -> 3.898 | M304: =[8]Sysselsatte!$J$27/1000 -> 3.468 | N304: =[8]Sysselsatte!$J$28/1000 -> 3.44 | O304: =[8]Sysselsatte!$J$29/1000 -> 3.158 | P304: =[8]Sysselsatte!$J$30/1000 -> 3.65 | Q304: =[8]Sysselsatte!$J$31/1000 -> 3.636 | R304: =[8]Sysselsatte!$J$32/1000 -> 3.699 | S304: =[8]Sysselsatte!$J$33/1000 -> 4.173 | T304: =[8]Sysselsatte!$J$34/1000 -> 4.603 | U304: =[8]Sysselsatte!$J$35/1000 -> 4.437 | V304: =[8]Sysselsatte!$J$36/1000 -> 5.517 | W304: =[8]Sysselsatte!$J$37/1000 -> 7.28 | X304: =[8]Sysselsatte!$J$38/1000 -> 8.684 | Y304: =[8]Sysselsatte!$J$39/1000 -> 9.082 | Z304: =[8]Sysselsatte!$J$40/1000 -> 7.743 | AA304: =[8]Sysselsatte!$J$41/1000 -> 9.786 | AB304: =[8]Sysselsatte!$J$42/1000 -> 12.358 | AC304: =[8]Sysselsatte!$J$43/1000 -> 12.569 | AD304: =[8]Sysselsatte!$J$44/1000 -> 12.357 | AE304: =[8]Sysselsatte!$J$45/1000 -> 11.841 | AF304: =[8]Sysselsatte!$J$46/1000 -> 13.468 | AG304: =[8]Sysselsatte!$J$47/1000 -> 15.697 | AH304: =[8]Sysselsatte!$J$48/1000 -> 17.819 | AI304: =[8]Sysselsatte!$J$49/1000 -> 26.523 | AJ304: =[8]Sysselsatte!$J$50/1000 -> 26.828 | AK304: =[8]Sysselsatte!$J$51/1000 -> 30.754 | AL304: =[8]Sysselsatte!$J$52/1000 -> 31.421 | AM304: =[8]Sysselsatte!$J$53/1000 -> 35.676 | AN304: =[8]Sysselsatte!$J$54/1000 -> 36.814 | AO304: =[8]Sysselsatte!$J$55/1000 -> 33.282 | AP304: =[8]Sysselsatte!$J$56/1000 -> 29.182 | AQ304: =[8]Sysselsatte!$J$57/1000 -> 25.485 | AR304: =[8]Sysselsatte!$J$58/1000 -> 29.86 | AS304: 33.15 | AV304: 2020 data from SSB 07840 update
A305: =[8]Sysselsatte!$R$3 -> Rørtransport | B305: 1000 p | C305: =[8]Sysselsatte!$A$1 -> 07840: Oljevirksomhet, etter år, næring (SN2007) og statistikkvariabel | F305: =[8]Sysselsatte!$R$20/1000 -> 0 | G305: =[8]Sysselsatte!$R$21/1000 -> 0 | H305: =[8]Sysselsatte!$R$22/1000 -> 0 | I305: =[8]Sysselsatte!$R$23/1000 -> 0.402 | J305: =[8]Sysselsatte!$R$24/1000 -> 0.402 | K305: =[8]Sysselsatte!$R$25/1000 -> 0.281 | L305: =[8]Sysselsatte!$R$26/1000 -> 0.305 | M305: =[8]Sysselsatte!$R$27/1000 -> 0.266 | N305: =[8]Sysselsatte!$R$28/1000 -> 0.231 | O305: =[8]Sysselsatte!$R$29/1000 -> 0.265 | P305: =[8]Sysselsatte!$R$30/1000 -> 0.32 | Q305: =[8]Sysselsatte!$R$31/1000 -> 0.48 | R305: =[8]Sysselsatte!$R$32/1000 -> 0.678 | S305: =[8]Sysselsatte!$R$33/1000 -> 0.779 | T305: =[8]Sysselsatte!$R$34/1000 -> 0.656 | U305: =[8]Sysselsatte!$R$35/1000 -> 0.527 | V305: =[8]Sysselsatte!$R$36/1000 -> 0.228 | W305: =[8]Sysselsatte!$R$37/1000 -> 0.279 | X305: =[8]Sysselsatte!$R$38/1000 -> 0.276 | Y305: =[8]Sysselsatte!$R$39/1000 -> 0.272 | Z305: =[8]Sysselsatte!$R$40/1000 -> 0.714 | AA305: =[8]Sysselsatte!$R$41/1000 -> 0.612 | AB305: =[8]Sysselsatte!$R$42/1000 -> 0.537 | AC305: =[8]Sysselsatte!$R$43/1000 -> 0.578 | AD305: =[8]Sysselsatte!$R$44/1000 -> 0.589 | AE305: =[8]Sysselsatte!$R$45/1000 -> 0.588 | AF305: =[8]Sysselsatte!$R$46/1000 -> 0.628 | AG305: =[8]Sysselsatte!$R$47/1000 -> 0.684 | AH305: =[8]Sysselsatte!$R$48/1000 -> 0.193 | AI305: =[8]Sysselsatte!$R$49/1000 -> 0.199 | AJ305: =[8]Sysselsatte!$R$50/1000 -> 0.205 | AK305: =[8]Sysselsatte!$R$51/1000 -> 0.215 | AL305: =[8]Sysselsatte!$R$52/1000 -> 0.235 | AM305: =[8]Sysselsatte!$R$53/1000 -> 0.365 | AN305: =[8]Sysselsatte!$R$54/1000 -> 0.359 | AO305: =[8]Sysselsatte!$R$55/1000 -> 0.395 | AP305: =[8]Sysselsatte!$R$56/1000 -> 0.437 | AQ305: =[8]Sysselsatte!$R$57/1000 -> 0.312 | AR305: =[8]Sysselsatte!$R$58/1000 -> 0.31 | AS305: 0.32 | AV305: 2021 data from SSB 07840 update
A306: Oil and gas direct employment | B306: 1000 p | C306: calculated | F306: =F303+F304+F305 -> 8.42 | G306: 12.032 | H306: 12.881 | I306: 13.552 | J306: 15.71 | K306: 17.841 | L306: 17.624 | M306: 17.291 | N306: 17.733 | O306: 17.989 | P306: 18.618 | Q306: 19.841 | R306: 20.388 | S306: 22.017 | T306: 21.864 | U306: 21.141 | V306: 21.689 | W306: 23.254 | X306: 24.521 | Y306: 25.061 | Z306: 22.441 | AA306: 24.674 | AB306: 28.727 | AC306: 28.705 | AD306: 28.241 | AE306: 28.059 | AF306: 31.292 | AG306: 33.892 | AH306: 37.969 | AI306: 47.956 | AJ306: 48.758 | AK306: 54.623 | AL306: 56.884 | AM306: 62.725 | AN306: 64.072 | AO306: 59.752 | AP306: 54.539 | AQ306: 49.325 | AR306: 53.674 | AS306: 56.94
A307: =CONCATENATE("annual diff ",A306) -> annual diff Oil and gas direct employment | B307: Mtoe/yr | C307: calculated | G307: =(G306-F306) -> 3.612 | H307: =(H306-G306) -> 0.849 | I307: 0.671 | J307: 2.158 | K307: 2.131 | L307: -0.217 | M307: -0.333 | N307: 0.442 | O307: 0.256 | P307: 0.629 | Q307: 1.223 | R307: 0.547 | S307: 1.629 | T307: -0.153 | U307: -0.723 | V307: 0.548 | W307: 1.565 | X307: 1.267 | Y307: 0.54 | Z307: -2.62 | AA307: 2.233 | AB307: 4.053 | AC307: -0.022 | AD307: -0.464 | AE307: -0.182 | AF307: 3.233 | AG307: 2.6 | AH307: 4.077 | AI307: 9.987 | AJ307: 0.802 | AK307: 5.865 | AL307: 2.261 | AM307: 5.841 | AN307: 1.347 | AO307: -4.32 | AP307: -5.213 | AQ307: -5.214 | AR307: 4.349 | AS307: 3.266
A315: Oil and Gas indirect Employment (people engaged in exploration, field development and maintenance, Shutdown&Removal)
A316: Indirect employment has been examined by both SSB and Menon Economics as reported here: https://www.norskpetroleum.no/en/economy/employment/
A317: Menon: https://www.menon.no/wp-content/uploads/2019-04-Bakgrunnsnotat-om-olje-og-gassrelaterte-inntekter-og-velferd-i-kommunene.pdf
A318: SSB: https://www.ssb.no/nasjonalregnskap-og-konjunkturer/artikler-og-publikasjoner/_attachment/405655?_ts=16ecb1da138
A319: Oil and gas indirect employment | B319: 1000 p | C319: wild guess of (but informed by https://www.ssb.no/nasjonalregnskap-og-konjunkturer/artikler-og-publikasjoner/ringvirkninger-av-petroleumsnaeringen-i-norsk-okonomi--405658, SSB and Menon above) | D319: 165 | E319: pct | F319: =F306*$D$319/100 -> 13.893 | G319: =G306*$D$319/100 -> 19.8528 | H319: 21.25365 | I319: 22.3608 | J319: 25.9215 | K319: 29.43765 | L319: 29.0796 | M319: 28.53015 | N319: 29.25945 | O319: =O306*$D$319/100 -> 29.68185 | P319: 30.7197 | Q319: 32.73765 | R319: 33.6402 | S319: 36.32805 | T319: 36.0756 | U319: 34.88265 | V319: 35.78685 | W319: 38.3691 | X319: 40.45965 | Y319: 41.35065 | Z319: 37.02765 | AA319: 40.7121 | AB319: 47.39955 | AC319: 47.36325 | AD319: 46.59765 | AE319: 46.29735 | AF319: 51.6318 | AG319: 55.9218 | AH319: 62.64885 | AI319: 79.1274 | AJ319: 80.4507 | AK319: 90.12795 | AL319: 93.8586 | AM319: 103.49625 | AN319: 105.7188 | AO319: 98.5908 | AP319: 89.98935 | AQ319: 81.38625 | AR319: 88.5621 | AS319: 93.951
A320: Total oil and gas employment | B320: 1000 p | C320: calculated | F320: =F319+F306 -> 22.313 | G320: =G319+G306 -> 31.8848 | H320: 34.13465 | I320: 35.9128 | J320: 41.6315 | K320: 47.27865 | L320: 46.7036 | M320: 45.82115 | N320: 46.99245 | O320: 47.67085 | P320: 49.3377 | Q320: 52.57865 | R320: 54.0282 | S320: 58.34505 | T320: 57.9396 | U320: 56.02365 | V320: 57.47585 | W320: 61.6231 | X320: 64.98065 | Y320: 66.41165 | Z320: 59.46865 | AA320: 65.3861 | AB320: 76.12655 | AC320: 76.06825 | AD320: 74.83865 | AE320: 74.35635 | AF320: 82.9238 | AG320: 89.8138 | AH320: 100.61785 | AI320: 127.0834 | AJ320: 129.2087 | AK320: 144.75095 | AL320: 150.7426 | AM320: 166.22125 | AN320: 169.7908 | AO320: 158.3428 | AP320: 144.52835 | AQ320: 130.71125 | AR320: 142.2361 | AS320: 150.891
A322: Labor intensities
A323: Fractional split of investment
A324: =A179 -> Fraction of investment spent on exploration (pct) | C324: row 179 | K324: =K179 -> 23.67891513 | L324: 20.42954097 | M324: 14.98700549 | N324: 16.2689571 | O324: 17.34892742 | P324: 16.46708671 | Q324: 21.74008499 | R324: 16.19575856 | S324: 10.91608372 | T324: 10.65264115 | U324: 11.58351906 | V324: 13.40477383 | W324: 16.55977869 | X324: 8.932999474 | Y324: 7.769076907 | Z324: 12.0359262 | AA324: 11.61791461 | AB324: 8.309663047 | AC324: 6.633291615 | AD324: 6.028352801 | AE324: 9.359477449 | AF324: 12.78811138 | AG324: 18.52886744 | AH324: 22.0501446 | AI324: 22.38215314 | AJ324: 22.88345381 | AK324: 21.5746341 | AL324: 18.34186296 | AM324: 18.35813828 | AN324: 18.51872066 | AO324: 17.50478891 | AP324: 14.10075027 | AQ324: 14.8652519 | AR324: 17.00714367 | AS324: 15.70155398
A325: =A180 -> Fraction of investment spent on greenfield dev. (pct) | C325: row 180 | AB325: =AB180 -> 33.20337882 | AC325: 26.9134495 | AD325: 20.6211759 | AE325: 24.23753229 | AF325: 23.24080333 | AG325: 27.90760968 | AH325: 27.5756127 | AI325: 26.13096556 | AJ325: 23.11881603 | AK325: 24.53001859 | AL325: 29.04393689 | AM325: 29.35046004 | AN325: 33.07772077 | AO325: 30.20746002 | AP325: 33.81656714 | AQ325: 35.99669949 | AR325: 41.40721584 | AS325: 43.92035558
A326: =A181 -> Fraction of investment spent on brownfield dev. (pct) | C326: row 181 | AB326: =AB181 -> 50.07890096 | AC326: 47.79692564 | AD326: 46.97154197 | AE326: 42.71185178 | AF326: 42.53581631 | AG326: 41.73440505 | AH326: 45.15757381 | AI326: 45.40934774 | AJ326: 47.40377951 | AK326: 49.42856021 | AL326: 49.73852411 | AM326: 48.78791536 | AN326: 40.96350471 | AO326: 41.1698652 | AP326: 41.40437911 | AQ326: 42.22538938 | AR326: 37.38764927 | AS326: 36.99472958
A327: =A182 -> Fraction of investment spent on Shutdown&Removal (pct) | C327: row 182 | AB327: =AB182 -> 1.745103499 | AC327: 1.373511761 | AD327: 1.791969212 | AE327: 2.563083648 | AF327: 1.378137334 | AG327: 1.326341764 | AH327: 1.088634778 | AI327: 0.8922002129 | AJ327: 1.423598681 | AK327: 0.9098525908 | AL327: 0.5682072141 | AM327: 1.301679557 | AN327: 3.704562821 | AO327: 5.604418497 | AP327: 5.577706324 | AQ327: 3.557595265 | AR327: 2.881524695 | AS327: 2.222398154
A328: =A183 -> Fraction of investment spent on onshore activities (pct) | C328: row 183 | AB328: =AB183 -> 6.66295368 | AC328: 17.28282148 | AD328: 24.58696012 | AE328: 21.12805484 | AF328: 20.05713164 | AG328: 10.50277606 | AH328: 4.128034109 | AI328: 5.185333343 | AJ328: 5.170351977 | AK328: 3.556934517 | AL328: 2.307468824 | AM328: 2.201806754 | AN328: 3.735491031 | AO328: 5.513467372 | AP328: 5.100597152 | AQ328: 3.355063964 | AR328: 1.316466524 | AS328: 1.1609627
A330: Employment O&G offshore
A332: =CONCATENATE(A306," (",B332,")") -> Oil and gas direct employment (1000 p) | B332: =B319 -> 1000 p | C332: row306 | F332: =F306 -> 8.42 | G332: 12.032 | H332: 12.881 | I332: 13.552 | J332: 15.71 | K332: 17.841 | L332: 17.624 | M332: 17.291 | N332: 17.733 | O332: 17.989 | P332: 18.618 | Q332: 19.841 | R332: 20.388 | S332: 22.017 | T332: 21.864 | U332: 21.141 | V332: 21.689 | W332: 23.254 | X332: 24.521 | Y332: 25.061 | Z332: 22.441 | AA332: 24.674 | AB332: 28.727 | AC332: 28.705 | AD332: 28.241 | AE332: 28.059 | AF332: 31.292 | AG332: 33.892 | AH332: 37.969 | AI332: 47.956 | AJ332: 48.758 | AK332: 54.623 | AL332: 56.884 | AM332: 62.725 | AN332: 64.072 | AO332: 59.752 | AP332: 54.539 | AQ332: 49.325 | AR332: 53.674 | AS332: 56.94
A333: =CONCATENATE(A319," (",B333,")") -> Oil and gas indirect employment (1000 p) | B333: =B320 -> 1000 p | C333: row 319 | F333: =F319 -> 13.893 | G333: =G319 -> 19.8528 | H333: 21.25365 | I333: 22.3608 | J333: 25.9215 | K333: 29.43765 | L333: 29.0796 | M333: 28.53015 | N333: 29.25945 | O333: =O319 -> 29.68185 | P333: 30.7197 | Q333: 32.73765 | R333: 33.6402 | S333: 36.32805 | T333: 36.0756 | U333: 34.88265 | V333: 35.78685 | W333: 38.3691 | X333: 40.45965 | Y333: 41.35065 | Z333: 37.02765 | AA333: 40.7121 | AB333: 47.39955 | AC333: 47.36325 | AD333: 46.59765 | AE333: 46.29735 | AF333: 51.6318 | AG333: 55.9218 | AH333: 62.64885 | AI333: 79.1274 | AJ333: 80.4507 | AK333: 90.12795 | AL333: 93.8586 | AM333: 103.49625 | AN333: 105.7188 | AO333: 98.5908 | AP333: 89.98935 | AQ333: 81.38625 | AR333: 88.5621 | AS333: 93.951
A334: =CONCATENATE(A320," (",B334,")") -> Total oil and gas employment (1000 p) | B334: =B320 -> 1000 p | C334: calculated | F334: =F332+F333 -> 22.313 | G334: =G332+G333 -> 31.8848 | H334: 34.13465 | I334: 35.9128 | J334: 41.6315 | K334: 47.27865 | L334: 46.7036 | M334: 45.82115 | N334: 46.99245 | O334: 47.67085 | P334: 49.3377 | Q334: 52.57865 | R334: 54.0282 | S334: 58.34505 | T334: 57.9396 | U334: 56.02365 | V334: 57.47585 | W334: 61.6231 | X334: 64.98065 | Y334: 66.41165 | Z334: 59.46865 | AA334: 65.3861 | AB334: 76.12655 | AC334: 76.06825 | AD334: 74.83865 | AE334: 74.35635 | AF334: 82.9238 | AG334: 89.8138 | AH334: 100.61785 | AI334: 127.0834 | AJ334: 129.2087 | AK334: 144.75095 | AL334: 150.7426 | AM334: 166.22125 | AN334: 169.7908 | AO334: 158.3428 | AP334: 144.52835 | AQ334: 130.71125 | AR334: 142.2361 | AS334: 150.891
A335: =CONCATENATE("Average wage O&G sector (",B335,")") -> Average wage O&G sector (NOK/p-yr) | B335: NOK/p-yr | C335: 05322: Average annual earnings for full-time employees in oil and gas extraction and mining | Y335: 417200 | Z335: 435600 | AA335: 472200 | AB335: 502900 | AC335: 515200 | AD335: 533500 | AE335: 545600 | AF335: 570000 | AG335: 615300 | AH335: 643100
A336: =CONCATENATE("Average wage O&G sector (",B336,")") -> Average wage O&G sector (NOK/p-mo) | B336: NOK/p-mo | C336: 07593: Average monthly earnings for full-time employees in oil, gas and mining | AH336: 52200 | AI336: 56600 | AJ336: 56000 | AK336: 58800 | AL336: 60200 | AM336: 63800 | AN336: 65400 | AO336: 66800
A337: Average wage O&G sector (NOK/p-mo) | B337: NOK/p-mo | C337: 11419: Monthly earnings, by occupation, sector, industry (SIC2007) | AO337: 70070 | AP337: 71240 | AQ337: 72030 | AR337: 75000 | AS337: 76860
A338: Average wage O&G sector (NOK/p-yr) | B338: NOK/p-yr | C338: calculated | Y338: =Y335 -> 417200 | Z338: =Z335 -> 435600 | AA338: 472200 | AB338: 502900 | AC338: 515200 | AD338: 533500 | AE338: 545600 | AF338: 570000 | AG338: 615300 | AH338: 643100 | AI338: =AI336*12 -> 679200 | AJ338: =AJ336*12 -> 672000 | AK338: 705600 | AL338: 722400 | AM338: 765600 | AN338: 784800 | AO338: 801600 | AP338: =AP337*12 -> 854880 | AQ338: =AQ337*12 -> 864360 | AR338: =AR337*12 -> 900000 | AS338: =AS337*12 -> 922320
A339: =CONCATENATE("Wage bill, O&G, production (",B339,")") -> Wage bill, O&G, production (GNOK/yr) | B339: GNOK/yr | C339: calculated | Y339: =Y338*Y332/1000000 -> 10.4554492 | Z339: 9.7752996 | AA339: 11.6510628 | AB339: =AB338*AB332/1000000 -> 14.4468083 | AC339: 14.788816 | AD339: 15.0665735 | AE339: 15.3089904 | AF339: 17.83644 | AG339: 20.8537476 | AH339: 24.4178639 | AI339: 32.5717152 | AJ339: 32.765376 | AK339: 38.5419888 | AL339: 41.0930016 | AM339: 48.02226 | AN339: 50.2837056 | AO339: 47.8972032 | AP339: 46.62430032 | AQ339: 42.634557 | AR339: =AR338*AR332/1000000 -> 48.3066 | AS339: =AS338*AS332/1000000 -> 52.5169008
A340: =CONCATENATE("Consumer price index (",B340,")") -> Consumer price index (2015=100) | B340: 2015=100 | C340: SSB Table 03014: Consumer Price Index, by consumption group, contents and year | F340: 28.7 | G340: 32.6 | H340: 36.3 | I340: 39.4 | J340: 41.9 | K340: 44.2 | L340: 47.4 | M340: 51.6 | N340: 55 | O340: 57.5 | P340: 59.9 | Q340: 61.9 | R340: 63.4 | S340: 64.8 | T340: 65.7 | U340: 67.3 | V340: 68.2 | W340: 69.9 | X340: 71.5 | Y340: 73.2 | Z340: 75.5 | AA340: 77.7 | AB340: 78.7 | AC340: 80.7 | AD340: 81 | AE340: 82.3 | AF340: 84.2 | AG340: 84.8 | AH340: 88 | AI340: 89.9 | AJ340: 92.1 | AK340: 93.3 | AL340: 93.9 | AM340: 95.9 | AN340: 97.9 | AO340: 100 | AP340: 103.6 | AQ340: 105.5 | AR340: 108.4 | AS340: 110.8
A341: Average wage O&G sector (2018-NOK/p-yr) | B341: 2018-NOK/p-yr | C341: calculated | Y341: =Y338/(Y399/$AR$399) -> 845100.0086 | Z341: 764688.4542 | AA341: 815293.972 | AB341: 882708.8365 | AC341: 879111.3854 | AD341: 860130.6897 | AE341: 808845.2952 | AF341: 776932.6788 | AG341: 814592.6376 | AH341: 771151.7768 | AI341: 859239.9662 | AJ341: 802251.3574 | AK341: 789346.1563 | AL341: 781998.2517 | AM341: 808113.3891 | AN341: 825979.2271 | AO341: 868453.927 | AP341: 940036.0284 | AQ341: 914333.7686 | AR341: 900000 | AS341: 904235.2941
A342: =CONCATENATE("Labor intensity, production (",B342,")") -> Labor intensity, production (p/(Mtoe/yr)) | B342: p/(Mtoe/yr) | C342: calculated | F342: =F332/F83*1000 -> 181.2310562 | G342: 263.9426736 | H342: 281.989296 | I342: 262.8973487 | J342: 270.3434081 | K342: 289.8257012 | L342: 269.896805 | M342: 233.2232133 | N342: 218.5050231 | O342: 180.9141518 | P342: 179.2135333 | Q342: 172.2304167 | R342: 158.1112561 | S342: 162.7321147 | T342: 144.3267205 | U342: 130.3906611 | V342: 116.2452199 | W342: 120.5638794 | X342: 130.9071992 | Y342: 131.1828237 | Z342: 110.869034 | AA342: 118.8193851 | AB342: 134.7957694 | AC342: 133.2547885 | AD342: 129.8053599 | AE342: 132.693848 | AF342: 153.1784998 | AG342: 173.5707706 | AH342: 190.1716141 | AI342: 243.1269919 | AJ342: 256.7127107 | AK342: 304.1398474 | AL342: 307.8670246 | AM342: 357.2559296 | AN342: 360.62168 | AO342: 318.8235218 | AP342: 287.358188 | AQ342: 253.4237573 | AR342: 286.3603207 | AS342: 322.1991906
A343: =CONCATENATE("Labor intensity, exploration (",B343,")") -> Labor intensity, exploration (p/(Mtoe/yr)) | B343: p/(Mtoe/yr) | C343: calculated | AH343: =(AH333*AVERAGE(AF324:AH324)/100)/AVERAGE(AF268:AH268)*1000 -> 136.1073441 | AI343: =(AI333*AVERAGE(AG324:AI324)/100)/AVERAGE(AG268:AI268)*1000 -> 125.0462897 | AJ343: 60.80902685 | AK343: 69.35044183 | AL343: 68.90003128 | AM343: 138.0913456 | AN343: 138.6522288 | AO343: 176.9988001 | AP343: 207.0745547 | AQ343: 299.3074059 | AR343: 210.2146046 | AS343: 212.7301348
A344: =CONCATENATE("Labor intensity, greenfield dev. (",B344,")") -> Labor intensity, greenfield dev. (p/((Mtoe/yr)/yr)) | B344: p/((Mtoe/yr)/yr) | C344: calculated | AF344: =(AF333*AF325/100)/AF269*1000 -> 3430.317984 | AG344: 3182.847805 | AH344: 3401.041502 | AI344: 3710.99365 | AJ344: 4263.312217 | AK344: 4380.130257 | AL344: 4023.574444 | AM344: 3780.598302 | AN344: 3794.619137 | AO344: 3840.454151 | AP344: 4163.056488 | AQ344: 4357.695344 | AR344: =(AR333*AR325/100)/AR269*1000 -> 4915.545532 | AS344: =(AS333*AS325/100)/AS269*1000 -> 4386.696381
A345: =CONCATENATE("Labor intensity, brownfield dev. (",B345,")") -> Labor intensity, brownfield dev. (p/((Mtoe/yr)/yr)) | B345: p/((Mtoe/yr)/yr) | C345: calculated | AF345: =(AF333*AF326/100)/AF270*1000 -> 3475.135838 | AG345: 3224.432407 | AH345: 3445.476853 | AI345: 3759.478593 | AJ345: 4319.013322 | AK345: 4437.357616 | AL345: 4076.143323 | AM345: 3829.992644 | AN345: 3844.196665 | AO345: 3890.630523 | AP345: 4217.44773 | AQ345: 4414.629585 | AR345: =(AR333*AR326/100)/AR270*1000 -> 4979.768208 | AS345: =(AS333*AS326/100)/AS270*1000 -> 4444.009527
A346: =CONCATENATE("Labor intensity, Shutdown&Removal (",B346,")") -> Labor intensity, Shutdown&Removal (p/((Mtoe/yr)/yr)) | B346: p/((Mtoe/yr)/yr) | C346: calculated | AF346: =(AF333*AF327/100)/AF271*1000 -> 289.1027327 | AG346: 268.2462683 | AH346: 286.6353489 | AI346: 312.7577123 | AJ346: 359.3064019 | AK346: 369.1516742 | AL346: 339.1016145 | AM346: 318.6239017 | AN346: 319.8055594 | AO346: 323.6684747 | AP346: 350.8569796 | AQ346: 367.2608889 | AR346: =(AR333*AR327/100)/AR271*1000 -> 414.2757763 | AS346: =(AS333*AS327/100)/AS271*1000 -> 369.7050585
A347: =CONCATENATE("Employees, O&G, exploration (",B347,")") -> Employees, O&G, exploration (1000 p) | B347: 1000 p | C347: calculated | K347: =K333*K324/100 -> 6.97051616 | L347: 5.940828795 | M347: 4.275815146 | N347: 4.760207368 | O347: 5.149482614 | P347: 5.058639636 | Q347: 7.117192935 | R347: 5.448285571 | S347: 3.965600353 | T347: 3.843004211 | U347: 4.040638413 | V347: 4.797146303 | W347: 6.353838046 | X347: 3.614260322 | Y347: 3.2125638 | Z347: 4.456620627 | AA347: 4.729897013 | AB347: 3.938742891 | AC347: 3.141742491 | AD347: 2.809070739 | AE347: 4.333190033 | AF347: 6.602732094 | AG347: 10.36167619 | AH347: 13.81416202 | AI347: 17.71041584 | AJ347: 18.40989877 | AK347: 19.44477543 | AL347: 17.21541579 | AM347: 18.99998469 | AN347: 19.57776926 | AO347: 17.25811142 | AP347: 12.68917351 | AQ347: 12.09827108 | AR347: =AR$333*AR324/100 -> 15.06188358 | AS347: 14.75176698
A348: =CONCATENATE("Employees, O&G, greenfield dev. (",B348,")") -> Employees, O&G, greenfield dev. (1000 p) | B348: 1000 p | C348: calculated | AB348: =AB$333*AB325/100 -> 15.73825214 | AC348: 12.74708437 | AD348: 9.608983374 | AE348: 11.22133515 | AF348: 11.99964509 | AG348: 15.60643767 | AH348: 17.27580424 | AI348: 20.67675364 | AJ348: 18.59924933 | AK348: 22.10840289 | AL348: 27.26023255 | AM348: 30.3766255 | AN348: 34.96936947 | AO348: 29.7817765 | AP348: 30.43130896 | AQ348: 29.29636384 | AR348: 36.6710999 | AS348: 41.26361327
A349: =CONCATENATE("Employees, O&G, brownfield dev. (",B349,")") -> Employees, O&G, brownfield dev. (1000 p) | B349: 1000 p | C349: calculated | AB349: =AB$333*AB326/100 -> 23.7371737 | AC349: 22.63817739 | AD349: 21.88763472 | AE349: 19.77445551 | AF349: 21.9620076 | AG349: 23.33863052 | AH349: 28.29070068 | AI349: 35.93123623 | AJ349: 38.13667244 | AK349: 44.54894803 | AL349: 46.68388239 | AM349: 50.49366285 | AN349: 43.30612562 | AO349: 40.58969946 | AP349: 37.25953164 | AQ349: 34.36566096 | AR349: 33.11128734 | AS349: 34.75691839
A350: =CONCATENATE("Employees, O&G, Shutdown&Removal (",B350,")") -> Employees, O&G, Shutdown&Removal (1000 p) | B350: 1000 p | C350: calculated | AB350: =AB$333*AB327/100 -> 0.8271712058 | AC350: 0.6505398094 | AD350: 0.8350155414 | AE350: 1.186639807 | AF350: 0.711557112 | AG350: 0.7417141888 | AH350: 0.6820171693 | AI350: 0.7059748312 | AJ350: 1.145295104 | AK350: 0.8200314881 | AL350: 0.5333113362 | AM350: 1.347189528 | AN350: 3.916419359 | AO350: 5.525441032 | AP350: 5.019341666 | AQ350: 2.895393376 | AR350: 2.551938782 | AS350: 2.08796529
A352: CO2 offset cost
A353: =CONCATENATE("Offshore Emissions (",B353,")") -> Offshore Emissions (MtCO2e/yr) | B353: MtCO2e/yr | C353: 08940: Greenhouse gases, by source (activity), energy product, pollutant, contents | P353: =[10]UtslippCO2ekvival!I5/1000 -> 8.179 | Q353: =[10]UtslippCO2ekvival!J5/1000 -> 8.062 | R353: =[10]UtslippCO2ekvival!K5/1000 -> 8.651 | S353: =[10]UtslippCO2ekvival!L5/1000 -> 9.171 | T353: =[10]UtslippCO2ekvival!M5/1000 -> 9.957 | U353: =[10]UtslippCO2ekvival!N5/1000 -> 10.135 | V353: =[10]UtslippCO2ekvival!O5/1000 -> 11.024 | W353: =[10]UtslippCO2ekvival!P5/1000 -> 11.524 | X353: =[10]UtslippCO2ekvival!Q5/1000 -> 11.186 | Y353: =[10]UtslippCO2ekvival!R5/1000 -> 11.688 | Z353: =[10]UtslippCO2ekvival!S5/1000 -> 13.032 | AA353: =[10]UtslippCO2ekvival!T5/1000 -> 14.008 | AB353: =[10]UtslippCO2ekvival!U5/1000 -> 13.72 | AC353: =[10]UtslippCO2ekvival!V5/1000 -> 13.876 | AD353: =[10]UtslippCO2ekvival!W5/1000 -> 14.105 | AE353: =[10]UtslippCO2ekvival!X5/1000 -> 14.073 | AF353: =[10]UtslippCO2ekvival!Y5/1000 -> 13.682 | AG353: =[10]UtslippCO2ekvival!Z5/1000 -> 15.138 | AH353: =[10]UtslippCO2ekvival!AA5/1000 -> 14.842 | AI353: =[10]UtslippCO2ekvival!AB5/1000 -> 13.747 | AJ353: =[10]UtslippCO2ekvival!AC5/1000 -> 13.927 | AK353: =[10]UtslippCO2ekvival!AD5/1000 -> 13.623 | AL353: =[10]UtslippCO2ekvival!AE5/1000 -> 13.73 | AM353: =[10]UtslippCO2ekvival!AF5/1000 -> 13.67 | AN353: =[10]UtslippCO2ekvival!AG5/1000 -> 14.367 | AO353: =[10]UtslippCO2ekvival!AH5/1000 -> 14.888 | AP353: =[10]UtslippCO2ekvival!AI5/1000 -> 14.549 | AQ353: =[10]UtslippCO2ekvival!AJ5/1000 -> 14.299 | AR353: =[10]UtslippCO2ekvival!AK5/1000 -> 14.157 | AS353: =[10]UtslippCO2ekvival!AL5/1000 -> 13.919 | AT353: 13.4 | AU353: 13.4 | AV353: 2020 and 2021 data from https://www.norskpetroleum.no/en/environment-and-technology/emissions-to-air/
... 133 more rows

Sheet SC-1
A1: Future Inputs to GTM for Norway model | D1: =hist!A2 -> Last update | E1: =hist!B2 -> ug+pes | F1: on | G1: =hist!C2 -> 12/6 &13/7/21
A3: Population | D3: =RIGHT(CELL("filename",A1),LEN(CELL("filename",A1))-FIND("]",CELL("filename",A1))) -> SC-1 | G3: -0.2 | H3: Future annual RoC, birth rate (pct/yr)
A4: future annual rate of change | G4: 0.7 | H4: Future annual RoC, death rate (pct/yr)
G5: -2 | H5: Future annual RoC, net migration rate (pct/yr)
A6: future manual entries every 5 yrs | T6: =A4 -> future annual rate of change | U6: 2019 | V6: 2020 | W6: =V6+1 -> 2021 | X6: 2022 | Y6: 2023 | Z6: 2024 | AA6: 2025 | AB6: 2026 | AC6: 2027 | AD6: 2028 | AE6: 2029 | AF6: 2030 | AG6: 2031 | AH6: 2032 | AI6: 2033 | AJ6: 2034 | AK6: 2035 | AL6: 2036 | AM6: 2037 | AN6: 2038 | AO6: 2039 | AP6: 2040 | AQ6: 2041 | AR6: 2042 | AS6: 2043 | AT6: 2044 | AU6: 2045 | AV6: 2046 | AW6: 2047 | AX6: 2048 | AY6: 2049 | AZ6: 2050 | BA6: 2051 | BB6: 2052 | BC6: 2053 | BD6: 2054 | BE6: 2055 | BF6: 2056 | BG6: 2057 | BH6: 2058 | BI6: 2059 | BJ6: 2060 | BK6: 2061 | BL6: 2062 | BM6: 2063 | BN6: 2064 | BO6: 2065 | BP6: 2066 | BQ6: 2067 | BR6: 2068 | BS6: 2069 | BT6: 2070
A7: Time | B7: Forecast | F7: 2019 | G7: 2020 | H7: =G7+5 -> 2025 | I7: 2030 | J7: 2035 | K7: 2040 | L7: 2045 | M7: 2050 | N7: =M7+10 -> 2060 | O7: =N7+10 -> 2070 | T7: =A8 -> Birth rate (percent/yr) | U7: =F8 -> 1.022763359 | V7: =U7*(1+$G$3/100) -> 1.020717832 | W7: =V7*(1+$G$3/100) -> 1.018676396 | X7: =W7*(1+$G$3/100) -> 1.016639043 | Y7: =X7*(1+$G$3/100) -> 1.014605765 | Z7: 1.012576554 | AA7: 1.010551401 | AB7: 1.008530298 | AC7: 1.006513237 | AD7: 1.004500211 | AE7: 1.00249121 | AF7: 1.000486228 | AG7: 0.9984852554 | AH7: 0.9964882849 | AI7: 0.9944953084 | AJ7: 0.9925063178 | AK7: 0.9905213051 | AL7: 0.9885402625 | AM7: 0.986563182 | AN7: 0.9845900556 | AO7: 0.9826208755 | AP7: 0.9806556338 | AQ7: 0.9786943225 | AR7: 0.9767369338 | AS7: 0.97478346 | AT7: 0.9728338931 | AU7: 0.9708882253 | AV7: 0.9689464488 | AW7: 0.9670085559 | AX7: 0.9650745388 | AY7: 0.9631443897 | AZ7: 0.961218101 | BA7: 0.9592956647 | BB7: 0.9573770734 | BC7: 0.9554623193 | BD7: 0.9535513946 | BE7: 0.9516442918 | BF7: 0.9497410033 | BG7: 0.9478415213 | BH7: 0.9459458382 | BI7: 0.9440539465 | BJ7: 0.9421658386 | BK7: 0.940281507 | BL7: 0.938400944 | BM7: 0.9365241421 | BN7: 0.9346510938 | BO7: 0.9327817916 | BP7: 0.930916228 | BQ7: 0.9290543956 | BR7: 0.9271962868 | BS7: 0.9253418942 | BT7: 0.9234912104
A8: =hist!A5 -> Birth rate (percent/yr) | B8: 2 | C8: =IF(B8=1,"annual rate of change",IF(B8=2,"manual entries at 5 yr intervals","f(GDPpp)")) -> manual entries at 5 yr intervals | F8: =hist!AS5 -> 1.022763359 | G8: 1 | H8: 0.98 | I8: 1 | J8: 1.01 | K8: 1.03 | L8: 1 | M8: 0.97 | N8: 0.93 | O8: 0.89 | T8: =A9 -> Death rate (percent/yr) | U8: =F9 -> 0.7635582068 | V8: =U8*(1+$G$4/100) -> 0.7689031142 | W8: =V8*(1+$G$4/100) -> 0.774285436 | X8: 0.7797054341 | Y8: 0.7851633721 | Z8: 0.7906595157 | AA8: 0.7961941323 | AB8: 0.8017674912 | AC8: 0.8073798637 | AD8: 0.8130315227 | AE8: 0.8187227434 | AF8: 0.8244538026 | AG8: 0.8302249792 | AH8: 0.8360365541 | AI8: 0.8418888099 | AJ8: 0.8477820316 | AK8: 0.8537165058 | AL8: 0.8596925214 | AM8: 0.865710369 | AN8: 0.8717703416 | AO8: 0.877872734 | AP8: 0.8840178431 | AQ8: 0.890205968 | AR8: 0.8964374098 | AS8: 0.9027124717 | AT8: 0.909031459 | AU8: 0.9153946792 | AV8: 0.921802442 | AW8: 0.928255059 | AX8: 0.9347528445 | AY8: 0.9412961144 | AZ8: 0.9478851872 | BA8: 0.9545203835 | BB8: 0.9612020262 | BC8: 0.9679304404 | BD8: 0.9747059534 | BE8: 0.9815288951 | BF8: 0.9883995974 | BG8: 0.9953183946 | BH8: 1.002285623 | BI8: 1.009301623 | BJ8: 1.016366734 | BK8: 1.023481301 | BL8: 1.03064567 | BM8: 1.03786019 | BN8: 1.045125211 | BO8: 1.052441088 | BP8: 1.059808175 | BQ8: 1.067226833 | BR8: 1.07469742 | BS8: 1.082220302 | BT8: 1.089795845
A9: =hist!A6 -> Death rate (percent/yr) | B9: 2 | C9: =IF(B9=1,"annual rate of change",IF(B9=2,"manual entries at 5 yr intervals","f(GDPpp)")) -> manual entries at 5 yr intervals | F9: =hist!AS6 -> 0.7635582068 | G9: 0.75 | H9: 0.75 | I9: 0.79 | J9: 0.86 | K9: 0.9 | L9: 0.915 | M9: 0.95 | N9: 1.02 | O9: 1.1 | T9: =A10 -> Population (Mp) | U9: =F10 -> 5.328212 | V9: =U9*(1+(U7-U8)/100)+U10/1000000 -> 5.36735 | W9: 5.405686237 | X9: 5.443221297 | Y9: 5.479955687 | Z9: 5.515889847 | AA9: 5.551024148 | AB9: 5.585358902 | AC9: 5.618894362 | AD9: 5.651630731 | AE9: 5.683568164 | AF9: 5.714706773 | AG9: 5.745046633 | AH9: 5.774587785 | AI9: 5.803330241 | AJ9: 5.831273989 | AK9: 5.858418999 | AL9: 5.884765222 | AM9: 5.910312601 | AN9: 5.935061073 | AO9: 5.95901057 | AP9: 5.98216103 | AQ9: 6.004512396 | AR9: 6.02606462 | AS9: 6.046817673 | AT9: 6.066771543 | AU9: 6.085926242 | AV9: 6.10428181 | AW9: 6.12183832 | AX9: 6.138595879 | AY9: 6.154554635 | AZ9: 6.169714781 | BA9: 6.184076555 | BB9: 6.19764025 | BC9: 6.210406214 | BD9: 6.222374853 | BE9: 6.233546638 | BF9: 6.243922107 | BG9: 6.253501866 | BH9: 6.2622866 | BI9: 6.270277068 | BJ9: 6.277474112 | BK9: 6.283878659 | BL9: 6.289491724 | BM9: 6.294314414 | BN9: 6.298347931 | BO9: 6.301593574 | BP9: 6.304052745 | BQ9: 6.305726951 | BR9: 6.306617803 | BS9: 6.306727027 | BT9: 6.30605646
A10: =hist!A7 -> Population (Mp) | F10: =hist!AS7 -> 5.328212 | G10: =hist!AT7 -> 5.37 | T10: =A11 -> Net migration (p/yr) | U10: =F11 -> 25327 | V10: =U10*(1+$G$5/100) -> 24820.46 | W10: =V10*(1+$G$5/100) -> 24324.0508 | X10: 23837.56978 | Y10: 23360.81839 | Z10: 22893.60202 | AA10: 22435.72998 | AB10: 21987.01538 | AC10: 21547.27507 | AD10: 21116.32957 | AE10: 20694.00298 | AF10: 20280.12292 | AG10: 19874.52046 | AH10: 19477.03005 | AI10: 19087.48945 | AJ10: 18705.73966 | AK10: 18331.62487 | AL10: 17964.99237 | AM10: 17605.69252 | AN10: 17253.57867 | AO10: 16908.5071 | AP10: 16570.33696 | AQ10: 16238.93022 | AR10: 15914.15162 | AS10: 15595.86858 | AT10: 15283.95121 | AU10: 14978.27219 | AV10: 14678.70674 | AW10: 14385.13261 | AX10: 14097.42996 | AY10: 13815.48136 | AZ10: 13539.17173 | BA10: 13268.3883 | BB10: 13003.02053 | BC10: 12742.96012 | BD10: 12488.10092 | BE10: 12238.3389 | BF10: 11993.57212 | BG10: 11753.70068 | BH10: 11518.62666 | BI10: 11288.25413 | BJ10: 11062.48905 | BK10: 10841.23927 | BL10: 10624.41448 | BM10: 10411.92619 | BN10: 10203.68767 | BO10: 9999.613915 | BP10: 9799.621637 | BQ10: 9603.629204 | BR10: 9411.55662 | BS10: 9223.325488 | BT10: 9038.858978
A11: =hist!A9 -> Net migration (p/yr) | B11: 2 | C11: =IF(B11=1,"annual rate of change",IF(B11=2,"manual entries at 5 yr intervals","f(GDPpp)")) -> manual entries at 5 yr intervals | F11: =hist!AS9 -> 25327 | G11: 19000 | H11: 13500 | I11: 13000 | J11: 12000 | K11: 11000 | L11: 10500 | M11: 10200 | N11: 10000 | O11: 10000 | T11: =A12 -> Net migration (percent/yr) | U11: =F12 -> 0.475337693 | V11: =V10/(V9*1000000)*100 -> 0.4624341621 | W11: =W10/(W9*1000000)*100 -> 0.449971562 | X11: 0.4379313 | Y11: 0.4262957535 | Z11: 0.415048209 | AA11: 0.4041728045 | AB11: 0.3936544771 | AC11: 0.3834789139 | AD11: 0.3736325067 | AE11: 0.3641023101 | AF11: 0.354876002 | AG11: 0.3459418475 | AH11: 0.3372886651 | AI11: 0.3289057948 | AJ11: 0.320783069 | AK11: 0.3129107849 | AL11: 0.3052796789 | AM11: 0.2978809026 | AN11: 0.2907060005 | AO11: 0.2837468889 | AP11: 0.276995836 | AQ11: 0.2704454442 | AR11: 0.2640886319 | AS11: 0.2579186181 | AT11: 0.2519289066 | AU11: 0.2461132717 | AV11: 0.2404657452 | AW11: 0.2349806032 | AX11: 0.2296523543 | AY11: 0.2244757286 | AZ11: 0.2194456666 | BA11: 0.2145573098 | BB11: 0.2098059907 | BC11: 0.2051872241 | BD11: 0.2006966988 | BE11: 0.1963302692 | BF11: 0.1920839484 | BG11: 0.1879539005 | BH11: 0.1839364341 | BI11: 0.1800279957 | BJ11: 0.176225164 | BK11: 0.1725246437 | BL11: 0.1689232604 | BM11: 0.1654179551 | BN11: 0.1620057796 | BO11: 0.1586838916 | BP11: 0.1554495502 | BQ11: 0.1523001119 | BR11: 0.1492330265 | BS11: 0.1462458332 | BT11: 0.1433361568
A12: =hist!A8 -> Net migration (percent/yr) | F12: =F11/(F10*1000000)*100 -> 0.475337693 | G12: =G11/(G10*1000000)*100 -> 0.3538175047 | T12: =A6 -> future manual entries every 5 yrs
T13: =T7 -> Birth rate (percent/yr) | U13: =F8 -> 1.022763359 | V13: =G8 -> 1 | W13: =$V13+(($AA13-$V13)/5)*1 -> 0.996 | X13: =$V13+(($AA13-$V13)/5)*2 -> 0.992 | Y13: =$V13+(($AA13-$V13)/5)*3 -> 0.988 | Z13: =$V13+(($AA13-$V13)/5)*4 -> 0.984 | AA13: =H8 -> 0.98 | AB13: =$AA13+(($AF13-$AA13)/5)*1 -> 0.984 | AC13: =$AA13+(($AF13-$AA13)/5)*2 -> 0.988 | AD13: =$AA13+(($AF13-$AA13)/5)*3 -> 0.992 | AE13: =$AA13+(($AF13-$AA13)/5)*4 -> 0.996 | AF13: =I8 -> 1 | AG13: =$AF13+(($AK13-$AF13)/5)*1 -> 1.002 | AH13: =$AF13+(($AK13-$AF13)/5)*2 -> 1.004 | AI13: =$AF13+(($AK13-$AF13)/5)*3 -> 1.006 | AJ13: =$AF13+(($AK13-$AF13)/5)*4 -> 1.008 | AK13: =J8 -> 1.01 | AL13: =$AK13+(($AP13-$AK13)/5)*1 -> 1.014 | AM13: =$AK13+(($AP13-$AK13)/5)*2 -> 1.018 | AN13: =$AK13+(($AP13-$AK13)/5)*3 -> 1.022 | AO13: =$AK13+(($AP13-$AK13)/5)*4 -> 1.026 | AP13: =K8 -> 1.03 | AQ13: =$AP13+(($AU13-$AP13)/5)*1 -> 1.024 | AR13: =$AP13+(($AU13-$AP13)/5)*2 -> 1.018 | AS13: =$AP13+(($AU13-$AP13)/5)*3 -> 1.012 | AT13: =$AP13+(($AU13-$AP13)/5)*4 -> 1.006 | AU13: =L8 -> 1 | AV13: =$AU13+(($AZ13-$AU13)/5)*1 -> 0.994 | AW13: =$AU13+(($AZ13-$AU13)/5)*2 -> 0.988 | AX13: =$AU13+(($AZ13-$AU13)/5)*3 -> 0.982 | AY13: =$AU13+(($AZ13-$AU13)/5)*4 -> 0.976 | AZ13: =M8 -> 0.97 | BA13: =$AZ13+(($BJ13-$AZ13)/10)*1 -> 0.966 | BB13: =$AZ13+(($BJ13-$AZ13)/10)*2 -> 0.962 | BC13: =$AZ13+(($BJ13-$AZ13)/10)*3 -> 0.958 | BD13: =$AZ13+(($BJ13-$AZ13)/10)*4 -> 0.954 | BE13: =$AZ13+(($BJ13-$AZ13)/10)*5 -> 0.95 | BF13: =$AZ13+(($BJ13-$AZ13)/10)*6 -> 0.946 | BG13: =$AZ13+(($BJ13-$AZ13)/10)*7 -> 0.942 | BH13: =$AZ13+(($BJ13-$AZ13)/10)*8 -> 0.938 | BI13: =$AZ13+(($BJ13-$AZ13)/10)*9 -> 0.934 | BJ13: =N8 -> 0.93 | BK13: =$BJ13+(($BT13-$BJ13)/10)*1 -> 0.926 | BL13: =$BJ13+(($BT13-$BJ13)/10)*2 -> 0.922 | BM13: =$BJ13+(($BT13-$BJ13)/10)*3 -> 0.918 | BN13: =$BJ13+(($BT13-$BJ13)/10)*4 -> 0.914 | BO13: =$BJ13+(($BT13-$BJ13)/10)*5 -> 0.91 | BP13: =$BJ13+(($BT13-$BJ13)/10)*6 -> 0.906 | BQ13: =$BJ13+(($BT13-$BJ13)/10)*7 -> 0.902 | BR13: =$BJ13+(($BT13-$BJ13)/10)*8 -> 0.898 | BS13: =$BJ13+(($BT13-$BJ13)/10)*9 -> 0.894 | BT13: =O8 -> 0.89
T14: =T8 -> Death rate (percent/yr) | U14: =F9 -> 0.7635582068 | V14: =G9 -> 0.75 | W14: =$V14+(($AA14-$V14)/5)*1 -> 0.75 | X14: =$V14+(($AA14-$V14)/5)*2 -> 0.75 | Y14: =$V14+(($AA14-$V14)/5)*3 -> 0.75 | Z14: =$V14+(($AA14-$V14)/5)*4 -> 0.75 | AA14: =H9 -> 0.75 | AB14: =$AA14+(($AF14-$AA14)/5)*1 -> 0.758 | AC14: =$AA14+(($AF14-$AA14)/5)*2 -> 0.766 | AD14: =$AA14+(($AF14-$AA14)/5)*3 -> 0.774 | AE14: =$AA14+(($AF14-$AA14)/5)*4 -> 0.782 | AF14: =I9 -> 0.79 | AG14: =$AF14+(($AK14-$AF14)/5)*1 -> 0.804 | AH14: =$AF14+(($AK14-$AF14)/5)*2 -> 0.818 | AI14: =$AF14+(($AK14-$AF14)/5)*3 -> 0.832 | AJ14: =$AF14+(($AK14-$AF14)/5)*4 -> 0.846 | AK14: =J9 -> 0.86 | AL14: =$AK14+(($AP14-$AK14)/5)*1 -> 0.868 | AM14: =$AK14+(($AP14-$AK14)/5)*2 -> 0.876 | AN14: =$AK14+(($AP14-$AK14)/5)*3 -> 0.884 | AO14: =$AK14+(($AP14-$AK14)/5)*4 -> 0.892 | AP14: =K9 -> 0.9 | AQ14: =$AP14+(($AU14-$AP14)/5)*1 -> 0.903 | AR14: =$AP14+(($AU14-$AP14)/5)*2 -> 0.906 | AS14: =$AP14+(($AU14-$AP14)/5)*3 -> 0.909 | AT14: =$AP14+(($AU14-$AP14)/5)*4 -> 0.912 | AU14: =L9 -> 0.915 | AV14: =$AU14+(($AZ14-$AU14)/5)*1 -> 0.922 | AW14: =$AU14+(($AZ14-$AU14)/5)*2 -> 0.929 | AX14: =$AU14+(($AZ14-$AU14)/5)*3 -> 0.936 | AY14: =$AU14+(($AZ14-$AU14)/5)*4 -> 0.943 | AZ14: =M9 -> 0.95 | BA14: =$AZ14+(($BJ14-$AZ14)/10)*1 -> 0.957 | BB14: =$AZ14+(($BJ14-$AZ14)/10)*2 -> 0.964 | BC14: =$AZ14+(($BJ14-$AZ14)/10)*3 -> 0.971 | BD14: =$AZ14+(($BJ14-$AZ14)/10)*4 -> 0.978 | BE14: =$AZ14+(($BJ14-$AZ14)/10)*5 -> 0.985 | BF14: =$AZ14+(($BJ14-$AZ14)/10)*6 -> 0.992 | BG14: =$AZ14+(($BJ14-$AZ14)/10)*7 -> 0.999 | BH14: =$AZ14+(($BJ14-$AZ14)/10)*8 -> 1.006 | BI14: =$AZ14+(($BJ14-$AZ14)/10)*9 -> 1.013 | BJ14: =N9 -> 1.02 | BK14: =$BJ14+(($BT14-$BJ14)/10)*1 -> 1.028 | BL14: =$BJ14+(($BT14-$BJ14)/10)*2 -> 1.036 | BM14: =$BJ14+(($BT14-$BJ14)/10)*3 -> 1.044 | BN14: =$BJ14+(($BT14-$BJ14)/10)*4 -> 1.052 | BO14: =$BJ14+(($BT14-$BJ14)/10)*5 -> 1.06 | BP14: =$BJ14+(($BT14-$BJ14)/10)*6 -> 1.068 | BQ14: =$BJ14+(($BT14-$BJ14)/10)*7 -> 1.076 | BR14: =$BJ14+(($BT14-$BJ14)/10)*8 -> 1.084 | BS14: =$BJ14+(($BT14-$BJ14)/10)*9 -> 1.092 | BT14: =O9 -> 1.1
T15: =T9 -> Population (Mp) | U15: =F10 -> 5.328212 | V15: =U15*(1+(U13-U14)/100)+U16/1000000 -> 5.36735 | W15: 5.399768375 | X15: 5.430951805 | Y15: 5.460894709 | Z15: 5.489591638 | AA15: 5.517037282 | AB15: 5.543226468 | AC15: 5.56915416 | AD15: 5.594817682 | AE15: 5.620214385 | AF15: 5.645341644 | AG15: 5.670196861 | AH15: 5.694223851 | AI15: 5.717415107 | AJ15: 5.739763409 | AK15: 5.761261826 | AL15: 5.781903719 | AM15: 5.802145298 | AN15: 5.821984345 | AO15: 5.841418683 | AP15: 5.860446184 | AQ15: 5.879064764 | AR15: 5.897078432 | AS15: 5.91448316 | AT15: 5.931275078 | AU15: 5.947450477 | AV15: 5.963005809 | AW15: 5.977739174 | AX15: 5.99164604 | AY15: 6.004722197 | AZ15: 6.016963755 | BA15: 6.028367148 | BB15: 6.039089701 | BC15: 6.049128919 | BD15: 6.058482532 | BE15: 6.067148497 | BF15: 6.075124995 | BG15: 6.082410437 | BH15: 6.089003463 | BI15: 6.094902941 | BJ15: 6.100107968 | BK15: 6.10461787 | BL15: 6.10839116 | BM15: 6.111427594 | BN15: 6.113727195 | BO15: 6.115290252 | BP15: 6.116117317 | BQ15: 6.116209207 | BR15: 6.115567003 | BS15: 6.114192048 | BT15: 6.112085948
T16: =T10 -> Net migration (p/yr) | U16: =F11 -> 25327 | V16: =G11 -> 19000 | W16: =$V16+(($AA16-$V16)/5)*1 -> 17900 | X16: =$V16+(($AA16-$V16)/5)*2 -> 16800 | Y16: =$V16+(($AA16-$V16)/5)*3 -> 15700 | Z16: =$V16+(($AA16-$V16)/5)*4 -> 14600 | AA16: =H11 -> 13500 | AB16: =$AA16+(($AF16-$AA16)/5)*1 -> 13400 | AC16: =$AA16+(($AF16-$AA16)/5)*2 -> 13300 | AD16: =$AA16+(($AF16-$AA16)/5)*3 -> 13200 | AE16: =$AA16+(($AF16-$AA16)/5)*4 -> 13100 | AF16: =I11 -> 13000 | AG16: =$AF16+(($AK16-$AF16)/5)*1 -> 12800 | AH16: =$AF16+(($AK16-$AF16)/5)*2 -> 12600 | AI16: =$AF16+(($AK16-$AF16)/5)*3 -> 12400 | AJ16: =$AF16+(($AK16-$AF16)/5)*4 -> 12200 | AK16: =J11 -> 12000 | AL16: =$AK16+(($AP16-$AK16)/5)*1 -> 11800 | AM16: =$AK16+(($AP16-$AK16)/5)*2 -> 11600 | AN16: =$AK16+(($AP16-$AK16)/5)*3 -> 11400 | AO16: =$AK16+(($AP16-$AK16)/5)*4 -> 11200 | AP16: =K11 -> 11000 | AQ16: =$AP16+(($AU16-$AP16)/5)*1 -> 10900 | AR16: =$AP16+(($AU16-$AP16)/5)*2 -> 10800 | AS16: =$AP16+(($AU16-$AP16)/5)*3 -> 10700 | AT16: =$AP16+(($AU16-$AP16)/5)*4 -> 10600 | AU16: =L11 -> 10500 | AV16: =$AU16+(($AZ16-$AU16)/5)*1 -> 10440 | AW16: =$AU16+(($AZ16-$AU16)/5)*2 -> 10380 | AX16: =$AU16+(($AZ16-$AU16)/5)*3 -> 10320 | AY16: =$AU16+(($AZ16-$AU16)/5)*4 -> 10260 | AZ16: =M11 -> 10200 | BA16: =$AZ16+(($BJ16-$AZ16)/10)*1 -> 10180 | BB16: =$AZ16+(($BJ16-$AZ16)/10)*2 -> 10160 | BC16: =$AZ16+(($BJ16-$AZ16)/10)*3 -> 10140 | BD16: =$AZ16+(($BJ16-$AZ16)/10)*4 -> 10120 | BE16: =$AZ16+(($BJ16-$AZ16)/10)*5 -> 10100 | BF16: =$AZ16+(($BJ16-$AZ16)/10)*6 -> 10080 | BG16: =$AZ16+(($BJ16-$AZ16)/10)*7 -> 10060 | BH16: =$AZ16+(($BJ16-$AZ16)/10)*8 -> 10040 | BI16: =$AZ16+(($BJ16-$AZ16)/10)*9 -> 10020 | BJ16: =N11 -> 10000 | BK16: =$BJ16+(($BT16-$BJ16)/10)*1 -> 10000 | BL16: =$BJ16+(($BT16-$BJ16)/10)*2 -> 10000 | BM16: =$BJ16+(($BT16-$BJ16)/10)*3 -> 10000 | BN16: =$BJ16+(($BT16-$BJ16)/10)*4 -> 10000 | BO16: =$BJ16+(($BT16-$BJ16)/10)*5 -> 10000 | BP16: =$BJ16+(($BT16-$BJ16)/10)*6 -> 10000 | BQ16: =$BJ16+(($BT16-$BJ16)/10)*7 -> 10000 | BR16: =$BJ16+(($BT16-$BJ16)/10)*8 -> 10000 | BS16: =$BJ16+(($BT16-$BJ16)/10)*9 -> 10000 | BT16: =O11 -> 10000
T17: =T11 -> Net migration (percent/yr) | U17: =F12 -> 0.475337693 | V17: =V16/(V15*1000000)*100 -> 0.3539921935 | W17: =W16/(W15*1000000)*100 -> 0.3314957005 | X17: 0.3093380424 | Y17: 0.2874986763 | Z17: 0.2659578519 | AA17: 0.244696552 | AB17: 0.2417364702 | AC17: 0.2388154398 | AD17: 0.235932621 | AE17: 0.2330871939 | AF17: 0.2302783573 | AG17: 0.2257417214 | AH17: 0.2212768646 | AI17: 0.2168812264 | AJ17: 0.212552315 | AK17: 0.2082877044 | AL17: 0.2040850311 | AM17: 0.1999260515 | AN17: 0.1958095269 | AO17: 0.1917342448 | AP17: 0.1876990191 | AQ17: 0.1854036388 | AR17: 0.1831415357 | AS17: 0.1809118347 | AT17: 0.1787136806 | AU17: 0.1765462368 | AV17: 0.1750794873 | AW17: 0.1736442441 | AX17: 0.1722398141 | AY17: 0.1708655232 | AZ17: 0.1695207153 | BA17: 0.1688682814 | BB17: 0.1682372759 | BC17: 0.1676274408 | BD17: 0.1670385273 | BE17: 0.166470295 | BF17: 0.165922512 | BG17: 0.1653949549 | BH17: 0.1648874083 | BI17: 0.1643996647 | BJ17: 0.1639315247 | BK17: 0.1638104172 | BL17: 0.1637092278 | BM17: 0.1636278897 | BN17: 0.1635663431 | BO17: 0.1635245358 | BP17: 0.1635024229 | BQ17: 0.1634999664 | BR17: 0.1635171358 | BS17: 0.1635539074 | BT17: 0.1636102647
T19: Selected | U19: 2019 | V19: 2020 | W19: =V19+1 -> 2021 | X19: 2022 | Y19: 2023 | Z19: 2024 | AA19: 2025 | AB19: 2026 | AC19: 2027 | AD19: 2028 | AE19: 2029 | AF19: 2030 | AG19: 2031 | AH19: 2032 | AI19: 2033 | AJ19: 2034 | AK19: 2035 | AL19: 2036 | AM19: 2037 | AN19: 2038 | AO19: 2039 | AP19: 2040 | AQ19: 2041 | AR19: 2042 | AS19: 2043 | AT19: 2044 | AU19: 2045 | AV19: 2046 | AW19: 2047 | AX19: 2048 | AY19: 2049 | AZ19: 2050 | BA19: 2051 | BB19: 2052 | BC19: 2053 | BD19: 2054 | BE19: 2055 | BF19: 2056 | BG19: 2057 | BH19: 2058 | BI19: 2059 | BJ19: 2060 | BK19: 2061 | BL19: 2062 | BM19: 2063 | BN19: 2064 | BO19: 2065 | BP19: 2066 | BQ19: 2067 | BR19: 2068 | BS19: 2069 | BT19: 2070
T20: =T13 -> Birth rate (percent/yr) | U20: =IF($B$8=1,U7,U13) -> 1.022763359 | V20: =IF($B$8=1,V7,V13) -> 1 | W20: =IF($B$8=1,W7,W13) -> 0.996 | X20: =IF($B$8=1,X7,X13) -> 0.992 | Y20: 0.988 | Z20: 0.984 | AA20: 0.98 | AB20: 0.984 | AC20: 0.988 | AD20: 0.992 | AE20: 0.996 | AF20: 1 | AG20: 1.002 | AH20: 1.004 | AI20: 1.006 | AJ20: 1.008 | AK20: 1.01 | AL20: 1.014 | AM20: 1.018 | AN20: 1.022 | AO20: 1.026 | AP20: 1.03 | AQ20: 1.024 | AR20: 1.018 | AS20: 1.012 | AT20: 1.006 | AU20: 1 | AV20: 0.994 | AW20: 0.988 | AX20: 0.982 | AY20: 0.976 | AZ20: 0.97 | BA20: 0.966 | BB20: 0.962 | BC20: 0.958 | BD20: 0.954 | BE20: 0.95 | BF20: 0.946 | BG20: 0.942 | BH20: 0.938 | BI20: 0.934 | BJ20: 0.93 | BK20: 0.926 | BL20: 0.922 | BM20: 0.918 | BN20: 0.914 | BO20: 0.91 | BP20: 0.906 | BQ20: 0.902 | BR20: 0.898 | BS20: 0.894 | BT20: 0.89
T21: =T14 -> Death rate (percent/yr) | U21: =IF($B$9=1,U8,U14) -> 0.7635582068 | V21: =IF($B$9=1,V8,V14) -> 0.75 | W21: =IF($B$9=1,W8,W14) -> 0.75 | X21: =IF($B$9=1,X8,X14) -> 0.75 | Y21: 0.75 | Z21: 0.75 | AA21: 0.75 | AB21: 0.758 | AC21: 0.766 | AD21: 0.774 | AE21: 0.782 | AF21: 0.79 | AG21: 0.804 | AH21: 0.818 | AI21: 0.832 | AJ21: 0.846 | AK21: 0.86 | AL21: 0.868 | AM21: 0.876 | AN21: 0.884 | AO21: 0.892 | AP21: 0.9 | AQ21: 0.903 | AR21: 0.906 | AS21: 0.909 | AT21: 0.912 | AU21: 0.915 | AV21: 0.922 | AW21: 0.929 | AX21: 0.936 | AY21: 0.943 | AZ21: 0.95 | BA21: 0.957 | BB21: 0.964 | BC21: 0.971 | BD21: 0.978 | BE21: 0.985 | BF21: 0.992 | BG21: 0.999 | BH21: 1.006 | BI21: 1.013 | BJ21: 1.02 | BK21: 1.028 | BL21: 1.036 | BM21: 1.044 | BN21: 1.052 | BO21: 1.06 | BP21: 1.068 | BQ21: 1.076 | BR21: 1.084 | BS21: 1.092 | BT21: 1.1
T22: =T15 -> Population (Mp) | U22: =F10 -> 5.328212 | V22: =U22*(1+(U20-U21)/100)+U23/1000000 -> 5.36735 | W22: =V22*(1+(V20-V21)/100)+V23/1000000 -> 5.399768375 | X22: 5.430951805 | Y22: 5.460894709 | Z22: 5.489591638 | AA22: 5.517037282 | AB22: 5.543226468 | AC22: 5.56915416 | AD22: 5.594817682 | AE22: 5.620214385 | AF22: 5.645341644 | AG22: 5.670196861 | AH22: 5.694223851 | AI22: 5.717415107 | AJ22: 5.739763409 | AK22: 5.761261826 | AL22: 5.781903719 | AM22: 5.802145298 | AN22: 5.821984345 | AO22: 5.841418683 | AP22: 5.860446184 | AQ22: 5.879064764 | AR22: 5.897078432 | AS22: 5.91448316 | AT22: 5.931275078 | AU22: 5.947450477 | AV22: 5.963005809 | AW22: 5.977739174 | AX22: 5.99164604 | AY22: 6.004722197 | AZ22: 6.016963755 | BA22: 6.028367148 | BB22: 6.039089701 | BC22: 6.049128919 | BD22: 6.058482532 | BE22: 6.067148497 | BF22: 6.075124995 | BG22: 6.082410437 | BH22: 6.089003463 | BI22: 6.094902941 | BJ22: 6.100107968 | BK22: 6.10461787 | BL22: 6.10839116 | BM22: 6.111427594 | BN22: 6.113727195 | BO22: 6.115290252 | BP22: 6.116117317 | BQ22: 6.116209207 | BR22: 6.115567003 | BS22: 6.114192048 | BT22: 6.112085948
T23: =T16 -> Net migration (p/yr) | U23: =IF($B$11=1,U10,U16) -> 25327 | V23: =IF($B$11=1,V10,V16) -> 19000 | W23: 17900 | X23: 16800 | Y23: 15700 | Z23: 14600 | AA23: 13500 | AB23: 13400 | AC23: 13300 | AD23: 13200 | AE23: 13100 | AF23: 13000 | AG23: 12800 | AH23: 12600 | AI23: 12400 | AJ23: 12200 | AK23: 12000 | AL23: 11800 | AM23: 11600 | AN23: 11400 | AO23: 11200 | AP23: 11000 | AQ23: 10900 | AR23: 10800 | AS23: 10700 | AT23: 10600 | AU23: 10500 | AV23: 10440 | AW23: 10380 | AX23: 10320 | AY23: 10260 | AZ23: 10200 | BA23: 10180 | BB23: 10160 | BC23: 10140 | BD23: 10120 | BE23: 10100 | BF23: 10080 | BG23: 10060 | BH23: 10040 | BI23: 10020 | BJ23: 10000 | BK23: 10000 | BL23: 10000 | BM23: 10000 | BN23: 10000 | BO23: 10000 | BP23: 10000 | BQ23: 10000 | BR23: 10000 | BS23: 10000 | BT23: 10000
T24: =T17 -> Net migration (percent/yr) | U24: =F12 -> 0.475337693 | V24: =V23/(V22*1000000)*100 -> 0.3539921935 | W24: =W23/(W22*1000000)*100 -> 0.3314957005 | X24: =X23/(X22*1000000)*100 -> 0.3093380424 | Y24: 0.2874986763 | Z24: 0.2659578519 | AA24: 0.244696552 | AB24: 0.2417364702 | AC24: 0.2388154398 | AD24: 0.235932621 | AE24: 0.2330871939 | AF24: 0.2302783573 | AG24: 0.2257417214 | AH24: 0.2212768646 | AI24: 0.2168812264 | AJ24: 0.212552315 | AK24: 0.2082877044 | AL24: 0.2040850311 | AM24: 0.1999260515 | AN24: 0.1958095269 | AO24: 0.1917342448 | AP24: 0.1876990191 | AQ24: 0.1854036388 | AR24: 0.1831415357 | AS24: 0.1809118347 | AT24: 0.1787136806 | AU24: 0.1765462368 | AV24: 0.1750794873 | AW24: 0.1736442441 | AX24: 0.1722398141 | AY24: 0.1708655232 | AZ24: 0.1695207153 | BA24: 0.1688682814 | BB24: 0.1682372759 | BC24: 0.1676274408 | BD24: 0.1670385273 | BE24: 0.166470295 | BF24: 0.165922512 | BG24: 0.1653949549 | BH24: 0.1648874083 | BI24: 0.1643996647 | BJ24: 0.1639315247 | BK24: 0.1638104172 | BL24: 0.1637092278 | BM24: 0.1636278897 | BN24: 0.1635663431 | BO24: 0.1635245358 | BP24: 0.1635024229 | BQ24: 0.1634999664 | BR24: 0.1635171358 | BS24: 0.1635539074 | BT24: 0.1636102647
T26: Births (p/yr) | U26: =(U22*1000000)*(U20/100) -> 54495 | V26: =(V22*1000000)*(V20/100) -> 53673.5 | W26: 53781.69301 | X26: 53875.04191 | Y26: 53953.63972 | Z26: 54017.58172 | AA26: 54066.96537 | AB26: 54545.34845 | AC26: 55023.2431 | AD26: 55500.59141 | AE26: 55977.33527 | AF26: 56453.41644 | AG26: 56815.37255 | AH26: 57170.00746 | AI26: 57517.19598 | AJ26: 57856.81517 | AK26: 58188.74444 | AL26: 58628.50371 | AM26: 59065.83914 | AN26: 59500.68 | AO26: 59932.95569 | AP26: 60362.5957 | AQ26: 60201.62318 | AR26: 60032.25844 | AS26: 59854.56958 | AT26: 59668.62728 | AU26: 59474.50477 | AV26: 59272.27775 | AW26: 59060.06304 | AX26: 58837.96411 | AY26: 58606.08864 | AZ26: 58364.54843 | BA26: 58234.02665 | BB26: 58096.04292 | BC26: 57950.65505 | BD26: 57797.92336 | BE26: 57637.91072 | BF26: 57470.68245 | BG26: 57296.30632 | BH26: 57114.85249 | BI26: 56926.39347 | BJ26: 56731.0041 | BK26: 56528.76148 | BL26: 56319.3665 | BM26: 56102.90532 | BN26: 55879.46657 | BO26: 55649.14129 | BP26: 55412.02289 | BQ26: 55168.20704 | BR26: 54917.79168 | BS26: 54660.87691 | BT26: 54397.56493
T27: Deaths (p/yr) | U27: =(U22*1000000)*(U21/100) -> 40684 | V27: =(V22*1000000)*(V21/100) -> 40255.125 | W27: 40498.26281 | X27: 40732.13854 | Y27: 40956.71031 | Z27: 41171.93728 | AA27: 41377.77962 | AB27: 42017.65663 | AC27: 42659.72087 | AD27: 43303.88886 | AE27: 43950.07649 | AF27: 44598.19898 | AG27: 45588.38276 | AH27: 46578.7511 | AI27: 47568.89369 | AJ27: 48558.39844 | AK27: 49546.8517 | AL27: 50186.92428 | AM27: 50826.79281 | AN27: 51466.34161 | AO27: 52105.45465 | AP27: 52744.01566 | AQ27: 53087.95482 | AR27: 53427.5306 | AS27: 53762.65193 | AT27: 54093.22871 | AU27: 54419.17186 | AV27: 54978.91356 | AW27: 55533.19692 | AX27: 56081.80693 | AY27: 56624.53032 | AZ27: 57161.15567 | BA27: 57691.47361 | BB27: 58216.82472 | BC27: 58737.04181 | BD27: 59251.95917 | BE27: 59761.41269 | BF27: 60265.23995 | BG27: 60763.28027 | BH27: 61255.37484 | BI27: 61741.36679 | BJ27: 62221.10127 | BK27: 62755.47171 | BL27: 63282.93242 | BM27: 63803.30408 | BN27: 64316.4101 | BO27: 64822.07667 | BP27: 65320.13294 | BQ27: 65810.41106 | BR27: 66292.74631 | BS27: 66766.97716 | BT27: 67232.94542
T28: Calculated life expectancy (yr) | U28: =(U22*1000000)/U27 -> 130.9657851
R30: SSB https://www.ssb.no/en/folkfram | T30: SSB births main (p/yr) | Z30: 55000 | AA30: 55000 | AB30: 55000 | AO30: 60400 | AP30: 60400 | AQ30: 60400 | BI30: 56600 | BJ30: 56600 | BK30: 56600
T31: SSB births low (p/yr) | Z31: 48000 | AA31: 48000 | AB31: 48000 | AO31: 46200 | AP31: 46200 | AQ31: 46200 | BI31: 38100 | BJ31: 38100 | BK31: 38100
T32: SSB births high (p/yr) | Z32: 61600 | AA32: 61600 | AB32: 61600 | AO32: 67500 | AP32: 67500 | AQ32: 67500 | BI32: 68200 | BJ32: 68200 | BK32: 68200
R34: SSB https://www.ssb.no/en/folkfram | T34: SSB deaths main (p/yr) | Z34: 42100 | AA34: 42100 | AB34: 42100 | AO34: 52800 | AP34: 52800 | AQ34: 52800 | BI34: 61600 | BJ34: 61600 | BK34: 61600
T35: SSB death low (p/yr) | Z35: 39400 | AA35: 39400 | AB35: 39400 | AO35: 48800 | AP35: 48800 | AQ35: 48800 | BI35: 58300 | BJ35: 58300 | BK35: 58300
T36: SSB death high (p/yr) | Z36: 44900 | AA36: 44900 | AB36: 44900 | AO36: 57300 | AP36: 57300 | AQ36: 57300 | BI36: 65300 | BJ36: 65300 | BK36: 65300
R38: SSB https://www.ssb.no/en/folkfram | T38: SSB net migration main (p/yr) | Z38: 13700 | AA38: 13700 | AB38: 13700 | AO38: 11000 | AP38: 11000 | AQ38: 11000 | BI38: 10500 | BJ38: 10500 | BK38: 10500
T39: SSB net migration low (p/yr) | Z39: 8700 | AA39: 8700 | AB39: 8700 | AO39: 6000 | AP39: 6000 | AQ39: 6000 | BI39: 4100 | BJ39: 4100 | BK39: 4100
T40: SSB net migration high (p/yr) | Z40: 19300 | AA40: 19300 | AB40: 19300 | AO40: 21300 | AP40: 21300 | AQ40: 21300 | BI40: 26300 | BJ40: 26300 | BK40: 26300
A60: Oil and Gas offshore | B60: Exploration increases reserves (Mtoe) We call both contingent and remaining reservers "reserves" since in reality the distinction is one of PDOs (Plans for Development and Operation)
A61: Offshore, Exploration
A62: We use the same logic as Finn Roar Aune, Ådne Cappelen og Ståle Mæland, Konsekvenser av redusert petroleumsvirksomhet, Statistisk sentralbyrå 2020, pg 21:
A63: "Det finnes ikke tilgjengelige anslag på ressursbruken som er nødvendig for å kunne utvinne den produksjonen som er vist på figur 2.8. Vi må derfor avlede hva vi tror utvinningsnæringen trenger for å kunne utvinne de mengdene olje og gass
A64: som ligger i tallene bak figuren med tilstrekkelig lønnsomhet. I nasjonalregnskapet, som KVARTS bygger på, er investeringene i petroleumsutvinning inndelt i mange kapitalarter. Vi skal ikke gå i stor detalj i framstillingen her, men vi antar i all hovedsak
A65: at de ulike kapitalartene må stå i et fast forhold til hverandre. Den samlede kapitalen akkumuleres i modellen ved en definisjonslikning hvor kapitalen ved inngangen til året pluss bruttoinvesteringer minus kapitalslit gir oss kapitalen ved utgangen av året.
A66: Ved å anta at kapitalen ved inngangen til året er bestemmende for produksjon, kan vi se hvordan produksjonen per kapitalenhet har utviklet seg over tid og dermed avlede hvor store investeringene må være for at vi skal få den tilstrekkelige kapitalen"
A67: som trengs gitt produksjonsanslagene."
A68: NOTE: Money spent GNOK/yr) / Cost per activity (finding, constructing, Shutdown&Removal) (GNOK/Mtoe) = Activity volume (Mtoe/yr)
A69: For the future I need to ask for two, to calculate the third. I have chosen to ask for money and cost since I assume these things are known more easily and since money rules the world (and political decision making)
A70: Future Unit Costs are subject to two conflicting influences: 1) as fields are found and developed it gets harder to find new fields - harder: read more expensive
A71: 2) Unit Costs, and labour productivty below, are subject to learning curves: It gets cheaper the more you find.
A72: Thus we ask you to enter both influences separately. Note that both estimates are done in 2018-costs, inflation is added later by the model.
A74: NOTE: The numbers from OD (Oljedirektoratet) for the past do not add up. If we consider the time from 2000 to 2019, for which OD gives independent estimates for money spent, average cost per find and finds,
A75: the result is off by a factor of 4, i.e. costs per find would have to be 4 times lower to reconcile spending and finds (or spending, or findings, would have had to be four time lower)
A76: Thus, we make the assumption that average costs do not consider unusually large finds, i.e. statistical outliers. Since the history of finds is punctuated by substantial outliers, more frequent and large in the past (see graph to right),
A77: we believe this is a defensible assumption.
D78: =D3 -> SC-1
A79: Spending could be made to be influenced by delayed average field profitability. | I79: 2007 | J79: =I79+1 -> 2008 | K79: =J79+1 -> 2009 | L79: 2010 | M79: 2011 | N79: 2012 | O79: 2013 | P79: 2014 | Q79: 2015 | R79: 2016 | S79: 2017 | T79: 2018 | U79: 2019 | V79: 2020 | W79: 2021 | X79: 2022 | Y79: 2023 | Z79: 2024 | AA79: 2025 | AB79: 2026 | AC79: 2027 | AD79: 2028 | AE79: 2029 | AF79: 2030 | AG79: 2031 | AH79: 2032 | AI79: 2033 | AJ79: 2034 | AK79: 2035 | AL79: 2036 | AM79: 2037 | AN79: 2038 | AO79: 2039 | AP79: 2040 | AQ79: 2041 | AR79: 2042 | AS79: 2043 | AT79: 2044 | AU79: 2045 | AV79: 2046 | AW79: 2047 | AX79: 2048 | AY79: 2049 | AZ79: 2050 | BA79: 2051 | BB79: 2052 | BC79: 2053 | BD79: 2054 | BE79: 2055 | BF79: 2056 | BG79: 2057 | BH79: 2058 | BI79: 2059 | BJ79: 2060 | BK79: 2061 | BL79: 2062 | BM79: 2063 | BN79: 2064 | BO79: 2065 | BP79: 2066 | BQ79: 2067 | BR79: 2068 | BS79: 2069 | BT79: 2070
H80: (Future) ratio of unit revenue to unit OPEX | I80: =AF716/AF666 -> 5.370306824 | J80: 6.240730339 | K80: 3.987734609 | L80: 4.287225601 | M80: 4.812183452 | N80: 4.75585205 | O80: 4.266104404 | P80: 3.916339328 | Q80: 3.486629952 | R80: 3.161540033 | S80: 4.079734222 | T80: 4.725948816 | U80: 4.409461557 | V80: 3.421414464 | W80: 3.381222341 | X80: 3.338916925 | Y80: 3.294636995 | Z80: 3.248528533 | AA80: 3.200743217 | AB80: 3.168994071 | AC80: 3.138575982 | AD80: 3.109448458 | AE80: 3.081573353 | AF80: 3.054914745 | AG80: 3.05803629 | AH80: 3.061506079 | AI80: 3.065324417 | AJ80: 3.069491717 | AK80: 3.074008502 | AL80: 3.078875406 | AM80: 3.084093176 | AN80: 3.089662675 | AO80: 3.09558488 | AP80: 3.101860889 | AQ80: 3.09881039 | AR80: 3.095988552 | AS80: 3.093392523 | AT80: 3.091019496 | AU80: 3.088866706 | AV80: 3.086931429 | AW80: 3.085210987 | AX80: 3.083702739 | AY80: 3.082404088 | AZ80: 3.081312475 | BA80: 3.080425382 | BB80: 3.079740331 | BC80: 3.079254881 | BD80: 3.078966632 | BE80: 3.078873219 | BF80: 3.078972317 | BG80: 3.079261637 | BH80: 3.079738926 | BI80: 3.080401968 | BJ80: 3.081248582 | BK80: 3.081210403 | BL80: 3.081342433 | BM80: 3.081642376 | BN80: 3.082107974 | BO80: 3.082736999 | BP80: 3.083527258 | BQ80: 3.084476589 | BR80: 3.085582865 | BS80: 3.086843987 | BT80: 3.088257891
D81: Time to smooth ratio | E81: 5 | F81: years | I81: =I80 -> 5.370306824 | J81: =I81-(I81-J80)/$E$81 -> 5.544391527 | K81: 5.233060143 | L81: 5.043893235 | M81: 4.997551278 | N81: 4.949211433 | O81: 4.812590027 | P81: 4.633339887 | Q81: 4.4039979 | R81: 4.155506327 | S81: 4.140351906 | T81: 4.257471288 | U81: 4.287869342 | V81: 4.114578366 | W81: 3.967907161 | X81: 3.842109114 | Y81: 3.73261469 | Z81: 3.635797459 | AA81: 3.54878661 | AB81: 3.472828102 | AC81: 3.405977678 | AD81: 3.346671834 | AE81: 3.293652138 | AF81: 3.245904659 | AG81: 3.208330986 | AH81: 3.178966004 | AI81: 3.156237687 | AJ81: 3.138888493 | AK81: 3.125912495 | AL81: 3.116505077 | AM81: 3.110022697 | AN81: 3.105950692 | AO81: 3.10387753 | AP81: 3.103474202 | AQ81: 3.102541439 | AR81: 3.101230862 | AS81: 3.099663194 | AT81: 3.097934455 | AU81: 3.096120905 | AV81: 3.09428301 | AW81: 3.092468605 | AX81: 3.090715432 | AY81: 3.089053163 | AZ81: 3.087505026 | BA81: 3.086089097 | BB81: 3.084819344 | BC81: 3.083706451 | BD81: 3.082758487 | BE81: 3.081981434 | BF81: 3.08137961 | BG81: 3.080956016 | BH81: 3.080712598 | BI81: 3.080650472 | BJ81: 3.080770094 | BK81: 3.080858156 | BL81: 3.080955011 | BM81: 3.081092484 | BN81: 3.081295582 | BO81: 3.081583865 | BP81: 3.081972544 | BQ81: 3.082473353 | BR81: 3.083095255 | BS81: 3.083845002 | BT81: 3.08472758
D82: Use the effect of profitability on investment spending? | E82: 0 | F82: =IF(E82=1,"yes","no") -> no
D83: Contingent & remaining reserves in 2018 | E83: =hist!AR113 -> 5213.819962 | F83: Mtoe | G83: Source: Norwegian Petroleum Directorate, Resource Report 2019, Discoveries and Fields, Figures 2.4 and 2.5
T84: =Stranding!B28 -> Effect of profitability on investment spending (no dimension) | U84: =IF($E$82=0,1,LinInter(U81,effx,effy)) -> 1 | V84: =IF($E$82=0,1,LinInter(V81,effx,effy)) -> 1 | W84: =IF($E$82=0,1,LinInter(W81,effx,effy)) -> 1 | X84: =IF($E$82=0,1,LinInter(X81,effx,effy)) -> 1 | Y84: =IF($E$82=0,1,LinInter(Y81,effx,effy)) -> 1 | Z84: =IF($E$82=0,1,LinInter(Z81,effx,effy)) -> 1 | AA84: =IF($E$82=0,1,LinInter(AA81,effx,effy)) -> 1 | AB84: =IF($E$82=0,1,LinInter(AB81,effx,effy)) -> 1 | AC84: =IF($E$82=0,1,LinInter(AC81,effx,effy)) -> 1 | AD84: =IF($E$82=0,1,LinInter(AD81,effx,effy)) -> 1 | AE84: =IF($E$82=0,1,LinInter(AE81,effx,effy)) -> 1 | AF84: =IF($E$82=0,1,LinInter(AF81,effx,effy)) -> 1 | AG84: =IF($E$82=0,1,LinInter(AG81,effx,effy)) -> 1 | AH84: =IF($E$82=0,1,LinInter(AH81,effx,effy)) -> 1 | AI84: =IF($E$82=0,1,LinInter(AI81,effx,effy)) -> 1 | AJ84: =IF($E$82=0,1,LinInter(AJ81,effx,effy)) -> 1 | AK84: =IF($E$82=0,1,LinInter(AK81,effx,effy)) -> 1 | AL84: =IF($E$82=0,1,LinInter(AL81,effx,effy)) -> 1 | AM84: =IF($E$82=0,1,LinInter(AM81,effx,effy)) -> 1 | AN84: =IF($E$82=0,1,LinInter(AN81,effx,effy)) -> 1 | AO84: =IF($E$82=0,1,LinInter(AO81,effx,effy)) -> 1 | AP84: =IF($E$82=0,1,LinInter(AP81,effx,effy)) -> 1 | AQ84: =IF($E$82=0,1,LinInter(AQ81,effx,effy)) -> 1 | AR84: =IF($E$82=0,1,LinInter(AR81,effx,effy)) -> 1 | AS84: =IF($E$82=0,1,LinInter(AS81,effx,effy)) -> 1 | AT84: =IF($E$82=0,1,LinInter(AT81,effx,effy)) -> 1 | AU84: =IF($E$82=0,1,LinInter(AU81,effx,effy)) -> 1 | AV84: =IF($E$82=0,1,LinInter(AV81,effx,effy)) -> 1 | AW84: =IF($E$82=0,1,LinInter(AW81,effx,effy)) -> 1 | AX84: =IF($E$82=0,1,LinInter(AX81,effx,effy)) -> 1 | AY84: =IF($E$82=0,1,LinInter(AY81,effx,effy)) -> 1 | AZ84: =IF($E$82=0,1,LinInter(AZ81,effx,effy)) -> 1 | BA84: =IF($E$82=0,1,LinInter(BA81,effx,effy)) -> 1 | BB84: =IF($E$82=0,1,LinInter(BB81,effx,effy)) -> 1 | BC84: =IF($E$82=0,1,LinInter(BC81,effx,effy)) -> 1 | BD84: =IF($E$82=0,1,LinInter(BD81,effx,effy)) -> 1 | BE84: =IF($E$82=0,1,LinInter(BE81,effx,effy)) -> 1 | BF84: =IF($E$82=0,1,LinInter(BF81,effx,effy)) -> 1 | BG84: =IF($E$82=0,1,LinInter(BG81,effx,effy)) -> 1 | BH84: =IF($E$82=0,1,LinInter(BH81,effx,effy)) -> 1 | BI84: =IF($E$82=0,1,LinInter(BI81,effx,effy)) -> 1 | BJ84: =IF($E$82=0,1,LinInter(BJ81,effx,effy)) -> 1 | BK84: =IF($E$82=0,1,LinInter(BK81,effx,effy)) -> 1 | BL84: =IF($E$82=0,1,LinInter(BL81,effx,effy)) -> 1 | BM84: =IF($E$82=0,1,LinInter(BM81,effx,effy)) -> 1 | BN84: =IF($E$82=0,1,LinInter(BN81,effx,effy)) -> 1 | BO84: =IF($E$82=0,1,LinInter(BO81,effx,effy)) -> 1 | BP84: =IF($E$82=0,1,LinInter(BP81,effx,effy)) -> 1 | BQ84: =IF($E$82=0,1,LinInter(BQ81,effx,effy)) -> 1 | BR84: =IF($E$82=0,1,LinInter(BR81,effx,effy)) -> 1 | BS84: =IF($E$82=0,1,LinInter(BS81,effx,effy)) -> 1 | BT84: =IF($E$82=0,1,LinInter(BT81,effx,effy)) -> 1
D85: Unusually large find (outlier) factor | E85: 2
D86: Forecast by future annual rates of change | E86: -3 | F86: =CONCATENATE("pct-yr - Future annual RoC, ",A91) -> pct-yr - Future annual RoC, Exploration
E87: 1 | F87: =CONCATENATE("pct-yr - Future annual RoC, ",A92,", reflecting the difficulty of finding new fields") -> pct-yr - Future annual RoC, Average cost per find, (USD/barrel), reflecting the difficulty of finding new fields
E88: -1.5 | F88: =CONCATENATE("pct-yr - Future annual RoC, ",A92,", reflecting the learning curve") -> pct-yr - Future annual RoC, Average cost per find, (USD/barrel), reflecting the learning curve
D89: Forecast by future manual entries every 5 yrs | E89: 2018 | F89: 2019 | G89: 2020 | H89: =G89+5 -> 2025 | I89: 2030 | J89: 2035 | K89: 2040 | L89: 2045 | M89: 2050 | N89: =M89+10 -> 2060 | O89: =N89+10 -> 2070 | T89: Annual rate of change | U89: 2019 | V89: 2020 | W89: =V89+1 -> 2021 | X89: 2022 | Y89: 2023 | Z89: 2024 | AA89: 2025 | AB89: 2026 | AC89: 2027 | AD89: 2028 | AE89: 2029 | AF89: 2030 | AG89: 2031 | AH89: 2032 | AI89: 2033 | AJ89: 2034 | AK89: 2035 | AL89: 2036 | AM89: 2037 | AN89: 2038 | AO89: 2039 | AP89: 2040 | AQ89: 2041 | AR89: 2042 | AS89: 2043 | AT89: 2044 | AU89: 2045 | AV89: 2046 | AW89: 2047 | AX89: 2048 | AY89: 2049 | AZ89: 2050 | BA89: 2051 | BB89: 2052 | BC89: 2053 | BD89: 2054 | BE89: 2055 | BF89: 2056 | BG89: 2057 | BH89: 2058 | BI89: 2059 | BJ89: 2060 | BK89: 2061 | BL89: 2062 | BM89: 2063 | BN89: 2064 | BO89: 2065 | BP89: 2066 | BQ89: 2067 | BR89: 2068 | BS89: 2069 | BT89: 2070
B90: Forecast choice | T90: =A91 -> Exploration | U90: =F91 -> 27.93101325 | V90: =U90*(1+$E$86/100) -> 27.09308285 | W90: 26.28029036 | X90: 25.49188165 | Y90: 24.7271252 | Z90: 23.98531145 | AA90: 23.2657521 | AB90: 22.56777954 | AC90: 21.89074615 | AD90: 21.23402377 | AE90: 20.59700306 | AF90: 19.97909297 | AG90: 19.37972018 | AH90: 18.79832857 | AI90: 18.23437871 | AJ90: 17.68734735 | AK90: 17.15672693 | AL90: 16.64202512 | AM90: 16.14276437 | AN90: 15.65848144 | AO90: 15.188727 | AP90: 14.73306519 | AQ90: 14.29107323 | AR90: 13.86234103 | AS90: 13.4464708 | AT90: 13.04307668 | AU90: 12.65178438 | AV90: 12.27223085 | AW90: 11.90406392 | AX90: 11.546942 | AY90: 11.20053374 | AZ90: 10.86451773 | BA90: 10.5385822 | BB90: 10.22242473 | BC90: 9.915751991 | BD90: 9.618279432 | BE90: 9.329731049 | BF90: 9.049839117 | BG90: 8.778343944 | BH90: 8.514993625 | BI90: 8.259543817 | BJ90: 8.011757502 | BK90: 7.771404777 | BL90: 7.538262634 | BM90: 7.312114755 | BN90: 7.092751312 | BO90: 6.879968773 | BP90: 6.67356971 | BQ90: 6.473362618 | BR90: 6.27916174 | BS90: 6.090786888 | BT90: 5.908063281
A91: =hist!A157 -> Exploration | B91: 2 | C91: =IF(B91=1,"annual rate of change","manual entries at 5 yr intervals") -> manual entries at 5 yr intervals | E91: =hist!AR157 -> 25.45 | F91: =hist!AS157 -> 27.93101325 | G91: 28 | H91: 25 | I91: 20 | J91: 15 | K91: 10 | L91: 5 | M91: 1 | N91: 1 | O91: 1 | T91: =CONCATENATE(T90," with profitability effect") -> Exploration with profitability effect | U91: =U90*U84 -> 27.93101325 | V91: 27.09308285 | W91: 26.28029036 | X91: 25.49188165 | Y91: 24.7271252 | Z91: 23.98531145 | AA91: 23.2657521 | AB91: 22.56777954 | AC91: 21.89074615 | AD91: 21.23402377 | AE91: 20.59700306 | AF91: 19.97909297 | AG91: 19.37972018 | AH91: 18.79832857 | AI91: 18.23437871 | AJ91: 17.68734735 | AK91: 17.15672693 | AL91: 16.64202512 | AM91: 16.14276437 | AN91: 15.65848144 | AO91: 15.188727 | AP91: 14.73306519 | AQ91: 14.29107323 | AR91: 13.86234103 | AS91: 13.4464708 | AT91: 13.04307668 | AU91: 12.65178438 | AV91: 12.27223085 | AW91: 11.90406392 | AX91: 11.546942 | AY91: 11.20053374 | AZ91: 10.86451773 | BA91: 10.5385822 | BB91: 10.22242473 | BC91: 9.915751991 | BD91: 9.618279432 | BE91: 9.329731049 | BF91: 9.049839117 | BG91: 8.778343944 | BH91: 8.514993625 | BI91: 8.259543817 | BJ91: 8.011757502 | BK91: 7.771404777 | BL91: 7.538262634 | BM91: 7.312114755 | BN91: 7.092751312 | BO91: 6.879968773 | BP91: 6.67356971 | BQ91: 6.473362618 | BR91: 6.27916174 | BS91: 6.090786888 | BT91: 5.908063281
A92: =hist!A259 -> Average cost per find, (USD/barrel) | B92: 2 | C92: =IF(B92=1,"annual rate of change","manual entries at 5 yr intervals") -> manual entries at 5 yr intervals | E92: =hist!AR259 -> 21 | F92: =hist!AS259 -> 21 | G92: 21 | H92: 21 | I92: 21 | J92: 21 | K92: 21 | L92: 21 | M92: 21 | N92: 21 | O92: 21 | T92: =A92 -> Average cost per find, (USD/barrel) | U92: =E92*(1+($E$87+$E$88)/100) -> 20.895 | V92: =U92*(1+($E$87+$E$88)/100) -> 20.790525 | W92: 20.68657237 | X92: 20.58313951 | Y92: 20.48022382 | Z92: 20.3778227 | AA92: 20.27593358 | AB92: 20.17455392 | AC92: 20.07368115 | AD92: 19.97331274 | AE92: 19.87344618 | AF92: 19.77407895 | AG92: 19.67520855 | AH92: 19.57683251 | AI92: 19.47894835 | AJ92: 19.3815536 | AK92: 19.28464584 | AL92: 19.18822261 | AM92: 19.09228149 | AN92: 18.99682009 | AO92: 18.90183599 | AP92: 18.80732681 | AQ92: 18.71329017 | AR92: 18.61972372 | AS92: 18.5266251 | AT92: 18.43399198 | AU92: 18.34182202 | AV92: 18.25011291 | AW92: 18.15886234 | AX92: 18.06806803 | AY92: 17.97772769 | AZ92: 17.88783905 | BA92: 17.79839986 | BB92: 17.70940786 | BC92: 17.62086082 | BD92: 17.53275651 | BE92: 17.44509273 | BF92: 17.35786727 | BG92: 17.27107793 | BH92: 17.18472254 | BI92: 17.09879893 | BJ92: 17.01330493 | BK92: 16.92823841 | BL92: 16.84359722 | BM92: 16.75937923 | BN92: 16.67558234 | BO92: 16.59220442 | BP92: 16.5092434 | BQ92: 16.42669718 | BR92: 16.3445637 | BS92: 16.26284088 | BT92: 16.18152668
T93: Average cost per find, (2018-GNOK/Mtoe) | U93: =U92*ConversionFactors!$C$7*'SC-1'!X624/1000 -> 1.348164574 | V93: =V92*ConversionFactors!$C$7*'SC-1'!Y624/1000 -> 1.371550934 | W93: =W92*ConversionFactors!$C$7*'SC-1'!Z624/1000 -> 1.36469318 | X93: =X92*ConversionFactors!$C$7*'SC-1'!AA624/1000 -> 1.357869714 | Y93: =Y92*ConversionFactors!$C$7*'SC-1'!AB624/1000 -> 1.351080365 | Z93: =Z92*ConversionFactors!$C$7*'SC-1'!AC624/1000 -> 1.344324963 | AA93: =AA92*ConversionFactors!$C$7*'SC-1'!AD624/1000 -> 1.337603338 | AB93: =AB92*ConversionFactors!$C$7*'SC-1'!AE624/1000 -> 1.330915322 | AC93: =AC92*ConversionFactors!$C$7*'SC-1'!AF624/1000 -> 1.324260745 | AD93: =AD92*ConversionFactors!$C$7*'SC-1'!AG624/1000 -> 1.317639441 | AE93: =AE92*ConversionFactors!$C$7*'SC-1'!AH624/1000 -> 1.311051244 | AF93: =AF92*ConversionFactors!$C$7*'SC-1'!AI624/1000 -> 1.304495988 | AG93: =AG92*ConversionFactors!$C$7*'SC-1'!AJ624/1000 -> 1.297973508 | AH93: =AH92*ConversionFactors!$C$7*'SC-1'!AK624/1000 -> 1.291483641 | AI93: =AI92*ConversionFactors!$C$7*'SC-1'!AL624/1000 -> 1.285026222 | AJ93: =AJ92*ConversionFactors!$C$7*'SC-1'!AM624/1000 -> 1.278601091 | AK93: =AK92*ConversionFactors!$C$7*'SC-1'!AN624/1000 -> 1.272208086 | AL93: =AL92*ConversionFactors!$C$7*'SC-1'!AO624/1000 -> 1.265847045 | AM93: =AM92*ConversionFactors!$C$7*'SC-1'!AP624/1000 -> 1.25951781 | AN93: =AN92*ConversionFactors!$C$7*'SC-1'!AQ624/1000 -> 1.253220221 | AO93: =AO92*ConversionFactors!$C$7*'SC-1'!AR624/1000 -> 1.24695412 | AP93: =AP92*ConversionFactors!$C$7*'SC-1'!AS624/1000 -> 1.240719349 | AQ93: =AQ92*ConversionFactors!$C$7*'SC-1'!AT624/1000 -> 1.234515753 | AR93: =AR92*ConversionFactors!$C$7*'SC-1'!AU624/1000 -> 1.228343174 | AS93: =AS92*ConversionFactors!$C$7*'SC-1'!AV624/1000 -> 1.222201458 | AT93: =AT92*ConversionFactors!$C$7*'SC-1'!AW624/1000 -> 1.216090451 | AU93: =AU92*ConversionFactors!$C$7*'SC-1'!AX624/1000 -> 1.210009998 | AV93: =AV92*ConversionFactors!$C$7*'SC-1'!AY624/1000 -> 1.203959948 | AW93: =AW92*ConversionFactors!$C$7*'SC-1'!AZ624/1000 -> 1.197940149 | AX93: =AX92*ConversionFactors!$C$7*'SC-1'!BA624/1000 -> 1.191950448 | AY93: =AY92*ConversionFactors!$C$7*'SC-1'!BB624/1000 -> 1.185990696 | AZ93: =AZ92*ConversionFactors!$C$7*'SC-1'!BC624/1000 -> 1.180060742 | BA93: =BA92*ConversionFactors!$C$7*'SC-1'!BD624/1000 -> 1.174160439 | BB93: =BB92*ConversionFactors!$C$7*'SC-1'!BE624/1000 -> 1.168289636 | BC93: =BC92*ConversionFactors!$C$7*'SC-1'!BF624/1000 -> 1.162448188 | BD93: =BD92*ConversionFactors!$C$7*'SC-1'!BG624/1000 -> 1.156635947 | BE93: =BE92*ConversionFactors!$C$7*'SC-1'!BH624/1000 -> 1.150852767 | BF93: =BF92*ConversionFactors!$C$7*'SC-1'!BI624/1000 -> 1.145098504 | BG93: =BG92*ConversionFactors!$C$7*'SC-1'!BJ624/1000 -> 1.139373011 | BH93: =BH92*ConversionFactors!$C$7*'SC-1'!BK624/1000 -> 1.133676146 | BI93: =BI92*ConversionFactors!$C$7*'SC-1'!BL624/1000 -> 1.128007765 | BJ93: =BJ92*ConversionFactors!$C$7*'SC-1'!BM624/1000 -> 1.122367727 | BK93: =BK92*ConversionFactors!$C$7*'SC-1'!BN624/1000 -> 1.116755888 | BL93: =BL92*ConversionFactors!$C$7*'SC-1'!BO624/1000 -> 1.111172108 | BM93: =BM92*ConversionFactors!$C$7*'SC-1'!BP624/1000 -> 1.105616248 | BN93: =BN92*ConversionFactors!$C$7*'SC-1'!BQ624/1000 -> 1.100088167 | BO93: =BO92*ConversionFactors!$C$7*'SC-1'!BR624/1000 -> 1.094587726 | BP93: =BP92*ConversionFactors!$C$7*'SC-1'!BS624/1000 -> 1.089114787 | BQ93: =BQ92*ConversionFactors!$C$7*'SC-1'!BT624/1000 -> 1.083669213 | BR93: =BR92*ConversionFactors!$C$7*'SC-1'!BU624/1000 -> 1.078250867 | BS93: =BS92*ConversionFactors!$C$7*'SC-1'!BV624/1000 -> 1.072859613 | BT93: =BT92*ConversionFactors!$C$7*'SC-1'!BW624/1000 -> 1.067495315
T94: Addition to reserves (Mtoe/yr) | U94: =(U91/U93)*$E$85 -> 41.4356137 | V94: 39.50722087 | W94: 38.51457713 | X94: 37.54687419 | Y94: 36.60348539 | Z94: 35.68379983 | AA94: 34.78722194 | AB94: 33.91317114 | AC94: 33.06108141 | AD94: 32.23040098 | AE94: 31.42059191 | AF94: 30.6311298 | AG94: 29.86150342 | AH94: 29.11121439 | AI94: 28.37977684 | AJ94: 27.66671712 | AK94: 26.97157348 | AL94: 26.29389575 | AM94: 25.6332451 | AN94: 24.98919372 | AO94: 24.36132453 | AP94: 23.74923095 | AQ94: 23.1525166 | AR94: 22.57079508 | AS94: 22.00368968 | AT94: 21.45083315 | AU94: 20.9118675 | AV94: 20.38644369 | AW94: 19.87422149 | AX94: 19.37486919 | AY94: 18.88806343 | AZ94: 18.41348897 | BA94: 17.95083849 | BB94: 17.4998124 | BC94: 17.06011862 | BD94: 16.63147243 | BE94: 16.21359623 | BF94: 15.80621944 | BG94: 15.40907825 | BH94: 15.02191548 | BI94: 14.64448042 | BJ94: 14.27652865 | BK94: 13.9178219 | BL94: 13.56812788 | BM94: 13.22722015 | BN94: 12.89487793 | BO94: 12.57088602 | BP94: 12.25503462 | BQ94: 11.94711917 | BR94: 11.6469403 | BS94: 11.35430361 | BT94: 11.0690196
T96: Manual entries | U96: 2019 | V96: 2020 | W96: =V96+1 -> 2021 | X96: 2022 | Y96: 2023 | Z96: 2024 | AA96: 2025 | AB96: 2026 | AC96: 2027 | AD96: 2028 | AE96: 2029 | AF96: 2030 | AG96: 2031 | AH96: 2032 | AI96: 2033 | AJ96: 2034 | AK96: 2035 | AL96: 2036 | AM96: 2037 | AN96: 2038 | AO96: 2039 | AP96: 2040 | AQ96: 2041 | AR96: 2042 | AS96: 2043 | AT96: 2044 | AU96: 2045 | AV96: 2046 | AW96: 2047 | AX96: 2048 | AY96: 2049 | AZ96: 2050 | BA96: 2051 | BB96: 2052 | BC96: 2053 | BD96: 2054 | BE96: 2055 | BF96: 2056 | BG96: 2057 | BH96: 2058 | BI96: 2059 | BJ96: 2060 | BK96: 2061 | BL96: 2062 | BM96: 2063 | BN96: 2064 | BO96: 2065 | BP96: 2066 | BQ96: 2067 | BR96: 2068 | BS96: 2069 | BT96: 2070
T97: =T90 -> Exploration | U97: =F91 -> 27.93101325 | V97: =G91 -> 28 | W97: =$V97+(($AA97-$V97)/5)*1 -> 27.4 | X97: =$V97+(($AA97-$V97)/5)*2 -> 26.8 | Y97: =$V97+(($AA97-$V97)/5)*3 -> 26.2 | Z97: =$V97+(($AA97-$V97)/5)*4 -> 25.6 | AA97: =H91 -> 25 | AB97: =$AA97+(($AF97-$AA97)/5)*1 -> 24 | AC97: =$AA97+(($AF97-$AA97)/5)*2 -> 23 | AD97: =$AA97+(($AF97-$AA97)/5)*3 -> 22 | AE97: =$AA97+(($AF97-$AA97)/5)*4 -> 21 | AF97: =I91 -> 20 | AG97: =$AF97+(($AK97-$AF97)/5)*1 -> 19 | AH97: =$AF97+(($AK97-$AF97)/5)*2 -> 18 | AI97: =$AF97+(($AK97-$AF97)/5)*3 -> 17 | AJ97: =$AF97+(($AK97-$AF97)/5)*4 -> 16 | AK97: =J91 -> 15 | AL97: =$AK97+(($AP97-$AK97)/5)*1 -> 14 | AM97: =$AK97+(($AP97-$AK97)/5)*2 -> 13 | AN97: =$AK97+(($AP97-$AK97)/5)*3 -> 12 | AO97: =$AK97+(($AP97-$AK97)/5)*4 -> 11 | AP97: =K91 -> 10 | AQ97: =$AP97+(($AU97-$AP97)/5)*1 -> 9 | AR97: =$AP97+(($AU97-$AP97)/5)*2 -> 8 | AS97: =$AP97+(($AU97-$AP97)/5)*3 -> 7 | AT97: =$AP97+(($AU97-$AP97)/5)*4 -> 6 | AU97: =L91 -> 5 | AV97: =$AU97+(($AZ97-$AU97)/5)*1 -> 4.2 | AW97: =$AU97+(($AZ97-$AU97)/5)*2 -> 3.4 | AX97: =$AU97+(($AZ97-$AU97)/5)*3 -> 2.6 | AY97: =$AU97+(($AZ97-$AU97)/5)*4 -> 1.8 | AZ97: =M91 -> 1 | BA97: =$AZ97+(($BJ97-$AZ97)/10)*1 -> 1 | BB97: =$AZ97+(($BJ97-$AZ97)/10)*2 -> 1 | BC97: =$AZ97+(($BJ97-$AZ97)/10)*3 -> 1 | BD97: =$AZ97+(($BJ97-$AZ97)/10)*4 -> 1 | BE97: =$AZ97+(($BJ97-$AZ97)/10)*5 -> 1 | BF97: =$AZ97+(($BJ97-$AZ97)/10)*6 -> 1 | BG97: =$AZ97+(($BJ97-$AZ97)/10)*7 -> 1 | BH97: =$AZ97+(($BJ97-$AZ97)/10)*8 -> 1 | BI97: =$AZ97+(($BJ97-$AZ97)/10)*9 -> 1 | BJ97: =N91 -> 1 | BK97: =$BJ97+(($BT97-$BJ97)/10)*1 -> 1 | BL97: =$BJ97+(($BT97-$BJ97)/10)*2 -> 1 | BM97: =$BJ97+(($BT97-$BJ97)/10)*3 -> 1 | BN97: =$BJ97+(($BT97-$BJ97)/10)*4 -> 1 | BO97: =$BJ97+(($BT97-$BJ97)/10)*5 -> 1 | BP97: =$BJ97+(($BT97-$BJ97)/10)*6 -> 1 | BQ97: =$BJ97+(($BT97-$BJ97)/10)*7 -> 1 | BR97: =$BJ97+(($BT97-$BJ97)/10)*8 -> 1 | BS97: =$BJ97+(($BT97-$BJ97)/10)*9 -> 1 | BT97: =O91 -> 1
T98: =CONCATENATE(T97," with profitability effect") -> Exploration with profitability effect | U98: =U97*U84 -> 27.93101325 | V98: 28 | W98: 27.4 | X98: 26.8 | Y98: 26.2 | Z98: 25.6 | AA98: 25 | AB98: 24 | AC98: 23 | AD98: 22 | AE98: 21 | AF98: 20 | AG98: 19 | AH98: 18 | AI98: 17 | AJ98: 16 | AK98: 15 | AL98: 14 | AM98: 13 | AN98: 12 | AO98: 11 | AP98: 10 | AQ98: 9 | AR98: 8 | AS98: 7 | AT98: 6 | AU98: 5 | AV98: 4.2 | AW98: 3.4 | AX98: 2.6 | AY98: 1.8 | AZ98: 1 | BA98: 1 | BB98: 1 | BC98: 1 | BD98: 1 | BE98: 1 | BF98: 1 | BG98: 1 | BH98: 1 | BI98: 1 | BJ98: 1 | BK98: 1 | BL98: 1 | BM98: 1 | BN98: 1 | BO98: 1 | BP98: 1 | BQ98: 1 | BR98: 1 | BS98: 1 | BT98: 1
T99: =T92 -> Average cost per find, (USD/barrel) | U99: =F92 -> 21 | V99: =G92 -> 21 | W99: =$V99+(($AA99-$V99)/5)*1 -> 21 | X99: =$V99+(($AA99-$V99)/5)*2 -> 21 | Y99: =$V99+(($AA99-$V99)/5)*3 -> 21 | Z99: =$V99+(($AA99-$V99)/5)*4 -> 21 | AA99: =H92 -> 21 | AB99: =$AA99+(($AF99-$AA99)/5)*1 -> 21 | AC99: =$AA99+(($AF99-$AA99)/5)*2 -> 21 | AD99: =$AA99+(($AF99-$AA99)/5)*3 -> 21 | AE99: =$AA99+(($AF99-$AA99)/5)*4 -> 21 | AF99: =I92 -> 21 | AG99: =$AF99+(($AK99-$AF99)/5)*1 -> 21 | AH99: =$AF99+(($AK99-$AF99)/5)*2 -> 21 | AI99: =$AF99+(($AK99-$AF99)/5)*3 -> 21 | AJ99: =$AF99+(($AK99-$AF99)/5)*4 -> 21 | AK99: =J92 -> 21 | AL99: =$AK99+(($AP99-$AK99)/5)*1 -> 21 | AM99: =$AK99+(($AP99-$AK99)/5)*2 -> 21 | AN99: =$AK99+(($AP99-$AK99)/5)*3 -> 21 | AO99: =$AK99+(($AP99-$AK99)/5)*4 -> 21 | AP99: =K92 -> 21 | AQ99: =$AP99+(($AU99-$AP99)/5)*1 -> 21 | AR99: =$AP99+(($AU99-$AP99)/5)*2 -> 21 | AS99: =$AP99+(($AU99-$AP99)/5)*3 -> 21 | AT99: =$AP99+(($AU99-$AP99)/5)*4 -> 21 | AU99: =L92 -> 21 | AV99: =$AU99+(($AZ99-$AU99)/5)*1 -> 21 | AW99: =$AU99+(($AZ99-$AU99)/5)*2 -> 21 | AX99: =$AU99+(($AZ99-$AU99)/5)*3 -> 21 | AY99: =$AU99+(($AZ99-$AU99)/5)*4 -> 21 | AZ99: =M92 -> 21 | BA99: =$AZ99+(($BJ99-$AZ99)/10)*1 -> 21 | BB99: =$AZ99+(($BJ99-$AZ99)/10)*2 -> 21 | BC99: =$AZ99+(($BJ99-$AZ99)/10)*3 -> 21 | BD99: =$AZ99+(($BJ99-$AZ99)/10)*4 -> 21 | BE99: =$AZ99+(($BJ99-$AZ99)/10)*5 -> 21 | BF99: =$AZ99+(($BJ99-$AZ99)/10)*6 -> 21 | BG99: =$AZ99+(($BJ99-$AZ99)/10)*7 -> 21 | BH99: =$AZ99+(($BJ99-$AZ99)/10)*8 -> 21 | BI99: =$AZ99+(($BJ99-$AZ99)/10)*9 -> 21 | BJ99: =N92 -> 21 | BK99: =$BJ99+(($BT99-$BJ99)/10)*1 -> 21 | BL99: =$BJ99+(($BT99-$BJ99)/10)*2 -> 21 | BM99: =$BJ99+(($BT99-$BJ99)/10)*3 -> 21 | BN99: =$BJ99+(($BT99-$BJ99)/10)*4 -> 21 | BO99: =$BJ99+(($BT99-$BJ99)/10)*5 -> 21 | BP99: =$BJ99+(($BT99-$BJ99)/10)*6 -> 21 | BQ99: =$BJ99+(($BT99-$BJ99)/10)*7 -> 21 | BR99: =$BJ99+(($BT99-$BJ99)/10)*8 -> 21 | BS99: =$BJ99+(($BT99-$BJ99)/10)*9 -> 21 | BT99: =O92 -> 21
T100: =T93 -> Average cost per find, (2018-GNOK/Mtoe) | U100: =U99*ConversionFactors!$C$7*'SC-1'!X624/1000 -> 1.35493927 | V100: =V99*ConversionFactors!$C$7*'SC-1'!Y624/1000 -> 1.38537 | W100: =W99*ConversionFactors!$C$7*'SC-1'!Z624/1000 -> 1.38537 | X100: =X99*ConversionFactors!$C$7*'SC-1'!AA624/1000 -> 1.38537 | Y100: =Y99*ConversionFactors!$C$7*'SC-1'!AB624/1000 -> 1.38537 | Z100: =Z99*ConversionFactors!$C$7*'SC-1'!AC624/1000 -> 1.38537 | AA100: =AA99*ConversionFactors!$C$7*'SC-1'!AD624/1000 -> 1.38537 | AB100: =AB99*ConversionFactors!$C$7*'SC-1'!AE624/1000 -> 1.38537 | AC100: =AC99*ConversionFactors!$C$7*'SC-1'!AF624/1000 -> 1.38537 | AD100: =AD99*ConversionFactors!$C$7*'SC-1'!AG624/1000 -> 1.38537 | AE100: =AE99*ConversionFactors!$C$7*'SC-1'!AH624/1000 -> 1.38537 | AF100: =AF99*ConversionFactors!$C$7*'SC-1'!AI624/1000 -> 1.38537 | AG100: =AG99*ConversionFactors!$C$7*'SC-1'!AJ624/1000 -> 1.38537 | AH100: =AH99*ConversionFactors!$C$7*'SC-1'!AK624/1000 -> 1.38537 | AI100: =AI99*ConversionFactors!$C$7*'SC-1'!AL624/1000 -> 1.38537 | AJ100: =AJ99*ConversionFactors!$C$7*'SC-1'!AM624/1000 -> 1.38537 | AK100: =AK99*ConversionFactors!$C$7*'SC-1'!AN624/1000 -> 1.38537 | AL100: =AL99*ConversionFactors!$C$7*'SC-1'!AO624/1000 -> 1.38537 | AM100: =AM99*ConversionFactors!$C$7*'SC-1'!AP624/1000 -> 1.38537 | AN100: =AN99*ConversionFactors!$C$7*'SC-1'!AQ624/1000 -> 1.38537 | AO100: =AO99*ConversionFactors!$C$7*'SC-1'!AR624/1000 -> 1.38537 | AP100: =AP99*ConversionFactors!$C$7*'SC-1'!AS624/1000 -> 1.38537 | AQ100: =AQ99*ConversionFactors!$C$7*'SC-1'!AT624/1000 -> 1.38537 | AR100: =AR99*ConversionFactors!$C$7*'SC-1'!AU624/1000 -> 1.38537 | AS100: =AS99*ConversionFactors!$C$7*'SC-1'!AV624/1000 -> 1.38537 | AT100: =AT99*ConversionFactors!$C$7*'SC-1'!AW624/1000 -> 1.38537 | AU100: =AU99*ConversionFactors!$C$7*'SC-1'!AX624/1000 -> 1.38537 | AV100: =AV99*ConversionFactors!$C$7*'SC-1'!AY624/1000 -> 1.38537 | AW100: =AW99*ConversionFactors!$C$7*'SC-1'!AZ624/1000 -> 1.38537 | AX100: =AX99*ConversionFactors!$C$7*'SC-1'!BA624/1000 -> 1.38537 | AY100: =AY99*ConversionFactors!$C$7*'SC-1'!BB624/1000 -> 1.38537 | AZ100: =AZ99*ConversionFactors!$C$7*'SC-1'!BC624/1000 -> 1.38537 | BA100: =BA99*ConversionFactors!$C$7*'SC-1'!BD624/1000 -> 1.38537 | BB100: =BB99*ConversionFactors!$C$7*'SC-1'!BE624/1000 -> 1.38537 | BC100: =BC99*ConversionFactors!$C$7*'SC-1'!BF624/1000 -> 1.38537 | BD100: =BD99*ConversionFactors!$C$7*'SC-1'!BG624/1000 -> 1.38537 | BE100: =BE99*ConversionFactors!$C$7*'SC-1'!BH624/1000 -> 1.38537 | BF100: =BF99*ConversionFactors!$C$7*'SC-1'!BI624/1000 -> 1.38537 | BG100: =BG99*ConversionFactors!$C$7*'SC-1'!BJ624/1000 -> 1.38537 | BH100: =BH99*ConversionFactors!$C$7*'SC-1'!BK624/1000 -> 1.38537 | BI100: =BI99*ConversionFactors!$C$7*'SC-1'!BL624/1000 -> 1.38537 | BJ100: =BJ99*ConversionFactors!$C$7*'SC-1'!BM624/1000 -> 1.38537 | BK100: =BK99*ConversionFactors!$C$7*'SC-1'!BN624/1000 -> 1.38537 | BL100: =BL99*ConversionFactors!$C$7*'SC-1'!BO624/1000 -> 1.38537 | BM100: =BM99*ConversionFactors!$C$7*'SC-1'!BP624/1000 -> 1.38537 | BN100: =BN99*ConversionFactors!$C$7*'SC-1'!BQ624/1000 -> 1.38537 | BO100: =BO99*ConversionFactors!$C$7*'SC-1'!BR624/1000 -> 1.38537 | BP100: =BP99*ConversionFactors!$C$7*'SC-1'!BS624/1000 -> 1.38537 | BQ100: =BQ99*ConversionFactors!$C$7*'SC-1'!BT624/1000 -> 1.38537 | BR100: =BR99*ConversionFactors!$C$7*'SC-1'!BU624/1000 -> 1.38537 | BS100: =BS99*ConversionFactors!$C$7*'SC-1'!BV624/1000 -> 1.38537 | BT100: =BT99*ConversionFactors!$C$7*'SC-1'!BW624/1000 -> 1.38537
T101: =T94 -> Addition to reserves (Mtoe/yr) | U101: =(U98/U100)*$E$85 -> 41.22843563 | V101: =(V98/V100)*$E$85 -> 40.42241423 | W101: 39.55621964 | X101: 38.69002505 | Y101: 37.82383046 | Z101: 36.95763587 | AA101: 36.09144128 | AB101: 34.64778362 | AC101: 33.20412597 | AD101: 31.76046832 | AE101: 30.31681067 | AF101: 28.87315302 | AG101: 27.42949537 | AH101: 25.98583772 | AI101: 24.54218007 | AJ101: 23.09852242 | AK101: 21.65486477 | AL101: 20.21120711 | AM101: 18.76754946 | AN101: 17.32389181 | AO101: 15.88023416 | AP101: 14.43657651 | AQ101: 12.99291886 | AR101: 11.54926121 | AS101: 10.10560356 | AT101: 8.661945906 | AU101: 7.218288255 | AV101: 6.063362134 | AW101: 4.908436013 | AX101: 3.753509893 | AY101: 2.598583772 | AZ101: 1.443657651 | BA101: 1.443657651 | BB101: 1.443657651 | BC101: 1.443657651 | BD101: 1.443657651 | BE101: 1.443657651 | BF101: 1.443657651 | BG101: 1.443657651 | BH101: 1.443657651 | BI101: 1.443657651 | BJ101: 1.443657651 | BK101: 1.443657651 | BL101: 1.443657651 | BM101: 1.443657651 | BN101: 1.443657651 | BO101: 1.443657651 | BP101: 1.443657651 | BQ101: 1.443657651 | BR101: 1.443657651 | BS101: 1.443657651 | BT101: 1.443657651
V102: =AVERAGE(V101:AE101) -> 35.94707551
T103: Selected | U103: 2019 | V103: 2020 | W103: =V103+1 -> 2021 | X103: 2022 | Y103: 2023 | Z103: 2024 | AA103: 2025 | AB103: 2026 | AC103: 2027 | AD103: 2028 | AE103: 2029 | AF103: 2030 | AG103: 2031 | AH103: 2032 | AI103: 2033 | AJ103: 2034 | AK103: 2035 | AL103: 2036 | AM103: 2037 | AN103: 2038 | AO103: 2039 | AP103: 2040 | AQ103: 2041 | AR103: 2042 | AS103: 2043 | AT103: 2044 | AU103: 2045 | AV103: 2046 | AW103: 2047 | AX103: 2048 | AY103: 2049 | AZ103: 2050 | BA103: 2051 | BB103: 2052 | BC103: 2053 | BD103: 2054 | BE103: 2055 | BF103: 2056 | BG103: 2057 | BH103: 2058 | BI103: 2059 | BJ103: 2060 | BK103: 2061 | BL103: 2062 | BM103: 2063 | BN103: 2064 | BO103: 2065 | BP103: 2066 | BQ103: 2067 | BR103: 2068 | BS103: 2069 | BT103: 2070
S104: =A91 -> Exploration | T104: =B91 -> 2 | U104: =IF($B$91=1,U91,U98) -> 27.93101325 | V104: 28 | W104: 27.4 | X104: 26.8 | Y104: 26.2 | Z104: 25.6 | AA104: 25 | AB104: 24 | AC104: 23 | AD104: 22 | AE104: 21 | AF104: 20 | AG104: 19 | AH104: 18 | AI104: 17 | AJ104: 16 | AK104: 15 | AL104: 14 | AM104: 13 | AN104: 12 | AO104: 11 | AP104: 10 | AQ104: 9 | AR104: 8 | AS104: 7 | AT104: 6 | AU104: 5 | AV104: 4.2 | AW104: 3.4 | AX104: 2.6 | AY104: 1.8 | AZ104: 1 | BA104: 1 | BB104: 1 | BC104: 1 | BD104: 1 | BE104: 1 | BF104: 1 | BG104: 1 | BH104: 1 | BI104: 1 | BJ104: 1 | BK104: 1 | BL104: 1 | BM104: 1 | BN104: 1 | BO104: 1 | BP104: 1 | BQ104: 1 | BR104: 1 | BS104: 1 | BT104: 1
S105: =T99 -> Average cost per find, (USD/barrel) | T105: =B92 -> 2 | U105: =IF($B$92=1,U92,U99) -> 21 | V105: 21 | W105: 21 | X105: 21 | Y105: 21 | Z105: 21 | AA105: 21 | AB105: 21 | AC105: 21 | AD105: 21 | AE105: 21 | AF105: 21 | AG105: 21 | AH105: 21 | AI105: 21 | AJ105: 21 | AK105: 21 | AL105: 21 | AM105: 21 | AN105: 21 | AO105: 21 | AP105: 21 | AQ105: 21 | AR105: 21 | AS105: 21 | AT105: 21 | AU105: 21 | AV105: 21 | AW105: 21 | AX105: 21 | AY105: 21 | AZ105: 21 | BA105: 21 | BB105: 21 | BC105: 21 | BD105: 21 | BE105: 21 | BF105: 21 | BG105: 21 | BH105: 21 | BI105: 21 | BJ105: 21 | BK105: 21 | BL105: 21 | BM105: 21 | BN105: 21 | BO105: 21 | BP105: 21 | BQ105: 21 | BR105: 21 | BS105: 21 | BT105: 21
S106: =T100 -> Average cost per find, (2018-GNOK/Mtoe) | U106: 1.35493927 | V106: 1.38537 | W106: 1.38537 | X106: 1.38537 | Y106: 1.38537 | Z106: 1.38537 | AA106: 1.38537 | AB106: 1.38537 | AC106: 1.38537 | AD106: 1.38537 | AE106: 1.38537 | AF106: 1.38537 | AG106: 1.38537 | AH106: 1.38537 | AI106: 1.38537 | AJ106: 1.38537 | AK106: 1.38537 | AL106: 1.38537 | AM106: 1.38537 | AN106: 1.38537 | AO106: 1.38537 | AP106: 1.38537 | AQ106: 1.38537 | AR106: 1.38537 | AS106: 1.38537 | AT106: 1.38537 | AU106: 1.38537 | AV106: 1.38537 | AW106: 1.38537 | AX106: 1.38537 | AY106: 1.38537 | AZ106: 1.38537 | BA106: 1.38537 | BB106: 1.38537 | BC106: 1.38537 | BD106: 1.38537 | BE106: 1.38537 | BF106: 1.38537 | BG106: 1.38537 | BH106: 1.38537 | BI106: 1.38537 | BJ106: 1.38537 | BK106: 1.38537 | BL106: 1.38537 | BM106: 1.38537 | BN106: 1.38537 | BO106: 1.38537 | BP106: 1.38537 | BQ106: 1.38537 | BR106: 1.38537 | BS106: 1.38537 | BT106: 1.38537
T107: =T101 -> Addition to reserves (Mtoe/yr) | U107: =IF(AND($B$91=1,$B$92=2),U91/U100,IF(AND($B$91=1,$B$92=1),U94,IF(AND($B$91=2,$B$92=1),U98/U93,IF(AND($B$91=2,$B$92=2),U101,"oops")))) -> 41.22843563 | V107: 40.42241423 | W107: 39.55621964 | X107: 38.69002505 | Y107: 37.82383046 | Z107: 36.95763587 | AA107: 36.09144128 | AB107: 34.64778362 | AC107: 33.20412597 | AD107: 31.76046832 | AE107: 30.31681067 | AF107: 28.87315302 | AG107: 27.42949537 | AH107: 25.98583772 | AI107: 24.54218007 | AJ107: 23.09852242 | AK107: 21.65486477 | AL107: 20.21120711 | AM107: 18.76754946 | AN107: 17.32389181 | AO107: 15.88023416 | AP107: 14.43657651 | AQ107: 12.99291886 | AR107: 11.54926121 | AS107: 10.10560356 | AT107: 8.661945906 | AU107: 7.218288255 | AV107: 6.063362134 | AW107: 4.908436013 | AX107: 3.753509893 | AY107: 2.598583772 | AZ107: 1.443657651 | BA107: 1.443657651 | BB107: 1.443657651 | BC107: 1.443657651 | BD107: 1.443657651 | BE107: 1.443657651 | BF107: 1.443657651 | BG107: 1.443657651 | BH107: 1.443657651 | BI107: 1.443657651 | BJ107: 1.443657651 | BK107: 1.443657651 | BL107: 1.443657651 | BM107: 1.443657651 | BN107: 1.443657651 | BO107: 1.443657651 | BP107: 1.443657651 | BQ107: 1.443657651 | BR107: 1.443657651 | BS107: 1.443657651 | BT107: 1.443657651
T108: =CONCATENATE(T90," (Nominal GNOK/yr)") -> Exploration (Nominal GNOK/yr) | U108: =U104 -> 27.93101325 | V108: =V104*(1+(T1244-$S1244)/$S1244) -> 28.56 | W108: 28.50696 | X108: 28.4403744 | Y108: 28.35972259 | Z108: 28.26446856 | AA108: 28.15406048 | AB108: 27.56845602 | AC108: 26.94816576 | AD108: 26.29203651 | AE108: 25.59888282 | AF108: 24.86748617 | AG108: 24.0965941 | AH108: 23.28491935 | AI108: 22.43113897 | AJ108: 21.53389341 | AK108: 20.59178558 | AL108: 19.60337987 | AM108: 18.56720122 | AN108: 17.48173407 | AO108: 16.34542136 | AP108: 15.15666344 | AQ108: 13.91381704 | AR108: 12.61519411 | AS108: 11.25906075 | AT108: 9.843635967 | AU108: 8.367090572 | AV108: 7.168923202 | AW108: 5.919482301 | AX108: 4.617196195 | AY108: 3.260450851 | AZ108: 1.847588816 | BA108: 1.884540592 | BB108: =BB104*(1+(AZ1244-$S1244)/$S1244) -> 1.922231404 | BC108: 1.960676032 | BD108: 1.999889553 | BE108: 2.039887344 | BF108: 2.080685091 | BG108: 2.122298792 | BH108: 2.164744768 | BI108: 2.208039664 | BJ108: 2.252200457 | BK108: 2.297244466 | BL108: 2.343189355 | BM108: 2.390053142 | BN108: 2.437854205 | BO108: 2.486611289 | BP108: 2.536343515 | BQ108: 2.587070385 | BR108: 2.638811793 | BS108: 2.691588029 | BT108: 2.74541979
T109: Contingent & remaining reserves (Mtoe) | U109: =E83+U107-U328 -> 5073.183476 | V109: =U109+V107-V328 -> 4922.010768 | W109: 4762.316546 | X109: 4595.994192 | Y109: 4424.956786 | Z109: 4251.108799 | AA109: 4076.311262 | AB109: 3901.770692 | AC109: 3729.762745 | AD109: 3562.415601 | AE109: 3401.6263 | AF109: 3249.02011 | AG109: 3105.922979 | AH109: 2971.272936 | AI109: 2843.913528 | AJ109: 2722.826432 | AK109: 2607.133937 | AL109: 2496.079754 | AM109: 2389.202045 | AN109: 2286.103902 | AO109: 2186.426942 | AP109: 2089.84555 | AQ109: 1996.063505 | AR109: 1904.79598 | AS109: 1815.782322 | AT109: 1728.785097 | AU109: 1643.58799 | AV109: 1560.282511 | AW109: 1478.759924 | AX109: 1398.925839 | AY109: 1320.69235 | AZ109: 1243.976826 | BA109: 1169.856347 | BB109: 1098.702587 | BC109: 1030.861048 | BD109: 966.6039633 | BE109: 906.1266324 | BF109: 849.5500418 | BG109: 796.9257004 | BH109: 748.2419748 | BI109: 703.4315402 | BJ109: 662.3795845 | BK109: 624.9324093 | BL109: 591.4297287 | BM109: 562.1235773 | BN109: 537.0890532 | BO109: 516.2274834 | BP109: 499.2949331 | BQ109: 485.9405696 | BR109: 475.7481824 | BS109: 468.2760592 | BT109: 463.0914427
A126: Offshore, Developing and maintaining the infrastructure to produce / extract / lift oil and gas | I126: (Mtoe/yr)
A127: Greenfield development | C127: builds new infrastructure needed to exploit reserves
A128: Future Unit Costs are subject to learning curves: It gets cheaper the more you develop.
A129: Note that your estimates should be done in 2018-costs, inflation is added later by the model.
D130: =D78 -> SC-1
D131: Forecast by future annual rates of change | E131: 0 | F131: =CONCATENATE("Future annual RoC, ",A142) -> Future annual RoC, New 'green'-field dev. spending
E132: 7 | F132: Average RoC in greenfield spending in 2018 (pct/yr)
E133: -25 | F133: =CONCATENATE("Future annual RoC in the ",LEFT(F132,SEARCH(" in 2",F132))," - pct/yr") -> Future annual RoC in the Average RoC in greenfield spending - pct/yr
E135: 0 | F135: =CONCATENATE("Future annual RoC, ",A143," reflecting the learning curve") -> Future annual RoC, Average cost per unit greenfield dev., (2018-GNOK/(Mtoe/yr)) reflecting the learning curve
E136: 4 | F136: Average RoC in cost per unit greenfield dev. in 2018 (pct/yr)
E137: -6 | F137: =CONCATENATE("Future annual RoC in the ",LEFT(F136,SEARCH(" in 2",F136))," - pct/yr") -> Future annual RoC in the Average RoC in cost per unit greenfield dev. - pct/yr
D140: Forecast by future manual entries every 5 yrs | E140: 2018 | F140: 2019 | G140: 2020 | H140: =G140+5 -> 2025 | I140: 2030 | J140: 2035 | K140: 2040 | L140: 2045 | M140: 2050 | N140: =M140+10 -> 2060 | O140: =N140+10 -> 2070 | T140: =D131 -> Forecast by future annual rates of change | U140: 2019 | V140: 2020 | W140: =V140+1 -> 2021 | X140: 2022 | Y140: 2023 | Z140: 2024 | AA140: 2025 | AB140: 2026 | AC140: 2027 | AD140: 2028 | AE140: 2029 | AF140: 2030 | AG140: 2031 | AH140: 2032 | AI140: 2033 | AJ140: 2034 | AK140: 2035 | AL140: 2036 | AM140: 2037 | AN140: 2038 | AO140: 2039 | AP140: 2040 | AQ140: 2041 | AR140: 2042 | AS140: 2043 | AT140: 2044 | AU140: 2045 | AV140: 2046 | AW140: 2047 | AX140: 2048 | AY140: 2049 | AZ140: 2050 | BA140: 2051 | BB140: 2052 | BC140: 2053 | BD140: 2054 | BE140: 2055 | BF140: 2056 | BG140: 2057 | BH140: 2058 | BI140: 2059 | BJ140: 2060 | BK140: 2061 | BL140: 2062 | BM140: 2063 | BN140: 2064 | BO140: 2065 | BP140: 2066 | BQ140: 2067 | BR140: 2068 | BS140: 2069 | BT140: 2070
B141: Forecast choice | T141: =A142 -> New 'green'-field dev. spending | U141: =F142 -> 78.12857473 | V141: =U141*(1+$E$131/100) -> 78.12857473 | W141: =V141*(1+$E$131/100) -> 78.12857473 | X141: 78.12857473 | Y141: 78.12857473 | Z141: 78.12857473 | AA141: 78.12857473 | AB141: 78.12857473 | AC141: 78.12857473 | AD141: 78.12857473 | AE141: 78.12857473 | AF141: 78.12857473 | AG141: 78.12857473 | AH141: 78.12857473 | AI141: 78.12857473 | AJ141: 78.12857473 | AK141: 78.12857473 | AL141: 78.12857473 | AM141: 78.12857473 | AN141: 78.12857473 | AO141: 78.12857473 | AP141: 78.12857473 | AQ141: 78.12857473 | AR141: 78.12857473 | AS141: 78.12857473 | AT141: 78.12857473 | AU141: 78.12857473 | AV141: 78.12857473 | AW141: 78.12857473 | AX141: 78.12857473 | AY141: 78.12857473 | AZ141: 78.12857473 | BA141: 78.12857473 | BB141: 78.12857473 | BC141: 78.12857473 | BD141: 78.12857473 | BE141: 78.12857473 | BF141: 78.12857473 | BG141: 78.12857473 | BH141: 78.12857473 | BI141: 78.12857473 | BJ141: 78.12857473 | BK141: 78.12857473 | BL141: 78.12857473 | BM141: 78.12857473 | BN141: 78.12857473 | BO141: 78.12857473 | BP141: 78.12857473 | BQ141: 78.12857473 | BR141: 78.12857473 | BS141: 78.12857473 | BT141: 78.12857473
A142: =hist!A158 -> New 'green'-field dev. spending | B142: 2 | C142: =IF(B142=1,"annual rate of change",IF(B142=2,"manual entries at 5 yr intervals","decling rate of growth in RoC in spending")) -> manual entries at 5 yr intervals | E142: =hist!AR158 -> 61.963 | F142: =hist!AS158 -> 78.12857473 | G142: 60 | H142: 60 | I142: 45 | J142: 37 | K142: 33 | L142: 25 | M142: 18 | N142: 10 | O142: 5 | P142: =F131 -> Future annual RoC, New 'green'-field dev. spending | U142: =E132*(1+$E$133/100) -> 5.25 | V142: =U142*(1+$E$133/100) -> 3.9375 | W142: =V142*(1+$E$133/100) -> 2.953125 | X142: 2.21484375 | Y142: 1.661132812 | Z142: 1.245849609 | AA142: 0.934387207 | AB142: 0.7007904053 | AC142: 0.525592804 | AD142: 0.394194603 | AE142: 0.2956459522 | AF142: 0.2217344642 | AG142: 0.1663008481 | AH142: 0.1247256361 | AI142: 0.09354422707 | AJ142: 0.0701581703 | AK142: 0.05261862773 | AL142: 0.0394639708 | AM142: 0.0295979781 | AN142: 0.02219848357 | AO142: 0.01664886268 | AP142: 0.01248664701 | AQ142: 0.009364985257 | AR142: 0.007023738943 | AS142: 0.005267804207 | AT142: 0.003950853155 | AU142: 0.002963139867 | AV142: 0.0022223549 | AW142: 0.001666766175 | AX142: 0.001250074631 | AY142: 0.0009375559734 | AZ142: 0.00070316698 | BA142: 0.000527375235 | BB142: 0.0003955314263 | BC142: 0.0002966485697 | BD142: 0.0002224864273 | BE142: 0.0001668648205 | BF142: 0.0001251486153 | BG142: 9.386146151e-05 | BH142: 7.039609613e-05 | BI142: 5.27970721e-05 | BJ142: 3.959780407e-05 | BK142: 2.969835306e-05 | BL142: 2.227376479e-05 | BM142: 1.670532359e-05 | BN142: 1.25289927e-05 | BO142: 9.396744521e-06 | BP142: 7.047558391e-06 | BQ142: 5.285668793e-06 | BR142: 3.964251595e-06 | BS142: 2.973188696e-06 | BT142: 2.229891522e-06
A143: =hist!A263 -> Average cost per unit greenfield dev., (2018-GNOK/(Mtoe/yr)) | B143: 2 | C143: =IF(B143=1,"annual rate of change",IF(B143=2,"manual entries at 5 yr intervals","decling rate of growth in RoC in spending")) -> manual entries at 5 yr intervals | E143: =hist!AR263 -> 8.305776174 | F143: =hist!AS263 -> 8.305776174 | G143: 8.3 | H143: 8.5 | I143: 9 | J143: 9.5 | K143: 10 | L143: 10.5 | M143: 11 | N143: 12 | O143: 13 | P143: =T141 -> New 'green'-field dev. spending | U143: =F142 -> 78.12857473 | V143: =U143*(1+V142/100) -> 81.20488736 | W143: 83.60296919 | X143: 85.45464432 | Y143: 86.87415946 | Z143: 87.95648084 | AA143: 88.77833494 | AB143: 89.400485 | AC143: 89.87036751 | AD143: 90.22463165 | AE143: 90.49137712 | AF143: 90.69202769 | AG143: 90.8428493 | AH143: 90.95615362 | AI143: 91.04123785 | AJ143: 91.10511072 | AK143: 91.15304898 | AL143: 91.18902159 | AM143: 91.2160117 | AN143: 91.23626027 | AO143: 91.25145007 | AP143: 91.26284432 | AQ143: 91.27139107 | AR143: 91.27780173 | AS143: 91.28261007 | AT143: 91.28621651 | AU143: 91.28892145 | AV143: 91.29095021 | AW143: 91.29247182 | AX143: 91.29361304 | AY143: 91.29446897 | AZ143: 91.29511093 | BA143: 91.29559239 | BB143: 91.2959535 | BC143: 91.29622432 | BD143: 91.29642745 | BE143: 91.29657979 | BF143: 91.29669404 | BG143: 91.29677974 | BH143: 91.29684401 | BI143: 91.29689221 | BJ143: 91.29692836 | BK143: 91.29695547 | BL143: 91.29697581 | BM143: 91.29699106 | BN143: 91.2970025 | BO143: 91.29701108 | BP143: 91.29701751 | BQ143: 91.29702234 | BR143: 91.29702596 | BS143: 91.29702867 | BT143: 91.29703071
T145: =A143 -> Average cost per unit greenfield dev., (2018-GNOK/(Mtoe/yr)) | U145: =E143*(1+$E$135/100) -> 8.305776174 | V145: =U145*(1+$E$135/100) -> 8.305776174 | W145: 8.305776174 | X145: 8.305776174 | Y145: 8.305776174 | Z145: 8.305776174 | AA145: 8.305776174 | AB145: 8.305776174 | AC145: 8.305776174 | AD145: 8.305776174 | AE145: 8.305776174 | AF145: 8.305776174 | AG145: 8.305776174 | AH145: 8.305776174 | AI145: 8.305776174 | AJ145: 8.305776174 | AK145: 8.305776174 | AL145: 8.305776174 | AM145: 8.305776174 | AN145: 8.305776174 | AO145: 8.305776174 | AP145: 8.305776174 | AQ145: 8.305776174 | AR145: 8.305776174 | AS145: 8.305776174 | AT145: 8.305776174 | AU145: 8.305776174 | AV145: 8.305776174 | AW145: 8.305776174 | AX145: 8.305776174 | AY145: 8.305776174 | AZ145: 8.305776174 | BA145: 8.305776174 | BB145: 8.305776174 | BC145: 8.305776174 | BD145: 8.305776174 | BE145: 8.305776174 | BF145: 8.305776174 | BG145: 8.305776174 | BH145: 8.305776174 | BI145: 8.305776174 | BJ145: 8.305776174 | BK145: 8.305776174 | BL145: 8.305776174 | BM145: 8.305776174 | BN145: 8.305776174 | BO145: 8.305776174 | BP145: 8.305776174 | BQ145: 8.305776174 | BR145: 8.305776174 | BS145: 8.305776174 | BT145: 8.305776174
N146: =F135 -> Future annual RoC, Average cost per unit greenfield dev., (2018-GNOK/(Mtoe/yr)) reflecting the learning curve | U146: =E136*(1+$E$137/100) -> 3.76 | V146: =U146*(1+$E$137/100) -> 3.5344 | W146: =V146*(1+$E$137/100) -> 3.322336 | X146: 3.12299584 | Y146: 2.93561609 | Z146: 2.759479124 | AA146: 2.593910377 | AB146: 2.438275754 | AC146: 2.291979209 | AD146: 2.154460456 | AE146: 2.025192829 | AF146: 1.903681259 | AG146: 1.789460384 | AH146: 1.682092761 | AI146: 1.581167195 | AJ146: 1.486297163 | AK146: 1.397119334 | AL146: 1.313292174 | AM146: 1.234494643 | AN146: 1.160424965 | AO146: 1.090799467 | AP146: 1.025351499 | AQ146: 0.9638304087 | AR146: 0.9060005842 | AS146: 0.8516405492 | AT146: 0.8005421162 | AU146: 0.7525095892 | AV146: 0.7073590139 | AW146: 0.664917473 | AX146: 0.6250224247 | AY146: 0.5875210792 | AZ146: 0.5522698144 | BA146: 0.5191336256 | BB146: 0.487985608 | BC146: 0.4587064716 | BD146: 0.4311840833 | BE146: 0.4053130383 | BF146: 0.380994256 | BG146: 0.3581346006 | BH146: 0.3366465246 | BI146: 0.3164477331 | BJ146: 0.2974608691 | BK146: 0.279613217 | BL146: 0.2628364239 | BM146: 0.2470662385 | BN146: 0.2322422642 | BO146: 0.2183077283 | BP146: 0.2052092646 | BQ146: 0.1928967088 | BR146: 0.1813229062 | BS146: 0.1704435319 | BT146: 0.16021692
T147: =T145 -> Average cost per unit greenfield dev., (2018-GNOK/(Mtoe/yr)) | U147: =E143*(1+U145/100) -> 8.995635352 | V147: =U147*(1+V146/100) -> 9.313577088 | W147: =V147*(1+W146/100) -> 9.623005413 | X147: 9.923531472 | Y147: 10.21484826 | Z147: 10.49672486 | AA147: 10.7690005 | AB147: 11.03157843 | AC147: 11.28441991 | AD147: 11.52753828 | AE147: 11.76099315 | AF147: 11.98488498 | AG147: 12.19934975 | AH147: 12.40455412 | AI147: 12.60069086 | AJ147: 12.78797458 | AK147: 12.96663784 | AL147: 13.13692768 | AM147: 13.29910235 | AN147: 13.45342845 | AO147: 13.60017838 | AP147: 13.73962801 | AQ147: 13.87205472 | AR147: 13.99773562 | AS147: 14.11694601 | AT147: 14.22995811 | AU147: 14.33703991 | AV147: 14.43845426 | AW147: 14.53445806 | AX147: 14.62530168 | AY147: 14.71122841 | AZ147: 14.79247409 | BA147: 14.86926679 | BB147: 14.94182668 | BC147: 15.0103658 | BD147: 15.07508811 | BE147: 15.13618941 | BF147: 15.19385742 | BG147: 15.24827188 | BH147: 15.29960466 | BI147: 15.34801991 | BJ147: 15.39367426 | BK147: 15.43671701 | BL147: 15.47729033 | BM147: 15.51552949 | BN147: 15.5515631 | BO147: 15.58551337 | BP147: 15.61749628 | BQ147: 15.64762192 | BR147: 15.67599464 | BS147: 15.70271336 | BT147: 15.72787177
T149: =D140 -> Forecast by future manual entries every 5 yrs | U149: 2019 | V149: 2020 | W149: =V149+1 -> 2021 | X149: 2022 | Y149: 2023 | Z149: 2024 | AA149: 2025 | AB149: 2026 | AC149: 2027 | AD149: 2028 | AE149: 2029 | AF149: 2030 | AG149: 2031 | AH149: 2032 | AI149: 2033 | AJ149: 2034 | AK149: 2035 | AL149: 2036 | AM149: 2037 | AN149: 2038 | AO149: 2039 | AP149: 2040 | AQ149: 2041 | AR149: 2042 | AS149: 2043 | AT149: 2044 | AU149: 2045 | AV149: 2046 | AW149: 2047 | AX149: 2048 | AY149: 2049 | AZ149: 2050 | BA149: 2051 | BB149: 2052 | BC149: 2053 | BD149: 2054 | BE149: 2055 | BF149: 2056 | BG149: 2057 | BH149: 2058 | BI149: 2059 | BJ149: 2060 | BK149: 2061 | BL149: 2062 | BM149: 2063 | BN149: 2064 | BO149: 2065 | BP149: 2066 | BQ149: 2067 | BR149: 2068 | BS149: 2069 | BT149: 2070
T150: =T141 -> New 'green'-field dev. spending | U150: =F142 -> 78.12857473 | V150: =G142 -> 60 | W150: =$V150+(($AA150-$V150)/5)*1 -> 60 | X150: =$V150+(($AA150-$V150)/5)*2 -> 60 | Y150: =$V150+(($AA150-$V150)/5)*3 -> 60 | Z150: =$V150+(($AA150-$V150)/5)*4 -> 60 | AA150: =H142 -> 60 | AB150: =$AA150+(($AF150-$AA150)/5)*1 -> 57 | AC150: =$AA150+(($AF150-$AA150)/5)*2 -> 54 | AD150: =$AA150+(($AF150-$AA150)/5)*3 -> 51 | AE150: =$AA150+(($AF150-$AA150)/5)*4 -> 48 | AF150: =I142 -> 45 | AG150: =$AF150+(($AK150-$AF150)/5)*1 -> 43.4 | AH150: =$AF150+(($AK150-$AF150)/5)*2 -> 41.8 | AI150: =$AF150+(($AK150-$AF150)/5)*3 -> 40.2 | AJ150: =$AF150+(($AK150-$AF150)/5)*4 -> 38.6 | AK150: =J142 -> 37 | AL150: =$AK150+(($AP150-$AK150)/5)*1 -> 36.2 | AM150: =$AK150+(($AP150-$AK150)/5)*2 -> 35.4 | AN150: =$AK150+(($AP150-$AK150)/5)*3 -> 34.6 | AO150: =$AK150+(($AP150-$AK150)/5)*4 -> 33.8 | AP150: =K142 -> 33 | AQ150: =$AP150+(($AU150-$AP150)/5)*1 -> 31.4 | AR150: =$AP150+(($AU150-$AP150)/5)*2 -> 29.8 | AS150: =$AP150+(($AU150-$AP150)/5)*3 -> 28.2 | AT150: =$AP150+(($AU150-$AP150)/5)*4 -> 26.6 | AU150: =L142 -> 25 | AV150: =$AU150+(($AZ150-$AU150)/5)*1 -> 23.6 | AW150: =$AU150+(($AZ150-$AU150)/5)*2 -> 22.2 | AX150: =$AU150+(($AZ150-$AU150)/5)*3 -> 20.8 | AY150: =$AU150+(($AZ150-$AU150)/5)*4 -> 19.4 | AZ150: =M142 -> 18 | BA150: =$AZ150+(($BJ150-$AZ150)/10)*1 -> 17.2 | BB150: =$AZ150+(($BJ150-$AZ150)/10)*2 -> 16.4 | BC150: =$AZ150+(($BJ150-$AZ150)/10)*3 -> 15.6 | BD150: =$AZ150+(($BJ150-$AZ150)/10)*4 -> 14.8 | BE150: =$AZ150+(($BJ150-$AZ150)/10)*5 -> 14 | BF150: =$AZ150+(($BJ150-$AZ150)/10)*6 -> 13.2 | BG150: =$AZ150+(($BJ150-$AZ150)/10)*7 -> 12.4 | BH150: =$AZ150+(($BJ150-$AZ150)/10)*8 -> 11.6 | BI150: =$AZ150+(($BJ150-$AZ150)/10)*9 -> 10.8 | BJ150: =N142 -> 10 | BK150: =$BJ150+(($BT150-$BJ150)/10)*1 -> 9.5 | BL150: =$BJ150+(($BT150-$BJ150)/10)*2 -> 9 | BM150: =$BJ150+(($BT150-$BJ150)/10)*3 -> 8.5 | BN150: =$BJ150+(($BT150-$BJ150)/10)*4 -> 8 | BO150: =$BJ150+(($BT150-$BJ150)/10)*5 -> 7.5 | BP150: =$BJ150+(($BT150-$BJ150)/10)*6 -> 7 | BQ150: =$BJ150+(($BT150-$BJ150)/10)*7 -> 6.5 | BR150: =$BJ150+(($BT150-$BJ150)/10)*8 -> 6 | BS150: =$BJ150+(($BT150-$BJ150)/10)*9 -> 5.5 | BT150: =O142 -> 5
T151: =T145 -> Average cost per unit greenfield dev., (2018-GNOK/(Mtoe/yr)) | U151: =F143 -> 8.305776174 | V151: =G143 -> 8.3 | W151: =$V151+(($AA151-$V151)/5)*1 -> 8.34 | X151: =$V151+(($AA151-$V151)/5)*2 -> 8.38 | Y151: =$V151+(($AA151-$V151)/5)*3 -> 8.42 | Z151: =$V151+(($AA151-$V151)/5)*4 -> 8.46 | AA151: =H143 -> 8.5 | AB151: =$AA151+(($AF151-$AA151)/5)*1 -> 8.6 | AC151: =$AA151+(($AF151-$AA151)/5)*2 -> 8.7 | AD151: =$AA151+(($AF151-$AA151)/5)*3 -> 8.8 | AE151: =$AA151+(($AF151-$AA151)/5)*4 -> 8.9 | AF151: =I143 -> 9 | AG151: =$AF151+(($AK151-$AF151)/5)*1 -> 9.1 | AH151: =$AF151+(($AK151-$AF151)/5)*2 -> 9.2 | AI151: =$AF151+(($AK151-$AF151)/5)*3 -> 9.3 | AJ151: =$AF151+(($AK151-$AF151)/5)*4 -> 9.4 | AK151: =J143 -> 9.5 | AL151: =$AK151+(($AP151-$AK151)/5)*1 -> 9.6 | AM151: =$AK151+(($AP151-$AK151)/5)*2 -> 9.7 | AN151: =$AK151+(($AP151-$AK151)/5)*3 -> 9.8 | AO151: =$AK151+(($AP151-$AK151)/5)*4 -> 9.9 | AP151: =K143 -> 10 | AQ151: =$AP151+(($AU151-$AP151)/5)*1 -> 10.1 | AR151: =$AP151+(($AU151-$AP151)/5)*2 -> 10.2 | AS151: =$AP151+(($AU151-$AP151)/5)*3 -> 10.3 | AT151: =$AP151+(($AU151-$AP151)/5)*4 -> 10.4 | AU151: =L143 -> 10.5 | AV151: =$AU151+(($AZ151-$AU151)/5)*1 -> 10.6 | AW151: =$AU151+(($AZ151-$AU151)/5)*2 -> 10.7 | AX151: =$AU151+(($AZ151-$AU151)/5)*3 -> 10.8 | AY151: =$AU151+(($AZ151-$AU151)/5)*4 -> 10.9 | AZ151: =M143 -> 11 | BA151: =$AZ151+(($BJ151-$AZ151)/10)*1 -> 11.1 | BB151: =$AZ151+(($BJ151-$AZ151)/10)*2 -> 11.2 | BC151: =$AZ151+(($BJ151-$AZ151)/10)*3 -> 11.3 | BD151: =$AZ151+(($BJ151-$AZ151)/10)*4 -> 11.4 | BE151: =$AZ151+(($BJ151-$AZ151)/10)*5 -> 11.5 | BF151: =$AZ151+(($BJ151-$AZ151)/10)*6 -> 11.6 | BG151: =$AZ151+(($BJ151-$AZ151)/10)*7 -> 11.7 | BH151: =$AZ151+(($BJ151-$AZ151)/10)*8 -> 11.8 | BI151: =$AZ151+(($BJ151-$AZ151)/10)*9 -> 11.9 | BJ151: =N143 -> 12 | BK151: =$BJ151+(($BT151-$BJ151)/10)*1 -> 12.1 | BL151: =$BJ151+(($BT151-$BJ151)/10)*2 -> 12.2 | BM151: =$BJ151+(($BT151-$BJ151)/10)*3 -> 12.3 | BN151: =$BJ151+(($BT151-$BJ151)/10)*4 -> 12.4 | BO151: =$BJ151+(($BT151-$BJ151)/10)*5 -> 12.5 | BP151: =$BJ151+(($BT151-$BJ151)/10)*6 -> 12.6 | BQ151: =$BJ151+(($BT151-$BJ151)/10)*7 -> 12.7 | BR151: =$BJ151+(($BT151-$BJ151)/10)*8 -> 12.8 | BS151: =$BJ151+(($BT151-$BJ151)/10)*9 -> 12.9 | BT151: =O143 -> 13
T153: Selected | U153: 2019 | V153: 2020 | W153: =V153+1 -> 2021 | X153: 2022 | Y153: 2023 | Z153: 2024 | AA153: 2025 | AB153: 2026 | AC153: 2027 | AD153: 2028 | AE153: 2029 | AF153: 2030 | AG153: 2031 | AH153: 2032 | AI153: 2033 | AJ153: 2034 | AK153: 2035 | AL153: 2036 | AM153: 2037 | AN153: 2038 | AO153: 2039 | AP153: 2040 | AQ153: 2041 | AR153: 2042 | AS153: 2043 | AT153: 2044 | AU153: 2045 | AV153: 2046 | AW153: 2047 | AX153: 2048 | AY153: 2049 | AZ153: 2050 | BA153: 2051 | BB153: 2052 | BC153: 2053 | BD153: 2054 | BE153: 2055 | BF153: 2056 | BG153: 2057 | BH153: 2058 | BI153: 2059 | BJ153: 2060 | BK153: 2061 | BL153: 2062 | BM153: 2063 | BN153: 2064 | BO153: 2065 | BP153: 2066 | BQ153: 2067 | BR153: 2068 | BS153: 2069 | BT153: 2070
S154: =A142 -> New 'green'-field dev. spending | T154: =B142 -> 2 | U154: =IF($B$142=1,U141,IF($B$142=2,U150,U143)) -> 78.12857473 | V154: 60 | W154: 60 | X154: 60 | Y154: 60 | Z154: 60 | AA154: 60 | AB154: 57 | AC154: 54 | AD154: 51 | AE154: 48 | AF154: 45 | AG154: 43.4 | AH154: 41.8 | AI154: 40.2 | AJ154: 38.6 | AK154: 37 | AL154: 36.2 | AM154: 35.4 | AN154: 34.6 | AO154: 33.8 | AP154: 33 | AQ154: 31.4 | AR154: 29.8 | AS154: 28.2 | AT154: 26.6 | AU154: 25 | AV154: 23.6 | AW154: 22.2 | AX154: 20.8 | AY154: 19.4 | AZ154: 18 | BA154: 17.2 | BB154: 16.4 | BC154: 15.6 | BD154: 14.8 | BE154: 14 | BF154: 13.2 | BG154: 12.4 | BH154: 11.6 | BI154: 10.8 | BJ154: 10 | BK154: 9.5 | BL154: 9 | BM154: 8.5 | BN154: 8 | BO154: 7.5 | BP154: 7 | BQ154: 6.5 | BR154: 6 | BS154: 5.5 | BT154: 5
S155: =A143 -> Average cost per unit greenfield dev., (2018-GNOK/(Mtoe/yr)) | T155: =B143 -> 2 | U155: =IF($B$143=1,U145,IF($B$143=2,U151,U147)) -> 8.305776174 | V155: 8.3 | W155: 8.34 | X155: 8.38 | Y155: 8.42 | Z155: 8.46 | AA155: 8.5 | AB155: 8.6 | AC155: 8.7 | AD155: 8.8 | AE155: 8.9 | AF155: 9 | AG155: 9.1 | AH155: 9.2 | AI155: 9.3 | AJ155: 9.4 | AK155: 9.5 | AL155: 9.6 | AM155: 9.7 | AN155: 9.8 | AO155: 9.9 | AP155: 10 | AQ155: 10.1 | AR155: 10.2 | AS155: 10.3 | AT155: 10.4 | AU155: 10.5 | AV155: 10.6 | AW155: 10.7 | AX155: 10.8 | AY155: 10.9 | AZ155: 11 | BA155: 11.1 | BB155: 11.2 | BC155: 11.3 | BD155: 11.4 | BE155: 11.5 | BF155: 11.6 | BG155: 11.7 | BH155: 11.8 | BI155: 11.9 | BJ155: 12 | BK155: 12.1 | BL155: 12.2 | BM155: 12.3 | BN155: 12.4 | BO155: 12.5 | BP155: 12.6 | BQ155: 12.7 | BR155: 12.8 | BS155: 12.9 | BT155: 13
S156: Greenfield dev. (Mtoe/yr)/yr | T156: 1 | 1 | U156: =U141/U145 -> 9.406535054 | V156: 9.406535054 | W156: 9.406535054 | X156: 9.406535054 | Y156: 9.406535054 | Z156: 9.406535054 | AA156: 9.406535054 | AB156: 9.406535054 | AC156: 9.406535054 | AD156: 9.406535054 | AE156: 9.406535054 | AF156: 9.406535054 | AG156: 9.406535054 | AH156: 9.406535054 | AI156: 9.406535054 | AJ156: 9.406535054 | AK156: 9.406535054 | AL156: 9.406535054 | AM156: 9.406535054 | AN156: 9.406535054 | AO156: 9.406535054 | AP156: 9.406535054 | AQ156: 9.406535054 | AR156: 9.406535054 | AS156: 9.406535054 | AT156: 9.406535054 | AU156: 9.406535054 | AV156: 9.406535054 | AW156: 9.406535054 | AX156: 9.406535054 | AY156: 9.406535054 | AZ156: 9.406535054 | BA156: 9.406535054 | BB156: 9.406535054 | BC156: 9.406535054 | BD156: 9.406535054 | BE156: 9.406535054 | BF156: 9.406535054 | BG156: 9.406535054 | BH156: 9.406535054 | BI156: 9.406535054 | BJ156: 9.406535054 | BK156: 9.406535054 | BL156: 9.406535054 | BM156: 9.406535054 | BN156: 9.406535054 | BO156: 9.406535054 | BP156: 9.406535054 | BQ156: 9.406535054 | BR156: 9.406535054 | BS156: 9.406535054 | BT156: 9.406535054
S157: =S156 -> Greenfield dev. (Mtoe/yr)/yr | T157: 2 | 1 | U157: =U150/U145 -> 9.406535054 | V157: 7.223888381 | W157: 7.223888381 | X157: 7.223888381 | Y157: 7.223888381 | Z157: 7.223888381 | AA157: 7.223888381 | AB157: 6.862693962 | AC157: 6.501499543 | AD157: 6.140305124 | AE157: 5.779110705 | AF157: 5.417916286 | AG157: 5.225279262 | AH157: 5.032642239 | AI157: 4.840005215 | AJ157: 4.647368192 | AK157: 4.454731168 | AL157: 4.358412657 | AM157: 4.262094145 | AN157: 4.165775633 | AO157: 4.069457121 | AP157: 3.97313861 | AQ157: 3.780501586 | AR157: 3.587864563 | AS157: 3.395227539 | AT157: 3.202590516 | AU157: 3.009953492 | AV157: 2.841396097 | AW157: 2.672838701 | AX157: 2.504281306 | AY157: 2.33572391 | AZ157: 2.167166514 | BA157: 2.070848003 | BB157: 1.974529491 | BC157: 1.878210979 | BD157: 1.781892467 | BE157: 1.685573956 | BF157: 1.589255444 | BG157: 1.492936932 | BH157: 1.39661842 | BI157: 1.300299909 | BJ157: 1.203981397 | BK157: 1.143782327 | BL157: 1.083583257 | BM157: 1.023384187 | BN157: 0.9631851175 | BO157: 0.9029860477 | BP157: 0.8427869778 | BQ157: 0.782587908 | BR157: 0.7223888381 | BS157: 0.6621897683 | BT157: 0.6019906984
S158: =S157 -> Greenfield dev. (Mtoe/yr)/yr | T158: 3 | 1 | U158: =U143/U145 -> 9.406535054 | V158: 9.776917371 | W158: 10.06564196 | X158: 10.2885802 | Y158: 10.45948719 | Z158: 10.58979667 | AA158: 10.68874637 | AB158: 10.76365208 | AC158: 10.82022506 | AD158: 10.8628778 | AE158: 10.89499346 | AF158: 10.91915142 | AG158: 10.93731006 | AH158: 10.95095169 | AI158: 10.96119567 | AJ158: 10.96888585 | AK158: 10.97465752 | AL158: 10.97898856 | AM158: 10.98223812 | AN158: 10.98467601 | AO158: 10.98650483 | AP158: 10.98787668 | AQ158: 10.98890569 | AR158: 10.98967752 | AS158: 10.99025644 | AT158: 10.99069065 | AU158: 10.99101632 | AV158: 10.99126058 | AW158: 10.99144377 | AX158: 10.99158118 | AY158: 10.99168423 | AZ158: 10.99176152 | BA158: 10.99181949 | BB158: 10.99186296 | BC158: 10.99189557 | BD158: 10.99192002 | BE158: 10.99193837 | BF158: 10.99195212 | BG158: 10.99196244 | BH158: 10.99197018 | BI158: 10.99197598 | BJ158: 10.99198033 | BK158: 10.9919836 | BL158: 10.99198605 | BM158: 10.99198788 | BN158: 10.99198926 | BO158: 10.99199029 | BP158: 10.99199107 | BQ158: 10.99199165 | BR158: 10.99199208 | BS158: 10.99199241 | BT158: 10.99199266
S159: Greenfield dev. (Mtoe/yr)/yr | T159: 1 | 2 | U159: =U141/U151 -> 9.406535054 | V159: 9.413081292 | W159: 9.36793462 | X159: 9.323218941 | Y159: 9.278928115 | Z159: 9.235056114 | AA159: 9.191597027 | AB159: 9.084717992 | AC159: 8.980295946 | AD159: 8.878247128 | AE159: 8.778491542 | AF159: 8.680952747 | AG159: 8.585557662 | AH159: 8.492236383 | AI159: 8.400922014 | AJ159: 8.311550503 | AK159: 8.224060498 | AL159: 8.138393201 | AM159: 8.05449224 | AN159: 7.972303544 | AO159: 7.891775225 | AP159: 7.812857473 | AQ159: 7.735502448 | AR159: 7.659664189 | AS159: 7.585298517 | AT159: 7.512362955 | AU159: 7.440816641 | AV159: 7.370620257 | AW159: 7.301735956 | AX159: 7.23412729 | AY159: 7.167759149 | AZ159: 7.102597702 | BA159: 7.038610336 | BB159: 6.975765601 | BC159: 6.914033162 | BD159: 6.853383748 | BE159: 6.793789107 | BF159: 6.735221959 | BG159: 6.67765596 | BH159: 6.621065655 | BI159: 6.565426448 | BJ159: 6.510714561 | BK159: 6.456907002 | BL159: 6.403981535 | BM159: 6.351916644 | BN159: 6.30069151 | BO159: 6.250285978 | BP159: 6.200680534 | BQ159: 6.151856278 | BR159: 6.103794901 | BS159: 6.056478661 | BT159: 6.009890364
S160: Greenfield dev. (Mtoe/yr)/yr | T160: 2 | 2 | U160: =U150/U151 -> 9.406535054 | V160: 7.228915663 | W160: 7.194244604 | X160: 7.159904535 | Y160: 7.125890736 | Z160: 7.092198582 | AA160: 7.058823529 | AB160: 6.627906977 | AC160: 6.206896552 | AD160: 5.795454545 | AE160: 5.393258427 | AF160: 5 | AG160: 4.769230769 | AH160: 4.543478261 | AI160: 4.322580645 | AJ160: 4.106382979 | AK160: 3.894736842 | AL160: 3.770833333 | AM160: 3.649484536 | AN160: 3.530612245 | AO160: 3.414141414 | AP160: 3.3 | AQ160: 3.108910891 | AR160: 2.921568627 | AS160: 2.737864078 | AT160: 2.557692308 | AU160: 2.380952381 | AV160: 2.226415094 | AW160: 2.074766355 | AX160: 1.925925926 | AY160: 1.779816514 | AZ160: 1.636363636 | BA160: 1.54954955 | BB160: 1.464285714 | BC160: 1.380530973 | BD160: 1.298245614 | BE160: 1.217391304 | BF160: 1.137931034 | BG160: 1.05982906 | BH160: 0.9830508475 | BI160: 0.9075630252 | BJ160: 0.8333333333 | BK160: 0.7851239669 | BL160: 0.737704918 | BM160: 0.6910569106 | BN160: 0.6451612903 | BO160: 0.6 | BP160: 0.5555555556 | BQ160: 0.5118110236 | BR160: 0.46875 | BS160: 0.4263565891 | BT160: 0.3846153846
S161: Greenfield dev. (Mtoe/yr)/yr | T161: 3 | 2 | U161: =U143/U151 -> 9.406535054 | V161: 9.783721368 | W161: 10.02433683 | X161: 10.19745159 | Y161: 10.31759614 | Z161: 10.39674714 | AA161: 10.44450999 | AB161: 10.39540523 | AC161: 10.3299273 | AD161: 10.25279905 | AE161: 10.16757046 | AF161: 10.07689197 | AG161: 9.982730693 | AH161: 9.886538437 | AI161: 9.789380415 | AJ161: 9.692033055 | AK161: 9.595057787 | AL161: 9.498856416 | AM161: 9.403712546 | AN161: 9.309822477 | AO161: 9.217318189 | AP161: 9.126284432 | AQ161: 9.036771393 | AR161: 8.948804092 | AS161: 8.862389327 | AT161: 8.777520818 | AU161: 8.694182995 | AV161: 8.612353794 | AW161: 8.532006712 | AX161: 8.453112319 | AY161: 8.375639355 | AZ161: 8.299555539 | BA161: 8.224828144 | BB161: 8.151424419 | BC161: 8.079311887 | BD161: 8.008458548 | BE161: 7.938833025 | BF161: 7.870404659 | BG161: 7.803143567 | BH161: 7.737020678 | BI161: 7.672007749 | BJ161: 7.608077363 | BK161: 7.545202932 | BL161: 7.483358673 | BM161: 7.422519598 | BN161: 7.362661492 | BO161: 7.303760886 | BP161: 7.245795041 | BQ161: 7.188741916 | BR161: 7.132580153 | BS161: 7.077289044 | BT161: 7.022848516
S162: Greenfield dev. (Mtoe/yr)/yr | T162: 1 | 3 | U162: =U141/U147 -> 8.685164712 | V162: 8.38867537 | W162: 8.118937003 | X162: 7.873061616 | Y162: 7.648530135 | Z162: 7.443138288 | AA162: 7.254951352 | AB162: 7.082266173 | AC162: 6.923579178 | AD162: 6.777559342 | AE162: 6.64302527 | AF162: 6.518925703 | AG162: 6.404322883 | AH162: 6.298378317 | AI162: 6.200340566 | AJ162: 6.109534725 | AK162: 6.025353348 | AL162: 5.947248598 | AM162: 5.874725427 | AN162: 5.807335654 | AO162: 5.744672794 | AP162: 5.686367539 | AQ162: 5.632083803 | AR162: 5.581515242 | AS162: 5.534382199 | AT162: 5.490429003 | AU162: 5.449421583 | AV162: 5.411145358 | AW162: 5.375403362 | AX162: 5.342014573 | AY162: 5.310812431 | AZ162: 5.281643508 | BA162: 5.254366325 | BB162: 5.228850289 | BC162: 5.204974733 | BD162: 5.182628065 | BE162: 5.161706994 | BF162: 5.142115828 | BG162: 5.12376585 | BH162: 5.106574743 | BI162: 5.090466079 | BJ162: 5.075368842 | BK162: 5.061217011 | BL162: 5.047949162 | BM162: 5.035508121 | BN162: 5.02384064 | BO162: 5.012897098 | BP162: 5.002631235 | BQ162: 4.992999903 | BR162: 4.983962837 | BS162: 4.975482449 | BT162: 4.967523635
S163: Greenfield dev. (Mtoe/yr)/yr | T163: 2 | 3 | U163: =U150/U147 -> 8.685164712 | V163: 6.442207911 | W163: 6.235058324 | X163: 6.046234667 | Y163: 5.873802379 | Z163: 5.716068658 | AA163: 5.571547704 | AB163: 5.166984977 | AC163: 4.785358966 | AD163: 4.424188303 | AE163: 4.081287981 | AF163: 3.754729402 | AG163: 3.557566666 | AH163: 3.369730148 | AI163: 3.190301265 | AJ163: 3.018460803 | AK163: 2.853476781 | AL163: 2.755591024 | AM163: 2.661833789 | AN163: 2.571835136 | AO163: 2.485261521 | AP163: 2.40181175 | AQ163: 2.26354355 | AR163: 2.128915762 | AS163: 1.997599195 | AT163: 1.869295734 | AU163: 1.743735119 | AV163: 1.634524 | AW163: 1.527404731 | AX163: 1.422192885 | AY163: 1.318720603 | AZ163: 1.216834986 | BA163: 1.156748361 | BB163: 1.097590031 | BC163: 1.039281801 | BD163: 0.9817521391 | BE163: 0.9249355715 | BF163: 0.8687721383 | BG163: 0.8132069061 | BH163: 0.7581895258 | BI163: 0.7036738331 | BJ163: 0.6496174876 | BK163: 0.6154158292 | BL163: 0.5814971361 | BM163: 0.5478382164 | BN163: 0.5144177436 | BO163: 0.4812161026 | BP163: 0.4482152499 | BQ163: 0.4153985847 | BR163: 0.3827508325 | BS163: 0.3502579378 | BT163: 0.3179069663
S164: Greenfield dev. (Mtoe/yr)/yr | T164: 3 | 3 | U164: =U143/U147 -> 8.685164712 | V164: 8.718979463 | W164: 8.687823149 | X164: 8.611313883 | Y164: 8.504694075 | Z164: 8.379421389 | AA164: 8.243878803 | AB164: 8.10405198 | AC164: 7.964110537 | AD164: 7.826877647 | AE164: 7.694195204 | AF164: 7.567200509 | AG164: 7.446532086 | AH164: 7.332480693 | AI164: 7.225098912 | AJ164: 7.124279938 | AK164: 7.02981375 | AL164: 6.941426779 | AM164: 6.858809663 | AN164: 6.781636413 | AO164: 6.709577443 | AP164: 6.642308237 | AQ164: 6.579514923 | AR164: 6.52089768 | AS164: 6.46617264 | AT164: 6.415072749 | AU164: 6.367347933 | AV164: 6.322764792 | AW164: 6.281106006 | AX164: 6.242169565 | AY164: 6.205767894 | AZ164: 6.171726946 | BA164: 6.139885285 | BB164: 6.110093195 | BC164: 6.082211821 | BD164: 6.056112361 | BE164: 6.0316753 | BF164: 6.008789705 | BG164: 5.987352564 | BH164: 5.967268178 | BI164: 5.948447601 | BJ164: 5.930808123 | BK164: 5.914272796 | BL164: 5.898769997 | BM164: 5.884233029 | BN164: 5.870599752 | BO164: 5.857812247 | BP164: 5.845816503 | BQ164: 5.834562134 | BR164: 5.824002115 | BS164: 5.814092544 | BT164: 5.804792414
S165: =CONCATENATE(S164," BEFORE contingent reserve constraint") -> Greenfield dev. (Mtoe/yr)/yr BEFORE contingent reserve constraint | T165: =CONCATENATE(B142," | ",B143) -> 2 | 2 | U165: =IF(AND($B142=1,$B143=1),U156,IF(AND($B142=2,$B143=1),U157,IF(AND($B142=3,$B143=1),U158,IF(AND($B142=1,$B143=2),U159,IF(AND($B142=2,$B143=2),U160,IF(AND($B142=3,$B143=2),U161,IF(AND($B142=1,$B143=3),U162,IF(AND($B142=2,$B143=3),U163,IF(AND($B142=3,$B143=3),U164,"oops"))))))))) -> 9.406535054 | V165: =IF(AND($B142=1,$B143=1),V156,IF(AND($B142=2,$B143=1),V157,IF(AND($B142=3,$B143=1),V158,IF(AND($B142=1,$B143=2),V159,IF(AND($B142=2,$B143=2),V160,IF(AND($B142=3,$B143=2),V161,IF(AND($B142=1,$B143=3),V162,IF(AND($B142=2,$B143=3),V163,IF(AND($B142=3,$B143=3),V164,"oops"))))))))) -> 7.228915663 | W165: =IF(AND($B142=1,$B143=1),W156,IF(AND($B142=2,$B143=1),W157,IF(AND($B142=3,$B143=1),W158,IF(AND($B142=1,$B143=2),W159,IF(AND($B142=2,$B143=2),W160,IF(AND($B142=3,$B143=2),W161,IF(AND($B142=1,$B143=3),W162,IF(AND($B142=2,$B143=3),W163,IF(AND($B142=3,$B143=3),W164,"oops"))))))))) -> 7.194244604 | X165: 7.159904535 | Y165: 7.125890736 | Z165: 7.092198582 | AA165: 7.058823529 | AB165: 6.627906977 | AC165: 6.206896552 | AD165: 5.795454545 | AE165: 5.393258427 | AF165: 5 | AG165: 4.769230769 | AH165: 4.543478261 | AI165: 4.322580645 | AJ165: 4.106382979 | AK165: 3.894736842 | AL165: 3.770833333 | AM165: 3.649484536 | AN165: 3.530612245 | AO165: 3.414141414 | AP165: 3.3 | AQ165: 3.108910891 | AR165: 2.921568627 | AS165: 2.737864078 | AT165: 2.557692308 | AU165: 2.380952381 | AV165: 2.226415094 | AW165: 2.074766355 | AX165: 1.925925926 | AY165: 1.779816514 | AZ165: 1.636363636 | BA165: 1.54954955 | BB165: 1.464285714 | BC165: 1.380530973 | BD165: 1.298245614 | BE165: 1.217391304 | BF165: 1.137931034 | BG165: 1.05982906 | BH165: 0.9830508475 | BI165: 0.9075630252 | BJ165: 0.8333333333 | BK165: 0.7851239669 | BL165: 0.737704918 | BM165: 0.6910569106 | BN165: 0.6451612903 | BO165: 0.6 | BP165: 0.5555555556 | BQ165: 0.5118110236 | BR165: 0.46875 | BS165: 0.4263565891 | BT165: 0.3846153846
S166: =CONCATENATE(S164," AFTER contingent reserve constraint") -> Greenfield dev. (Mtoe/yr)/yr AFTER contingent reserve constraint | T166: =E142/E143 -> 7.460229929 | U166: =MIN(U109,U165) -> 9.406535054 | V166: 7.228915663 | W166: 7.194244604 | X166: 7.159904535 | Y166: 7.125890736 | Z166: 7.092198582 | AA166: 7.058823529 | AB166: 6.627906977 | AC166: 6.206896552 | AD166: 5.795454545 | AE166: 5.393258427 | AF166: 5 | AG166: 4.769230769 | AH166: 4.543478261 | AI166: 4.322580645 | AJ166: 4.106382979 | AK166: 3.894736842 | AL166: 3.770833333 | AM166: 3.649484536 | AN166: 3.530612245 | AO166: 3.414141414 | AP166: 3.3 | AQ166: 3.108910891 | AR166: 2.921568627 | AS166: 2.737864078 | AT166: 2.557692308 | AU166: 2.380952381 | AV166: 2.226415094 | AW166: 2.074766355 | AX166: 1.925925926 | AY166: 1.779816514 | AZ166: 1.636363636 | BA166: 1.54954955 | BB166: 1.464285714 | BC166: 1.380530973 | BD166: 1.298245614 | BE166: 1.217391304 | BF166: 1.137931034 | BG166: 1.05982906 | BH166: 0.9830508475 | BI166: 0.9075630252 | BJ166: 0.8333333333 | BK166: 0.7851239669 | BL166: 0.737704918 | BM166: 0.6910569106 | BN166: 0.6451612903 | BO166: 0.6 | BP166: 0.5555555556 | BQ166: 0.5118110236 | BR166: 0.46875 | BS166: 0.4263565891 | BT166: 0.3846153846
T167: Actual Greenfield dev. spending (2018-GNOK/yr) | U167: =U166*U155 -> 78.12857473 | V167: 60 | W167: 60 | X167: 60 | Y167: =Y166*Y155 -> 60 | Z167: 60 | AA167: 60 | AB167: 57 | AC167: 54 | AD167: 51 | AE167: 48 | AF167: 45 | AG167: 43.4 | AH167: 41.8 | AI167: 40.2 | AJ167: 38.6 | AK167: 37 | AL167: 36.2 | AM167: 35.4 | AN167: 34.6 | AO167: 33.8 | AP167: 33 | AQ167: 31.4 | AR167: 29.8 | AS167: 28.2 | AT167: 26.6 | AU167: 25 | AV167: 23.6 | AW167: 22.2 | AX167: 20.8 | AY167: 19.4 | AZ167: 18 | BA167: 17.2 | BB167: 16.4 | BC167: 15.6 | BD167: 14.8 | BE167: 14 | BF167: 13.2 | BG167: 12.4 | BH167: 11.6 | BI167: 10.8 | BJ167: 10 | BK167: 9.5 | BL167: 9 | BM167: 8.5 | BN167: 8 | BO167: 7.5 | BP167: 7 | BQ167: 6.5 | BR167: 6 | BS167: 5.5 | BT167: 5
T168: Brownfield dev. spending (Nominal GNOK/yr) | U168: =U167 -> 78.12857473 | V168: =V167*(1+(T1244-$S1244)/$S1244) -> 61.2 | W168: 62.424 | X168: 63.67248 | Y168: 64.9459296 | Z168: 66.24484819 | AA168: 67.56974516 | AB168: 65.47508306 | AC168: 63.26960657 | AD168: 60.949721 | AE168: 58.51173216 | AF168: 55.95184388 | AG168: 55.04169388 | AH168: 54.07275715 | AI168: 53.04304628 | AJ168: 51.95051786 | AK168: 50.79307109 | AL168: 50.68873937 | AM168: 50.55991716 | AN168: 50.40566657 | AO168: 50.22502198 | AP168: 50.01698935 | AQ168: 48.54376166 | AR168: 46.99159807 | AS168: 45.35793044 | AT168: 43.64011945 | AU168: 41.83545286 | AV168: 40.28252085 | AW168: 38.65073738 | AX168: 36.93756956 | AY168: 35.14041473 | AZ168: 33.25659868 | BA168: 32.41409818 | BB168: =BB167*(1+(AZ1244-$S1244)/$S1244) -> 31.52459502 | BC168: 30.5865461 | BD168: 29.59836538 | BE168: 28.55842281 | BF168: 27.4650432 | BG168: 26.31650503 | BH168: 25.11103931 | BI168: 23.84682837 | BJ168: 22.52200457 | BK168: 21.82382243 | BL168: 21.0887042 | BM168: 20.31545171 | BN168: 19.50283364 | BO168: 18.64958467 | BP168: 17.75440461 | BQ168: 16.81595751 | BR168: 15.83287076 | BS168: 14.80373416 | BT168: 13.72709895
A175: Offshore, Brownfield dev
A176: Brownfield development | C176: maintains and improves / extends infrastructure needed to exploit reserves | J176: through IOR (improved oil and gas recovery) and EOR (enhanced oil and gas recovery measures (see e.g. Ekofisk)
A177: Future Unit Costs are subject to learning curves: It gets cheaper the more you develop.
A178: Note that your estimates should be done in 2018-costs, inflation is added later by the model.
D179: =D130 -> SC-1
D180: Forecast by future annual rates of change | E180: 0.1 | F180: =CONCATENATE("Future annual RoC, ",A191) -> Future annual RoC, Brownfield dev. spending
E181: 3 | F181: Average RoC in greenfield spending in 2018 (pct/yr)
E182: -4 | F182: =CONCATENATE("Future annual RoC in the ",LEFT(F181,SEARCH(" in 2",F181))," - pct/yr") -> Future annual RoC in the Average RoC in greenfield spending - pct/yr
E184: -0.5 | F184: =CONCATENATE("Future annual RoC, ",A192," reflecting the learning curve") -> Future annual RoC, Average cost per unit brownfield dev. (2018-GNOK/(Mtoe/yr)) reflecting the learning curve
E185: 0.2 | F185: Average RoC in cost per unit greenfield dev. in 2018 (pct/yr)
E186: -1 | F186: =CONCATENATE("Future annual RoC in the ",LEFT(F185,SEARCH(" in 2",F185))," - pct/yr") -> Future annual RoC in the Average RoC in cost per unit greenfield dev. - pct/yr
D189: Forecast by future manual entries every 5 yrs | E189: 2018 | F189: 2019 | G189: 2020 | H189: =G189+5 -> 2025 | I189: 2030 | J189: 2035 | K189: 2040 | L189: 2045 | M189: 2050 | N189: =M189+10 -> 2060 | O189: =N189+10 -> 2070 | T189: =D180 -> Forecast by future annual rates of change | U189: 2019 | V189: 2020 | W189: =V189+1 -> 2021 | X189: 2022 | Y189: 2023 | Z189: 2024 | AA189: 2025 | AB189: 2026 | AC189: 2027 | AD189: 2028 | AE189: 2029 | AF189: 2030 | AG189: 2031 | AH189: 2032 | AI189: 2033 | AJ189: 2034 | AK189: 2035 | AL189: 2036 | AM189: 2037 | AN189: 2038 | AO189: 2039 | AP189: 2040 | AQ189: 2041 | AR189: 2042 | AS189: 2043 | AT189: 2044 | AU189: 2045 | AV189: 2046 | AW189: 2047 | AX189: 2048 | AY189: 2049 | AZ189: 2050 | BA189: 2051 | BB189: 2052 | BC189: 2053 | BD189: 2054 | BE189: 2055 | BF189: 2056 | BG189: 2057 | BH189: 2058 | BI189: 2059 | BJ189: 2060 | BK189: 2061 | BL189: 2062 | BM189: 2063 | BN189: 2064 | BO189: 2065 | BP189: 2066 | BQ189: 2067 | BR189: 2068 | BS189: 2069 | BT189: 2070
B190: Forecast choice | T190: =A191 -> Brownfield dev. spending | U190: =F191 -> 65.80879085 | V190: =U190*(1+$E$180/100) -> 65.87459964 | W190: =V190*(1+$E$180/100) -> 65.94047424 | X190: 66.00641471 | Y190: 66.07242113 | Z190: 66.13849355 | AA190: 66.20463204 | AB190: 66.27083667 | AC190: 66.33710751 | AD190: 66.40344462 | AE190: 66.46984806 | AF190: 66.53631791 | AG190: 66.60285423 | AH190: 66.66945708 | AI190: 66.73612654 | AJ190: 66.80286266 | AK190: 66.86966553 | AL190: 66.93653519 | AM190: 67.00347173 | AN190: 67.0704752 | AO190: 67.13754568 | AP190: 67.20468322 | AQ190: 67.2718879 | AR190: 67.33915979 | AS190: 67.40649895 | AT190: 67.47390545 | AU190: 67.54137936 | AV190: 67.60892074 | AW190: 67.67652966 | AX190: 67.74420619 | AY190: 67.81195039 | AZ190: 67.87976234 | BA190: 67.9476421 | BB190: 68.01558975 | BC190: 68.08360534 | BD190: 68.15168894 | BE190: 68.21984063 | BF190: 68.28806047 | BG190: 68.35634853 | BH190: 68.42470488 | BI190: 68.49312959 | BJ190: 68.56162271 | BK190: 68.63018434 | BL190: 68.69881452 | BM190: 68.76751334 | BN190: 68.83628085 | BO190: 68.90511713 | BP190: 68.97402225 | BQ190: 69.04299627 | BR190: 69.11203927 | BS190: 69.18115131 | BT190: 69.25033246
A191: =hist!A159 -> Brownfield dev. spending | B191: 2 | C191: =IF(B191=1,"annual rate of change",IF(B191=2,"manual entries at 5 yr intervals","decling rate of growth in RoC in spending")) -> manual entries at 5 yr intervals | E191: =hist!AR159 -> 55.948 | F191: =hist!AS159 -> 65.80879085 | G191: 50 | H191: 35 | I191: 30 | J191: 30 | K191: 30 | L191: 35 | M191: 35 | N191: 30 | O191: 5 | T191: =F180 -> Future annual RoC, Brownfield dev. spending | U191: =E181*(1+$E$182/100) -> 2.88 | V191: =U191*(1+$E$182/100) -> 2.7648 | W191: =V191*(1+$E$182/100) -> 2.654208 | X191: 2.54803968 | Y191: 2.446118093 | Z191: 2.348273369 | AA191: 2.254342434 | AB191: 2.164168737 | AC191: 2.077601987 | AD191: 1.994497908 | AE191: 1.914717992 | AF191: 1.838129272 | AG191: 1.764604101 | AH191: 1.694019937 | AI191: 1.62625914 | AJ191: 1.561208774 | AK191: 1.498760423 | AL191: 1.438810006 | AM191: 1.381257606 | AN191: 1.326007302 | AO191: 1.27296701 | AP191: 1.222048329 | AQ191: 1.173166396 | AR191: 1.12623974 | AS191: 1.081190151 | AT191: 1.037942545 | AU191: 0.9964248428 | AV191: 0.9565678491 | AW191: 0.9183051351 | AX191: 0.8815729297 | AY191: 0.8463100125 | AZ191: 0.812457612 | BA191: 0.7799593075 | BB191: 0.7487609352 | BC191: 0.7188104978 | BD191: 0.6900580779 | BE191: 0.6624557548 | BF191: 0.6359575246 | BG191: 0.6105192236 | BH191: 0.5860984547 | BI191: 0.5626545165 | BJ191: 0.5401483358 | BK191: 0.5185424024 | BL191: 0.4978007063 | BM191: 0.477888678 | BN191: 0.4587731309 | BO191: 0.4404222057 | BP191: 0.4228053175 | BQ191: 0.4058931048 | BR191: 0.3896573806 | BS191: 0.3740710853 | BT191: 0.3591082419
A192: =hist!A264 -> Average cost per unit brownfield dev. (2018-GNOK/(Mtoe/yr)) | B192: 2 | C192: =IF(B192=1,"annual rate of change",IF(B192=2,"manual entries at 5 yr intervals","decling rate of growth in RoC in spending")) -> manual entries at 5 yr intervals | E192: =hist!AR264 -> 8.414292954 | F192: =hist!AS264 -> 8.414292954 | G192: 8.5 | H192: 9 | I192: 9.5 | J192: 10 | K192: 10.5 | L192: 11 | M192: 11.5 | N192: 12 | O192: 12.5 | T192: =T190 -> Brownfield dev. spending | U192: =F191 -> 65.80879085 | V192: =U192*(1+V191/100) -> 67.6282723 | W192: 69.42326731 | X192: 71.19219971 | Y192: 72.93364498 | Z192: 74.64632635 | AA192: 76.32911016 | AB192: 77.9810009 | AC192: 79.60113572 | AD192: 81.18877871 | AE192: 82.74331486 | AF192: 84.26424395 | AG192: 85.75117426 | AH192: 87.20381624 | AI192: 88.62197628 | AJ192: 90.00555035 | AK192: 91.35451791 | AL192: 92.66893586 | AM192: 93.94893258 | AN192: 95.19470229 | AO192: 96.40649944 | AP192: 97.58463346 | AQ192: 98.72946359 | AR192: 99.84139404 | AS192: 100.9208694 | AT192: 101.96837 | AU192: 102.9844082 | AV192: 103.9695239 | AW192: 104.9242814 | AX192: 105.8492654 | AY192: 106.7450784 | AZ192: 107.6123369 | BA192: 108.4516693 | BB192: 109.2637131 | BC192: 110.0491121 | BD192: 110.8085149 | BE192: 111.5425723 | BF192: 112.2519357 | BG192: 112.9372553 | BH192: 113.5991788 | BI192: 114.2383497 | BJ192: 114.8554063 | BK192: 115.4509802 | BL192: 116.025696 | BM192: 116.5801697 | BN192: 117.1150082 | BO192: 117.6308087 | BP192: 118.128158 | BQ192: 118.6076321 | BR192: 119.0697955 | BS192: 119.5152011 | BT192: 119.9443901
T194: =A192 -> Average cost per unit brownfield dev. (2018-GNOK/(Mtoe/yr)) | U194: =E192*(1+$E$184/100) -> 8.372221489 | V194: =U194*(1+$E$184/100) -> 8.330360382 | W194: =V194*(1+$E$184/100) -> 8.28870858 | X194: =W194*(1+$E$184/100) -> 8.247265037 | Y194: 8.206028712 | Z194: 8.164998568 | AA194: 8.124173575 | AB194: 8.083552707 | AC194: 8.043134944 | AD194: 8.002919269 | AE194: 7.962904673 | AF194: 7.92309015 | AG194: 7.883474699 | AH194: 7.844057325 | AI194: 7.804837039 | AJ194: 7.765812853 | AK194: 7.726983789 | AL194: 7.68834887 | AM194: 7.649907126 | AN194: 7.61165759 | AO194: 7.573599302 | AP194: 7.535731306 | AQ194: 7.498052649 | AR194: 7.460562386 | AS194: 7.423259574 | AT194: 7.386143276 | AU194: 7.34921256 | AV194: 7.312466497 | AW194: 7.275904165 | AX194: 7.239524644 | AY194: 7.203327021 | AZ194: 7.167310385 | BA194: 7.131473833 | BB194: 7.095816464 | BC194: 7.060337382 | BD194: 7.025035695 | BE194: 6.989910517 | BF194: 6.954960964 | BG194: 6.920186159 | BH194: 6.885585228 | BI194: 6.851157302 | BJ194: 6.816901516 | BK194: 6.782817008 | BL194: 6.748902923 | BM194: 6.715158409 | BN194: 6.681582616 | BO194: 6.648174703 | BP194: 6.61493383 | BQ194: 6.581859161 | BR194: 6.548949865 | BS194: 6.516205116 | BT194: 6.48362409
T195: =F184 -> Future annual RoC, Average cost per unit brownfield dev. (2018-GNOK/(Mtoe/yr)) reflecting the learning curve | U195: =E185*(1+$E$186/100) -> 0.198 | V195: =U195*(1+$E$186/100) -> 0.19602 | W195: =V195*(1+$E$186/100) -> 0.1940598 | X195: 0.192119202 | Y195: 0.19019801 | Z195: 0.1882960299 | AA195: 0.1864130696 | AB195: 0.1845489389 | AC195: 0.1827034495 | AD195: 0.180876415 | AE195: 0.1790676509 | AF195: 0.1772769743 | AG195: 0.1755042046 | AH195: 0.1737491626 | AI195: 0.1720116709 | AJ195: 0.1702915542 | AK195: 0.1685886387 | AL195: 0.1669027523 | AM195: 0.1652337248 | AN195: 0.1635813875 | AO195: 0.1619455736 | AP195: 0.1603261179 | AQ195: 0.1587228567 | AR195: 0.1571356282 | AS195: 0.1555642719 | AT195: 0.1540086292 | AU195: 0.1524685429 | AV195: 0.1509438574 | AW195: 0.1494344189 | AX195: 0.1479400747 | AY195: 0.1464606739 | AZ195: 0.1449960672 | BA195: 0.1435461065 | BB195: 0.1421106455 | BC195: 0.140689539 | BD195: 0.1392826436 | BE195: 0.1378898172 | BF195: 0.136510919 | BG195: 0.1351458098 | BH195: 0.1337943517 | BI195: 0.1324564082 | BJ195: 0.1311318441 | BK195: 0.1298205257 | BL195: 0.1285223204 | BM195: 0.1272370972 | BN195: 0.1259647262 | BO195: 0.124705079 | BP195: 0.1234580282 | BQ195: 0.1222234479 | BR195: 0.1210012134 | BS195: 0.1197912013 | BT195: 0.1185932893
T196: =T194 -> Average cost per unit brownfield dev. (2018-GNOK/(Mtoe/yr)) | U196: =E192*(1+U195/100) -> 8.430953254 | V196: =U196*(1+V195/100) -> 8.447479609 | W196: =V196*(1+W195/100) -> 8.463872771 | X196: =W196*(1+X195/100) -> 8.480133495 | Y196: 8.496262541 | Z196: 8.512260666 | AA196: 8.528128632 | AB196: 8.543867203 | AC196: 8.559477143 | AD196: 8.574959218 | AE196: 8.590314196 | AF196: 8.605542846 | AG196: 8.620645935 | AH196: 8.635624235 | AI196: 8.650478517 | AJ196: 8.665209551 | AK196: 8.67981811 | AL196: 8.694304965 | AM196: 8.708670889 | AN196: 8.722916654 | AO196: 8.737043031 | AP196: 8.751050793 | AQ196: 8.764940711 | AR196: 8.778713556 | AS196: 8.792370097 | AT196: 8.805911106 | AU196: 8.81933735 | AV196: 8.832649598 | AW196: 8.845848617 | AX196: 8.858935172 | AY196: 8.871910028 | AZ196: 8.884773949 | BA196: 8.897527696 | BB196: 8.91017203 | BC196: 8.92270771 | BD196: 8.935135493 | BE196: 8.947456135 | BF196: 8.95967039 | BG196: 8.971779009 | BH196: 8.983782742 | BI196: 8.995682338 | BJ196: 9.007478542 | BK196: 9.019172098 | BL196: 9.030763748 | BM196: 9.042254229 | BN196: 9.05364428 | BO196: 9.064934634 | BP196: 9.076126024 | BQ196: 9.087219178 | BR196: 9.098214824 | BS196: 9.109113684 | BT196: 9.119916482
T198: =D189 -> Forecast by future manual entries every 5 yrs | U198: 2019 | V198: 2020 | W198: =V198+1 -> 2021 | X198: 2022 | Y198: 2023 | Z198: 2024 | AA198: 2025 | AB198: 2026 | AC198: 2027 | AD198: 2028 | AE198: 2029 | AF198: 2030 | AG198: 2031 | AH198: 2032 | AI198: 2033 | AJ198: 2034 | AK198: 2035 | AL198: 2036 | AM198: 2037 | AN198: 2038 | AO198: 2039 | AP198: 2040 | AQ198: 2041 | AR198: 2042 | AS198: 2043 | AT198: 2044 | AU198: 2045 | AV198: 2046 | AW198: 2047 | AX198: 2048 | AY198: 2049 | AZ198: 2050 | BA198: 2051 | BB198: 2052 | BC198: 2053 | BD198: 2054 | BE198: 2055 | BF198: 2056 | BG198: 2057 | BH198: 2058 | BI198: 2059 | BJ198: 2060 | BK198: 2061 | BL198: 2062 | BM198: 2063 | BN198: 2064 | BO198: 2065 | BP198: 2066 | BQ198: 2067 | BR198: 2068 | BS198: 2069 | BT198: 2070
T199: =T190 -> Brownfield dev. spending | U199: =F191 -> 65.80879085 | V199: =G191 -> 50 | W199: =$V199+(($AA199-$V199)/5)*1 -> 47 | X199: =$V199+(($AA199-$V199)/5)*2 -> 44 | Y199: =$V199+(($AA199-$V199)/5)*3 -> 41 | Z199: =$V199+(($AA199-$V199)/5)*4 -> 38 | AA199: =H191 -> 35 | AB199: =$AA199+(($AF199-$AA199)/5)*1 -> 34 | AC199: =$AA199+(($AF199-$AA199)/5)*2 -> 33 | AD199: =$AA199+(($AF199-$AA199)/5)*3 -> 32 | AE199: =$AA199+(($AF199-$AA199)/5)*4 -> 31 | AF199: =I191 -> 30 | AG199: =$AF199+(($AK199-$AF199)/5)*1 -> 30 | AH199: =$AF199+(($AK199-$AF199)/5)*2 -> 30 | AI199: =$AF199+(($AK199-$AF199)/5)*3 -> 30 | AJ199: =$AF199+(($AK199-$AF199)/5)*4 -> 30 | AK199: =J191 -> 30 | AL199: =$AK199+(($AP199-$AK199)/5)*1 -> 30 | AM199: =$AK199+(($AP199-$AK199)/5)*2 -> 30 | AN199: =$AK199+(($AP199-$AK199)/5)*3 -> 30 | AO199: =$AK199+(($AP199-$AK199)/5)*4 -> 30 | AP199: =K191 -> 30 | AQ199: =$AP199+(($AU199-$AP199)/5)*1 -> 31 | AR199: =$AP199+(($AU199-$AP199)/5)*2 -> 32 | AS199: =$AP199+(($AU199-$AP199)/5)*3 -> 33 | AT199: =$AP199+(($AU199-$AP199)/5)*4 -> 34 | AU199: =L191 -> 35 | AV199: =$AU199+(($AZ199-$AU199)/5)*1 -> 35 | AW199: =$AU199+(($AZ199-$AU199)/5)*2 -> 35 | AX199: =$AU199+(($AZ199-$AU199)/5)*3 -> 35 | AY199: =$AU199+(($AZ199-$AU199)/5)*4 -> 35 | AZ199: =M191 -> 35 | BA199: =$AZ199+(($BJ199-$AZ199)/10)*1 -> 34.5 | BB199: =$AZ199+(($BJ199-$AZ199)/10)*2 -> 34 | BC199: =$AZ199+(($BJ199-$AZ199)/10)*3 -> 33.5 | BD199: =$AZ199+(($BJ199-$AZ199)/10)*4 -> 33 | BE199: =$AZ199+(($BJ199-$AZ199)/10)*5 -> 32.5 | BF199: =$AZ199+(($BJ199-$AZ199)/10)*6 -> 32 | BG199: =$AZ199+(($BJ199-$AZ199)/10)*7 -> 31.5 | BH199: =$AZ199+(($BJ199-$AZ199)/10)*8 -> 31 | BI199: =$AZ199+(($BJ199-$AZ199)/10)*9 -> 30.5 | BJ199: =N191 -> 30 | BK199: =$BJ199+(($BT199-$BJ199)/10)*1 -> 27.5 | BL199: =$BJ199+(($BT199-$BJ199)/10)*2 -> 25 | BM199: =$BJ199+(($BT199-$BJ199)/10)*3 -> 22.5 | BN199: =$BJ199+(($BT199-$BJ199)/10)*4 -> 20 | BO199: =$BJ199+(($BT199-$BJ199)/10)*5 -> 17.5 | BP199: =$BJ199+(($BT199-$BJ199)/10)*6 -> 15 | BQ199: =$BJ199+(($BT199-$BJ199)/10)*7 -> 12.5 | BR199: =$BJ199+(($BT199-$BJ199)/10)*8 -> 10 | BS199: =$BJ199+(($BT199-$BJ199)/10)*9 -> 7.5 | BT199: =O191 -> 5
T200: =T194 -> Average cost per unit brownfield dev. (2018-GNOK/(Mtoe/yr)) | U200: =F192 -> 8.414292954 | V200: =G192 -> 8.5 | W200: =$V200+(($AA200-$V200)/5)*1 -> 8.6 | X200: =$V200+(($AA200-$V200)/5)*2 -> 8.7 | Y200: =$V200+(($AA200-$V200)/5)*3 -> 8.8 | Z200: =$V200+(($AA200-$V200)/5)*4 -> 8.9 | AA200: =H192 -> 9 | AB200: =$AA200+(($AF200-$AA200)/5)*1 -> 9.1 | AC200: =$AA200+(($AF200-$AA200)/5)*2 -> 9.2 | AD200: =$AA200+(($AF200-$AA200)/5)*3 -> 9.3 | AE200: =$AA200+(($AF200-$AA200)/5)*4 -> 9.4 | AF200: =I192 -> 9.5 | AG200: =$AF200+(($AK200-$AF200)/5)*1 -> 9.6 | AH200: =$AF200+(($AK200-$AF200)/5)*2 -> 9.7 | AI200: =$AF200+(($AK200-$AF200)/5)*3 -> 9.8 | AJ200: =$AF200+(($AK200-$AF200)/5)*4 -> 9.9 | AK200: =J192 -> 10 | AL200: =$AK200+(($AP200-$AK200)/5)*1 -> 10.1 | AM200: =$AK200+(($AP200-$AK200)/5)*2 -> 10.2 | AN200: =$AK200+(($AP200-$AK200)/5)*3 -> 10.3 | AO200: =$AK200+(($AP200-$AK200)/5)*4 -> 10.4 | AP200: =K192 -> 10.5 | AQ200: =$AP200+(($AU200-$AP200)/5)*1 -> 10.6 | AR200: =$AP200+(($AU200-$AP200)/5)*2 -> 10.7 | AS200: =$AP200+(($AU200-$AP200)/5)*3 -> 10.8 | AT200: =$AP200+(($AU200-$AP200)/5)*4 -> 10.9 | AU200: =L192 -> 11 | AV200: =$AU200+(($AZ200-$AU200)/5)*1 -> 11.1 | AW200: =$AU200+(($AZ200-$AU200)/5)*2 -> 11.2 | AX200: =$AU200+(($AZ200-$AU200)/5)*3 -> 11.3 | AY200: =$AU200+(($AZ200-$AU200)/5)*4 -> 11.4 | AZ200: =M192 -> 11.5 | BA200: =$AZ200+(($BJ200-$AZ200)/10)*1 -> 11.55 | BB200: =$AZ200+(($BJ200-$AZ200)/10)*2 -> 11.6 | BC200: =$AZ200+(($BJ200-$AZ200)/10)*3 -> 11.65 | BD200: =$AZ200+(($BJ200-$AZ200)/10)*4 -> 11.7 | BE200: =$AZ200+(($BJ200-$AZ200)/10)*5 -> 11.75 | BF200: =$AZ200+(($BJ200-$AZ200)/10)*6 -> 11.8 | BG200: =$AZ200+(($BJ200-$AZ200)/10)*7 -> 11.85 | BH200: =$AZ200+(($BJ200-$AZ200)/10)*8 -> 11.9 | BI200: =$AZ200+(($BJ200-$AZ200)/10)*9 -> 11.95 | BJ200: =N192 -> 12 | BK200: =$BJ200+(($BT200-$BJ200)/10)*1 -> 12.05 | BL200: =$BJ200+(($BT200-$BJ200)/10)*2 -> 12.1 | BM200: =$BJ200+(($BT200-$BJ200)/10)*3 -> 12.15 | BN200: =$BJ200+(($BT200-$BJ200)/10)*4 -> 12.2 | BO200: =$BJ200+(($BT200-$BJ200)/10)*5 -> 12.25 | BP200: =$BJ200+(($BT200-$BJ200)/10)*6 -> 12.3 | BQ200: =$BJ200+(($BT200-$BJ200)/10)*7 -> 12.35 | BR200: =$BJ200+(($BT200-$BJ200)/10)*8 -> 12.4 | BS200: =$BJ200+(($BT200-$BJ200)/10)*9 -> 12.45 | BT200: =O192 -> 12.5
T202: Selected | U202: 2019 | V202: 2020 | W202: =V202+1 -> 2021 | X202: 2022 | Y202: 2023 | Z202: 2024 | AA202: 2025 | AB202: 2026 | AC202: 2027 | AD202: 2028 | AE202: 2029 | AF202: 2030 | AG202: 2031 | AH202: 2032 | AI202: 2033 | AJ202: 2034 | AK202: 2035 | AL202: 2036 | AM202: 2037 | AN202: 2038 | AO202: 2039 | AP202: 2040 | AQ202: 2041 | AR202: 2042 | AS202: 2043 | AT202: 2044 | AU202: 2045 | AV202: 2046 | AW202: 2047 | AX202: 2048 | AY202: 2049 | AZ202: 2050 | BA202: 2051 | BB202: 2052 | BC202: 2053 | BD202: 2054 | BE202: 2055 | BF202: 2056 | BG202: 2057 | BH202: 2058 | BI202: 2059 | BJ202: 2060 | BK202: 2061 | BL202: 2062 | BM202: 2063 | BN202: 2064 | BO202: 2065 | BP202: 2066 | BQ202: 2067 | BR202: 2068 | BS202: 2069 | BT202: 2070
S203: =A191 -> Brownfield dev. spending | T203: =B191 -> 2 | U203: =IF($B$191=1,U190,IF($B$191=2,U199,U192)) -> 65.80879085 | V203: =IF($B$191=1,V190,IF($B$191=2,V199,V192)) -> 50 | W203: 47 | X203: 44 | Y203: 41 | Z203: 38 | AA203: 35 | AB203: 34 | AC203: 33 | AD203: 32 | AE203: 31 | AF203: 30 | AG203: 30 | AH203: 30 | AI203: 30 | AJ203: 30 | AK203: 30 | AL203: 30 | AM203: 30 | AN203: 30 | AO203: 30 | AP203: 30 | AQ203: 31 | AR203: 32 | AS203: 33 | AT203: 34 | AU203: 35 | AV203: 35 | AW203: 35 | AX203: 35 | AY203: 35 | AZ203: 35 | BA203: 34.5 | BB203: 34 | BC203: 33.5 | BD203: 33 | BE203: 32.5 | BF203: 32 | BG203: 31.5 | BH203: 31 | BI203: 30.5 | BJ203: 30 | BK203: 27.5 | BL203: 25 | BM203: 22.5 | BN203: 20 | BO203: 17.5 | BP203: 15 | BQ203: 12.5 | BR203: 10 | BS203: 7.5 | BT203: 5
S204: =A192 -> Average cost per unit brownfield dev. (2018-GNOK/(Mtoe/yr)) | T204: =B192 -> 2 | U204: =IF($B$192=1,U194,IF($B$192=2,U200,U196)) -> 8.414292954 | V204: =IF($B$192=1,V194,IF($B$192=2,V200,V196)) -> 8.5 | W204: 8.6 | X204: 8.7 | Y204: 8.8 | Z204: 8.9 | AA204: 9 | AB204: 9.1 | AC204: 9.2 | AD204: 9.3 | AE204: 9.4 | AF204: 9.5 | AG204: 9.6 | AH204: 9.7 | AI204: 9.8 | AJ204: 9.9 | AK204: 10 | AL204: 10.1 | AM204: 10.2 | AN204: 10.3 | AO204: 10.4 | AP204: 10.5 | AQ204: 10.6 | AR204: 10.7 | AS204: 10.8 | AT204: 10.9 | AU204: 11 | AV204: 11.1 | AW204: 11.2 | AX204: 11.3 | AY204: 11.4 | AZ204: 11.5 | BA204: 11.55 | BB204: 11.6 | BC204: 11.65 | BD204: 11.7 | BE204: 11.75 | BF204: 11.8 | BG204: 11.85 | BH204: 11.9 | BI204: 11.95 | BJ204: 12 | BK204: 12.05 | BL204: 12.1 | BM204: 12.15 | BN204: 12.2 | BO204: 12.25 | BP204: 12.3 | BQ204: 12.35 | BR204: 12.4 | BS204: 12.45 | BT204: 12.5
S205: Brownfield dev. (Mtoe/yr) | T205: 1 | 1 | U205: =U190/U194 -> 7.860373848 | V205: =V190/V194 -> 7.907773088 | W205: 7.955458151 | X205: 8.003430763 | Y205: 8.051692657 | Z205: 8.100245578 | AA205: 8.14909128 | AB205: 8.198231529 | AC205: 8.247668101 | AD205: 8.297402783 | AE205: 8.347437373 | AF205: 8.397773678 | AG205: 8.44841352 | AH205: 8.499358727 | AI205: 8.550611141 | AJ205: 8.602172615 | AK205: 8.654045013 | AL205: 8.706230209 | AM205: 8.75873009 | AN205: 8.811546553 | AO205: 8.864681507 | AP205: 8.918136873 | AQ205: 8.971914582 | AR205: 9.02601658 | AS205: 9.080444821 | AT205: 9.135201272 | AU205: 9.190287913 | AV205: 9.245706734 | AW205: 9.30145974 | AX205: 9.357548944 | AY205: 9.413976375 | AZ205: 9.470744072 | BA205: 9.527854086 | BB205: 9.585308483 | BC205: 9.643109338 | BD205: 9.701258741 | BE205: 9.759758794 | BF205: 9.81861161 | BG205: 9.877819319 | BH205: 9.937384058 | BI205: 9.997307982 | BJ205: 10.05759326 | BK205: 10.11824206 | BL205: 10.17925659 | BM205: 10.24063904 | BN205: 10.30239163 | BO205: 10.36451661 | BP205: 10.42701621 | BQ205: 10.48989269 | BR205: 10.55314832 | BS205: 10.6167854 | BT205: 10.68080621
S206: =S205 -> Brownfield dev. (Mtoe/yr) | T206: 2 | 1 | U206: =U199/U194 -> 7.860373848 | V206: =V199/V194 -> 6.002141289 | W206: 5.670364635 | X206: 5.335101977 | Y206: 4.996326657 | Z206: 4.654011839 | AA206: 4.308130504 | AB206: 4.206071418 | AC206: 4.102877824 | AD206: 3.998540898 | AE206: 3.893051754 | AF206: 3.786401446 | AG206: 3.805428589 | AH206: 3.824551346 | AI206: 3.843770197 | AJ206: 3.863085625 | AK206: 3.882498115 | AL206: 3.902008156 | AM206: 3.921616237 | AN206: 3.941322852 | AO206: 3.961128494 | AP206: 3.981033663 | AQ206: 4.134406819 | AR206: 4.289220885 | AS206: 4.44548647 | AT206: 4.603214252 | AU206: 4.762414982 | AV206: 4.786346715 | AW206: 4.810398709 | AX206: 4.834571567 | AY206: 4.858865896 | AZ206: 4.883282308 | BA206: 4.83770968 | BB206: 4.791555725 | BC206: 4.744815749 | BD206: 4.697485028 | BE206: 4.649558807 | BF206: 4.601032294 | BG206: 4.551900668 | BH206: 4.502159072 | BI206: 4.451802616 | BJ206: 4.400826377 | BK206: 4.054362659 | BL206: 3.704305764 | BM206: 3.350628329 | BN206: 2.993302807 | BO206: 2.632301463 | BP206: 2.267596379 | BQ206: 1.899159446 | BR206: 1.526962369 | BS206: 1.15097666 | BT206: 0.7711736416
S207: =S206 -> Brownfield dev. (Mtoe/yr) | T207: 3 | 1 | U207: =U192/U194 -> 7.860373848 | V207: =V192/V194 -> 8.118288909 | W207: 8.3756434 | X207: 8.632219213 | Y207: 8.887812552 | Z207: 9.142233856 | AA207: 9.395307652 | AB207: 9.646872324 | AC207: 9.896779835 | AD207: 10.14489538 | AE207: 10.391097 | AF207: 10.63527517 | AG207: 10.87733234 | AH207: 11.11718243 | AI207: 11.35475037 | AJ207: 11.58997159 | AK207: 11.82279145 | AL207: 12.05316479 | AM207: 12.28105532 | AN207: 12.50643518 | AO207: 12.7292844 | AP207: 12.94959036 | AQ207: 13.16734734 | AR207: 13.38255602 | AS207: 13.59522301 | AT207: 13.80536041 | AU207: 14.01298538 | AV207: 14.21811969 | AW207: 14.42078936 | AX207: 14.62102426 | AY207: 14.81885774 | AZ207: 15.01432631 | BA207: 15.20746929 | BB207: 15.39832852 | BC207: 15.58694807 | BD207: 15.77337393 | BE207: 15.95765382 | BF207: 16.13983691 | BG207: 16.31997358 | BH207: 16.49811527 | BI207: 16.67431423 | BJ207: 16.84862338 | BK207: 17.02109612 | BL207: 17.19178619 | BM207: 17.36074752 | BN207: 17.52803414 | BO207: 17.69369999 | BP207: 17.85779889 | BQ207: 18.02038439 | BR207: 18.18150969 | BS207: 18.3412276 | BT207: 18.49959042
S208: Brownfield dev. (Mtoe/yr) | T208: 1 | 2 | U208: =U190/U200 -> 7.821071979 | V208: 7.749952898 | W208: 7.667497004 | X208: 7.58694422 | Y208: 7.508229673 | Z208: 7.43129141 | AA208: 7.356070227 | AB208: 7.282509524 | AC208: 7.210555164 | AD208: 7.140155335 | AE208: 7.071260432 | AF208: 7.003822938 | AG208: 6.937797315 | AH208: 6.873139905 | AI208: 6.80980883 | AJ208: 6.747763906 | AK208: 6.686966553 | AL208: 6.627379722 | AM208: 6.568967816 | AN208: 6.511696621 | AO208: 6.455533238 | AP208: 6.400446021 | AQ208: 6.346404519 | AR208: 6.29337942 | AS208: 6.241342496 | AT208: 6.190266555 | AU208: 6.140125396 | AV208: 6.09089376 | AW208: 6.042547291 | AX208: 5.995062494 | AY208: 5.948416701 | AZ208: 5.90258803 | BA208: 5.882912736 | BB208: 5.863412909 | BC208: 5.844086295 | BD208: 5.824930679 | BE208: 5.805943883 | BF208: 5.787123769 | BG208: 5.768468231 | BH208: 5.7499752 | BI208: 5.731642643 | BJ208: 5.71346856 | BK208: 5.695450982 | BL208: 5.677587977 | BM208: 5.659877641 | BN208: 5.642318102 | BO208: 5.624907521 | BP208: 5.607644085 | BQ208: 5.590526014 | BR208: 5.573551554 | BS208: 5.55671898 | BT208: 5.540026597
S209: Brownfield dev. (Mtoe/yr) | T209: 2 | 2 | U209: =U199/U200 -> 7.821071979 | V209: 5.882352941 | W209: 5.465116279 | X209: 5.057471264 | Y209: 4.659090909 | Z209: 4.269662921 | AA209: 3.888888889 | AB209: 3.736263736 | AC209: 3.586956522 | AD209: 3.440860215 | AE209: 3.29787234 | AF209: 3.157894737 | AG209: 3.125 | AH209: 3.092783505 | AI209: 3.06122449 | AJ209: 3.03030303 | AK209: 3 | AL209: 2.97029703 | AM209: 2.941176471 | AN209: 2.912621359 | AO209: 2.884615385 | AP209: 2.857142857 | AQ209: 2.924528302 | AR209: 2.990654206 | AS209: 3.055555556 | AT209: 3.119266055 | AU209: 3.181818182 | AV209: 3.153153153 | AW209: 3.125 | AX209: 3.097345133 | AY209: 3.070175439 | AZ209: 3.043478261 | BA209: 2.987012987 | BB209: 2.931034483 | BC209: 2.875536481 | BD209: 2.820512821 | BE209: 2.765957447 | BF209: 2.711864407 | BG209: 2.658227848 | BH209: 2.605042017 | BI209: 2.552301255 | BJ209: 2.5 | BK209: 2.282157676 | BL209: 2.066115702 | BM209: 1.851851852 | BN209: 1.639344262 | BO209: 1.428571429 | BP209: 1.219512195 | BQ209: 1.012145749 | BR209: 0.8064516129 | BS209: 0.6024096386 | BT209: 0.4
S210: Brownfield dev. (Mtoe/yr) | T210: 3 | 2 | U210: =U192/U200 -> 7.821071979 | V210: 7.956267329 | W210: 8.072472943 | X210: 8.183011461 | Y210: 8.287914203 | Z210: 8.387227679 | AA210: 8.48101224 | AB210: 8.569340758 | AC210: 8.652297361 | AD210: 8.729976205 | AE210: 8.802480304 | AF210: 8.869920416 | AG210: 8.932413985 | AH210: 8.990084149 | AI210: 9.043058804 | AJ210: 9.091469732 | AK210: 9.135451791 | AL210: 9.175142164 | AM210: 9.210679665 | AN210: 9.242204106 | AO210: 9.269855716 | AP210: 9.293774615 | AQ210: 9.314100338 | AR210: 9.330971406 | AS210: 9.344524941 | AT210: 9.35489633 | AU210: 9.362218924 | AV210: 9.366623775 | AW210: 9.368239409 | AX210: 9.367191632 | AY210: 9.363603366 | AZ210: 9.357594512 | BA210: 9.38975492 | BB210: 9.419285609 | BC210: 9.446275717 | BD210: 9.470813239 | BE210: 9.492984874 | BF210: 9.512875903 | BG210: 9.530570068 | BH210: 9.54614948 | BI210: 9.559694537 | BJ210: 9.571283855 | BK210: 9.580994211 | BL210: 9.588900499 | BM210: 9.595075696 | BN210: 9.599590836 | BO210: 9.602514996 | BP210: 9.603915286 | BQ210: 9.603856848 | BR210: 9.60240286 | BS210: 9.599614549 | BT210: 9.595551206
S211: Brownfield dev. (Mtoe/yr) | T211: 1 | 3 | U211: =U190/U196 -> 7.805616858 | V211: 7.798136567 | W211: 7.790815862 | X211: 7.783652786 | Y211: 7.776645414 | Z211: 7.76979185 | AA211: 7.763090227 | AB211: 7.756538708 | AC211: 7.750135481 | AD211: 7.743878767 | AE211: 7.737766808 | AF211: 7.731797878 | AG211: 7.725970273 | AH211: 7.720282317 | AI211: 7.714732359 | AJ211: 7.709318773 | AK211: 7.704039956 | AL211: 7.698894329 | AM211: 7.693880338 | AN211: 7.688996452 | AO211: 7.68424116 | AP211: 7.679612976 | AQ211: 7.675110434 | AR211: 7.670732091 | AS211: 7.666476525 | AT211: 7.662342333 | AU211: 7.658328134 | AV211: 7.654432567 | AW211: 7.650654288 | AX211: 7.646991977 | AY211: 7.643444329 | AZ211: 7.640010059 | BA211: 7.636687901 | BB211: 7.633476606 | BC211: 7.630374943 | BD211: 7.627381699 | BE211: 7.624495678 | BF211: 7.6217157 | BG211: 7.619040601 | BH211: 7.616469236 | BI211: 7.614000474 | BJ211: 7.611633199 | BK211: 7.609366313 | BL211: 7.607198731 | BM211: 7.605129384 | BN211: 7.603157217 | BO211: 7.601281191 | BP211: 7.599500279 | BQ211: 7.597813469 | BR211: 7.596219765 | BS211: 7.59471818 | BT211: 7.593307745
S212: Brownfield dev. (Mtoe/yr) | T212: 2 | 3 | U212: =U199/U196 -> 7.805616858 | V212: 5.918925208 | W212: 5.553013529 | X212: 5.188597564 | Y212: 4.825651256 | Z212: 4.464149007 | AA212: 4.104065676 | AB212: 3.979462601 | AC212: 3.855375679 | AD212: 3.731796174 | AE212: 3.608715501 | AF212: 3.486125226 | AG212: 3.480017649 | AH212: 3.473981635 | AI212: 3.468016242 | AJ212: 3.462120543 | AK212: 3.456293625 | AL212: 3.450534588 | AM212: 3.444842546 | AN212: 3.439216628 | AO212: 3.433655974 | AP212: 3.428159739 | AQ212: 3.536817991 | AR212: 3.645181016 | AS212: 3.7532542 | AT212: 3.861042837 | AU212: 3.968552127 | AV212: 3.96257087 | AW212: 3.95665826 | AX212: 3.950813424 | AY212: 3.945035498 | AZ212: 3.939323634 | BA212: 3.877481608 | BB212: 3.815863474 | BC212: 3.754465695 | BD212: 3.693284789 | BE212: 3.632317332 | BF212: 3.571559958 | BG212: 3.511009352 | BH212: 3.450662253 | BI212: 3.390515455 | BJ212: 3.330565802 | BK212: 3.049060346 | BL212: 2.768315139 | BM212: 2.488317562 | BN212: 2.209055203 | BO212: 1.930515851 | BP212: 1.652687497 | BQ212: 1.375558326 | BR212: 1.099116716 | BS212: 0.8233512348 | BT212: 0.5482506347
S213: Brownfield dev. (Mtoe/yr) | T213: 3 | 3 | U213: =U192/U196 -> 7.805616858 | V213: 8.005733713 | W213: 8.202305161 | X213: 8.395174409 | Y213: 8.584203305 | Z213: 8.769271675 | AA213: 8.950276602 | AB213: 9.127131666 | AC213: 9.299766141 | AD213: 9.468124179 | AE213: 9.632163966 | AF213: 9.791856884 | AG213: 9.947186661 | AH213: 10.09814854 | AI213: 10.24474844 | AJ213: 10.38700216 | AK213: 10.5249346 | AL213: 10.65857895 | AM213: 10.787976 | AN213: 10.91317343 | AO213: 11.03422509 | AP213: 11.15119038 | AQ213: 11.26413365 | AR213: 11.37312357 | AS213: 11.47823263 | AT213: 11.57953661 | AU213: 11.67711406 | AV213: 11.77104591 | AW213: 11.86141499 | AX213: 11.94830568 | AY213: 12.03180353 | AZ213: 12.11199492 | BA213: 12.18896676 | BB213: 12.26280623 | BC213: 12.33360048 | BD213: 12.40143644 | BE213: 12.46640057 | BF213: 12.52857871 | BG213: 12.58805586 | BH213: 12.64491607 | BI213: 12.69924231 | BJ213: 12.75111628 | BK213: 12.80061839 | BL213: 12.84782764 | BM213: 12.8928215 | BN213: 12.93567591 | BO213: 12.97646519 | BP213: 13.01526199 | BQ213: 13.05213726 | BR213: 13.08716026 | BS213: 13.12039846 | BT213: 13.1519176
R214: =CONCATENATE(S213," SELECTED") -> Brownfield dev. (Mtoe/yr) SELECTED | S214: =CONCATENATE(B191," | ",B192) -> 2 | 2 | T214: =hist!AR241 -> 5.265146395 | U214: =IF(AND($B191=1,$B192=1),U205,IF(AND($B191=2,$B192=1),U206,IF(AND($B191=3,$B192=1),U207,IF(AND($B191=1,$B192=2),U208,IF(AND($B191=2,$B192=2),U209,IF(AND($B191=3,$B192=2),U210,IF(AND($B191=1,$B192=3),U211,IF(AND($B191=2,$B192=3),U212,IF(AND($B191=3,$B192=3),U213,"oops"))))))))) -> 7.821071979 | V214: 5.882352941 | W214: 5.465116279 | X214: 5.057471264 | Y214: 4.659090909 | Z214: 4.269662921 | AA214: 3.888888889 | AB214: 3.736263736 | AC214: 3.586956522 | AD214: 3.440860215 | AE214: 3.29787234 | AF214: 3.157894737 | AG214: 3.125 | AH214: 3.092783505 | AI214: 3.06122449 | AJ214: 3.03030303 | AK214: 3 | AL214: 2.97029703 | AM214: 2.941176471 | AN214: 2.912621359 | AO214: 2.884615385 | AP214: 2.857142857 | AQ214: 2.924528302 | AR214: 2.990654206 | AS214: 3.055555556 | AT214: 3.119266055 | AU214: 3.181818182 | AV214: 3.153153153 | AW214: 3.125 | AX214: 3.097345133 | AY214: 3.070175439 | AZ214: 3.043478261 | BA214: 2.987012987 | BB214: 2.931034483 | BC214: 2.875536481 | BD214: 2.820512821 | BE214: 2.765957447 | BF214: 2.711864407 | BG214: 2.658227848 | BH214: 2.605042017 | BI214: 2.552301255 | BJ214: 2.5 | BK214: 2.282157676 | BL214: 2.066115702 | BM214: 1.851851852 | BN214: 1.639344262 | BO214: 1.428571429 | BP214: 1.219512195 | BQ214: 1.012145749 | BR214: 0.8064516129 | BS214: 0.6024096386 | BT214: 0.4
T216: Actual Brownfield dev. spending (2018-GNOK/yr) | U216: =U214*U204 -> 65.80879085 | V216: =V214*V204 -> 50 | W216: 47 | X216: 44 | Y216: 41 | Z216: 38 | AA216: 35 | AB216: 34 | AC216: 33 | AD216: 32 | AE216: 31 | AF216: 30 | AG216: 30 | AH216: 30 | AI216: 30 | AJ216: 30 | AK216: 30 | AL216: 30 | AM216: 30 | AN216: 30 | AO216: 30 | AP216: 30 | AQ216: 31 | AR216: 32 | AS216: 33 | AT216: 34 | AU216: 35 | AV216: 35 | AW216: 35 | AX216: 35 | AY216: 35 | AZ216: 35 | BA216: 34.5 | BB216: 34 | BC216: 33.5 | BD216: 33 | BE216: 32.5 | BF216: 32 | BG216: 31.5 | BH216: 31 | BI216: 30.5 | BJ216: 30 | BK216: 27.5 | BL216: 25 | BM216: 22.5 | BN216: 20 | BO216: 17.5 | BP216: 15 | BQ216: 12.5 | BR216: 10 | BS216: 7.5 | BT216: 5
T217: Brownfield dev. spending (Nominal GNOK/yr) | U217: =U216 -> 65.80879085 | V217: =V216*(1+(T1244-$S1244)/$S1244) -> 51 | W217: 48.8988 | X217: 46.693152 | Y217: 44.37971856 | Z217: 41.95507052 | AA217: 39.41568467 | AB217: 39.0553127 | AC217: 38.66475957 | AD217: 38.2429622 | AE217: 37.78882702 | AF217: 37.30122925 | AG217: 38.04725384 | AH217: 38.80819891 | AI217: 39.58436289 | AJ217: 40.37605015 | AK217: 41.18357115 | AL217: 42.00724258 | AM217: 42.84738743 | AN217: 43.70433518 | AO217: 44.57842188 | AP217: 45.46999032 | AQ217: 47.92536979 | AR217: 50.46077645 | AS217: 53.07842923 | AT217: 55.78060381 | AU217: 58.569634 | AV217: 59.74102668 | AW217: 60.93584722 | AX217: 62.15456416 | AY217: 63.39765544 | AZ217: 64.66560855 | BA217: 65.01665043 | BB217: =BB216*(1+(AZ1244-$S1244)/$S1244) -> 65.35586773 | BC217: 65.68264707 | BD217: 65.99635524 | BE217: 66.29633867 | BF217: 66.5819229 | BG217: 66.85241196 | BH217: 67.10708782 | BI217: 67.34520974 | BJ217: 67.56601371 | BK217: 63.17422282 | BL217: 58.57973388 | BM217: 53.77619571 | BN217: 48.75708411 | BO217: 43.51569756 | BP217: 38.04515273 | BQ217: 32.33837982 | BR217: 26.38811793 | BS217: 20.18691022 | BT217: 13.72709895
A224: Offshore, Natural decline
A225: Natural decline is the rate at which fields decline BEFORE any brownfield development
D229: =D179 -> SC-1
D230: Forecast by future annual rates of change | E230: 1 | F230: =CONCATENATE("Future annual RoC, ",A234) -> Future annual RoC, Natural decline rate (pct/yr)
